Workbook

Sheet Report
A1: Updated: | B1: 16/11/2016 | C1: 21:58
A2: Period From: | B2: Mth 1 - Sep 2015 | C2: =IF(ISNA(VLOOKUP(B2,SageDataCompany!$D$2:$J$13,4,FALSE)),1,VLOOKUP(B2,SageDataCompany!$D$2:$J$13,4,FALSE)) -> 1 | D2: =IF(ISNA(VLOOKUP(B2,SageDataCompany!$D$2:$J$13,4,FALSE)),"<= Check","") -> 
A3: Period to: | B3: Mth 12 - Aug 2016 | C3: =IF(ISNA(VLOOKUP(B3,SageDataCompany!$D$2:$J$13,4,FALSE)),12,VLOOKUP(B3,SageDataCompany!$D$2:$J$13,4,FALSE)) -> 12 | D3: =IF(ISNA(VLOOKUP(B3,SageDataCompany!$D$2:$J$13,4,FALSE)),"<= Check","") -> 
A4: Chart of Accounts | B4: FSSU
A5: Hide Zeroes (Yes) or Show All | B5: (All)
A7: Categories | B7: Sub-Categories | C7: Nominal | D7: Current | E7: Budget | F7: Difference | G7: 1 Year Past
A8: 01 - Sales | B8: 001 - Department Income | C8: 3010 - Capitation | D8: 50850 | E8: 50763 | F8: 87 | G8: 0
C9: 3020 - Enhanced Capitation (DEIS) | D9: 0 | E9: 0 | F9: 0 | G9: 0
C10: 3050 - Support Services | D10: 41200 | E10: 40200 | F10: 1000 | G10: 0
C11: 3100 - Secretarial Grant | D11: 12000 | E11: 12000 | F11: 0 | G11: 0
C12: 3130 - Caretaker Grant | D12: 9650 | E12: 9600 | F12: 50 | G12: 0
C13: 3150 - Book Grant | D13: 4825 | E13: 4800 | F13: 25 | G13: 0
C14: 3170 - Special Subjects Grant | D14: 0 | E14: 0 | F14: 0 | G14: 0
C15: 3190 - Home Economics | D15: 0 | E15: 0 | F15: 0 | G15: 0
C16: 3200 - Transition Year | D16: 2950 | E16: 2850 | F16: 100 | G16: 0
C17: 3210 - Leaving Cert Applied | D17: 0 | E17: 0 | F17: 0 | G17: 0
C18: 3220 - Grant for Traveller Students | D18: 402 | E18: 402 | F18: 0 | G18: 0
C19: 3230 - Computer/It Grant | D19: 0 | E19: 0 | F19: 0 | G19: 0
C20: 3240 - Supervision/Substitution | D20: 0 | E20: 0 | F20: 0 | G20: 0
C21: 3250 - Substitute Teachers | D21: 0 | E21: 0 | F21: 0 | G21: 0
C22: 3255 - DES Exam Income | D22: 6500 | E22: 7000 | F22: -500 | G22: 0
C23: 3270 - Library | D23: 0 | E23: 0 | F23: 0 | G23: 0
C24: 3275 - DES Minor Works Grant -non capital | D24: 0 | E24: 0 | F24: 0 | G24: 0
C25: 3290 - Other DES Grants | D25: 0 | E25: 0 | F25: 0 | G25: 0
B26: 001 - Department Income Total | D26: 128377 | E26: 127615 | F26: 762 | G26: 0
B27: 002 - School Generated Income | C27: 3300 - Fees ( Fee Paying School) | D27: 0 | E27: 0 | F27: 0 | G27: 0
C28: 3310 - Transition Year | D28: 4100 | E28: 0 | F28: 4100 | G28: 0
C29: 3330 - Book Rental | D29: 2180 | E29: 0 | F29: 2180 | G29: 0
C30: 3335 - Classroom Books | D30: 0 | E30: 0 | F30: 0 | G30: 0
C31: 3350 - Hall Rental | D31: 2360 | E31: 0 | F31: 2360 | G31: 0
C32: 3370 - Locker Receipts | D32: 0 | E32: 0 | F32: 0 | G32: 0
C33: 3375 - Journals & Year Book Income | D33: 1500 | E33: 0 | F33: 1500 | G33: 0
C34: 3390 - School Administration Charges | D34: 0 | E34: 0 | F34: 0 | G34: 0
C35: 3410 - Adult Education Grant | D35: 0 | E35: 0 | F35: 0 | G35: 0
C36: 3420 - Canteen Income | D36: 0 | E36: 0 | F36: 0 | G36: 0
C37: 3430 - Tuck Shop Income | D37: 0 | E37: 0 | F37: 0 | G37: 0
C38: 3440 - Uniforms | D38: 0 | E38: 0 | F38: 0 | G38: 0
C39: 3441 - Art Income | D39: 850 | E39: 0 | F39: 850 | G39: 0
C40: 3450 - Religion | D40: 0 | E40: 0 | F40: 0 | G40: 0
C41: 3490 - Study Income | D41: 0 | E41: 0 | F41: 0 | G41: 0
C42: 3495 - Mock Exam Income | D42: 0 | E42: 0 | F42: 0 | G42: 0
C43: 3500 - Games | D43: 0 | E43: 0 | F43: 0 | G43: 0
C44: 3510 - Bus Income | D44: 2200 | E44: 0 | F44: 2200 | G44: 0
C45: 3520 - School Musical/Drama | D45: 0 | E45: 0 | F45: 0 | G45: 0
C46: 3530 - School Tours | D46: 0 | E46: 0 | F46: 0 | G46: 0
C47: 3535 - Student Insurance | D47: 1000 | E47: 0 | F47: 1000 | G47: 0
C48: 3550 - Reimbursable Income | D48: 2000 | E48: 0 | F48: 2000 | G48: 0
C49: 3570 - Other Income | D49: 500 | E49: 0 | F49: 500 | G49: 0
B50: 002 - School Generated Income Total | D50: 16690 | E50: 0 | F50: 16690 | G50: 0
B51: 003 - Other Income | C51: 3650 - Voluntary Subscriptions | D51: 9000 | E51: 0 | F51: 9000 | G51: 0
C52: 3700 - Parents Council | D52: 200 | E52: 0 | F52: 200 | G52: 0
C53: 3750 - Fund Raising | D53: 8000 | E53: 0 | F53: 8000 | G53: 0
C54: 3770 - Insurance Claim Receipts | D54: 0 | E54: 0 | F54: 0 | G54: 0
C55: 3800 - Bank Interest Received | D55: 600 | E55: 0 | F55: 600 | G55: 0
C56: 3840 - Amortisation of Grants | D56: 0 | E56: 0 | F56: 0 | G56: 0
C57: 3850 - Other Income | D57: 0 | E57: 0 | F57: 0 | G57: 0
B58: 003 - Other Income Total | D58: 17800 | E58: 0 | F58: 17800 | G58: 0
A59: 01 - Sales Total | D59: 162867 | E59: 127615 | F59: 35252 | G59: 0
A60: Total | D60: 162867 | E60: 127615 | F60: 35252 | G60: 0

Sheet SageDataCOA (hidden)
A1: ACCOUNT_REF | B1: CHART | C1: NAME | D1: CATEGORY | E1: TITLE | F1: NAME | G1: SORT_ORDER | H1: NAME | I1: SO | J1: PNL | K1: BS | L1: ChosenCat | M1: Category | N1: Category Name | O1: Sub-Category | P1: PNL Account?
A2: 3010 | B2: 2 | C2: FSSU | D2: 1 | E2: Sales | F2: Department Income | G2: 1 | H2: Capitation | I2: =IF(P2,"999",TEXT(G2,"000")) -> 001 | J2: =IF(D2<5,TEXT(D2,"00"),IF(D2=10,"06","11")) -> 01 | K2: =IF(D2<5,"09",IF(D2=10,"12",TEXT(D2,"00"))) -> 09 | L2: =OFFSET(I2,0,SageDataCOAList!$K$1,1) -> 01 | M2: =IF(P2,VLOOKUP(9,$D:$E,2,FALSE),IF(LEFT($L2,1)="0",E2,"")) -> Sales | N2: =IF(P2,SageDataCOAList!$L$2,IF(LEFT($L2,1)="0",F2,"")) -> Department Income | O2: =IF(P2,SageDataCOAList!$L$2,IF(LEFT($L2,1)="0",H2,"")) -> Capitation | P2: =AND(SageDataCOAList!$K$1=2,L2="09") -> FALSE
A3: 3020 | B3: 2 | C3: FSSU | D3: 1 | E3: Sales | F3: Department Income | G3: 1 | H3: Enhanced Capitation (DEIS) | I3: =IF(P3,"999",TEXT(G3,"000")) -> 001 | J3: =IF(D3<5,TEXT(D3,"00"),IF(D3=10,"06","11")) -> 01 | K3: =IF(D3<5,"09",IF(D3=10,"12",TEXT(D3,"00"))) -> 09 | L3: =OFFSET(I3,0,SageDataCOAList!$K$1,1) -> 01 | M3: =IF(P3,VLOOKUP(9,$D:$E,2,FALSE),IF(LEFT($L3,1)="0",E3,"")) -> Sales | N3: =IF(P3,SageDataCOAList!$L$2,IF(LEFT($L3,1)="0",F3,"")) -> Department Income | O3: =IF(P3,SageDataCOAList!$L$2,IF(LEFT($L3,1)="0",H3,"")) -> Enhanced Capitation (DEIS) | P3: =AND(SageDataCOAList!$K$1=2,L3="09") -> FALSE
A4: 3050 | B4: 2 | C4: FSSU | D4: 1 | E4: Sales | F4: Department Income | G4: 1 | H4: Support Services | I4: 001 | J4: 01 | K4: 09 | L4: =OFFSET(I4,0,SageDataCOAList!$K$1,1) -> 01 | M4: Sales | N4: =IF(P4,SageDataCOAList!$L$2,IF(LEFT($L4,1)="0",F4,"")) -> Department Income | O4: =IF(P4,SageDataCOAList!$L$2,IF(LEFT($L4,1)="0",H4,"")) -> Support Services | P4: =AND(SageDataCOAList!$K$1=2,L4="09") -> FALSE
A5: 3100 | B5: 2 | C5: FSSU | D5: 1 | E5: Sales | F5: Department Income | G5: 1 | H5: Secretarial Grant | I5: 001 | J5: 01 | K5: 09 | L5: =OFFSET(I5,0,SageDataCOAList!$K$1,1) -> 01 | M5: Sales | N5: =IF(P5,SageDataCOAList!$L$2,IF(LEFT($L5,1)="0",F5,"")) -> Department Income | O5: =IF(P5,SageDataCOAList!$L$2,IF(LEFT($L5,1)="0",H5,"")) -> Secretarial Grant | P5: =AND(SageDataCOAList!$K$1=2,L5="09") -> FALSE
A6: 3130 | B6: 2 | C6: FSSU | D6: 1 | E6: Sales | F6: Department Income | G6: 1 | H6: Caretaker Grant | I6: 001 | J6: 01 | K6: 09 | L6: =OFFSET(I6,0,SageDataCOAList!$K$1,1) -> 01 | M6: Sales | N6: =IF(P6,SageDataCOAList!$L$2,IF(LEFT($L6,1)="0",F6,"")) -> Department Income | O6: =IF(P6,SageDataCOAList!$L$2,IF(LEFT($L6,1)="0",H6,"")) -> Caretaker Grant | P6: =AND(SageDataCOAList!$K$1=2,L6="09") -> FALSE
A7: 3150 | B7: 2 | C7: FSSU | D7: 1 | E7: Sales | F7: Department Income | G7: 1 | H7: Book Grant | I7: 001 | J7: 01 | K7: 09 | L7: =OFFSET(I7,0,SageDataCOAList!$K$1,1) -> 01 | M7: Sales | N7: =IF(P7,SageDataCOAList!$L$2,IF(LEFT($L7,1)="0",F7,"")) -> Department Income | O7: =IF(P7,SageDataCOAList!$L$2,IF(LEFT($L7,1)="0",H7,"")) -> Book Grant | P7: =AND(SageDataCOAList!$K$1=2,L7="09") -> FALSE
A8: 3170 | B8: 2 | C8: FSSU | D8: 1 | E8: Sales | F8: Department Income | G8: 1 | H8: Special Subjects Grant | I8: 001 | J8: 01 | K8: 09 | L8: =OFFSET(I8,0,SageDataCOAList!$K$1,1) -> 01 | M8: Sales | N8: =IF(P8,SageDataCOAList!$L$2,IF(LEFT($L8,1)="0",F8,"")) -> Department Income | O8: =IF(P8,SageDataCOAList!$L$2,IF(LEFT($L8,1)="0",H8,"")) -> Special Subjects Grant | P8: =AND(SageDataCOAList!$K$1=2,L8="09") -> FALSE
A9: 3190 | B9: 2 | C9: FSSU | D9: 1 | E9: Sales | F9: Department Income | G9: 1 | H9: Home Economics | I9: 001 | J9: 01 | K9: 09 | L9: =OFFSET(I9,0,SageDataCOAList!$K$1,1) -> 01 | M9: Sales | N9: =IF(P9,SageDataCOAList!$L$2,IF(LEFT($L9,1)="0",F9,"")) -> Department Income | O9: =IF(P9,SageDataCOAList!$L$2,IF(LEFT($L9,1)="0",H9,"")) -> Home Economics | P9: =AND(SageDataCOAList!$K$1=2,L9="09") -> FALSE
A10: 3200 | B10: 2 | C10: FSSU | D10: 1 | E10: Sales | F10: Department Income | G10: 1 | H10: Transition Year | I10: 001 | J10: 01 | K10: 09 | L10: =OFFSET(I10,0,SageDataCOAList!$K$1,1) -> 01 | M10: Sales | N10: =IF(P10,SageDataCOAList!$L$2,IF(LEFT($L10,1)="0",F10,"")) -> Department Income | O10: =IF(P10,SageDataCOAList!$L$2,IF(LEFT($L10,1)="0",H10,"")) -> Transition Year | P10: =AND(SageDataCOAList!$K$1=2,L10="09") -> FALSE
A11: 3210 | B11: 2 | C11: FSSU | D11: 1 | E11: Sales | F11: Department Income | G11: 1 | H11: Leaving Cert Applied | I11: 001 | J11: 01 | K11: 09 | L11: =OFFSET(I11,0,SageDataCOAList!$K$1,1) -> 01 | M11: Sales | N11: =IF(P11,SageDataCOAList!$L$2,IF(LEFT($L11,1)="0",F11,"")) -> Department Income | O11: =IF(P11,SageDataCOAList!$L$2,IF(LEFT($L11,1)="0",H11,"")) -> Leaving Cert Applied | P11: =AND(SageDataCOAList!$K$1=2,L11="09") -> FALSE
A12: 3220 | B12: 2 | C12: FSSU | D12: 1 | E12: Sales | F12: Department Income | G12: 1 | H12: Grant for Traveller Students | I12: 001 | J12: 01 | K12: 09 | L12: =OFFSET(I12,0,SageDataCOAList!$K$1,1) -> 01 | M12: Sales | N12: =IF(P12,SageDataCOAList!$L$2,IF(LEFT($L12,1)="0",F12,"")) -> Department Income | O12: =IF(P12,SageDataCOAList!$L$2,IF(LEFT($L12,1)="0",H12,"")) -> Grant for Traveller Students | P12: =AND(SageDataCOAList!$K$1=2,L12="09") -> FALSE
A13: 3230 | B13: 2 | C13: FSSU | D13: 1 | E13: Sales | F13: Department Income | G13: 1 | H13: Computer/It Grant | I13: 001 | J13: 01 | K13: 09 | L13: =OFFSET(I13,0,SageDataCOAList!$K$1,1) -> 01 | M13: Sales | N13: =IF(P13,SageDataCOAList!$L$2,IF(LEFT($L13,1)="0",F13,"")) -> Department Income | O13: =IF(P13,SageDataCOAList!$L$2,IF(LEFT($L13,1)="0",H13,"")) -> Computer/It Grant | P13: =AND(SageDataCOAList!$K$1=2,L13="09") -> FALSE
A14: 3240 | B14: 2 | C14: FSSU | D14: 1 | E14: Sales | F14: Department Income | G14: 1 | H14: Supervision/Substitution | I14: 001 | J14: 01 | K14: 09 | L14: =OFFSET(I14,0,SageDataCOAList!$K$1,1) -> 01 | M14: Sales | N14: =IF(P14,SageDataCOAList!$L$2,IF(LEFT($L14,1)="0",F14,"")) -> Department Income | O14: =IF(P14,SageDataCOAList!$L$2,IF(LEFT($L14,1)="0",H14,"")) -> Supervision/Substitution | P14: =AND(SageDataCOAList!$K$1=2,L14="09") -> FALSE
A15: 3250 | B15: 2 | C15: FSSU | D15: 1 | E15: Sales | F15: Department Income | G15: 1 | H15: Substitute Teachers | I15: 001 | J15: 01 | K15: 09 | L15: =OFFSET(I15,0,SageDataCOAList!$K$1,1) -> 01 | M15: Sales | N15: =IF(P15,SageDataCOAList!$L$2,IF(LEFT($L15,1)="0",F15,"")) -> Department Income | O15: =IF(P15,SageDataCOAList!$L$2,IF(LEFT($L15,1)="0",H15,"")) -> Substitute Teachers | P15: =AND(SageDataCOAList!$K$1=2,L15="09") -> FALSE
A16: 3255 | B16: 2 | C16: FSSU | D16: 1 | E16: Sales | F16: Department Income | G16: 1 | H16: DES Exam Income | I16: 001 | J16: 01 | K16: 09 | L16: =OFFSET(I16,0,SageDataCOAList!$K$1,1) -> 01 | M16: Sales | N16: =IF(P16,SageDataCOAList!$L$2,IF(LEFT($L16,1)="0",F16,"")) -> Department Income | O16: =IF(P16,SageDataCOAList!$L$2,IF(LEFT($L16,1)="0",H16,"")) -> DES Exam Income | P16: =AND(SageDataCOAList!$K$1=2,L16="09") -> FALSE
A17: 3270 | B17: 2 | C17: FSSU | D17: 1 | E17: Sales | F17: Department Income | G17: 1 | H17: Library | I17: 001 | J17: 01 | K17: 09 | L17: =OFFSET(I17,0,SageDataCOAList!$K$1,1) -> 01 | M17: Sales | N17: =IF(P17,SageDataCOAList!$L$2,IF(LEFT($L17,1)="0",F17,"")) -> Department Income | O17: =IF(P17,SageDataCOAList!$L$2,IF(LEFT($L17,1)="0",H17,"")) -> Library | P17: =AND(SageDataCOAList!$K$1=2,L17="09") -> FALSE
A18: 3275 | B18: 2 | C18: FSSU | D18: 1 | E18: Sales | F18: Department Income | G18: 1 | H18: DES Minor Works Grant -non capital | I18: 001 | J18: 01 | K18: 09 | L18: =OFFSET(I18,0,SageDataCOAList!$K$1,1) -> 01 | M18: Sales | N18: =IF(P18,SageDataCOAList!$L$2,IF(LEFT($L18,1)="0",F18,"")) -> Department Income | O18: =IF(P18,SageDataCOAList!$L$2,IF(LEFT($L18,1)="0",H18,"")) -> DES Minor Works Grant -non capital | P18: =AND(SageDataCOAList!$K$1=2,L18="09") -> FALSE
A19: 3290 | B19: 2 | C19: FSSU | D19: 1 | E19: Sales | F19: Department Income | G19: 1 | H19: Other DES Grants | I19: 001 | J19: 01 | K19: 09 | L19: =OFFSET(I19,0,SageDataCOAList!$K$1,1) -> 01 | M19: Sales | N19: =IF(P19,SageDataCOAList!$L$2,IF(LEFT($L19,1)="0",F19,"")) -> Department Income | O19: =IF(P19,SageDataCOAList!$L$2,IF(LEFT($L19,1)="0",H19,"")) -> Other DES Grants | P19: =AND(SageDataCOAList!$K$1=2,L19="09") -> FALSE
A20: 3300 | B20: 2 | C20: FSSU | D20: 1 | E20: Sales | F20: School Generated Income | G20: 2 | H20: Fees ( Fee Paying School) | I20: 002 | J20: 01 | K20: 09 | L20: =OFFSET(I20,0,SageDataCOAList!$K$1,1) -> 01 | M20: Sales | N20: =IF(P20,SageDataCOAList!$L$2,IF(LEFT($L20,1)="0",F20,"")) -> School Generated Income | O20: =IF(P20,SageDataCOAList!$L$2,IF(LEFT($L20,1)="0",H20,"")) -> Fees ( Fee Paying School) | P20: =AND(SageDataCOAList!$K$1=2,L20="09") -> FALSE
A21: 3310 | B21: 2 | C21: FSSU | D21: 1 | E21: Sales | F21: School Generated Income | G21: 2 | H21: Transition Year | I21: 002 | J21: 01 | K21: 09 | L21: =OFFSET(I21,0,SageDataCOAList!$K$1,1) -> 01 | M21: Sales | N21: =IF(P21,SageDataCOAList!$L$2,IF(LEFT($L21,1)="0",F21,"")) -> School Generated Income | O21: =IF(P21,SageDataCOAList!$L$2,IF(LEFT($L21,1)="0",H21,"")) -> Transition Year | P21: =AND(SageDataCOAList!$K$1=2,L21="09") -> FALSE
A22: 3330 | B22: 2 | C22: FSSU | D22: 1 | E22: Sales | F22: School Generated Income | G22: 2 | H22: Book Rental | I22: 002 | J22: 01 | K22: 09 | L22: =OFFSET(I22,0,SageDataCOAList!$K$1,1) -> 01 | M22: Sales | N22: =IF(P22,SageDataCOAList!$L$2,IF(LEFT($L22,1)="0",F22,"")) -> School Generated Income | O22: =IF(P22,SageDataCOAList!$L$2,IF(LEFT($L22,1)="0",H22,"")) -> Book Rental | P22: =AND(SageDataCOAList!$K$1=2,L22="09") -> FALSE
A23: 3335 | B23: 2 | C23: FSSU | D23: 1 | E23: Sales | F23: School Generated Income | G23: 2 | H23: Classroom Books | I23: 002 | J23: 01 | K23: 09 | L23: =OFFSET(I23,0,SageDataCOAList!$K$1,1) -> 01 | M23: Sales | N23: =IF(P23,SageDataCOAList!$L$2,IF(LEFT($L23,1)="0",F23,"")) -> School Generated Income | O23: =IF(P23,SageDataCOAList!$L$2,IF(LEFT($L23,1)="0",H23,"")) -> Classroom Books | P23: =AND(SageDataCOAList!$K$1=2,L23="09") -> FALSE
A24: 3350 | B24: 2 | C24: FSSU | D24: 1 | E24: Sales | F24: School Generated Income | G24: 2 | H24: Hall Rental | I24: 002 | J24: 01 | K24: 09 | L24: =OFFSET(I24,0,SageDataCOAList!$K$1,1) -> 01 | M24: Sales | N24: =IF(P24,SageDataCOAList!$L$2,IF(LEFT($L24,1)="0",F24,"")) -> School Generated Income | O24: =IF(P24,SageDataCOAList!$L$2,IF(LEFT($L24,1)="0",H24,"")) -> Hall Rental | P24: =AND(SageDataCOAList!$K$1=2,L24="09") -> FALSE
A25: 3370 | B25: 2 | C25: FSSU | D25: 1 | E25: Sales | F25: School Generated Income | G25: 2 | H25: Locker Receipts | I25: 002 | J25: 01 | K25: 09 | L25: =OFFSET(I25,0,SageDataCOAList!$K$1,1) -> 01 | M25: Sales | N25: =IF(P25,SageDataCOAList!$L$2,IF(LEFT($L25,1)="0",F25,"")) -> School Generated Income | O25: =IF(P25,SageDataCOAList!$L$2,IF(LEFT($L25,1)="0",H25,"")) -> Locker Receipts | P25: =AND(SageDataCOAList!$K$1=2,L25="09") -> FALSE
A26: 3375 | B26: 2 | C26: FSSU | D26: 1 | E26: Sales | F26: School Generated Income | G26: 2 | H26: Journals & Year Book Income | I26: 002 | J26: 01 | K26: 09 | L26: =OFFSET(I26,0,SageDataCOAList!$K$1,1) -> 01 | M26: Sales | N26: =IF(P26,SageDataCOAList!$L$2,IF(LEFT($L26,1)="0",F26,"")) -> School Generated Income | O26: =IF(P26,SageDataCOAList!$L$2,IF(LEFT($L26,1)="0",H26,"")) -> Journals & Year Book Income | P26: =AND(SageDataCOAList!$K$1=2,L26="09") -> FALSE
A27: 3390 | B27: 2 | C27: FSSU | D27: 1 | E27: Sales | F27: School Generated Income | G27: 2 | H27: School Administration Charges | I27: 002 | J27: 01 | K27: 09 | L27: =OFFSET(I27,0,SageDataCOAList!$K$1,1) -> 01 | M27: Sales | N27: =IF(P27,SageDataCOAList!$L$2,IF(LEFT($L27,1)="0",F27,"")) -> School Generated Income | O27: =IF(P27,SageDataCOAList!$L$2,IF(LEFT($L27,1)="0",H27,"")) -> School Administration Charges | P27: =AND(SageDataCOAList!$K$1=2,L27="09") -> FALSE
A28: 3410 | B28: 2 | C28: FSSU | D28: 1 | E28: Sales | F28: School Generated Income | G28: 2 | H28: Adult Education Grant | I28: 002 | J28: 01 | K28: 09 | L28: =OFFSET(I28,0,SageDataCOAList!$K$1,1) -> 01 | M28: Sales | N28: =IF(P28,SageDataCOAList!$L$2,IF(LEFT($L28,1)="0",F28,"")) -> School Generated Income | O28: =IF(P28,SageDataCOAList!$L$2,IF(LEFT($L28,1)="0",H28,"")) -> Adult Education Grant | P28: =AND(SageDataCOAList!$K$1=2,L28="09") -> FALSE
A29: 3420 | B29: 2 | C29: FSSU | D29: 1 | E29: Sales | F29: School Generated Income | G29: 2 | H29: Canteen Income | I29: 002 | J29: 01 | K29: 09 | L29: =OFFSET(I29,0,SageDataCOAList!$K$1,1) -> 01 | M29: Sales | N29: =IF(P29,SageDataCOAList!$L$2,IF(LEFT($L29,1)="0",F29,"")) -> School Generated Income | O29: =IF(P29,SageDataCOAList!$L$2,IF(LEFT($L29,1)="0",H29,"")) -> Canteen Income | P29: =AND(SageDataCOAList!$K$1=2,L29="09") -> FALSE
A30: 3430 | B30: 2 | C30: FSSU | D30: 1 | E30: Sales | F30: School Generated Income | G30: 2 | H30: Tuck Shop Income | I30: 002 | J30: 01 | K30: 09 | L30: =OFFSET(I30,0,SageDataCOAList!$K$1,1) -> 01 | M30: Sales | N30: =IF(P30,SageDataCOAList!$L$2,IF(LEFT($L30,1)="0",F30,"")) -> School Generated Income | O30: =IF(P30,SageDataCOAList!$L$2,IF(LEFT($L30,1)="0",H30,"")) -> Tuck Shop Income | P30: =AND(SageDataCOAList!$K$1=2,L30="09") -> FALSE
A31: 3440 | B31: 2 | C31: FSSU | D31: 1 | E31: Sales | F31: School Generated Income | G31: 2 | H31: Uniforms | I31: 002 | J31: 01 | K31: 09 | L31: =OFFSET(I31,0,SageDataCOAList!$K$1,1) -> 01 | M31: Sales | N31: =IF(P31,SageDataCOAList!$L$2,IF(LEFT($L31,1)="0",F31,"")) -> School Generated Income | O31: =IF(P31,SageDataCOAList!$L$2,IF(LEFT($L31,1)="0",H31,"")) -> Uniforms | P31: =AND(SageDataCOAList!$K$1=2,L31="09") -> FALSE
A32: 3441 | B32: 2 | C32: FSSU | D32: 1 | E32: Sales | F32: School Generated Income | G32: 2 | H32: Art Income | I32: 002 | J32: 01 | K32: 09 | L32: =OFFSET(I32,0,SageDataCOAList!$K$1,1) -> 01 | M32: Sales | N32: =IF(P32,SageDataCOAList!$L$2,IF(LEFT($L32,1)="0",F32,"")) -> School Generated Income | O32: =IF(P32,SageDataCOAList!$L$2,IF(LEFT($L32,1)="0",H32,"")) -> Art Income | P32: =AND(SageDataCOAList!$K$1=2,L32="09") -> FALSE
A33: 3450 | B33: 2 | C33: FSSU | D33: 1 | E33: Sales | F33: School Generated Income | G33: 2 | H33: Religion | I33: 002 | J33: 01 | K33: 09 | L33: =OFFSET(I33,0,SageDataCOAList!$K$1,1) -> 01 | M33: Sales | N33: =IF(P33,SageDataCOAList!$L$2,IF(LEFT($L33,1)="0",F33,"")) -> School Generated Income | O33: =IF(P33,SageDataCOAList!$L$2,IF(LEFT($L33,1)="0",H33,"")) -> Religion | P33: =AND(SageDataCOAList!$K$1=2,L33="09") -> FALSE
A34: 3490 | B34: 2 | C34: FSSU | D34: 1 | E34: Sales | F34: School Generated Income | G34: 2 | H34: Study Income | I34: 002 | J34: 01 | K34: 09 | L34: =OFFSET(I34,0,SageDataCOAList!$K$1,1) -> 01 | M34: Sales | N34: =IF(P34,SageDataCOAList!$L$2,IF(LEFT($L34,1)="0",F34,"")) -> School Generated Income | O34: =IF(P34,SageDataCOAList!$L$2,IF(LEFT($L34,1)="0",H34,"")) -> Study Income | P34: =AND(SageDataCOAList!$K$1=2,L34="09") -> FALSE
A35: 3495 | B35: 2 | C35: FSSU | D35: 1 | E35: Sales | F35: School Generated Income | G35: 2 | H35: Mock Exam Income | I35: 002 | J35: 01 | K35: 09 | L35: =OFFSET(I35,0,SageDataCOAList!$K$1,1) -> 01 | M35: Sales | N35: =IF(P35,SageDataCOAList!$L$2,IF(LEFT($L35,1)="0",F35,"")) -> School Generated Income | O35: =IF(P35,SageDataCOAList!$L$2,IF(LEFT($L35,1)="0",H35,"")) -> Mock Exam Income | P35: =AND(SageDataCOAList!$K$1=2,L35="09") -> FALSE
A36: 3500 | B36: 2 | C36: FSSU | D36: 1 | E36: Sales | F36: School Generated Income | G36: 2 | H36: Games | I36: 002 | J36: 01 | K36: 09 | L36: =OFFSET(I36,0,SageDataCOAList!$K$1,1) -> 01 | M36: Sales | N36: =IF(P36,SageDataCOAList!$L$2,IF(LEFT($L36,1)="0",F36,"")) -> School Generated Income | O36: =IF(P36,SageDataCOAList!$L$2,IF(LEFT($L36,1)="0",H36,"")) -> Games | P36: =AND(SageDataCOAList!$K$1=2,L36="09") -> FALSE
A37: 3510 | B37: 2 | C37: FSSU | D37: 1 | E37: Sales | F37: School Generated Income | G37: 2 | H37: Bus Income | I37: 002 | J37: 01 | K37: 09 | L37: =OFFSET(I37,0,SageDataCOAList!$K$1,1) -> 01 | M37: Sales | N37: =IF(P37,SageDataCOAList!$L$2,IF(LEFT($L37,1)="0",F37,"")) -> School Generated Income | O37: =IF(P37,SageDataCOAList!$L$2,IF(LEFT($L37,1)="0",H37,"")) -> Bus Income | P37: =AND(SageDataCOAList!$K$1=2,L37="09") -> FALSE
A38: 3520 | B38: 2 | C38: FSSU | D38: 1 | E38: Sales | F38: School Generated Income | G38: 2 | H38: School Musical/Drama | I38: 002 | J38: 01 | K38: 09 | L38: =OFFSET(I38,0,SageDataCOAList!$K$1,1) -> 01 | M38: Sales | N38: =IF(P38,SageDataCOAList!$L$2,IF(LEFT($L38,1)="0",F38,"")) -> School Generated Income | O38: =IF(P38,SageDataCOAList!$L$2,IF(LEFT($L38,1)="0",H38,"")) -> School Musical/Drama | P38: =AND(SageDataCOAList!$K$1=2,L38="09") -> FALSE
A39: 3530 | B39: 2 | C39: FSSU | D39: 1 | E39: Sales | F39: School Generated Income | G39: 2 | H39: School Tours | I39: 002 | J39: 01 | K39: 09 | L39: =OFFSET(I39,0,SageDataCOAList!$K$1,1) -> 01 | M39: Sales | N39: =IF(P39,SageDataCOAList!$L$2,IF(LEFT($L39,1)="0",F39,"")) -> School Generated Income | O39: =IF(P39,SageDataCOAList!$L$2,IF(LEFT($L39,1)="0",H39,"")) -> School Tours | P39: =AND(SageDataCOAList!$K$1=2,L39="09") -> FALSE
A40: 3535 | B40: 2 | C40: FSSU | D40: 1 | E40: Sales | F40: School Generated Income | G40: 2 | H40: Student Insurance | I40: 002 | J40: 01 | K40: 09 | L40: =OFFSET(I40,0,SageDataCOAList!$K$1,1) -> 01 | M40: Sales | N40: =IF(P40,SageDataCOAList!$L$2,IF(LEFT($L40,1)="0",F40,"")) -> School Generated Income | O40: =IF(P40,SageDataCOAList!$L$2,IF(LEFT($L40,1)="0",H40,"")) -> Student Insurance | P40: =AND(SageDataCOAList!$K$1=2,L40="09") -> FALSE
A41: 3550 | B41: 2 | C41: FSSU | D41: 1 | E41: Sales | F41: School Generated Income | G41: 2 | H41: Reimbursable Income | I41: 002 | J41: 01 | K41: 09 | L41: =OFFSET(I41,0,SageDataCOAList!$K$1,1) -> 01 | M41: Sales | N41: =IF(P41,SageDataCOAList!$L$2,IF(LEFT($L41,1)="0",F41,"")) -> School Generated Income | O41: =IF(P41,SageDataCOAList!$L$2,IF(LEFT($L41,1)="0",H41,"")) -> Reimbursable Income | P41: =AND(SageDataCOAList!$K$1=2,L41="09") -> FALSE
A42: 3570 | B42: 2 | C42: FSSU | D42: 1 | E42: Sales | F42: School Generated Income | G42: 2 | H42: Other Income | I42: 002 | J42: 01 | K42: 09 | L42: =OFFSET(I42,0,SageDataCOAList!$K$1,1) -> 01 | M42: Sales | N42: =IF(P42,SageDataCOAList!$L$2,IF(LEFT($L42,1)="0",F42,"")) -> School Generated Income | O42: =IF(P42,SageDataCOAList!$L$2,IF(LEFT($L42,1)="0",H42,"")) -> Other Income | P42: =AND(SageDataCOAList!$K$1=2,L42="09") -> FALSE
A43: 3650 | B43: 2 | C43: FSSU | D43: 1 | E43: Sales | F43: Other Income | G43: 3 | H43: Voluntary Subscriptions | I43: 003 | J43: 01 | K43: 09 | L43: =OFFSET(I43,0,SageDataCOAList!$K$1,1) -> 01 | M43: Sales | N43: =IF(P43,SageDataCOAList!$L$2,IF(LEFT($L43,1)="0",F43,"")) -> Other Income | O43: =IF(P43,SageDataCOAList!$L$2,IF(LEFT($L43,1)="0",H43,"")) -> Voluntary Subscriptions | P43: =AND(SageDataCOAList!$K$1=2,L43="09") -> FALSE
A44: 3700 | B44: 2 | C44: FSSU | D44: 1 | E44: Sales | F44: Other Income | G44: 3 | H44: Parents Council | I44: 003 | J44: 01 | K44: 09 | L44: =OFFSET(I44,0,SageDataCOAList!$K$1,1) -> 01 | M44: Sales | N44: =IF(P44,SageDataCOAList!$L$2,IF(LEFT($L44,1)="0",F44,"")) -> Other Income | O44: =IF(P44,SageDataCOAList!$L$2,IF(LEFT($L44,1)="0",H44,"")) -> Parents Council | P44: =AND(SageDataCOAList!$K$1=2,L44="09") -> FALSE
A45: 3750 | B45: 2 | C45: FSSU | D45: 1 | E45: Sales | F45: Other Income | G45: 3 | H45: Fund Raising | I45: 003 | J45: 01 | K45: 09 | L45: =OFFSET(I45,0,SageDataCOAList!$K$1,1) -> 01 | M45: Sales | N45: =IF(P45,SageDataCOAList!$L$2,IF(LEFT($L45,1)="0",F45,"")) -> Other Income | O45: =IF(P45,SageDataCOAList!$L$2,IF(LEFT($L45,1)="0",H45,"")) -> Fund Raising | P45: =AND(SageDataCOAList!$K$1=2,L45="09") -> FALSE
A46: 3770 | B46: 2 | C46: FSSU | D46: 1 | E46: Sales | F46: Other Income | G46: 3 | H46: Insurance Claim Receipts | I46: 003 | J46: 01 | K46: 09 | L46: =OFFSET(I46,0,SageDataCOAList!$K$1,1) -> 01 | M46: Sales | N46: =IF(P46,SageDataCOAList!$L$2,IF(LEFT($L46,1)="0",F46,"")) -> Other Income | O46: =IF(P46,SageDataCOAList!$L$2,IF(LEFT($L46,1)="0",H46,"")) -> Insurance Claim Receipts | P46: =AND(SageDataCOAList!$K$1=2,L46="09") -> FALSE
A47: 3800 | B47: 2 | C47: FSSU | D47: 1 | E47: Sales | F47: Other Income | G47: 3 | H47: Bank Interest Received | I47: 003 | J47: 01 | K47: 09 | L47: =OFFSET(I47,0,SageDataCOAList!$K$1,1) -> 01 | M47: Sales | N47: =IF(P47,SageDataCOAList!$L$2,IF(LEFT($L47,1)="0",F47,"")) -> Other Income | O47: =IF(P47,SageDataCOAList!$L$2,IF(LEFT($L47,1)="0",H47,"")) -> Bank Interest Received | P47: =AND(SageDataCOAList!$K$1=2,L47="09") -> FALSE
A48: 3840 | B48: 2 | C48: FSSU | D48: 1 | E48: Sales | F48: Other Income | G48: 3 | H48: Amortisation of Grants | I48: 003 | J48: 01 | K48: 09 | L48: =OFFSET(I48,0,SageDataCOAList!$K$1,1) -> 01 | M48: Sales | N48: =IF(P48,SageDataCOAList!$L$2,IF(LEFT($L48,1)="0",F48,"")) -> Other Income | O48: =IF(P48,SageDataCOAList!$L$2,IF(LEFT($L48,1)="0",H48,"")) -> Amortisation of Grants | P48: =AND(SageDataCOAList!$K$1=2,L48="09") -> FALSE
A49: 3850 | B49: 2 | C49: FSSU | D49: 1 | E49: Sales | F49: Other Income | G49: 3 | H49: Other Income | I49: 003 | J49: 01 | K49: 09 | L49: =OFFSET(I49,0,SageDataCOAList!$K$1,1) -> 01 | M49: Sales | N49: =IF(P49,SageDataCOAList!$L$2,IF(LEFT($L49,1)="0",F49,"")) -> Other Income | O49: =IF(P49,SageDataCOAList!$L$2,IF(LEFT($L49,1)="0",H49,"")) -> Other Income | P49: =AND(SageDataCOAList!$K$1=2,L49="09") -> FALSE
A50: 4009 | B50: 2 | C50: FSSU | D50: 3 | E50: Direct Expenses | F50: Education Salaries | G50: 161 | H50: Discounts Allowed (Do not Use) | I50: 161 | J50: 03 | K50: 09 | L50: =OFFSET(I50,0,SageDataCOAList!$K$1,1) -> 03 | M50: Direct Expenses | N50: =IF(P50,SageDataCOAList!$L$2,IF(LEFT($L50,1)="0",F50,"")) -> Education Salaries | O50: =IF(P50,SageDataCOAList!$L$2,IF(LEFT($L50,1)="0",H50,"")) -> Discounts Allowed (Do not Use) | P50: =AND(SageDataCOAList!$K$1=2,L50="09") -> FALSE
A51: 4099 | B51: 2 | C51: FSSU | D51: 3 | E51: Direct Expenses | F51: Education Salaries | G51: 161 | H51: Flat Rate - Benefit/Cost | I51: 161 | J51: 03 | K51: 09 | L51: =OFFSET(I51,0,SageDataCOAList!$K$1,1) -> 03 | M51: Direct Expenses | N51: =IF(P51,SageDataCOAList!$L$2,IF(LEFT($L51,1)="0",F51,"")) -> Education Salaries | O51: =IF(P51,SageDataCOAList!$L$2,IF(LEFT($L51,1)="0",H51,"")) -> Flat Rate - Benefit/Cost | P51: =AND(SageDataCOAList!$K$1=2,L51="09") -> FALSE
A52: 4110 | B52: 2 | C52: FSSU | D52: 3 | E52: Direct Expenses | F52: Education Salaries | G52: 161 | H52: Substitute Teachers | I52: 161 | J52: 03 | K52: 09 | L52: =OFFSET(I52,0,SageDataCOAList!$K$1,1) -> 03 | M52: Direct Expenses | N52: =IF(P52,SageDataCOAList!$L$2,IF(LEFT($L52,1)="0",F52,"")) -> Education Salaries | O52: =IF(P52,SageDataCOAList!$L$2,IF(LEFT($L52,1)="0",H52,"")) -> Substitute Teachers | P52: =AND(SageDataCOAList!$K$1=2,L52="09") -> FALSE
A53: 4111 | B53: 2 | C53: FSSU | D53: 3 | E53: Direct Expenses | F53: Education Salaries | G53: 161 | H53: Privately Paid Teachers | I53: 161 | J53: 03 | K53: 09 | L53: =OFFSET(I53,0,SageDataCOAList!$K$1,1) -> 03 | M53: Direct Expenses | N53: =IF(P53,SageDataCOAList!$L$2,IF(LEFT($L53,1)="0",F53,"")) -> Education Salaries | O53: =IF(P53,SageDataCOAList!$L$2,IF(LEFT($L53,1)="0",H53,"")) -> Privately Paid Teachers | P53: =AND(SageDataCOAList!$K$1=2,L53="09") -> FALSE
A54: 4130 | B54: 2 | C54: FSSU | D54: 3 | E54: Direct Expenses | F54: Education Salaries | G54: 161 | H54: Part-Time Teachers | I54: 161 | J54: 03 | K54: 09 | L54: =OFFSET(I54,0,SageDataCOAList!$K$1,1) -> 03 | M54: Direct Expenses | N54: =IF(P54,SageDataCOAList!$L$2,IF(LEFT($L54,1)="0",F54,"")) -> Education Salaries | O54: =IF(P54,SageDataCOAList!$L$2,IF(LEFT($L54,1)="0",H54,"")) -> Part-Time Teachers | P54: =AND(SageDataCOAList!$K$1=2,L54="09") -> FALSE
A55: 4150 | B55: 2 | C55: FSSU | D55: 3 | E55: Direct Expenses | F55: Education Salaries | G55: 161 | H55: Supervisors Salaries | I55: 161 | J55: 03 | K55: 09 | L55: =OFFSET(I55,0,SageDataCOAList!$K$1,1) -> 03 | M55: Direct Expenses | N55: =IF(P55,SageDataCOAList!$L$2,IF(LEFT($L55,1)="0",F55,"")) -> Education Salaries | O55: =IF(P55,SageDataCOAList!$L$2,IF(LEFT($L55,1)="0",H55,"")) -> Supervisors Salaries | P55: =AND(SageDataCOAList!$K$1=2,L55="09") -> FALSE
A56: 4155 | B56: 2 | C56: FSSU | D56: 3 | E56: Direct Expenses | F56: Education Salaries | G56: 161 | H56: State Exam Aides Salaries | I56: 161 | J56: 03 | K56: 09 | L56: =OFFSET(I56,0,SageDataCOAList!$K$1,1) -> 03 | M56: Direct Expenses | N56: =IF(P56,SageDataCOAList!$L$2,IF(LEFT($L56,1)="0",F56,"")) -> Education Salaries | O56: =IF(P56,SageDataCOAList!$L$2,IF(LEFT($L56,1)="0",H56,"")) -> State Exam Aides Salaries | P56: =AND(SageDataCOAList!$K$1=2,L56="09") -> FALSE
A57: 4170 | B57: 2 | C57: FSSU | D57: 3 | E57: Direct Expenses | F57: Education Salaries | G57: 161 | H57: Adult Education | I57: 161 | J57: 03 | K57: 09 | L57: =OFFSET(I57,0,SageDataCOAList!$K$1,1) -> 03 | M57: Direct Expenses | N57: =IF(P57,SageDataCOAList!$L$2,IF(LEFT($L57,1)="0",F57,"")) -> Education Salaries | O57: =IF(P57,SageDataCOAList!$L$2,IF(LEFT($L57,1)="0",H57,"")) -> Adult Education | P57: =AND(SageDataCOAList!$K$1=2,L57="09") -> FALSE
A58: 4190 | B58: 2 | C58: FSSU | D58: 3 | E58: Direct Expenses | F58: Education Salaries | G58: 161 | H58: Study | I58: 161 | J58: 03 | K58: 09 | L58: =OFFSET(I58,0,SageDataCOAList!$K$1,1) -> 03 | M58: Direct Expenses | N58: =IF(P58,SageDataCOAList!$L$2,IF(LEFT($L58,1)="0",F58,"")) -> Education Salaries | O58: =IF(P58,SageDataCOAList!$L$2,IF(LEFT($L58,1)="0",H58,"")) -> Study | P58: =AND(SageDataCOAList!$K$1=2,L58="09") -> FALSE
A59: 4191 | B59: 2 | C59: FSSU | D59: 3 | E59: Direct Expenses | F59: Education Salaries | G59: 161 | H59: PAYE/PRSI Education Salaries | I59: 161 | J59: 03 | K59: 09 | L59: =OFFSET(I59,0,SageDataCOAList!$K$1,1) -> 03 | M59: Direct Expenses | N59: =IF(P59,SageDataCOAList!$L$2,IF(LEFT($L59,1)="0",F59,"")) -> Education Salaries | O59: =IF(P59,SageDataCOAList!$L$2,IF(LEFT($L59,1)="0",H59,"")) -> PAYE/PRSI Education Salaries | P59: =AND(SageDataCOAList!$K$1=2,L59="09") -> FALSE
A60: 4310 | B60: 2 | C60: FSSU | D60: 3 | E60: Direct Expenses | F60: Education Other | G60: 162 | H60: Teaching Aids | I60: 162 | J60: 03 | K60: 09 | L60: =OFFSET(I60,0,SageDataCOAList!$K$1,1) -> 03 | M60: Direct Expenses | N60: =IF(P60,SageDataCOAList!$L$2,IF(LEFT($L60,1)="0",F60,"")) -> Education Other | O60: =IF(P60,SageDataCOAList!$L$2,IF(LEFT($L60,1)="0",H60,"")) -> Teaching Aids | P60: =AND(SageDataCOAList!$K$1=2,L60="09") -> FALSE
A61: 4330 | B61: 2 | C61: FSSU | D61: 3 | E61: Direct Expenses | F61: Education Other | G61: 162 | H61: Religion | I61: 162 | J61: 03 | K61: 09 | L61: =OFFSET(I61,0,SageDataCOAList!$K$1,1) -> 03 | M61: Direct Expenses | N61: =IF(P61,SageDataCOAList!$L$2,IF(LEFT($L61,1)="0",F61,"")) -> Education Other | O61: =IF(P61,SageDataCOAList!$L$2,IF(LEFT($L61,1)="0",H61,"")) -> Religion | P61: =AND(SageDataCOAList!$K$1=2,L61="09") -> FALSE
A62: 4350 | B62: 2 | C62: FSSU | D62: 3 | E62: Direct Expenses | F62: Education Other | G62: 162 | H62: Art | I62: 162 | J62: 03 | K62: 09 | L62: =OFFSET(I62,0,SageDataCOAList!$K$1,1) -> 03 | M62: Direct Expenses | N62: =IF(P62,SageDataCOAList!$L$2,IF(LEFT($L62,1)="0",F62,"")) -> Education Other | O62: =IF(P62,SageDataCOAList!$L$2,IF(LEFT($L62,1)="0",H62,"")) -> Art | P62: =AND(SageDataCOAList!$K$1=2,L62="09") -> FALSE
A63: 4370 | B63: 2 | C63: FSSU | D63: 3 | E63: Direct Expenses | F63: Education Other | G63: 162 | H63: Home Economics | I63: 162 | J63: 03 | K63: 09 | L63: =OFFSET(I63,0,SageDataCOAList!$K$1,1) -> 03 | M63: Direct Expenses | N63: =IF(P63,SageDataCOAList!$L$2,IF(LEFT($L63,1)="0",F63,"")) -> Education Other | O63: =IF(P63,SageDataCOAList!$L$2,IF(LEFT($L63,1)="0",H63,"")) -> Home Economics | P63: =AND(SageDataCOAList!$K$1=2,L63="09") -> FALSE
A64: 4390 | B64: 2 | C64: FSSU | D64: 3 | E64: Direct Expenses | F64: Education Other | G64: 162 | H64: Science | I64: 162 | J64: 03 | K64: 09 | L64: =OFFSET(I64,0,SageDataCOAList!$K$1,1) -> 03 | M64: Direct Expenses | N64: =IF(P64,SageDataCOAList!$L$2,IF(LEFT($L64,1)="0",F64,"")) -> Education Other | O64: =IF(P64,SageDataCOAList!$L$2,IF(LEFT($L64,1)="0",H64,"")) -> Science | P64: =AND(SageDataCOAList!$K$1=2,L64="09") -> FALSE
A65: 4400 | B65: 2 | C65: FSSU | D65: 3 | E65: Direct Expenses | F65: Education Other | G65: 162 | H65: Credit Charges (Late Payments) | I65: 162 | J65: 03 | K65: 09 | L65: =OFFSET(I65,0,SageDataCOAList!$K$1,1) -> 03 | M65: Direct Expenses | N65: =IF(P65,SageDataCOAList!$L$2,IF(LEFT($L65,1)="0",F65,"")) -> Education Other | O65: =IF(P65,SageDataCOAList!$L$2,IF(LEFT($L65,1)="0",H65,"")) -> Credit Charges (Late Payments) | P65: =AND(SageDataCOAList!$K$1=2,L65="09") -> FALSE
A66: 4410 | B66: 2 | C66: FSSU | D66: 3 | E66: Direct Expenses | F66: Education Other | G66: 162 | H66: Computers/IT | I66: 162 | J66: 03 | K66: 09 | L66: =OFFSET(I66,0,SageDataCOAList!$K$1,1) -> 03 | M66: Direct Expenses | N66: =IF(P66,SageDataCOAList!$L$2,IF(LEFT($L66,1)="0",F66,"")) -> Education Other | O66: =IF(P66,SageDataCOAList!$L$2,IF(LEFT($L66,1)="0",H66,"")) -> Computers/IT | P66: =AND(SageDataCOAList!$K$1=2,L66="09") -> FALSE
A67: 4430 | B67: 2 | C67: FSSU | D67: 3 | E67: Direct Expenses | F67: Education Other | G67: 162 | H67: Woodwork/Building Construction | I67: =IF(P67,"999",TEXT(G67,"000")) -> 162 | J67: =IF(D67<5,TEXT(D67,"00"),IF(D67=10,"06","11")) -> 03 | K67: =IF(D67<5,"09",IF(D67=10,"12",TEXT(D67,"00"))) -> 09 | L67: =OFFSET(I67,0,SageDataCOAList!$K$1,1) -> 03 | M67: =IF(P67,VLOOKUP(9,$D:$E,2,FALSE),IF(LEFT($L67,1)="0",E67,"")) -> Direct Expenses | N67: =IF(P67,SageDataCOAList!$L$2,IF(LEFT($L67,1)="0",F67,"")) -> Education Other | O67: =IF(P67,SageDataCOAList!$L$2,IF(LEFT($L67,1)="0",H67,"")) -> Woodwork/Building Construction | P67: =AND(SageDataCOAList!$K$1=2,L67="09") -> FALSE
A68: 4450 | B68: 2 | C68: FSSU | D68: 3 | E68: Direct Expenses | F68: Education Other | G68: 162 | H68: Metalwork/Engineering | I68: 162 | J68: 03 | K68: 09 | L68: =OFFSET(I68,0,SageDataCOAList!$K$1,1) -> 03 | M68: Direct Expenses | N68: =IF(P68,SageDataCOAList!$L$2,IF(LEFT($L68,1)="0",F68,"")) -> Education Other | O68: =IF(P68,SageDataCOAList!$L$2,IF(LEFT($L68,1)="0",H68,"")) -> Metalwork/Engineering | P68: =AND(SageDataCOAList!$K$1=2,L68="09") -> FALSE
A69: 4470 | B69: 2 | C69: FSSU | D69: 3 | E69: Direct Expenses | F69: Education Other | G69: 162 | H69: Technology | I69: 162 | J69: 03 | K69: 09 | L69: =OFFSET(I69,0,SageDataCOAList!$K$1,1) -> 03 | M69: Direct Expenses | N69: =IF(P69,SageDataCOAList!$L$2,IF(LEFT($L69,1)="0",F69,"")) -> Education Other | O69: =IF(P69,SageDataCOAList!$L$2,IF(LEFT($L69,1)="0",H69,"")) -> Technology | P69: =AND(SageDataCOAList!$K$1=2,L69="09") -> FALSE
A70: 4490 | B70: 2 | C70: FSSU | D70: 3 | E70: Direct Expenses | F70: Education Other | G70: 162 | H70: Other Subjects | I70: 162 | J70: 03 | K70: 09 | L70: =OFFSET(I70,0,SageDataCOAList!$K$1,1) -> 03 | M70: Direct Expenses | N70: =IF(P70,SageDataCOAList!$L$2,IF(LEFT($L70,1)="0",F70,"")) -> Education Other | O70: =IF(P70,SageDataCOAList!$L$2,IF(LEFT($L70,1)="0",H70,"")) -> Other Subjects | P70: =AND(SageDataCOAList!$K$1=2,L70="09") -> FALSE
A71: 4550 | B71: 2 | C71: FSSU | D71: 3 | E71: Direct Expenses | F71: Education Other | G71: 162 | H71: Leaving Cert Applied | I71: 162 | J71: 03 | K71: 09 | L71: =OFFSET(I71,0,SageDataCOAList!$K$1,1) -> 03 | M71: Direct Expenses | N71: =IF(P71,SageDataCOAList!$L$2,IF(LEFT($L71,1)="0",F71,"")) -> Education Other | O71: =IF(P71,SageDataCOAList!$L$2,IF(LEFT($L71,1)="0",H71,"")) -> Leaving Cert Applied | P71: =AND(SageDataCOAList!$K$1=2,L71="09") -> FALSE
A72: 4570 | B72: 2 | C72: FSSU | D72: 3 | E72: Direct Expenses | F72: Education Other | G72: 162 | H72: LCVP | I72: 162 | J72: 03 | K72: 09 | L72: =OFFSET(I72,0,SageDataCOAList!$K$1,1) -> 03 | M72: Direct Expenses | N72: =IF(P72,SageDataCOAList!$L$2,IF(LEFT($L72,1)="0",F72,"")) -> Education Other | O72: =IF(P72,SageDataCOAList!$L$2,IF(LEFT($L72,1)="0",H72,"")) -> LCVP | P72: =AND(SageDataCOAList!$K$1=2,L72="09") -> FALSE
A73: 4590 | B73: 2 | C73: FSSU | D73: 3 | E73: Direct Expenses | F73: Education Other | G73: 162 | H73: Transition Year | I73: 162 | J73: 03 | K73: 09 | L73: =OFFSET(I73,0,SageDataCOAList!$K$1,1) -> 03 | M73: Direct Expenses | N73: =IF(P73,SageDataCOAList!$L$2,IF(LEFT($L73,1)="0",F73,"")) -> Education Other | O73: =IF(P73,SageDataCOAList!$L$2,IF(LEFT($L73,1)="0",H73,"")) -> Transition Year | P73: =AND(SageDataCOAList!$K$1=2,L73="09") -> FALSE
A74: 4610 | B74: 2 | C74: FSSU | D74: 3 | E74: Direct Expenses | F74: Education Other | G74: 162 | H74: Learning Support | I74: 162 | J74: 03 | K74: 09 | L74: =OFFSET(I74,0,SageDataCOAList!$K$1,1) -> 03 | M74: Direct Expenses | N74: =IF(P74,SageDataCOAList!$L$2,IF(LEFT($L74,1)="0",F74,"")) -> Education Other | O74: =IF(P74,SageDataCOAList!$L$2,IF(LEFT($L74,1)="0",H74,"")) -> Learning Support | P74: =AND(SageDataCOAList!$K$1=2,L74="09") -> FALSE
A75: 4620 | B75: 2 | C75: FSSU | D75: 3 | E75: Direct Expenses | F75: Education Other | G75: 162 | H75: Teacher Inservice/Training | I75: 162 | J75: 03 | K75: 09 | L75: =OFFSET(I75,0,SageDataCOAList!$K$1,1) -> 03 | M75: Direct Expenses | N75: =IF(P75,SageDataCOAList!$L$2,IF(LEFT($L75,1)="0",F75,"")) -> Education Other | O75: =IF(P75,SageDataCOAList!$L$2,IF(LEFT($L75,1)="0",H75,"")) -> Teacher Inservice/Training | P75: =AND(SageDataCOAList!$K$1=2,L75="09") -> FALSE
A76: 4630 | B76: 2 | C76: FSSU | D76: 3 | E76: Direct Expenses | F76: Education Other | G76: 162 | H76: Career Guidance | I76: 162 | J76: 03 | K76: 09 | L76: =OFFSET(I76,0,SageDataCOAList!$K$1,1) -> 03 | M76: Direct Expenses | N76: =IF(P76,SageDataCOAList!$L$2,IF(LEFT($L76,1)="0",F76,"")) -> Education Other | O76: =IF(P76,SageDataCOAList!$L$2,IF(LEFT($L76,1)="0",H76,"")) -> Career Guidance | P76: =AND(SageDataCOAList!$K$1=2,L76="09") -> FALSE
A77: 4640 | B77: 2 | C77: FSSU | D77: 3 | E77: Direct Expenses | F77: Education Other | G77: 162 | H77: Library | I77: 162 | J77: 03 | K77: 09 | L77: =OFFSET(I77,0,SageDataCOAList!$K$1,1) -> 03 | M77: Direct Expenses | N77: =IF(P77,SageDataCOAList!$L$2,IF(LEFT($L77,1)="0",F77,"")) -> Education Other | O77: =IF(P77,SageDataCOAList!$L$2,IF(LEFT($L77,1)="0",H77,"")) -> Library | P77: =AND(SageDataCOAList!$K$1=2,L77="09") -> FALSE
A78: 4650 | B78: 2 | C78: FSSU | D78: 3 | E78: Direct Expenses | F78: Education Other | G78: 162 | H78: PE | I78: 162 | J78: 03 | K78: 09 | L78: =OFFSET(I78,0,SageDataCOAList!$K$1,1) -> 03 | M78: Direct Expenses | N78: =IF(P78,SageDataCOAList!$L$2,IF(LEFT($L78,1)="0",F78,"")) -> Education Other | O78: =IF(P78,SageDataCOAList!$L$2,IF(LEFT($L78,1)="0",H78,"")) -> PE | P78: =AND(SageDataCOAList!$K$1=2,L78="09") -> FALSE
A79: 4670 | B79: 2 | C79: FSSU | D79: 3 | E79: Direct Expenses | F79: Education Other | G79: 162 | H79: Games (Exclude Travel) | I79: 162 | J79: 03 | K79: 09 | L79: =OFFSET(I79,0,SageDataCOAList!$K$1,1) -> 03 | M79: Direct Expenses | N79: =IF(P79,SageDataCOAList!$L$2,IF(LEFT($L79,1)="0",F79,"")) -> Education Other | O79: =IF(P79,SageDataCOAList!$L$2,IF(LEFT($L79,1)="0",H79,"")) -> Games (Exclude Travel) | P79: =AND(SageDataCOAList!$K$1=2,L79="09") -> FALSE
A80: 4671 | B80: 2 | C80: FSSU | D80: 3 | E80: Direct Expenses | F80: Education Other | G80: 162 | H80: Games Travel | I80: 162 | J80: 03 | K80: 09 | L80: =OFFSET(I80,0,SageDataCOAList!$K$1,1) -> 03 | M80: Direct Expenses | N80: =IF(P80,SageDataCOAList!$L$2,IF(LEFT($L80,1)="0",F80,"")) -> Education Other | O80: =IF(P80,SageDataCOAList!$L$2,IF(LEFT($L80,1)="0",H80,"")) -> Games Travel | P80: =AND(SageDataCOAList!$K$1=2,L80="09") -> FALSE
A81: 4690 | B81: 2 | C81: FSSU | D81: 3 | E81: Direct Expenses | F81: Education Other | G81: 162 | H81: Bus Hire | I81: 162 | J81: 03 | K81: 09 | L81: =OFFSET(I81,0,SageDataCOAList!$K$1,1) -> 03 | M81: Direct Expenses | N81: =IF(P81,SageDataCOAList!$L$2,IF(LEFT($L81,1)="0",F81,"")) -> Education Other | O81: =IF(P81,SageDataCOAList!$L$2,IF(LEFT($L81,1)="0",H81,"")) -> Bus Hire | P81: =AND(SageDataCOAList!$K$1=2,L81="09") -> FALSE
A82: 4710 | B82: 2 | C82: FSSU | D82: 3 | E82: Direct Expenses | F82: Education Other | G82: 162 | H82: School Tours | I82: 162 | J82: 03 | K82: 09 | L82: =OFFSET(I82,0,SageDataCOAList!$K$1,1) -> 03 | M82: Direct Expenses | N82: =IF(P82,SageDataCOAList!$L$2,IF(LEFT($L82,1)="0",F82,"")) -> Education Other | O82: =IF(P82,SageDataCOAList!$L$2,IF(LEFT($L82,1)="0",H82,"")) -> School Tours | P82: =AND(SageDataCOAList!$K$1=2,L82="09") -> FALSE
A83: 4720 | B83: 2 | C83: FSSU | D83: 3 | E83: Direct Expenses | F83: Education Other | G83: 162 | H83: School Musical/Drame | I83: 162 | J83: 03 | K83: 09 | L83: =OFFSET(I83,0,SageDataCOAList!$K$1,1) -> 03 | M83: Direct Expenses | N83: =IF(P83,SageDataCOAList!$L$2,IF(LEFT($L83,1)="0",F83,"")) -> Education Other | O83: =IF(P83,SageDataCOAList!$L$2,IF(LEFT($L83,1)="0",H83,"")) -> School Musical/Drame | P83: =AND(SageDataCOAList!$K$1=2,L83="09") -> FALSE
A84: 4730 | B84: 2 | C84: FSSU | D84: 3 | E84: Direct Expenses | F84: Education Other | G84: 162 | H84: School Books - Book Grant | I84: 162 | J84: 03 | K84: 09 | L84: =OFFSET(I84,0,SageDataCOAList!$K$1,1) -> 03 | M84: Direct Expenses | N84: =IF(P84,SageDataCOAList!$L$2,IF(LEFT($L84,1)="0",F84,"")) -> Education Other | O84: =IF(P84,SageDataCOAList!$L$2,IF(LEFT($L84,1)="0",H84,"")) -> School Books - Book Grant | P84: =AND(SageDataCOAList!$K$1=2,L84="09") -> FALSE
A85: 4740 | B85: 2 | C85: FSSU | D85: 3 | E85: Direct Expenses | F85: Education Other | G85: 162 | H85: Uniforms | I85: 162 | J85: 03 | K85: 09 | L85: =OFFSET(I85,0,SageDataCOAList!$K$1,1) -> 03 | M85: Direct Expenses | N85: =IF(P85,SageDataCOAList!$L$2,IF(LEFT($L85,1)="0",F85,"")) -> Education Other | O85: =IF(P85,SageDataCOAList!$L$2,IF(LEFT($L85,1)="0",H85,"")) -> Uniforms | P85: =AND(SageDataCOAList!$K$1=2,L85="09") -> FALSE
A86: 4750 | B86: 2 | C86: FSSU | D86: 3 | E86: Direct Expenses | F86: Education Other | G86: 162 | H86: Mock Examination Fees | I86: 162 | J86: 03 | K86: 09 | L86: =OFFSET(I86,0,SageDataCOAList!$K$1,1) -> 03 | M86: Direct Expenses | N86: =IF(P86,SageDataCOAList!$L$2,IF(LEFT($L86,1)="0",F86,"")) -> Education Other | O86: =IF(P86,SageDataCOAList!$L$2,IF(LEFT($L86,1)="0",H86,"")) -> Mock Examination Fees | P86: =AND(SageDataCOAList!$K$1=2,L86="09") -> FALSE
A87: 4770 | B87: 2 | C87: FSSU | D87: 3 | E87: Direct Expenses | F87: Education Other | G87: 162 | H87: Trophies and Prizes | I87: 162 | J87: 03 | K87: 09 | L87: =OFFSET(I87,0,SageDataCOAList!$K$1,1) -> 03 | M87: Direct Expenses | N87: =IF(P87,SageDataCOAList!$L$2,IF(LEFT($L87,1)="0",F87,"")) -> Education Other | O87: =IF(P87,SageDataCOAList!$L$2,IF(LEFT($L87,1)="0",H87,"")) -> Trophies and Prizes | P87: =AND(SageDataCOAList!$K$1=2,L87="09") -> FALSE
A88: 4810 | B88: 2 | C88: FSSU | D88: 3 | E88: Direct Expenses | F88: Education Other | G88: 162 | H88: Home School Liaison | I88: 162 | J88: 03 | K88: 09 | L88: =OFFSET(I88,0,SageDataCOAList!$K$1,1) -> 03 | M88: Direct Expenses | N88: =IF(P88,SageDataCOAList!$L$2,IF(LEFT($L88,1)="0",F88,"")) -> Education Other | O88: =IF(P88,SageDataCOAList!$L$2,IF(LEFT($L88,1)="0",H88,"")) -> Home School Liaison | P88: =AND(SageDataCOAList!$K$1=2,L88="09") -> FALSE
A89: 4850 | B89: 2 | C89: FSSU | D89: 3 | E89: Direct Expenses | F89: Education Other | G89: 162 | H89: Student Council | I89: 162 | J89: 03 | K89: 09 | L89: =OFFSET(I89,0,SageDataCOAList!$K$1,1) -> 03 | M89: Direct Expenses | N89: =IF(P89,SageDataCOAList!$L$2,IF(LEFT($L89,1)="0",F89,"")) -> Education Other | O89: =IF(P89,SageDataCOAList!$L$2,IF(LEFT($L89,1)="0",H89,"")) -> Student Council | P89: =AND(SageDataCOAList!$K$1=2,L89="09") -> FALSE
A90: 4851 | B90: 2 | C90: FSSU | D90: 3 | E90: Direct Expenses | F90: Education Other | G90: 162 | H90: School Journal Expense | I90: 162 | J90: 03 | K90: 09 | L90: =OFFSET(I90,0,SageDataCOAList!$K$1,1) -> 03 | M90: Direct Expenses | N90: =IF(P90,SageDataCOAList!$L$2,IF(LEFT($L90,1)="0",F90,"")) -> Education Other | O90: =IF(P90,SageDataCOAList!$L$2,IF(LEFT($L90,1)="0",H90,"")) -> School Journal Expense | P90: =AND(SageDataCOAList!$K$1=2,L90="09") -> FALSE
A91: 4910 | B91: 2 | C91: FSSU | D91: 3 | E91: Direct Expenses | F91: Education Other | G91: 162 | H91: Other Education Expenses | I91: 162 | J91: 03 | K91: 09 | L91: =OFFSET(I91,0,SageDataCOAList!$K$1,1) -> 03 | M91: Direct Expenses | N91: =IF(P91,SageDataCOAList!$L$2,IF(LEFT($L91,1)="0",F91,"")) -> Education Other | O91: =IF(P91,SageDataCOAList!$L$2,IF(LEFT($L91,1)="0",H91,"")) -> Other Education Expenses | P91: =AND(SageDataCOAList!$K$1=2,L91="09") -> FALSE
A92: 5009 | B92: 2 | C92: FSSU | D92: 3 | E92: Direct Expenses | F92: Repairs Maintenance & Establishment | G92: 163 | H92: Discounts Taken (Do Not Use) | I92: 163 | J92: 03 | K92: 09 | L92: =OFFSET(I92,0,SageDataCOAList!$K$1,1) -> 03 | M92: Direct Expenses | N92: =IF(P92,SageDataCOAList!$L$2,IF(LEFT($L92,1)="0",F92,"")) -> Repairs Maintenance & Establishment | O92: =IF(P92,SageDataCOAList!$L$2,IF(LEFT($L92,1)="0",H92,"")) -> Discounts Taken (Do Not Use) | P92: =AND(SageDataCOAList!$K$1=2,L92="09") -> FALSE
A93: 5010 | B93: 2 | C93: FSSU | D93: 3 | E93: Direct Expenses | F93: Repairs Maintenance & Establishment | G93: 163 | H93: Caretakers Wages | I93: 163 | J93: 03 | K93: 09 | L93: =OFFSET(I93,0,SageDataCOAList!$K$1,1) -> 03 | M93: Direct Expenses | N93: =IF(P93,SageDataCOAList!$L$2,IF(LEFT($L93,1)="0",F93,"")) -> Repairs Maintenance & Establishment | O93: =IF(P93,SageDataCOAList!$L$2,IF(LEFT($L93,1)="0",H93,"")) -> Caretakers Wages | P93: =AND(SageDataCOAList!$K$1=2,L93="09") -> FALSE
A94: 5030 | B94: 2 | C94: FSSU | D94: 3 | E94: Direct Expenses | F94: Repairs Maintenance & Establishment | G94: 163 | H94: Caretakers Pension | I94: 163 | J94: 03 | K94: 09 | L94: =OFFSET(I94,0,SageDataCOAList!$K$1,1) -> 03 | M94: Direct Expenses | N94: =IF(P94,SageDataCOAList!$L$2,IF(LEFT($L94,1)="0",F94,"")) -> Repairs Maintenance & Establishment | O94: =IF(P94,SageDataCOAList!$L$2,IF(LEFT($L94,1)="0",H94,"")) -> Caretakers Pension | P94: =AND(SageDataCOAList!$K$1=2,L94="09") -> FALSE
A95: 5031 | B95: 2 | C95: FSSU | D95: 3 | E95: Direct Expenses | F95: Repairs Maintenance & Establishment | G95: 163 | H95: Caretakers PAYE/PRSI | I95: 163 | J95: 03 | K95: 09 | L95: =OFFSET(I95,0,SageDataCOAList!$K$1,1) -> 03 | M95: Direct Expenses | N95: =IF(P95,SageDataCOAList!$L$2,IF(LEFT($L95,1)="0",F95,"")) -> Repairs Maintenance & Establishment | O95: =IF(P95,SageDataCOAList!$L$2,IF(LEFT($L95,1)="0",H95,"")) -> Caretakers PAYE/PRSI | P95: =AND(SageDataCOAList!$K$1=2,L95="09") -> FALSE
A96: 5110 | B96: 2 | C96: FSSU | D96: 3 | E96: Direct Expenses | F96: Repairs Maintenance & Establishment | G96: 163 | H96: Cleaners Wages | I96: 163 | J96: 03 | K96: 09 | L96: =OFFSET(I96,0,SageDataCOAList!$K$1,1) -> 03 | M96: Direct Expenses | N96: =IF(P96,SageDataCOAList!$L$2,IF(LEFT($L96,1)="0",F96,"")) -> Repairs Maintenance & Establishment | O96: =IF(P96,SageDataCOAList!$L$2,IF(LEFT($L96,1)="0",H96,"")) -> Cleaners Wages | P96: =AND(SageDataCOAList!$K$1=2,L96="09") -> FALSE
A97: 5111 | B97: 2 | C97: FSSU | D97: 3 | E97: Direct Expenses | F97: Repairs Maintenance & Establishment | G97: 163 | H97: Cleaners PAYE/PRSI | I97: 163 | J97: 03 | K97: 09 | L97: =OFFSET(I97,0,SageDataCOAList!$K$1,1) -> 03 | M97: Direct Expenses | N97: =IF(P97,SageDataCOAList!$L$2,IF(LEFT($L97,1)="0",F97,"")) -> Repairs Maintenance & Establishment | O97: =IF(P97,SageDataCOAList!$L$2,IF(LEFT($L97,1)="0",H97,"")) -> Cleaners PAYE/PRSI | P97: =AND(SageDataCOAList!$K$1=2,L97="09") -> FALSE
A98: 5150 | B98: 2 | C98: FSSU | D98: 3 | E98: Direct Expenses | F98: Repairs Maintenance & Establishment | G98: 163 | H98: Contract Cleaners | I98: 163 | J98: 03 | K98: 09 | L98: =OFFSET(I98,0,SageDataCOAList!$K$1,1) -> 03 | M98: Direct Expenses | N98: =IF(P98,SageDataCOAList!$L$2,IF(LEFT($L98,1)="0",F98,"")) -> Repairs Maintenance & Establishment | O98: =IF(P98,SageDataCOAList!$L$2,IF(LEFT($L98,1)="0",H98,"")) -> Contract Cleaners | P98: =AND(SageDataCOAList!$K$1=2,L98="09") -> FALSE
A99: 5170 | B99: 2 | C99: FSSU | D99: 3 | E99: Direct Expenses | F99: Repairs Maintenance & Establishment | G99: 163 | H99: Cleaning Materials | I99: 163 | J99: 03 | K99: 09 | L99: =OFFSET(I99,0,SageDataCOAList!$K$1,1) -> 03 | M99: Direct Expenses | N99: =IF(P99,SageDataCOAList!$L$2,IF(LEFT($L99,1)="0",F99,"")) -> Repairs Maintenance & Establishment | O99: =IF(P99,SageDataCOAList!$L$2,IF(LEFT($L99,1)="0",H99,"")) -> Cleaning Materials | P99: =AND(SageDataCOAList!$K$1=2,L99="09") -> FALSE
A100: 5310 | B100: 2 | C100: FSSU | D100: 3 | E100: Direct Expenses | F100: Repairs Maintenance & Establishment | G100: 163 | H100: Repairs - Buildings & Grounds | I100: 163 | J100: 03 | K100: 09 | L100: =OFFSET(I100,0,SageDataCOAList!$K$1,1) -> 03 | M100: Direct Expenses | N100: =IF(P100,SageDataCOAList!$L$2,IF(LEFT($L100,1)="0",F100,"")) -> Repairs Maintenance & Establishment | O100: =IF(P100,SageDataCOAList!$L$2,IF(LEFT($L100,1)="0",H100,"")) -> Repairs - Buildings & Grounds | P100: =AND(SageDataCOAList!$K$1=2,L100="09") -> FALSE
A101: 5315 | B101: 2 | C101: FSSU | D101: 3 | E101: Direct Expenses | F101: Repairs Maintenance & Establishment | G101: 163 | H101: Grant Aided Minor Works | I101: 163 | J101: 03 | K101: 09 | L101: =OFFSET(I101,0,SageDataCOAList!$K$1,1) -> 03 | M101: Direct Expenses | N101: =IF(P101,SageDataCOAList!$L$2,IF(LEFT($L101,1)="0",F101,"")) -> Repairs Maintenance & Establishment | O101: =IF(P101,SageDataCOAList!$L$2,IF(LEFT($L101,1)="0",H101,"")) -> Grant Aided Minor Works | P101: =AND(SageDataCOAList!$K$1=2,L101="09") -> FALSE
A102: 5350 | B102: 2 | C102: FSSU | D102: 3 | E102: Direct Expenses | F102: Repairs Maintenance & Establishment | G102: 163 | H102: Repairs - Furniture, Fittings, Equipment | I102: 163 | J102: 03 | K102: 09 | L102: =OFFSET(I102,0,SageDataCOAList!$K$1,1) -> 03 | M102: Direct Expenses | N102: =IF(P102,SageDataCOAList!$L$2,IF(LEFT($L102,1)="0",F102,"")) -> Repairs Maintenance & Establishment | O102: =IF(P102,SageDataCOAList!$L$2,IF(LEFT($L102,1)="0",H102,"")) -> Repairs - Furniture, Fittings, Equipment | P102: =AND(SageDataCOAList!$K$1=2,L102="09") -> FALSE
A103: 5400 | B103: 2 | C103: FSSU | D103: 3 | E103: Direct Expenses | F103: Repairs Maintenance & Establishment | G103: 163 | H103: Security | I103: 163 | J103: 03 | K103: 09 | L103: =OFFSET(I103,0,SageDataCOAList!$K$1,1) -> 03 | M103: Direct Expenses | N103: =IF(P103,SageDataCOAList!$L$2,IF(LEFT($L103,1)="0",F103,"")) -> Repairs Maintenance & Establishment | O103: =IF(P103,SageDataCOAList!$L$2,IF(LEFT($L103,1)="0",H103,"")) -> Security | P103: =AND(SageDataCOAList!$K$1=2,L103="09") -> FALSE
A104: 5450 | B104: 2 | C104: FSSU | D104: 3 | E104: Direct Expenses | F104: Repairs Maintenance & Establishment | G104: 163 | H104: Insurance | I104: 163 | J104: 03 | K104: 09 | L104: =OFFSET(I104,0,SageDataCOAList!$K$1,1) -> 03 | M104: Direct Expenses | N104: =IF(P104,SageDataCOAList!$L$2,IF(LEFT($L104,1)="0",F104,"")) -> Repairs Maintenance & Establishment | O104: =IF(P104,SageDataCOAList!$L$2,IF(LEFT($L104,1)="0",H104,"")) -> Insurance | P104: =AND(SageDataCOAList!$K$1=2,L104="09") -> FALSE
A105: 5510 | B105: 2 | C105: FSSU | D105: 3 | E105: Direct Expenses | F105: Repairs Maintenance & Establishment | G105: 163 | H105: Heating | I105: 163 | J105: 03 | K105: 09 | L105: =OFFSET(I105,0,SageDataCOAList!$K$1,1) -> 03 | M105: Direct Expenses | N105: =IF(P105,SageDataCOAList!$L$2,IF(LEFT($L105,1)="0",F105,"")) -> Repairs Maintenance & Establishment | O105: =IF(P105,SageDataCOAList!$L$2,IF(LEFT($L105,1)="0",H105,"")) -> Heating | P105: =AND(SageDataCOAList!$K$1=2,L105="09") -> FALSE
A106: 5550 | B106: 2 | C106: FSSU | D106: 3 | E106: Direct Expenses | F106: Repairs Maintenance & Establishment | G106: 163 | H106: Light and Power | I106: 163 | J106: 03 | K106: 09 | L106: =OFFSET(I106,0,SageDataCOAList!$K$1,1) -> 03 | M106: Direct Expenses | N106: =IF(P106,SageDataCOAList!$L$2,IF(LEFT($L106,1)="0",F106,"")) -> Repairs Maintenance & Establishment | O106: =IF(P106,SageDataCOAList!$L$2,IF(LEFT($L106,1)="0",H106,"")) -> Light and Power | P106: =AND(SageDataCOAList!$K$1=2,L106="09") -> FALSE
A107: 5610 | B107: 2 | C107: FSSU | D107: 3 | E107: Direct Expenses | F107: Repairs Maintenance & Establishment | G107: 163 | H107: Rent, Rates, Local Charges | I107: 163 | J107: 03 | K107: 09 | L107: =OFFSET(I107,0,SageDataCOAList!$K$1,1) -> 03 | M107: Direct Expenses | N107: =IF(P107,SageDataCOAList!$L$2,IF(LEFT($L107,1)="0",F107,"")) -> Repairs Maintenance & Establishment | O107: =IF(P107,SageDataCOAList!$L$2,IF(LEFT($L107,1)="0",H107,"")) -> Rent, Rates, Local Charges | P107: =AND(SageDataCOAList!$K$1=2,L107="09") -> FALSE
A108: 5700 | B108: 2 | C108: FSSU | D108: 3 | E108: Direct Expenses | F108: Repairs Maintenance & Establishment | G108: 163 | H108: Licence Fee Trustees | I108: 163 | J108: 03 | K108: 09 | L108: =OFFSET(I108,0,SageDataCOAList!$K$1,1) -> 03 | M108: Direct Expenses | N108: =IF(P108,SageDataCOAList!$L$2,IF(LEFT($L108,1)="0",F108,"")) -> Repairs Maintenance & Establishment | O108: =IF(P108,SageDataCOAList!$L$2,IF(LEFT($L108,1)="0",H108,"")) -> Licence Fee Trustees | P108: =AND(SageDataCOAList!$K$1=2,L108="09") -> FALSE
A109: 5701 | B109: 2 | C109: FSSU | D109: 3 | E109: Direct Expenses | F109: Repairs Maintenance & Establishment | G109: 163 | H109: Refuse | I109: 163 | J109: 03 | K109: 09 | L109: =OFFSET(I109,0,SageDataCOAList!$K$1,1) -> 03 | M109: Direct Expenses | N109: =IF(P109,SageDataCOAList!$L$2,IF(LEFT($L109,1)="0",F109,"")) -> Repairs Maintenance & Establishment | O109: =IF(P109,SageDataCOAList!$L$2,IF(LEFT($L109,1)="0",H109,"")) -> Refuse | P109: =AND(SageDataCOAList!$K$1=2,L109="09") -> FALSE
A110: 5800 | B110: 2 | C110: FSSU | D110: 3 | E110: Direct Expenses | F110: Repairs Maintenance & Establishment | G110: 163 | H110: Other RME | I110: 163 | J110: 03 | K110: 09 | L110: =OFFSET(I110,0,SageDataCOAList!$K$1,1) -> 03 | M110: Direct Expenses | N110: =IF(P110,SageDataCOAList!$L$2,IF(LEFT($L110,1)="0",F110,"")) -> Repairs Maintenance & Establishment | O110: =IF(P110,SageDataCOAList!$L$2,IF(LEFT($L110,1)="0",H110,"")) -> Other RME | P110: =AND(SageDataCOAList!$K$1=2,L110="09") -> FALSE
A111: 6010 | B111: 2 | C111: FSSU | D111: 3 | E111: Direct Expenses | F111: Administration | G111: 164 | H111: Secretarial Wages | I111: 164 | J111: 03 | K111: 09 | L111: =OFFSET(I111,0,SageDataCOAList!$K$1,1) -> 03 | M111: Direct Expenses | N111: =IF(P111,SageDataCOAList!$L$2,IF(LEFT($L111,1)="0",F111,"")) -> Administration | O111: =IF(P111,SageDataCOAList!$L$2,IF(LEFT($L111,1)="0",H111,"")) -> Secretarial Wages | P111: =AND(SageDataCOAList!$K$1=2,L111="09") -> FALSE
A112: 6050 | B112: 2 | C112: FSSU | D112: 3 | E112: Direct Expenses | F112: Administration | G112: 164 | H112: Secretarial Pension | I112: 164 | J112: 03 | K112: 09 | L112: =OFFSET(I112,0,SageDataCOAList!$K$1,1) -> 03 | M112: Direct Expenses | N112: =IF(P112,SageDataCOAList!$L$2,IF(LEFT($L112,1)="0",F112,"")) -> Administration | O112: =IF(P112,SageDataCOAList!$L$2,IF(LEFT($L112,1)="0",H112,"")) -> Secretarial Pension | P112: =AND(SageDataCOAList!$K$1=2,L112="09") -> FALSE
A113: 6051 | B113: 2 | C113: FSSU | D113: 3 | E113: Direct Expenses | F113: Administration | G113: 164 | H113: Secretarial PAYE/PRSI | I113: 164 | J113: 03 | K113: 09 | L113: =OFFSET(I113,0,SageDataCOAList!$K$1,1) -> 03 | M113: Direct Expenses | N113: =IF(P113,SageDataCOAList!$L$2,IF(LEFT($L113,1)="0",F113,"")) -> Administration | O113: =IF(P113,SageDataCOAList!$L$2,IF(LEFT($L113,1)="0",H113,"")) -> Secretarial PAYE/PRSI | P113: =AND(SageDataCOAList!$K$1=2,L113="09") -> FALSE
A114: 6100 | B114: 2 | C114: FSSU | D114: 3 | E114: Direct Expenses | F114: Administration | G114: 164 | H114: Staff Recruitment | I114: 164 | J114: 03 | K114: 09 | L114: =OFFSET(I114,0,SageDataCOAList!$K$1,1) -> 03 | M114: Direct Expenses | N114: =IF(P114,SageDataCOAList!$L$2,IF(LEFT($L114,1)="0",F114,"")) -> Administration | O114: =IF(P114,SageDataCOAList!$L$2,IF(LEFT($L114,1)="0",H114,"")) -> Staff Recruitment | P114: =AND(SageDataCOAList!$K$1=2,L114="09") -> FALSE
A115: 6150 | B115: 2 | C115: FSSU | D115: 3 | E115: Direct Expenses | F115: Administration | G115: 164 | H115: Advertising/Public Relations | I115: 164 | J115: 03 | K115: 09 | L115: =OFFSET(I115,0,SageDataCOAList!$K$1,1) -> 03 | M115: Direct Expenses | N115: =IF(P115,SageDataCOAList!$L$2,IF(LEFT($L115,1)="0",F115,"")) -> Administration | O115: =IF(P115,SageDataCOAList!$L$2,IF(LEFT($L115,1)="0",H115,"")) -> Advertising/Public Relations | P115: =AND(SageDataCOAList!$K$1=2,L115="09") -> FALSE
A116: 6210 | B116: 2 | C116: FSSU | D116: 3 | E116: Direct Expenses | F116: Administration | G116: 164 | H116: Postage | I116: 164 | J116: 03 | K116: 09 | L116: =OFFSET(I116,0,SageDataCOAList!$K$1,1) -> 03 | M116: Direct Expenses | N116: =IF(P116,SageDataCOAList!$L$2,IF(LEFT($L116,1)="0",F116,"")) -> Administration | O116: =IF(P116,SageDataCOAList!$L$2,IF(LEFT($L116,1)="0",H116,"")) -> Postage | P116: =AND(SageDataCOAList!$K$1=2,L116="09") -> FALSE
A117: 6250 | B117: 2 | C117: FSSU | D117: 3 | E117: Direct Expenses | F117: Administration | G117: 164 | H117: Telephone | I117: 164 | J117: 03 | K117: 09 | L117: =OFFSET(I117,0,SageDataCOAList!$K$1,1) -> 03 | M117: Direct Expenses | N117: =IF(P117,SageDataCOAList!$L$2,IF(LEFT($L117,1)="0",F117,"")) -> Administration | O117: =IF(P117,SageDataCOAList!$L$2,IF(LEFT($L117,1)="0",H117,"")) -> Telephone | P117: =AND(SageDataCOAList!$K$1=2,L117="09") -> FALSE
A118: 6300 | B118: 2 | C118: FSSU | D118: 3 | E118: Direct Expenses | F118: Administration | G118: 164 | H118: Printing/Stationary | I118: 164 | J118: 03 | K118: 09 | L118: =OFFSET(I118,0,SageDataCOAList!$K$1,1) -> 03 | M118: Direct Expenses | N118: =IF(P118,SageDataCOAList!$L$2,IF(LEFT($L118,1)="0",F118,"")) -> Administration | O118: =IF(P118,SageDataCOAList!$L$2,IF(LEFT($L118,1)="0",H118,"")) -> Printing/Stationary | P118: =AND(SageDataCOAList!$K$1=2,L118="09") -> FALSE
A119: 6305 | B119: 2 | C119: FSSU | D119: 3 | E119: Direct Expenses | F119: Administration | G119: 164 | H119: Photocopying Expenses | I119: 164 | J119: 03 | K119: 09 | L119: =OFFSET(I119,0,SageDataCOAList!$K$1,1) -> 03 | M119: Direct Expenses | N119: =IF(P119,SageDataCOAList!$L$2,IF(LEFT($L119,1)="0",F119,"")) -> Administration | O119: =IF(P119,SageDataCOAList!$L$2,IF(LEFT($L119,1)="0",H119,"")) -> Photocopying Expenses | P119: =AND(SageDataCOAList!$K$1=2,L119="09") -> FALSE
A120: 6350 | B120: 2 | C120: FSSU | D120: 3 | E120: Direct Expenses | F120: Administration | G120: 164 | H120: Office Equipment | I120: 164 | J120: 03 | K120: 09 | L120: =OFFSET(I120,0,SageDataCOAList!$K$1,1) -> 03 | M120: Direct Expenses | N120: =IF(P120,SageDataCOAList!$L$2,IF(LEFT($L120,1)="0",F120,"")) -> Administration | O120: =IF(P120,SageDataCOAList!$L$2,IF(LEFT($L120,1)="0",H120,"")) -> Office Equipment | P120: =AND(SageDataCOAList!$K$1=2,L120="09") -> FALSE
A121: 6400 | B121: 2 | C121: FSSU | D121: 3 | E121: Direct Expenses | F121: Administration | G121: 164 | H121: Accountancy Fee | I121: 164 | J121: 03 | K121: 09 | L121: =OFFSET(I121,0,SageDataCOAList!$K$1,1) -> 03 | M121: Direct Expenses | N121: =IF(P121,SageDataCOAList!$L$2,IF(LEFT($L121,1)="0",F121,"")) -> Administration | O121: =IF(P121,SageDataCOAList!$L$2,IF(LEFT($L121,1)="0",H121,"")) -> Accountancy Fee | P121: =AND(SageDataCOAList!$K$1=2,L121="09") -> FALSE
A122: 6450 | B122: 2 | C122: FSSU | D122: 3 | E122: Direct Expenses | F122: Administration | G122: 164 | H122: Other Professional Fees | I122: 164 | J122: 03 | K122: 09 | L122: =OFFSET(I122,0,SageDataCOAList!$K$1,1) -> 03 | M122: Direct Expenses | N122: =IF(P122,SageDataCOAList!$L$2,IF(LEFT($L122,1)="0",F122,"")) -> Administration | O122: =IF(P122,SageDataCOAList!$L$2,IF(LEFT($L122,1)="0",H122,"")) -> Other Professional Fees | P122: =AND(SageDataCOAList!$K$1=2,L122="09") -> FALSE
A123: 6500 | B123: 2 | C123: FSSU | D123: 3 | E123: Direct Expenses | F123: Administration | G123: 164 | H123: Travel & Subsistence | I123: 164 | J123: 03 | K123: 09 | L123: =OFFSET(I123,0,SageDataCOAList!$K$1,1) -> 03 | M123: Direct Expenses | N123: =IF(P123,SageDataCOAList!$L$2,IF(LEFT($L123,1)="0",F123,"")) -> Administration | O123: =IF(P123,SageDataCOAList!$L$2,IF(LEFT($L123,1)="0",H123,"")) -> Travel & Subsistence | P123: =AND(SageDataCOAList!$K$1=2,L123="09") -> FALSE
A124: 6600 | B124: 2 | C124: FSSU | D124: 3 | E124: Direct Expenses | F124: Administration | G124: 164 | H124: Principals Expenses | I124: 164 | J124: 03 | K124: 09 | L124: =OFFSET(I124,0,SageDataCOAList!$K$1,1) -> 03 | M124: Direct Expenses | N124: =IF(P124,SageDataCOAList!$L$2,IF(LEFT($L124,1)="0",F124,"")) -> Administration | O124: =IF(P124,SageDataCOAList!$L$2,IF(LEFT($L124,1)="0",H124,"")) -> Principals Expenses | P124: =AND(SageDataCOAList!$K$1=2,L124="09") -> FALSE
A125: 6650 | B125: 2 | C125: FSSU | D125: 3 | E125: Direct Expenses | F125: Administration | G125: 164 | H125: BOM Expenses | I125: 164 | J125: 03 | K125: 09 | L125: =OFFSET(I125,0,SageDataCOAList!$K$1,1) -> 03 | M125: Direct Expenses | N125: =IF(P125,SageDataCOAList!$L$2,IF(LEFT($L125,1)="0",F125,"")) -> Administration | O125: =IF(P125,SageDataCOAList!$L$2,IF(LEFT($L125,1)="0",H125,"")) -> BOM Expenses | P125: =AND(SageDataCOAList!$K$1=2,L125="09") -> FALSE
A126: 6700 | B126: 2 | C126: FSSU | D126: 3 | E126: Direct Expenses | F126: Administration | G126: 164 | H126: Annual Subscription | I126: 164 | J126: 03 | K126: 09 | L126: =OFFSET(I126,0,SageDataCOAList!$K$1,1) -> 03 | M126: Direct Expenses | N126: =IF(P126,SageDataCOAList!$L$2,IF(LEFT($L126,1)="0",F126,"")) -> Administration | O126: =IF(P126,SageDataCOAList!$L$2,IF(LEFT($L126,1)="0",H126,"")) -> Annual Subscription | P126: =AND(SageDataCOAList!$K$1=2,L126="09") -> FALSE
A127: 6730 | B127: 2 | C127: FSSU | D127: 3 | E127: Direct Expenses | F127: Administration | G127: 164 | H127: In School Administration System | I127: 164 | J127: 03 | K127: 09 | L127: =OFFSET(I127,0,SageDataCOAList!$K$1,1) -> 03 | M127: Direct Expenses | N127: =IF(P127,SageDataCOAList!$L$2,IF(LEFT($L127,1)="0",F127,"")) -> Administration | O127: =IF(P127,SageDataCOAList!$L$2,IF(LEFT($L127,1)="0",H127,"")) -> In School Administration System | P127: =AND(SageDataCOAList!$K$1=2,L127="09") -> FALSE
A128: 6750 | B128: 2 | C128: FSSU | D128: 3 | E128: Direct Expenses | F128: Administration | G128: 164 | H128: Donations/Charity | I128: 164 | J128: 03 | K128: 09 | L128: =OFFSET(I128,0,SageDataCOAList!$K$1,1) -> 03 | M128: Direct Expenses | N128: =IF(P128,SageDataCOAList!$L$2,IF(LEFT($L128,1)="0",F128,"")) -> Administration | O128: =IF(P128,SageDataCOAList!$L$2,IF(LEFT($L128,1)="0",H128,"")) -> Donations/Charity | P128: =AND(SageDataCOAList!$K$1=2,L128="09") -> FALSE
A129: 6755 | B129: 2 | C129: FSSU | D129: 3 | E129: Direct Expenses | F129: Administration | G129: 164 | H129: Medical and 1st Aid | I129: 164 | J129: 03 | K129: 09 | L129: =OFFSET(I129,0,SageDataCOAList!$K$1,1) -> 03 | M129: Direct Expenses | N129: =IF(P129,SageDataCOAList!$L$2,IF(LEFT($L129,1)="0",F129,"")) -> Administration | O129: =IF(P129,SageDataCOAList!$L$2,IF(LEFT($L129,1)="0",H129,"")) -> Medical and 1st Aid | P129: =AND(SageDataCOAList!$K$1=2,L129="09") -> FALSE
A130: 6780 | B130: 2 | C130: FSSU | D130: 3 | E130: Direct Expenses | F130: Administration | G130: 164 | H130: Staff Room Expenses | I130: 164 | J130: 03 | K130: 09 | L130: =OFFSET(I130,0,SageDataCOAList!$K$1,1) -> 03 | M130: Direct Expenses | N130: =IF(P130,SageDataCOAList!$L$2,IF(LEFT($L130,1)="0",F130,"")) -> Administration | O130: =IF(P130,SageDataCOAList!$L$2,IF(LEFT($L130,1)="0",H130,"")) -> Staff Room Expenses | P130: =AND(SageDataCOAList!$K$1=2,L130="09") -> FALSE
A131: 6800 | B131: 2 | C131: FSSU | D131: 3 | E131: Direct Expenses | F131: Administration | G131: 164 | H131: Hospitality | I131: =IF(P131,"999",TEXT(G131,"000")) -> 164 | J131: =IF(D131<5,TEXT(D131,"00"),IF(D131=10,"06","11")) -> 03 | K131: =IF(D131<5,"09",IF(D131=10,"12",TEXT(D131,"00"))) -> 09 | L131: =OFFSET(I131,0,SageDataCOAList!$K$1,1) -> 03 | M131: =IF(P131,VLOOKUP(9,$D:$E,2,FALSE),IF(LEFT($L131,1)="0",E131,"")) -> Direct Expenses | N131: =IF(P131,SageDataCOAList!$L$2,IF(LEFT($L131,1)="0",F131,"")) -> Administration | O131: =IF(P131,SageDataCOAList!$L$2,IF(LEFT($L131,1)="0",H131,"")) -> Hospitality | P131: =AND(SageDataCOAList!$K$1=2,L131="09") -> FALSE
A132: 6830 | B132: 2 | C132: FSSU | D132: 3 | E132: Direct Expenses | F132: Administration | G132: 164 | H132: Tuck Shop | I132: 164 | J132: 03 | K132: 09 | L132: =OFFSET(I132,0,SageDataCOAList!$K$1,1) -> 03 | M132: Direct Expenses | N132: =IF(P132,SageDataCOAList!$L$2,IF(LEFT($L132,1)="0",F132,"")) -> Administration | O132: =IF(P132,SageDataCOAList!$L$2,IF(LEFT($L132,1)="0",H132,"")) -> Tuck Shop | P132: =AND(SageDataCOAList!$K$1=2,L132="09") -> FALSE
A133: 6860 | B133: 2 | C133: FSSU | D133: 3 | E133: Direct Expenses | F133: Administration | G133: 164 | H133: Canteen | I133: 164 | J133: 03 | K133: 09 | L133: =OFFSET(I133,0,SageDataCOAList!$K$1,1) -> 03 | M133: Direct Expenses | N133: =IF(P133,SageDataCOAList!$L$2,IF(LEFT($L133,1)="0",F133,"")) -> Administration | O133: =IF(P133,SageDataCOAList!$L$2,IF(LEFT($L133,1)="0",H133,"")) -> Canteen | P133: =AND(SageDataCOAList!$K$1=2,L133="09") -> FALSE
A134: 6900 | B134: 2 | C134: FSSU | D134: 3 | E134: Direct Expenses | F134: Administration | G134: 164 | H134: Other Admin. Expenses | I134: 164 | J134: 03 | K134: 09 | L134: =OFFSET(I134,0,SageDataCOAList!$K$1,1) -> 03 | M134: Direct Expenses | N134: =IF(P134,SageDataCOAList!$L$2,IF(LEFT($L134,1)="0",F134,"")) -> Administration | O134: =IF(P134,SageDataCOAList!$L$2,IF(LEFT($L134,1)="0",H134,"")) -> Other Admin. Expenses | P134: =AND(SageDataCOAList!$K$1=2,L134="09") -> FALSE
A135: 7300 | B135: 2 | C135: FSSU | D135: 3 | E135: Direct Expenses | F135: Financial | G135: 165 | H135: Leasing | I135: 165 | J135: 03 | K135: 09 | L135: =OFFSET(I135,0,SageDataCOAList!$K$1,1) -> 03 | M135: Direct Expenses | N135: =IF(P135,SageDataCOAList!$L$2,IF(LEFT($L135,1)="0",F135,"")) -> Financial | O135: =IF(P135,SageDataCOAList!$L$2,IF(LEFT($L135,1)="0",H135,"")) -> Leasing | P135: =AND(SageDataCOAList!$K$1=2,L135="09") -> FALSE
A136: 7320 | B136: 2 | C136: FSSU | D136: 3 | E136: Direct Expenses | F136: Financial | G136: 165 | H136: Loan Charges | I136: 165 | J136: 03 | K136: 09 | L136: =OFFSET(I136,0,SageDataCOAList!$K$1,1) -> 03 | M136: Direct Expenses | N136: =IF(P136,SageDataCOAList!$L$2,IF(LEFT($L136,1)="0",F136,"")) -> Financial | O136: =IF(P136,SageDataCOAList!$L$2,IF(LEFT($L136,1)="0",H136,"")) -> Loan Charges | P136: =AND(SageDataCOAList!$K$1=2,L136="09") -> FALSE
A137: 7350 | B137: 2 | C137: FSSU | D137: 3 | E137: Direct Expenses | F137: Financial | G137: 165 | H137: Fundraising Expenses | I137: 165 | J137: 03 | K137: 09 | L137: =OFFSET(I137,0,SageDataCOAList!$K$1,1) -> 03 | M137: Direct Expenses | N137: =IF(P137,SageDataCOAList!$L$2,IF(LEFT($L137,1)="0",F137,"")) -> Financial | O137: =IF(P137,SageDataCOAList!$L$2,IF(LEFT($L137,1)="0",H137,"")) -> Fundraising Expenses | P137: =AND(SageDataCOAList!$K$1=2,L137="09") -> FALSE
A138: 7400 | B138: 2 | C138: FSSU | D138: 3 | E138: Direct Expenses | F138: Financial | G138: 165 | H138: Bank Interest Paid | I138: 165 | J138: 03 | K138: 09 | L138: =OFFSET(I138,0,SageDataCOAList!$K$1,1) -> 03 | M138: Direct Expenses | N138: =IF(P138,SageDataCOAList!$L$2,IF(LEFT($L138,1)="0",F138,"")) -> Financial | O138: =IF(P138,SageDataCOAList!$L$2,IF(LEFT($L138,1)="0",H138,"")) -> Bank Interest Paid | P138: =AND(SageDataCOAList!$K$1=2,L138="09") -> FALSE
A139: 7450 | B139: 2 | C139: FSSU | D139: 3 | E139: Direct Expenses | F139: Financial | G139: 165 | H139: Bank Charges | I139: 165 | J139: 03 | K139: 09 | L139: =OFFSET(I139,0,SageDataCOAList!$K$1,1) -> 03 | M139: Direct Expenses | N139: =IF(P139,SageDataCOAList!$L$2,IF(LEFT($L139,1)="0",F139,"")) -> Financial | O139: =IF(P139,SageDataCOAList!$L$2,IF(LEFT($L139,1)="0",H139,"")) -> Bank Charges | P139: =AND(SageDataCOAList!$K$1=2,L139="09") -> FALSE
A140: 7800 | B140: 2 | C140: FSSU | D140: 3 | E140: Direct Expenses | F140: Financial | G140: 165 | H140: Reimbursable Expenses | I140: 165 | J140: 03 | K140: 09 | L140: =OFFSET(I140,0,SageDataCOAList!$K$1,1) -> 03 | M140: Direct Expenses | N140: =IF(P140,SageDataCOAList!$L$2,IF(LEFT($L140,1)="0",F140,"")) -> Financial | O140: =IF(P140,SageDataCOAList!$L$2,IF(LEFT($L140,1)="0",H140,"")) -> Reimbursable Expenses | P140: =AND(SageDataCOAList!$K$1=2,L140="09") -> FALSE
A141: 7906 | B141: 2 | C141: FSSU | D141: 3 | E141: Direct Expenses | F141: Financial | G141: 165 | H141: Exchange Rate Variance (Do Not Use) | I141: 165 | J141: 03 | K141: 09 | L141: =OFFSET(I141,0,SageDataCOAList!$K$1,1) -> 03 | M141: Direct Expenses | N141: =IF(P141,SageDataCOAList!$L$2,IF(LEFT($L141,1)="0",F141,"")) -> Financial | O141: =IF(P141,SageDataCOAList!$L$2,IF(LEFT($L141,1)="0",H141,"")) -> Exchange Rate Variance (Do Not Use) | P141: =AND(SageDataCOAList!$K$1=2,L141="09") -> FALSE
A142: 8000 | B142: 2 | C142: FSSU | D142: 3 | E142: Direct Expenses | F142: Depreciation | G142: 166 | H142: Depreciation | I142: 166 | J142: 03 | K142: 09 | L142: =OFFSET(I142,0,SageDataCOAList!$K$1,1) -> 03 | M142: Direct Expenses | N142: =IF(P142,SageDataCOAList!$L$2,IF(LEFT($L142,1)="0",F142,"")) -> Depreciation | O142: =IF(P142,SageDataCOAList!$L$2,IF(LEFT($L142,1)="0",H142,"")) -> Depreciation | P142: =AND(SageDataCOAList!$K$1=2,L142="09") -> FALSE
A143: 8020 | B143: 2 | C143: FSSU | D143: 3 | E143: Direct Expenses | F143: Depreciation | G143: 166 | H143: Annual Depr Furniture Fit | I143: 166 | J143: 03 | K143: 09 | L143: =OFFSET(I143,0,SageDataCOAList!$K$1,1) -> 03 | M143: Direct Expenses | N143: =IF(P143,SageDataCOAList!$L$2,IF(LEFT($L143,1)="0",F143,"")) -> Depreciation | O143: =IF(P143,SageDataCOAList!$L$2,IF(LEFT($L143,1)="0",H143,"")) -> Annual Depr Furniture Fit | P143: =AND(SageDataCOAList!$K$1=2,L143="09") -> FALSE
A144: 8040 | B144: 2 | C144: FSSU | D144: 3 | E144: Direct Expenses | F144: Depreciation | G144: 166 | H144: Annual Depr Motor Vehicle | I144: 166 | J144: 03 | K144: 09 | L144: =OFFSET(I144,0,SageDataCOAList!$K$1,1) -> 03 | M144: Direct Expenses | N144: =IF(P144,SageDataCOAList!$L$2,IF(LEFT($L144,1)="0",F144,"")) -> Depreciation | O144: =IF(P144,SageDataCOAList!$L$2,IF(LEFT($L144,1)="0",H144,"")) -> Annual Depr Motor Vehicle | P144: =AND(SageDataCOAList!$K$1=2,L144="09") -> FALSE
A145: 8060 | B145: 2 | C145: FSSU | D145: 3 | E145: Direct Expenses | F145: Depreciation | G145: 166 | H145: Annual Depr Computer Equip. | I145: 166 | J145: 03 | K145: 09 | L145: =OFFSET(I145,0,SageDataCOAList!$K$1,1) -> 03 | M145: Direct Expenses | N145: =IF(P145,SageDataCOAList!$L$2,IF(LEFT($L145,1)="0",F145,"")) -> Depreciation | O145: =IF(P145,SageDataCOAList!$L$2,IF(LEFT($L145,1)="0",H145,"")) -> Annual Depr Computer Equip. | P145: =AND(SageDataCOAList!$K$1=2,L145="09") -> FALSE
A146: 8080 | B146: 2 | C146: FSSU | D146: 3 | E146: Direct Expenses | F146: Depreciation | G146: 166 | H146: Annual Depr - Other | I146: 166 | J146: 03 | K146: 09 | L146: =OFFSET(I146,0,SageDataCOAList!$K$1,1) -> 03 | M146: Direct Expenses | N146: =IF(P146,SageDataCOAList!$L$2,IF(LEFT($L146,1)="0",F146,"")) -> Depreciation | O146: =IF(P146,SageDataCOAList!$L$2,IF(LEFT($L146,1)="0",H146,"")) -> Annual Depr - Other | P146: =AND(SageDataCOAList!$K$1=2,L146="09") -> FALSE
A147: 8100 | B147: 2 | C147: FSSU | D147: 3 | E147: Direct Expenses | F147: Depreciation | G147: 166 | H147: Bad Debt Write Off | I147: 166 | J147: 03 | K147: 09 | L147: =OFFSET(I147,0,SageDataCOAList!$K$1,1) -> 03 | M147: Direct Expenses | N147: =IF(P147,SageDataCOAList!$L$2,IF(LEFT($L147,1)="0",F147,"")) -> Depreciation | O147: =IF(P147,SageDataCOAList!$L$2,IF(LEFT($L147,1)="0",H147,"")) -> Bad Debt Write Off | P147: =AND(SageDataCOAList!$K$1=2,L147="09") -> FALSE

Sheet SageDataCOAList (hidden)
A1: CHART | B1: NAME | C1: CHART | F1: =IF(ISNA(VLOOKUP(G1,LOOKUP_CHARTLIST,2,FALSE)),G2,IF(ISERR(VALUE(VLOOKUP(G1,LOOKUP_CHARTLIST,2,FALSE))),G2,VALUE(VLOOKUP(G1,LOOKUP_CHARTLIST,2,FALSE)))) -> 2 | G1: =Report!B4 -> FSSU | J1: Categories | K1: =MATCH(SageDataCOAList!I5,VALIDATION_CATEGORIES,0)-1 -> 1 | N1: LowNomCode | O1: =OFFSET(SageDataCOA!$A$1,1,0,1,1) -> 3010
A2: 1 | B2: Default Layout of Accounts | C2: 1 | G2: =$C$2 -> 1 | J2: Profit andf Loss | L2: P&L Account | N2: HighNomCode | O2: =OFFSET(SageDataCOA!$A$1,COUNTA(SageDataCOA!$A:$A)-1,0,1,1) -> 8100
A3: 2 | B3: FSSU | C3: 2 | J3: Balance Sheet
A4: 3 | B4: FSSU Detail [PARTIAL] | C4: 3
H5: Categories to Include | I5: Profit andf Loss

Sheet SageData (hidden)
A1: ACCOUNT_REF | B1: NAME | C1: BALANCE_MTH1 | D1: BALANCE_MTH2 | E1: BALANCE_MTH3 | F1: BALANCE_MTH4 | G1: BALANCE_MTH5 | H1: BALANCE_MTH6 | I1: BALANCE_MTH7 | J1: BALANCE_MTH8 | K1: BALANCE_MTH9 | L1: BALANCE_MTH10 | M1: BALANCE_MTH11 | N1: BALANCE_MTH12 | O1: BUDGET_MTH1 | P1: BUDGET_MTH2 | Q1: BUDGET_MTH3 | R1: BUDGET_MTH4 | S1: BUDGET_MTH5 | T1: BUDGET_MTH6 | U1: BUDGET_MTH7 | V1: BUDGET_MTH8 | W1: BUDGET_MTH9 | X1: BUDGET_MTH10 | Y1: BUDGET_MTH11 | Z1: BUDGET_MTH12 | AA1: PRIOR_YR_MTH1 | AB1: PRIOR_YR_MTH2 | AC1: PRIOR_YR_MTH3 | AD1: PRIOR_YR_MTH4 | AE1: PRIOR_YR_MTH5 | AF1: PRIOR_YR_MTH6 | AG1: PRIOR_YR_MTH7 | AH1: PRIOR_YR_MTH8 | AI1: PRIOR_YR_MTH9 | AJ1: PRIOR_YR_MTH10 | AK1: PRIOR_YR_MTH11 | AL1: PRIOR_YR_MTH12 | AM1: SOFA_ID | AN1: Nominal | AO1: Budget Sign | AP1: Actual Sign | AQ1: Prior Sign | AR1: Act Mth1 | AS1: Act Mth2 | AT1: Act Mth3 | AU1: Act Mth4 | AV1: Act Mth5 | AW1: Act Mth6 | AX1: Act Mth7 | AY1: Act Mth8 | AZ1: Act Mth9 | BA1: Act Mth10 | BB1: Act Mth11 | BC1: Act Mth12 | BD1: Bud Mth1 | BE1: Bud Mth2 | BF1: Bud Mth3 | BG1: Bud Mth4 | BH1: Bud Mth5 | BI1: Bud Mth6 | BJ1: Bud Mth7 | BK1: Bud Mth8 | BL1: Bud Mth9 | BM1: Bud Mth10 | BN1: Bud Mth11 | BO1: Bud Mth12 | BP1: PY Mth1 | BQ1: PY Mth2 | BR1: PY Mth3 | BS1: PY Mth4 | BT1: PY Mth5 | BU1: PY Mth6 | BV1: PY Mth7 | BW1: PY Mth8 | BX1: PY Mth9 | BY1: PY Mth10 | BZ1: PY Mth11 | CA1: PY Mth12 | CB1: Var B Mth1 | CC1: Var B Mth2 | CD1: Var B Mth3 | CE1: Var B Mth4 | CF1: Var B Mth5 | CG1: Var B Mth6 | CH1: Var B Mth7 | CI1: Var B Mth8 | CJ1: Var B Mth9 | CK1: Var B Mth10 | CL1: Var B Mth11 | CM1: Var B Mth12 | CN1: Var PY Mth1 | CO1: Var PY Mth2 | CP1: Var PY Mth3 | CQ1: Var PY Mth4 | CR1: Var PY Mth5 | CS1: Var PY Mth6 | CT1: Var PY Mth7 | CU1: Var PY Mth8 | CV1: Var PY Mth9 | CW1: Var PY Mth10 | CX1: Var PY Mth11 | CY1: Var PY Mth12 | CZ1: SO | DA1: Category | DB1: Category Name | DC1: Sub-Category | DD1: Categories | DE1: Sub-Categories | DF1: Period Act | DG1: Period Bud | DH1: Period PY | DI1: Period Var B | DJ1: Period Var PY | DK1: YTD Act | DL1: YTD Bud | DM1: YTD PY | DN1: YTD Var B | DO1: YTD Var PY | DP1: HideAct | DQ1: HideBud | DR1: HidePY | DS1: HideAll | DT1: Last Year
A2: 3010 | B2: Capitation | C2: 0 | D2: 0 | E2: 0 | F2: 0 | G2: 0 | H2: 0 | I2: 0 | J2: 0 | K2: 0 | L2: -50850 | M2: 0 | N2: 0 | O2: 50763 | P2: 0 | Q2: 0 | R2: 0 | S2: 0 | T2: 0 | U2: 0 | V2: 0 | W2: 0 | X2: 0 | Y2: 0 | Z2: 0 | AA2: 0 | AB2: 0 | AC2: 0 | AD2: 0 | AE2: 0 | AF2: 0 | AG2: 0 | AH2: 0 | AI2: 0 | AJ2: 0 | AK2: 0 | AL2: 0 | AM2: 0 | AN2: =IF(VLOOKUP(A2,DR_ODBC_COALIST,16,FALSE),CONCATENATE("9999"," - ",SageDataCOAList!$L$2),SageData!$A2&" - "&SageData!$B2) -> 3010 - Capitation | AO2: =IF(VALUE($DA2)<12,CHOOSE(VALUE($DA2),1,-1,-1,-1,-1,-1,-1,-1,-1,-1,-1,-1),1) -> 1 | AP2: =IF(VALUE($DA2)<12,CHOOSE(VALUE($DA2),-1,-1,-1,-1,-1,-1,--1,-1,-1,-1,-1,-1),1) -> -1 | AQ2: =IF(VALUE($DA2)<12,CHOOSE(VALUE($DA2),1,-1,-1,-1,-1,-1,--1,-1,-1,-1,-1,-1),1) -> 1 | AR2: =$AP2*C2 -> 0 | AS2: =$AP2*D2 -> 0 | AT2: =$AP2*E2 -> 0 | AU2: =$AP2*F2 -> 0 | AV2: =$AP2*G2 -> 0 | AW2: =$AP2*H2 -> 0 | AX2: =$AP2*I2 -> 0 | AY2: =$AP2*J2 -> 0 | AZ2: =$AP2*K2 -> 0 | BA2: =$AP2*L2 -> 50850 | BB2: =$AP2*M2 -> 0 | BC2: =$AP2*N2 -> 0 | BD2: =$AO2*O2 -> 50763 | BE2: =$AO2*P2 -> 0 | BF2: =$AO2*Q2 -> 0 | BG2: =$AO2*R2 -> 0 | BH2: =$AO2*S2 -> 0 | BI2: =$AO2*T2 -> 0 | BJ2: =$AO2*U2 -> 0 | BK2: =$AO2*V2 -> 0 | BL2: =$AO2*W2 -> 0 | BM2: =$AO2*X2 -> 0 | BN2: =$AO2*Y2 -> 0 | BO2: =$AO2*Z2 -> 0 | BP2: =$AQ2*AA2 -> 0 | BQ2: =$AQ2*AB2 -> 0 | BR2: =$AQ2*AC2 -> 0 | BS2: =$AQ2*AD2 -> 0 | BT2: =$AQ2*AE2 -> 0 | BU2: =$AQ2*AF2 -> 0 | BV2: =$AQ2*AG2 -> 0 | BW2: =$AQ2*AH2 -> 0 | BX2: =$AQ2*AI2 -> 0 | BY2: =$AQ2*AJ2 -> 0 | BZ2: =$AQ2*AK2 -> 0 | CA2: =$AQ2*AL2 -> 0 | CB2: =(AR2)-(BD2) -> -50763 | CC2: =(AS2)-(BE2) -> 0 | CD2: =(AT2)-(BF2) -> 0 | CE2: =(AU2)-(BG2) -> 0 | CF2: =(AV2)-(BH2) -> 0 | CG2: =(AW2)-(BI2) -> 0 | CH2: =(AX2)-(BJ2) -> 0 | CI2: =(AY2)-(BK2) -> 0 | CJ2: =(AZ2)-(BL2) -> 0 | CK2: =(BA2)-(BM2) -> 50850 | CL2: =(BB2)-(BN2) -> 0 | CM2: =(BC2)-(BO2) -> 0 | CN2: =AR2-BP2 -> 0 | CO2: =AS2-BQ2 -> 0 | CP2: =AT2-BR2 -> 0 | CQ2: =AU2-BS2 -> 0 | CR2: =AV2-BT2 -> 0 | CS2: =AW2-BU2 -> 0 | CT2: =AX2-BV2 -> 0 | CU2: =AY2-BW2 -> 0 | CV2: =AZ2-BX2 -> 0 | CW2: =BA2-BY2 -> 50850 | CX2: =BB2-BZ2 -> 0 | CY2: =BC2-CA2 -> 0 | CZ2: =IF(ISNA(VLOOKUP($A2,DR_ODBC_COALIST,9,FALSE)),"999",VLOOKUP($A2,DR_ODBC_COALIST,9,FALSE)) -> 001 | DA2: =IF(ISNA(VLOOKUP($A2,DR_ODBC_COALIST,12,FALSE)),"99",VLOOKUP($A2,DR_ODBC_COALIST,12,FALSE)) -> 01 | DB2: =IF(ISNA(VLOOKUP($A2,DR_ODBC_COALIST,13,FALSE)),"Not Found",VLOOKUP($A2,DR_ODBC_COALIST,13,FALSE)) -> Sales | DC2: =IF(ISNA(VLOOKUP($A2,DR_ODBC_COALIST,14,FALSE)),"Not Found",VLOOKUP($A2,DR_ODBC_COALIST,14,FALSE)) -> Department Income | DD2: =IF(DB2<>"",CONCATENATE(DA2," - ",DB2),"") -> 01 - Sales | DE2: =IF(DC2<>"",CONCATENATE(CZ2," - ",DC2),"") -> 001 - Department Income | DF2: =(AR2*SageDataCompany!$H$2)+(AS2*SageDataCompany!$H$3)+(AT2*SageDataCompany!$H$4)+(AU2*SageDataCompany!$H$5)+(AV2*SageDataCompany!$H$6)+(AW2*SageDataCompany!$H$7)+(AX2*SageDataCompany!$H$8)+(AY2*SageDataCompany!$H$9)+(AZ2*SageDataCompany!$H$10)+(BA2*SageDataCompany!$H$11)+(BB2*SageDataCompany!$H$12)+(BC2*SageDataCompany!$H$13) -> 50850 | DG2: =(BD2*SageDataCompany!$H$2)+(BE2*SageDataCompany!$H$3)+(BF2*SageDataCompany!$H$4)+(BG2*SageDataCompany!$H$5)+(BH2*SageDataCompany!$H$6)+(BI2*SageDataCompany!$H$7)+(BJ2*SageDataCompany!$H$8)+(BK2*SageDataCompany!$H$9)+(BL2*SageDataCompany!$H$10)+(BM2*SageDataCompany!$H$11)+(BN2*SageDataCompany!$H$12)+(BO2*SageDataCompany!$H$13) -> 50763 | DH2: =(BP2*SageDataCompany!$H$2)+(BQ2*SageDataCompany!$H$3)+(BR2*SageDataCompany!$H$4)+(BS2*SageDataCompany!$H$5)+(BT2*SageDataCompany!$H$6)+(BU2*SageDataCompany!$H$7)+(BV2*SageDataCompany!$H$8)+(BW2*SageDataCompany!$H$9)+(BX2*SageDataCompany!$H$10)+(BY2*SageDataCompany!$H$11)+(BZ2*SageDataCompany!$H$12)+(CA2*SageDataCompany!$H$13) -> 0 | DI2: =DF2-DG2 -> 87 | DJ2: =DF2-DH2 -> 50850 | DK2: =(AR2*SageDataCompany!$I$2)+(AS2*SageDataCompany!$I$3)+(AT2*SageDataCompany!$I$4)+(AU2*SageDataCompany!$I$5)+(AV2*SageDataCompany!$I$6)+(AW2*SageDataCompany!$I$7)+(AX2*SageDataCompany!$I$8)+(AY2*SageDataCompany!$I$9)+(AZ2*SageDataCompany!$I$10)+(BA2*SageDataCompany!$I$11)+(BB2*SageDataCompany!$I$12)+(BC2*SageDataCompany!$I$13) -> 50850 | DL2: =(BD2*SageDataCompany!$I$2)+(BE2*SageDataCompany!$I$3)+(BF2*SageDataCompany!$I$4)+(BG2*SageDataCompany!$I$5)+(BH2*SageDataCompany!$I$6)+(BI2*SageDataCompany!$I$7)+(BJ2*SageDataCompany!$I$8)+(BK2*SageDataCompany!$I$9)+(BL2*SageDataCompany!$I$10)+(BM2*SageDataCompany!$I$11)+(BN2*SageDataCompany!$I$12)+(BO2*SageDataCompany!$I$13) -> 50763 | DM2: =(BP2*SageDataCompany!$I$2)+(BQ2*SageDataCompany!$I$3)+(BR2*SageDataCompany!$I$4)+(BS2*SageDataCompany!$I$5)+(BT2*SageDataCompany!$I$6)+(BU2*SageDataCompany!$I$7)+(BV2*SageDataCompany!$I$8)+(BW2*SageDataCompany!$I$9)+(BX2*SageDataCompany!$I$10)+(BY2*SageDataCompany!$I$11)+(BZ2*SageDataCompany!$I$12)+(CA2*SageDataCompany!$I$13) -> 0 | DN2: =DK2-DL2 -> 87 | DO2: =DK2-DM2 -> 50850 | DP2: =IF(AND(AR2=0,AS2=0,AT2=0,AU2=0,AV2=0,AW2=0,AX2=0,AY2=0,AZ2=0,BA2=0,BB2=0,BC2=0),"","Yes") -> Yes | DQ2: =IF(AND(BD2=0,BE2=0,BF2=0,BG2=0,BH2=0,BI2=0,BJ2=0,BK2=0,BL2=0,BM2=0,BN2=0,BO2=0),"","Yes") -> Yes | DR2: =IF(AND(BP2=0,BQ2=0,BR2=0,BS2=0,BT2=0,BU2=0,BV2=0,BW2=0,BX2=0,BY2=0,BZ2=0,CA2=0),"","Yes") ->  | DS2: =IF(AND(DP2="",DQ2="",DR2=""),"","Yes") -> Yes | DT2: =Table_Query_from_SageLine50v17[[#This Row],[PY Mth1]]+Table_Query_from_SageLine50v17[[#This Row],[PY Mth2]]+Table_Query_from_SageLine50v17[[#This Row],[PY Mth3]]+Table_Query_from_SageLine50v17[[#This Row],[PY Mth4]]+Table_Query_from_SageLine50v17[[#This Row],[PY Mth5]]+Table_Query_from_SageLine50v17[[#This Row],[PY Mth6]]+Table_Query_from_SageLine50v17[[#This Row],[PY Mth7]]+Table_Query_from_SageLine50v17[[#This Row],[PY Mth8]]+Table_Query_from_SageLine50v17[[#This Row],[PY Mth9]]+Table_Query_from_SageLine50v17[[#This Row],[PY Mth10]]+Table_Query_from_SageLine50v17[[#This Row],[PY Mth11]]+Table_Query_from_SageLine50v17[[#This Row],[PY Mth12]] -> 0
A3: 3020 | B3: Enhanced Capitation (DEIS) | C3: 0 | D3: 0 | E3: 0 | F3: 0 | G3: 0 | H3: 0 | I3: 0 | J3: 0 | K3: 0 | L3: 0 | M3: 0 | N3: 0 | O3: 0 | P3: 0 | Q3: 0 | R3: 0 | S3: 0 | T3: 0 | U3: 0 | V3: 0 | W3: 0 | X3: 0 | Y3: 0 | Z3: 0 | AA3: 0 | AB3: 0 | AC3: 0 | AD3: 0 | AE3: 0 | AF3: 0 | AG3: 0 | AH3: 0 | AI3: 0 | AJ3: 0 | AK3: 0 | AL3: 0 | AM3: 0 | AN3: =IF(VLOOKUP(A3,DR_ODBC_COALIST,16,FALSE),CONCATENATE("9999"," - ",SageDataCOAList!$L$2),SageData!$A3&" - "&SageData!$B3) -> 3020 - Enhanced Capitation (DEIS) | AO3: 1 | AP3: -1 | AQ3: 1 | AR3: 0 | AS3: 0 | AT3: 0 | AU3: 0 | AV3: 0 | AW3: 0 | AX3: 0 | AY3: 0 | AZ3: 0 | BA3: 0 | BB3: 0 | BC3: 0 | BD3: 0 | BE3: 0 | BF3: 0 | BG3: 0 | BH3: 0 | BI3: 0 | BJ3: 0 | BK3: 0 | BL3: 0 | BM3: 0 | BN3: 0 | BO3: 0 | BP3: 0 | BQ3: 0 | BR3: 0 | BS3: 0 | BT3: 0 | BU3: 0 | BV3: 0 | BW3: 0 | BX3: 0 | BY3: 0 | BZ3: 0 | CA3: 0 | CB3: 0 | CC3: 0 | CD3: 0 | CE3: 0 | CF3: 0 | CG3: 0 | CH3: 0 | CI3: 0 | CJ3: 0 | CK3: 0 | CL3: 0 | CM3: 0 | CN3: 0 | CO3: 0 | CP3: 0 | CQ3: 0 | CR3: 0 | CS3: 0 | CT3: 0 | CU3: 0 | CV3: 0 | CW3: 0 | CX3: 0 | CY3: 0 | CZ3: 001 | DA3: 01 | DB3: Sales | DC3: Department Income | DD3: 01 - Sales | DE3: 001 - Department Income | DF3: =(AR3*SageDataCompany!$H$2)+(AS3*SageDataCompany!$H$3)+(AT3*SageDataCompany!$H$4)+(AU3*SageDataCompany!$H$5)+(AV3*SageDataCompany!$H$6)+(AW3*SageDataCompany!$H$7)+(AX3*SageDataCompany!$H$8)+(AY3*SageDataCompany!$H$9)+(AZ3*SageDataCompany!$H$10)+(BA3*SageDataCompany!$H$11)+(BB3*SageDataCompany!$H$12)+(BC3*SageDataCompany!$H$13) -> 0 | DG3: =(BD3*SageDataCompany!$H$2)+(BE3*SageDataCompany!$H$3)+(BF3*SageDataCompany!$H$4)+(BG3*SageDataCompany!$H$5)+(BH3*SageDataCompany!$H$6)+(BI3*SageDataCompany!$H$7)+(BJ3*SageDataCompany!$H$8)+(BK3*SageDataCompany!$H$9)+(BL3*SageDataCompany!$H$10)+(BM3*SageDataCompany!$H$11)+(BN3*SageDataCompany!$H$12)+(BO3*SageDataCompany!$H$13) -> 0 | DH3: =(BP3*SageDataCompany!$H$2)+(BQ3*SageDataCompany!$H$3)+(BR3*SageDataCompany!$H$4)+(BS3*SageDataCompany!$H$5)+(BT3*SageDataCompany!$H$6)+(BU3*SageDataCompany!$H$7)+(BV3*SageDataCompany!$H$8)+(BW3*SageDataCompany!$H$9)+(BX3*SageDataCompany!$H$10)+(BY3*SageDataCompany!$H$11)+(BZ3*SageDataCompany!$H$12)+(CA3*SageDataCompany!$H$13) -> 0 | DI3: 0 | DJ3: 0 | DK3: =(AR3*SageDataCompany!$I$2)+(AS3*SageDataCompany!$I$3)+(AT3*SageDataCompany!$I$4)+(AU3*SageDataCompany!$I$5)+(AV3*SageDataCompany!$I$6)+(AW3*SageDataCompany!$I$7)+(AX3*SageDataCompany!$I$8)+(AY3*SageDataCompany!$I$9)+(AZ3*SageDataCompany!$I$10)+(BA3*SageDataCompany!$I$11)+(BB3*SageDataCompany!$I$12)+(BC3*SageDataCompany!$I$13) -> 0 | DL3: =(BD3*SageDataCompany!$I$2)+(BE3*SageDataCompany!$I$3)+(BF3*SageDataCompany!$I$4)+(BG3*SageDataCompany!$I$5)+(BH3*SageDataCompany!$I$6)+(BI3*SageDataCompany!$I$7)+(BJ3*SageDataCompany!$I$8)+(BK3*SageDataCompany!$I$9)+(BL3*SageDataCompany!$I$10)+(BM3*SageDataCompany!$I$11)+(BN3*SageDataCompany!$I$12)+(BO3*SageDataCompany!$I$13) -> 0 | DM3: =(BP3*SageDataCompany!$I$2)+(BQ3*SageDataCompany!$I$3)+(BR3*SageDataCompany!$I$4)+(BS3*SageDataCompany!$I$5)+(BT3*SageDataCompany!$I$6)+(BU3*SageDataCompany!$I$7)+(BV3*SageDataCompany!$I$8)+(BW3*SageDataCompany!$I$9)+(BX3*SageDataCompany!$I$10)+(BY3*SageDataCompany!$I$11)+(BZ3*SageDataCompany!$I$12)+(CA3*SageDataCompany!$I$13) -> 0 | DN3: 0 | DO3: 0 | DT3: =Table_Query_from_SageLine50v17[[#This Row],[PY Mth1]]+Table_Query_from_SageLine50v17[[#This Row],[PY Mth2]]+Table_Query_from_SageLine50v17[[#This Row],[PY Mth3]]+Table_Query_from_SageLine50v17[[#This Row],[PY Mth4]]+Table_Query_from_SageLine50v17[[#This Row],[PY Mth5]]+Table_Query_from_SageLine50v17[[#This Row],[PY Mth6]]+Table_Query_from_SageLine50v17[[#This Row],[PY Mth7]]+Table_Query_from_SageLine50v17[[#This Row],[PY Mth8]]+Table_Query_from_SageLine50v17[[#This Row],[PY Mth9]]+Table_Query_from_SageLine50v17[[#This Row],[PY Mth10]]+Table_Query_from_SageLine50v17[[#This Row],[PY Mth11]]+Table_Query_from_SageLine50v17[[#This Row],[PY Mth12]] -> 0
A4: 3050 | B4: Support Services | C4: 0 | D4: 0 | E4: 0 | F4: 0 | G4: 0 | H4: 0 | I4: 0 | J4: 0 | K4: 0 | L4: -41200 | M4: 0 | N4: 0 | O4: 40200 | P4: 0 | Q4: 0 | R4: 0 | S4: 0 | T4: 0 | U4: 0 | V4: 0 | W4: 0 | X4: 0 | Y4: 0 | Z4: 0 | AA4: 0 | AB4: 0 | AC4: 0 | AD4: 0 | AE4: 0 | AF4: 0 | AG4: 0 | AH4: 0 | AI4: 0 | AJ4: 0 | AK4: 0 | AL4: 0 | AM4: 0 | AN4: =IF(VLOOKUP(A4,DR_ODBC_COALIST,16,FALSE),CONCATENATE("9999"," - ",SageDataCOAList!$L$2),SageData!$A4&" - "&SageData!$B4) -> 3050 - Support Services | AO4: 1 | AP4: -1 | AQ4: 1 | AR4: 0 | AS4: 0 | AT4: 0 | AU4: 0 | AV4: 0 | AW4: 0 | AX4: 0 | AY4: 0 | AZ4: 0 | BA4: 41200 | BB4: 0 | BC4: 0 | BD4: 40200 | BE4: 0 | BF4: 0 | BG4: 0 | BH4: 0 | BI4: 0 | BJ4: 0 | BK4: 0 | BL4: 0 | BM4: 0 | BN4: 0 | BO4: 0 | BP4: 0 | BQ4: 0 | BR4: 0 | BS4: 0 | BT4: 0 | BU4: 0 | BV4: 0 | BW4: 0 | BX4: 0 | BY4: 0 | BZ4: 0 | CA4: 0 | CB4: -40200 | CC4: 0 | CD4: 0 | CE4: 0 | CF4: 0 | CG4: 0 | CH4: 0 | CI4: 0 | CJ4: 0 | CK4: 41200 | CL4: 0 | CM4: 0 | CN4: 0 | CO4: 0 | CP4: 0 | CQ4: 0 | CR4: 0 | CS4: 0 | CT4: 0 | CU4: 0 | CV4: 0 | CW4: 41200 | CX4: 0 | CY4: 0 | CZ4: 001 | DA4: 01 | DB4: Sales | DC4: Department Income | DD4: 01 - Sales | DE4: 001 - Department Income | DF4: =(AR4*SageDataCompany!$H$2)+(AS4*SageDataCompany!$H$3)+(AT4*SageDataCompany!$H$4)+(AU4*SageDataCompany!$H$5)+(AV4*SageDataCompany!$H$6)+(AW4*SageDataCompany!$H$7)+(AX4*SageDataCompany!$H$8)+(AY4*SageDataCompany!$H$9)+(AZ4*SageDataCompany!$H$10)+(BA4*SageDataCompany!$H$11)+(BB4*SageDataCompany!$H$12)+(BC4*SageDataCompany!$H$13) -> 41200 | DG4: =(BD4*SageDataCompany!$H$2)+(BE4*SageDataCompany!$H$3)+(BF4*SageDataCompany!$H$4)+(BG4*SageDataCompany!$H$5)+(BH4*SageDataCompany!$H$6)+(BI4*SageDataCompany!$H$7)+(BJ4*SageDataCompany!$H$8)+(BK4*SageDataCompany!$H$9)+(BL4*SageDataCompany!$H$10)+(BM4*SageDataCompany!$H$11)+(BN4*SageDataCompany!$H$12)+(BO4*SageDataCompany!$H$13) -> 40200 | DH4: =(BP4*SageDataCompany!$H$2)+(BQ4*SageDataCompany!$H$3)+(BR4*SageDataCompany!$H$4)+(BS4*SageDataCompany!$H$5)+(BT4*SageDataCompany!$H$6)+(BU4*SageDataCompany!$H$7)+(BV4*SageDataCompany!$H$8)+(BW4*SageDataCompany!$H$9)+(BX4*SageDataCompany!$H$10)+(BY4*SageDataCompany!$H$11)+(BZ4*SageDataCompany!$H$12)+(CA4*SageDataCompany!$H$13) -> 0 | DI4: 1000 | DJ4: 41200 | DK4: =(AR4*SageDataCompany!$I$2)+(AS4*SageDataCompany!$I$3)+(AT4*SageDataCompany!$I$4)+(AU4*SageDataCompany!$I$5)+(AV4*SageDataCompany!$I$6)+(AW4*SageDataCompany!$I$7)+(AX4*SageDataCompany!$I$8)+(AY4*SageDataCompany!$I$9)+(AZ4*SageDataCompany!$I$10)+(BA4*SageDataCompany!$I$11)+(BB4*SageDataCompany!$I$12)+(BC4*SageDataCompany!$I$13) -> 41200 | DL4: =(BD4*SageDataCompany!$I$2)+(BE4*SageDataCompany!$I$3)+(BF4*SageDataCompany!$I$4)+(BG4*SageDataCompany!$I$5)+(BH4*SageDataCompany!$I$6)+(BI4*SageDataCompany!$I$7)+(BJ4*SageDataCompany!$I$8)+(BK4*SageDataCompany!$I$9)+(BL4*SageDataCompany!$I$10)+(BM4*SageDataCompany!$I$11)+(BN4*SageDataCompany!$I$12)+(BO4*SageDataCompany!$I$13) -> 40200 | DM4: =(BP4*SageDataCompany!$I$2)+(BQ4*SageDataCompany!$I$3)+(BR4*SageDataCompany!$I$4)+(BS4*SageDataCompany!$I$5)+(BT4*SageDataCompany!$I$6)+(BU4*SageDataCompany!$I$7)+(BV4*SageDataCompany!$I$8)+(BW4*SageDataCompany!$I$9)+(BX4*SageDataCompany!$I$10)+(BY4*SageDataCompany!$I$11)+(BZ4*SageDataCompany!$I$12)+(CA4*SageDataCompany!$I$13) -> 0 | DN4: 1000 | DO4: 41200 | DP4: Yes | DQ4: Yes | DS4: Yes | DT4: =Table_Query_from_SageLine50v17[[#This Row],[PY Mth1]]+Table_Query_from_SageLine50v17[[#This Row],[PY Mth2]]+Table_Query_from_SageLine50v17[[#This Row],[PY Mth3]]+Table_Query_from_SageLine50v17[[#This Row],[PY Mth4]]+Table_Query_from_SageLine50v17[[#This Row],[PY Mth5]]+Table_Query_from_SageLine50v17[[#This Row],[PY Mth6]]+Table_Query_from_SageLine50v17[[#This Row],[PY Mth7]]+Table_Query_from_SageLine50v17[[#This Row],[PY Mth8]]+Table_Query_from_SageLine50v17[[#This Row],[PY Mth9]]+Table_Query_from_SageLine50v17[[#This Row],[PY Mth10]]+Table_Query_from_SageLine50v17[[#This Row],[PY Mth11]]+Table_Query_from_SageLine50v17[[#This Row],[PY Mth12]] -> 0
A5: 3100 | B5: Secretarial Grant | C5: 0 | D5: 0 | E5: 0 | F5: 0 | G5: 0 | H5: 0 | I5: 0 | J5: 0 | K5: 0 | L5: -12000 | M5: 0 | N5: 0 | O5: 12000 | P5: 0 | Q5: 0 | R5: 0 | S5: 0 | T5: 0 | U5: 0 | V5: 0 | W5: 0 | X5: 0 | Y5: 0 | Z5: 0 | AA5: 0 | AB5: 0 | AC5: 0 | AD5: 0 | AE5: 0 | AF5: 0 | AG5: 0 | AH5: 0 | AI5: 0 | AJ5: 0 | AK5: 0 | AL5: 0 | AM5: 0 | AN5: =IF(VLOOKUP(A5,DR_ODBC_COALIST,16,FALSE),CONCATENATE("9999"," - ",SageDataCOAList!$L$2),SageData!$A5&" - "&SageData!$B5) -> 3100 - Secretarial Grant | AO5: 1 | AP5: -1 | AQ5: 1 | AR5: 0 | AS5: 0 | AT5: 0 | AU5: 0 | AV5: 0 | AW5: 0 | AX5: 0 | AY5: 0 | AZ5: 0 | BA5: 12000 | BB5: 0 | BC5: 0 | BD5: 12000 | BE5: 0 | BF5: 0 | BG5: 0 | BH5: 0 | BI5: 0 | BJ5: 0 | BK5: 0 | BL5: 0 | BM5: 0 | BN5: 0 | BO5: 0 | BP5: 0 | BQ5: 0 | BR5: 0 | BS5: 0 | BT5: 0 | BU5: 0 | BV5: 0 | BW5: 0 | BX5: 0 | BY5: 0 | BZ5: 0 | CA5: 0 | CB5: -12000 | CC5: 0 | CD5: 0 | CE5: 0 | CF5: 0 | CG5: 0 | CH5: 0 | CI5: 0 | CJ5: 0 | CK5: 12000 | CL5: 0 | CM5: 0 | CN5: 0 | CO5: 0 | CP5: 0 | CQ5: 0 | CR5: 0 | CS5: 0 | CT5: 0 | CU5: 0 | CV5: 0 | CW5: 12000 | CX5: 0 | CY5: 0 | CZ5: 001 | DA5: 01 | DB5: Sales | DC5: Department Income | DD5: 01 - Sales | DE5: 001 - Department Income | DF5: =(AR5*SageDataCompany!$H$2)+(AS5*SageDataCompany!$H$3)+(AT5*SageDataCompany!$H$4)+(AU5*SageDataCompany!$H$5)+(AV5*SageDataCompany!$H$6)+(AW5*SageDataCompany!$H$7)+(AX5*SageDataCompany!$H$8)+(AY5*SageDataCompany!$H$9)+(AZ5*SageDataCompany!$H$10)+(BA5*SageDataCompany!$H$11)+(BB5*SageDataCompany!$H$12)+(BC5*SageDataCompany!$H$13) -> 12000 | DG5: =(BD5*SageDataCompany!$H$2)+(BE5*SageDataCompany!$H$3)+(BF5*SageDataCompany!$H$4)+(BG5*SageDataCompany!$H$5)+(BH5*SageDataCompany!$H$6)+(BI5*SageDataCompany!$H$7)+(BJ5*SageDataCompany!$H$8)+(BK5*SageDataCompany!$H$9)+(BL5*SageDataCompany!$H$10)+(BM5*SageDataCompany!$H$11)+(BN5*SageDataCompany!$H$12)+(BO5*SageDataCompany!$H$13) -> 12000 | DH5: =(BP5*SageDataCompany!$H$2)+(BQ5*SageDataCompany!$H$3)+(BR5*SageDataCompany!$H$4)+(BS5*SageDataCompany!$H$5)+(BT5*SageDataCompany!$H$6)+(BU5*SageDataCompany!$H$7)+(BV5*SageDataCompany!$H$8)+(BW5*SageDataCompany!$H$9)+(BX5*SageDataCompany!$H$10)+(BY5*SageDataCompany!$H$11)+(BZ5*SageDataCompany!$H$12)+(CA5*SageDataCompany!$H$13) -> 0 | DI5: 0 | DJ5: 12000 | DK5: =(AR5*SageDataCompany!$I$2)+(AS5*SageDataCompany!$I$3)+(AT5*SageDataCompany!$I$4)+(AU5*SageDataCompany!$I$5)+(AV5*SageDataCompany!$I$6)+(AW5*SageDataCompany!$I$7)+(AX5*SageDataCompany!$I$8)+(AY5*SageDataCompany!$I$9)+(AZ5*SageDataCompany!$I$10)+(BA5*SageDataCompany!$I$11)+(BB5*SageDataCompany!$I$12)+(BC5*SageDataCompany!$I$13) -> 12000 | DL5: =(BD5*SageDataCompany!$I$2)+(BE5*SageDataCompany!$I$3)+(BF5*SageDataCompany!$I$4)+(BG5*SageDataCompany!$I$5)+(BH5*SageDataCompany!$I$6)+(BI5*SageDataCompany!$I$7)+(BJ5*SageDataCompany!$I$8)+(BK5*SageDataCompany!$I$9)+(BL5*SageDataCompany!$I$10)+(BM5*SageDataCompany!$I$11)+(BN5*SageDataCompany!$I$12)+(BO5*SageDataCompany!$I$13) -> 12000 | DM5: =(BP5*SageDataCompany!$I$2)+(BQ5*SageDataCompany!$I$3)+(BR5*SageDataCompany!$I$4)+(BS5*SageDataCompany!$I$5)+(BT5*SageDataCompany!$I$6)+(BU5*SageDataCompany!$I$7)+(BV5*SageDataCompany!$I$8)+(BW5*SageDataCompany!$I$9)+(BX5*SageDataCompany!$I$10)+(BY5*SageDataCompany!$I$11)+(BZ5*SageDataCompany!$I$12)+(CA5*SageDataCompany!$I$13) -> 0 | DN5: 0 | DO5: 12000 | DP5: Yes | DQ5: Yes | DS5: Yes | DT5: =Table_Query_from_SageLine50v17[[#This Row],[PY Mth1]]+Table_Query_from_SageLine50v17[[#This Row],[PY Mth2]]+Table_Query_from_SageLine50v17[[#This Row],[PY Mth3]]+Table_Query_from_SageLine50v17[[#This Row],[PY Mth4]]+Table_Query_from_SageLine50v17[[#This Row],[PY Mth5]]+Table_Query_from_SageLine50v17[[#This Row],[PY Mth6]]+Table_Query_from_SageLine50v17[[#This Row],[PY Mth7]]+Table_Query_from_SageLine50v17[[#This Row],[PY Mth8]]+Table_Query_from_SageLine50v17[[#This Row],[PY Mth9]]+Table_Query_from_SageLine50v17[[#This Row],[PY Mth10]]+Table_Query_from_SageLine50v17[[#This Row],[PY Mth11]]+Table_Query_from_SageLine50v17[[#This Row],[PY Mth12]] -> 0
A6: 3130 | B6: Caretaker Grant | C6: 0 | D6: 0 | E6: 0 | F6: 0 | G6: 0 | H6: 0 | I6: 0 | J6: 0 | K6: 0 | L6: -9650 | M6: 0 | N6: 0 | O6: 9600 | P6: 0 | Q6: 0 | R6: 0 | S6: 0 | T6: 0 | U6: 0 | V6: 0 | W6: 0 | X6: 0 | Y6: 0 | Z6: 0 | AA6: 0 | AB6: 0 | AC6: 0 | AD6: 0 | AE6: 0 | AF6: 0 | AG6: 0 | AH6: 0 | AI6: 0 | AJ6: 0 | AK6: 0 | AL6: 0 | AM6: 0 | AN6: =IF(VLOOKUP(A6,DR_ODBC_COALIST,16,FALSE),CONCATENATE("9999"," - ",SageDataCOAList!$L$2),SageData!$A6&" - "&SageData!$B6) -> 3130 - Caretaker Grant | AO6: 1 | AP6: -1 | AQ6: 1 | AR6: 0 | AS6: 0 | AT6: 0 | AU6: 0 | AV6: 0 | AW6: 0 | AX6: 0 | AY6: 0 | AZ6: 0 | BA6: 9650 | BB6: 0 | BC6: 0 | BD6: 9600 | BE6: 0 | BF6: 0 | BG6: 0 | BH6: 0 | BI6: 0 | BJ6: 0 | BK6: 0 | BL6: 0 | BM6: 0 | BN6: 0 | BO6: 0 | BP6: 0 | BQ6: 0 | BR6: 0 | BS6: 0 | BT6: 0 | BU6: 0 | BV6: 0 | BW6: 0 | BX6: 0 | BY6: 0 | BZ6: 0 | CA6: 0 | CB6: -9600 | CC6: 0 | CD6: 0 | CE6: 0 | CF6: 0 | CG6: 0 | CH6: 0 | CI6: 0 | CJ6: 0 | CK6: 9650 | CL6: 0 | CM6: 0 | CN6: 0 | CO6: 0 | CP6: 0 | CQ6: 0 | CR6: 0 | CS6: 0 | CT6: 0 | CU6: 0 | CV6: 0 | CW6: 9650 | CX6: 0 | CY6: 0 | CZ6: 001 | DA6: 01 | DB6: Sales | DC6: Department Income | DD6: 01 - Sales | DE6: 001 - Department Income | DF6: =(AR6*SageDataCompany!$H$2)+(AS6*SageDataCompany!$H$3)+(AT6*SageDataCompany!$H$4)+(AU6*SageDataCompany!$H$5)+(AV6*SageDataCompany!$H$6)+(AW6*SageDataCompany!$H$7)+(AX6*SageDataCompany!$H$8)+(AY6*SageDataCompany!$H$9)+(AZ6*SageDataCompany!$H$10)+(BA6*SageDataCompany!$H$11)+(BB6*SageDataCompany!$H$12)+(BC6*SageDataCompany!$H$13) -> 9650 | DG6: =(BD6*SageDataCompany!$H$2)+(BE6*SageDataCompany!$H$3)+(BF6*SageDataCompany!$H$4)+(BG6*SageDataCompany!$H$5)+(BH6*SageDataCompany!$H$6)+(BI6*SageDataCompany!$H$7)+(BJ6*SageDataCompany!$H$8)+(BK6*SageDataCompany!$H$9)+(BL6*SageDataCompany!$H$10)+(BM6*SageDataCompany!$H$11)+(BN6*SageDataCompany!$H$12)+(BO6*SageDataCompany!$H$13) -> 9600 | DH6: =(BP6*SageDataCompany!$H$2)+(BQ6*SageDataCompany!$H$3)+(BR6*SageDataCompany!$H$4)+(BS6*SageDataCompany!$H$5)+(BT6*SageDataCompany!$H$6)+(BU6*SageDataCompany!$H$7)+(BV6*SageDataCompany!$H$8)+(BW6*SageDataCompany!$H$9)+(BX6*SageDataCompany!$H$10)+(BY6*SageDataCompany!$H$11)+(BZ6*SageDataCompany!$H$12)+(CA6*SageDataCompany!$H$13) -> 0 | DI6: 50 | DJ6: 9650 | DK6: =(AR6*SageDataCompany!$I$2)+(AS6*SageDataCompany!$I$3)+(AT6*SageDataCompany!$I$4)+(AU6*SageDataCompany!$I$5)+(AV6*SageDataCompany!$I$6)+(AW6*SageDataCompany!$I$7)+(AX6*SageDataCompany!$I$8)+(AY6*SageDataCompany!$I$9)+(AZ6*SageDataCompany!$I$10)+(BA6*SageDataCompany!$I$11)+(BB6*SageDataCompany!$I$12)+(BC6*SageDataCompany!$I$13) -> 9650 | DL6: =(BD6*SageDataCompany!$I$2)+(BE6*SageDataCompany!$I$3)+(BF6*SageDataCompany!$I$4)+(BG6*SageDataCompany!$I$5)+(BH6*SageDataCompany!$I$6)+(BI6*SageDataCompany!$I$7)+(BJ6*SageDataCompany!$I$8)+(BK6*SageDataCompany!$I$9)+(BL6*SageDataCompany!$I$10)+(BM6*SageDataCompany!$I$11)+(BN6*SageDataCompany!$I$12)+(BO6*SageDataCompany!$I$13) -> 9600 | DM6: =(BP6*SageDataCompany!$I$2)+(BQ6*SageDataCompany!$I$3)+(BR6*SageDataCompany!$I$4)+(BS6*SageDataCompany!$I$5)+(BT6*SageDataCompany!$I$6)+(BU6*SageDataCompany!$I$7)+(BV6*SageDataCompany!$I$8)+(BW6*SageDataCompany!$I$9)+(BX6*SageDataCompany!$I$10)+(BY6*SageDataCompany!$I$11)+(BZ6*SageDataCompany!$I$12)+(CA6*SageDataCompany!$I$13) -> 0 | DN6: 50 | DO6: 9650 | DP6: Yes | DQ6: Yes | DS6: Yes | DT6: =Table_Query_from_SageLine50v17[[#This Row],[PY Mth1]]+Table_Query_from_SageLine50v17[[#This Row],[PY Mth2]]+Table_Query_from_SageLine50v17[[#This Row],[PY Mth3]]+Table_Query_from_SageLine50v17[[#This Row],[PY Mth4]]+Table_Query_from_SageLine50v17[[#This Row],[PY Mth5]]+Table_Query_from_SageLine50v17[[#This Row],[PY Mth6]]+Table_Query_from_SageLine50v17[[#This Row],[PY Mth7]]+Table_Query_from_SageLine50v17[[#This Row],[PY Mth8]]+Table_Query_from_SageLine50v17[[#This Row],[PY Mth9]]+Table_Query_from_SageLine50v17[[#This Row],[PY Mth10]]+Table_Query_from_SageLine50v17[[#This Row],[PY Mth11]]+Table_Query_from_SageLine50v17[[#This Row],[PY Mth12]] -> 0
A7: 3150 | B7: Book Grant | C7: 0 | D7: 0 | E7: 0 | F7: 0 | G7: 0 | H7: 0 | I7: 0 | J7: 0 | K7: 0 | L7: -4825 | M7: 0 | N7: 0 | O7: 4800 | P7: 0 | Q7: 0 | R7: 0 | S7: 0 | T7: 0 | U7: 0 | V7: 0 | W7: 0 | X7: 0 | Y7: 0 | Z7: 0 | AA7: 0 | AB7: 0 | AC7: 0 | AD7: 0 | AE7: 0 | AF7: 0 | AG7: 0 | AH7: 0 | AI7: 0 | AJ7: 0 | AK7: 0 | AL7: 0 | AM7: 0 | AN7: =IF(VLOOKUP(A7,DR_ODBC_COALIST,16,FALSE),CONCATENATE("9999"," - ",SageDataCOAList!$L$2),SageData!$A7&" - "&SageData!$B7) -> 3150 - Book Grant | AO7: 1 | AP7: -1 | AQ7: 1 | AR7: 0 | AS7: 0 | AT7: 0 | AU7: 0 | AV7: 0 | AW7: 0 | AX7: 0 | AY7: 0 | AZ7: 0 | BA7: 4825 | BB7: 0 | BC7: 0 | BD7: 4800 | BE7: 0 | BF7: 0 | BG7: 0 | BH7: 0 | BI7: 0 | BJ7: 0 | BK7: 0 | BL7: 0 | BM7: 0 | BN7: 0 | BO7: 0 | BP7: 0 | BQ7: 0 | BR7: 0 | BS7: 0 | BT7: 0 | BU7: 0 | BV7: 0 | BW7: 0 | BX7: 0 | BY7: 0 | BZ7: 0 | CA7: 0 | CB7: -4800 | CC7: 0 | CD7: 0 | CE7: 0 | CF7: 0 | CG7: 0 | CH7: 0 | CI7: 0 | CJ7: 0 | CK7: 4825 | CL7: 0 | CM7: 0 | CN7: 0 | CO7: 0 | CP7: 0 | CQ7: 0 | CR7: 0 | CS7: 0 | CT7: 0 | CU7: 0 | CV7: 0 | CW7: 4825 | CX7: 0 | CY7: 0 | CZ7: 001 | DA7: 01 | DB7: Sales | DC7: Department Income | DD7: 01 - Sales | DE7: 001 - Department Income | DF7: =(AR7*SageDataCompany!$H$2)+(AS7*SageDataCompany!$H$3)+(AT7*SageDataCompany!$H$4)+(AU7*SageDataCompany!$H$5)+(AV7*SageDataCompany!$H$6)+(AW7*SageDataCompany!$H$7)+(AX7*SageDataCompany!$H$8)+(AY7*SageDataCompany!$H$9)+(AZ7*SageDataCompany!$H$10)+(BA7*SageDataCompany!$H$11)+(BB7*SageDataCompany!$H$12)+(BC7*SageDataCompany!$H$13) -> 4825 | DG7: =(BD7*SageDataCompany!$H$2)+(BE7*SageDataCompany!$H$3)+(BF7*SageDataCompany!$H$4)+(BG7*SageDataCompany!$H$5)+(BH7*SageDataCompany!$H$6)+(BI7*SageDataCompany!$H$7)+(BJ7*SageDataCompany!$H$8)+(BK7*SageDataCompany!$H$9)+(BL7*SageDataCompany!$H$10)+(BM7*SageDataCompany!$H$11)+(BN7*SageDataCompany!$H$12)+(BO7*SageDataCompany!$H$13) -> 4800 | DH7: =(BP7*SageDataCompany!$H$2)+(BQ7*SageDataCompany!$H$3)+(BR7*SageDataCompany!$H$4)+(BS7*SageDataCompany!$H$5)+(BT7*SageDataCompany!$H$6)+(BU7*SageDataCompany!$H$7)+(BV7*SageDataCompany!$H$8)+(BW7*SageDataCompany!$H$9)+(BX7*SageDataCompany!$H$10)+(BY7*SageDataCompany!$H$11)+(BZ7*SageDataCompany!$H$12)+(CA7*SageDataCompany!$H$13) -> 0 | DI7: 25 | DJ7: 4825 | DK7: =(AR7*SageDataCompany!$I$2)+(AS7*SageDataCompany!$I$3)+(AT7*SageDataCompany!$I$4)+(AU7*SageDataCompany!$I$5)+(AV7*SageDataCompany!$I$6)+(AW7*SageDataCompany!$I$7)+(AX7*SageDataCompany!$I$8)+(AY7*SageDataCompany!$I$9)+(AZ7*SageDataCompany!$I$10)+(BA7*SageDataCompany!$I$11)+(BB7*SageDataCompany!$I$12)+(BC7*SageDataCompany!$I$13) -> 4825 | DL7: =(BD7*SageDataCompany!$I$2)+(BE7*SageDataCompany!$I$3)+(BF7*SageDataCompany!$I$4)+(BG7*SageDataCompany!$I$5)+(BH7*SageDataCompany!$I$6)+(BI7*SageDataCompany!$I$7)+(BJ7*SageDataCompany!$I$8)+(BK7*SageDataCompany!$I$9)+(BL7*SageDataCompany!$I$10)+(BM7*SageDataCompany!$I$11)+(BN7*SageDataCompany!$I$12)+(BO7*SageDataCompany!$I$13) -> 4800 | DM7: =(BP7*SageDataCompany!$I$2)+(BQ7*SageDataCompany!$I$3)+(BR7*SageDataCompany!$I$4)+(BS7*SageDataCompany!$I$5)+(BT7*SageDataCompany!$I$6)+(BU7*SageDataCompany!$I$7)+(BV7*SageDataCompany!$I$8)+(BW7*SageDataCompany!$I$9)+(BX7*SageDataCompany!$I$10)+(BY7*SageDataCompany!$I$11)+(BZ7*SageDataCompany!$I$12)+(CA7*SageDataCompany!$I$13) -> 0 | DN7: 25 | DO7: 4825 | DP7: Yes | DQ7: Yes | DS7: Yes | DT7: =Table_Query_from_SageLine50v17[[#This Row],[PY Mth1]]+Table_Query_from_SageLine50v17[[#This Row],[PY Mth2]]+Table_Query_from_SageLine50v17[[#This Row],[PY Mth3]]+Table_Query_from_SageLine50v17[[#This Row],[PY Mth4]]+Table_Query_from_SageLine50v17[[#This Row],[PY Mth5]]+Table_Query_from_SageLine50v17[[#This Row],[PY Mth6]]+Table_Query_from_SageLine50v17[[#This Row],[PY Mth7]]+Table_Query_from_SageLine50v17[[#This Row],[PY Mth8]]+Table_Query_from_SageLine50v17[[#This Row],[PY Mth9]]+Table_Query_from_SageLine50v17[[#This Row],[PY Mth10]]+Table_Query_from_SageLine50v17[[#This Row],[PY Mth11]]+Table_Query_from_SageLine50v17[[#This Row],[PY Mth12]] -> 0
A8: 3170 | B8: Special Subjects Grant | C8: 0 | D8: 0 | E8: 0 | F8: 0 | G8: 0 | H8: 0 | I8: 0 | J8: 0 | K8: 0 | L8: 0 | M8: 0 | N8: 0 | O8: 0 | P8: 0 | Q8: 0 | R8: 0 | S8: 0 | T8: 0 | U8: 0 | V8: 0 | W8: 0 | X8: 0 | Y8: 0 | Z8: 0 | AA8: 0 | AB8: 0 | AC8: 0 | AD8: 0 | AE8: 0 | AF8: 0 | AG8: 0 | AH8: 0 | AI8: 0 | AJ8: 0 | AK8: 0 | AL8: 0 | AM8: 0 | AN8: =IF(VLOOKUP(A8,DR_ODBC_COALIST,16,FALSE),CONCATENATE("9999"," - ",SageDataCOAList!$L$2),SageData!$A8&" - "&SageData!$B8) -> 3170 - Special Subjects Grant | AO8: 1 | AP8: -1 | AQ8: 1 | AR8: 0 | AS8: 0 | AT8: 0 | AU8: 0 | AV8: 0 | AW8: 0 | AX8: 0 | AY8: 0 | AZ8: 0 | BA8: 0 | BB8: 0 | BC8: 0 | BD8: 0 | BE8: 0 | BF8: 0 | BG8: 0 | BH8: 0 | BI8: 0 | BJ8: 0 | BK8: 0 | BL8: 0 | BM8: 0 | BN8: 0 | BO8: 0 | BP8: 0 | BQ8: 0 | BR8: 0 | BS8: 0 | BT8: 0 | BU8: 0 | BV8: 0 | BW8: 0 | BX8: 0 | BY8: 0 | BZ8: 0 | CA8: 0 | CB8: 0 | CC8: 0 | CD8: 0 | CE8: 0 | CF8: 0 | CG8: 0 | CH8: 0 | CI8: 0 | CJ8: 0 | CK8: 0 | CL8: 0 | CM8: 0 | CN8: 0 | CO8: 0 | CP8: 0 | CQ8: 0 | CR8: 0 | CS8: 0 | CT8: 0 | CU8: 0 | CV8: 0 | CW8: 0 | CX8: 0 | CY8: 0 | CZ8: 001 | DA8: 01 | DB8: Sales | DC8: Department Income | DD8: 01 - Sales | DE8: 001 - Department Income | DF8: =(AR8*SageDataCompany!$H$2)+(AS8*SageDataCompany!$H$3)+(AT8*SageDataCompany!$H$4)+(AU8*SageDataCompany!$H$5)+(AV8*SageDataCompany!$H$6)+(AW8*SageDataCompany!$H$7)+(AX8*SageDataCompany!$H$8)+(AY8*SageDataCompany!$H$9)+(AZ8*SageDataCompany!$H$10)+(BA8*SageDataCompany!$H$11)+(BB8*SageDataCompany!$H$12)+(BC8*SageDataCompany!$H$13) -> 0 | DG8: =(BD8*SageDataCompany!$H$2)+(BE8*SageDataCompany!$H$3)+(BF8*SageDataCompany!$H$4)+(BG8*SageDataCompany!$H$5)+(BH8*SageDataCompany!$H$6)+(BI8*SageDataCompany!$H$7)+(BJ8*SageDataCompany!$H$8)+(BK8*SageDataCompany!$H$9)+(BL8*SageDataCompany!$H$10)+(BM8*SageDataCompany!$H$11)+(BN8*SageDataCompany!$H$12)+(BO8*SageDataCompany!$H$13) -> 0 | DH8: =(BP8*SageDataCompany!$H$2)+(BQ8*SageDataCompany!$H$3)+(BR8*SageDataCompany!$H$4)+(BS8*SageDataCompany!$H$5)+(BT8*SageDataCompany!$H$6)+(BU8*SageDataCompany!$H$7)+(BV8*SageDataCompany!$H$8)+(BW8*SageDataCompany!$H$9)+(BX8*SageDataCompany!$H$10)+(BY8*SageDataCompany!$H$11)+(BZ8*SageDataCompany!$H$12)+(CA8*SageDataCompany!$H$13) -> 0 | DI8: 0 | DJ8: 0 | DK8: =(AR8*SageDataCompany!$I$2)+(AS8*SageDataCompany!$I$3)+(AT8*SageDataCompany!$I$4)+(AU8*SageDataCompany!$I$5)+(AV8*SageDataCompany!$I$6)+(AW8*SageDataCompany!$I$7)+(AX8*SageDataCompany!$I$8)+(AY8*SageDataCompany!$I$9)+(AZ8*SageDataCompany!$I$10)+(BA8*SageDataCompany!$I$11)+(BB8*SageDataCompany!$I$12)+(BC8*SageDataCompany!$I$13) -> 0 | DL8: =(BD8*SageDataCompany!$I$2)+(BE8*SageDataCompany!$I$3)+(BF8*SageDataCompany!$I$4)+(BG8*SageDataCompany!$I$5)+(BH8*SageDataCompany!$I$6)+(BI8*SageDataCompany!$I$7)+(BJ8*SageDataCompany!$I$8)+(BK8*SageDataCompany!$I$9)+(BL8*SageDataCompany!$I$10)+(BM8*SageDataCompany!$I$11)+(BN8*SageDataCompany!$I$12)+(BO8*SageDataCompany!$I$13) -> 0 | DM8: =(BP8*SageDataCompany!$I$2)+(BQ8*SageDataCompany!$I$3)+(BR8*SageDataCompany!$I$4)+(BS8*SageDataCompany!$I$5)+(BT8*SageDataCompany!$I$6)+(BU8*SageDataCompany!$I$7)+(BV8*SageDataCompany!$I$8)+(BW8*SageDataCompany!$I$9)+(BX8*SageDataCompany!$I$10)+(BY8*SageDataCompany!$I$11)+(BZ8*SageDataCompany!$I$12)+(CA8*SageDataCompany!$I$13) -> 0 | DN8: 0 | DO8: 0 | DT8: =Table_Query_from_SageLine50v17[[#This Row],[PY Mth1]]+Table_Query_from_SageLine50v17[[#This Row],[PY Mth2]]+Table_Query_from_SageLine50v17[[#This Row],[PY Mth3]]+Table_Query_from_SageLine50v17[[#This Row],[PY Mth4]]+Table_Query_from_SageLine50v17[[#This Row],[PY Mth5]]+Table_Query_from_SageLine50v17[[#This Row],[PY Mth6]]+Table_Query_from_SageLine50v17[[#This Row],[PY Mth7]]+Table_Query_from_SageLine50v17[[#This Row],[PY Mth8]]+Table_Query_from_SageLine50v17[[#This Row],[PY Mth9]]+Table_Query_from_SageLine50v17[[#This Row],[PY Mth10]]+Table_Query_from_SageLine50v17[[#This Row],[PY Mth11]]+Table_Query_from_SageLine50v17[[#This Row],[PY Mth12]] -> 0
A9: 3190 | B9: Home Economics | C9: 0 | D9: 0 | E9: 0 | F9: 0 | G9: 0 | H9: 0 | I9: 0 | J9: 0 | K9: 0 | L9: 0 | M9: 0 | N9: 0 | O9: 0 | P9: 0 | Q9: 0 | R9: 0 | S9: 0 | T9: 0 | U9: 0 | V9: 0 | W9: 0 | X9: 0 | Y9: 0 | Z9: 0 | AA9: 0 | AB9: 0 | AC9: 0 | AD9: 0 | AE9: 0 | AF9: 0 | AG9: 0 | AH9: 0 | AI9: 0 | AJ9: 0 | AK9: 0 | AL9: 0 | AM9: 0 | AN9: =IF(VLOOKUP(A9,DR_ODBC_COALIST,16,FALSE),CONCATENATE("9999"," - ",SageDataCOAList!$L$2),SageData!$A9&" - "&SageData!$B9) -> 3190 - Home Economics | AO9: 1 | AP9: -1 | AQ9: 1 | AR9: 0 | AS9: 0 | AT9: 0 | AU9: 0 | AV9: 0 | AW9: 0 | AX9: 0 | AY9: 0 | AZ9: 0 | BA9: 0 | BB9: 0 | BC9: 0 | BD9: 0 | BE9: 0 | BF9: 0 | BG9: 0 | BH9: 0 | BI9: 0 | BJ9: 0 | BK9: 0 | BL9: 0 | BM9: 0 | BN9: 0 | BO9: 0 | BP9: 0 | BQ9: 0 | BR9: 0 | BS9: 0 | BT9: 0 | BU9: 0 | BV9: 0 | BW9: 0 | BX9: 0 | BY9: 0 | BZ9: 0 | CA9: 0 | CB9: 0 | CC9: 0 | CD9: 0 | CE9: 0 | CF9: 0 | CG9: 0 | CH9: 0 | CI9: 0 | CJ9: 0 | CK9: 0 | CL9: 0 | CM9: 0 | CN9: 0 | CO9: 0 | CP9: 0 | CQ9: 0 | CR9: 0 | CS9: 0 | CT9: 0 | CU9: 0 | CV9: 0 | CW9: 0 | CX9: 0 | CY9: 0 | CZ9: 001 | DA9: 01 | DB9: Sales | DC9: Department Income | DD9: 01 - Sales | DE9: 001 - Department Income | DF9: =(AR9*SageDataCompany!$H$2)+(AS9*SageDataCompany!$H$3)+(AT9*SageDataCompany!$H$4)+(AU9*SageDataCompany!$H$5)+(AV9*SageDataCompany!$H$6)+(AW9*SageDataCompany!$H$7)+(AX9*SageDataCompany!$H$8)+(AY9*SageDataCompany!$H$9)+(AZ9*SageDataCompany!$H$10)+(BA9*SageDataCompany!$H$11)+(BB9*SageDataCompany!$H$12)+(BC9*SageDataCompany!$H$13) -> 0 | DG9: =(BD9*SageDataCompany!$H$2)+(BE9*SageDataCompany!$H$3)+(BF9*SageDataCompany!$H$4)+(BG9*SageDataCompany!$H$5)+(BH9*SageDataCompany!$H$6)+(BI9*SageDataCompany!$H$7)+(BJ9*SageDataCompany!$H$8)+(BK9*SageDataCompany!$H$9)+(BL9*SageDataCompany!$H$10)+(BM9*SageDataCompany!$H$11)+(BN9*SageDataCompany!$H$12)+(BO9*SageDataCompany!$H$13) -> 0 | DH9: =(BP9*SageDataCompany!$H$2)+(BQ9*SageDataCompany!$H$3)+(BR9*SageDataCompany!$H$4)+(BS9*SageDataCompany!$H$5)+(BT9*SageDataCompany!$H$6)+(BU9*SageDataCompany!$H$7)+(BV9*SageDataCompany!$H$8)+(BW9*SageDataCompany!$H$9)+(BX9*SageDataCompany!$H$10)+(BY9*SageDataCompany!$H$11)+(BZ9*SageDataCompany!$H$12)+(CA9*SageDataCompany!$H$13) -> 0 | DI9: 0 | DJ9: 0 | DK9: =(AR9*SageDataCompany!$I$2)+(AS9*SageDataCompany!$I$3)+(AT9*SageDataCompany!$I$4)+(AU9*SageDataCompany!$I$5)+(AV9*SageDataCompany!$I$6)+(AW9*SageDataCompany!$I$7)+(AX9*SageDataCompany!$I$8)+(AY9*SageDataCompany!$I$9)+(AZ9*SageDataCompany!$I$10)+(BA9*SageDataCompany!$I$11)+(BB9*SageDataCompany!$I$12)+(BC9*SageDataCompany!$I$13) -> 0 | DL9: =(BD9*SageDataCompany!$I$2)+(BE9*SageDataCompany!$I$3)+(BF9*SageDataCompany!$I$4)+(BG9*SageDataCompany!$I$5)+(BH9*SageDataCompany!$I$6)+(BI9*SageDataCompany!$I$7)+(BJ9*SageDataCompany!$I$8)+(BK9*SageDataCompany!$I$9)+(BL9*SageDataCompany!$I$10)+(BM9*SageDataCompany!$I$11)+(BN9*SageDataCompany!$I$12)+(BO9*SageDataCompany!$I$13) -> 0 | DM9: =(BP9*SageDataCompany!$I$2)+(BQ9*SageDataCompany!$I$3)+(BR9*SageDataCompany!$I$4)+(BS9*SageDataCompany!$I$5)+(BT9*SageDataCompany!$I$6)+(BU9*SageDataCompany!$I$7)+(BV9*SageDataCompany!$I$8)+(BW9*SageDataCompany!$I$9)+(BX9*SageDataCompany!$I$10)+(BY9*SageDataCompany!$I$11)+(BZ9*SageDataCompany!$I$12)+(CA9*SageDataCompany!$I$13) -> 0 | DN9: 0 | DO9: 0 | DT9: =Table_Query_from_SageLine50v17[[#This Row],[PY Mth1]]+Table_Query_from_SageLine50v17[[#This Row],[PY Mth2]]+Table_Query_from_SageLine50v17[[#This Row],[PY Mth3]]+Table_Query_from_SageLine50v17[[#This Row],[PY Mth4]]+Table_Query_from_SageLine50v17[[#This Row],[PY Mth5]]+Table_Query_from_SageLine50v17[[#This Row],[PY Mth6]]+Table_Query_from_SageLine50v17[[#This Row],[PY Mth7]]+Table_Query_from_SageLine50v17[[#This Row],[PY Mth8]]+Table_Query_from_SageLine50v17[[#This Row],[PY Mth9]]+Table_Query_from_SageLine50v17[[#This Row],[PY Mth10]]+Table_Query_from_SageLine50v17[[#This Row],[PY Mth11]]+Table_Query_from_SageLine50v17[[#This Row],[PY Mth12]] -> 0
A10: 3200 | B10: Transition Year | C10: 0 | D10: 0 | E10: 0 | F10: 0 | G10: 0 | H10: 0 | I10: 0 | J10: 0 | K10: 0 | L10: -2950 | M10: 0 | N10: 0 | O10: 2850 | P10: 0 | Q10: 0 | R10: 0 | S10: 0 | T10: 0 | U10: 0 | V10: 0 | W10: 0 | X10: 0 | Y10: 0 | Z10: 0 | AA10: 0 | AB10: 0 | AC10: 0 | AD10: 0 | AE10: 0 | AF10: 0 | AG10: 0 | AH10: 0 | AI10: 0 | AJ10: 0 | AK10: 0 | AL10: 0 | AM10: 0 | AN10: =IF(VLOOKUP(A10,DR_ODBC_COALIST,16,FALSE),CONCATENATE("9999"," - ",SageDataCOAList!$L$2),SageData!$A10&" - "&SageData!$B10) -> 3200 - Transition Year | AO10: 1 | AP10: -1 | AQ10: 1 | AR10: 0 | AS10: 0 | AT10: 0 | AU10: 0 | AV10: 0 | AW10: 0 | AX10: 0 | AY10: 0 | AZ10: 0 | BA10: 2950 | BB10: 0 | BC10: 0 | BD10: 2850 | BE10: 0 | BF10: 0 | BG10: 0 | BH10: 0 | BI10: 0 | BJ10: 0 | BK10: 0 | BL10: 0 | BM10: 0 | BN10: 0 | BO10: 0 | BP10: 0 | BQ10: 0 | BR10: 0 | BS10: 0 | BT10: 0 | BU10: 0 | BV10: 0 | BW10: 0 | BX10: 0 | BY10: 0 | BZ10: 0 | CA10: 0 | CB10: -2850 | CC10: 0 | CD10: 0 | CE10: 0 | CF10: 0 | CG10: 0 | CH10: 0 | CI10: 0 | CJ10: 0 | CK10: 2950 | CL10: 0 | CM10: 0 | CN10: 0 | CO10: 0 | CP10: 0 | CQ10: 0 | CR10: 0 | CS10: 0 | CT10: 0 | CU10: 0 | CV10: 0 | CW10: 2950 | CX10: 0 | CY10: 0 | CZ10: 001 | DA10: 01 | DB10: Sales | DC10: Department Income | DD10: 01 - Sales | DE10: 001 - Department Income | DF10: =(AR10*SageDataCompany!$H$2)+(AS10*SageDataCompany!$H$3)+(AT10*SageDataCompany!$H$4)+(AU10*SageDataCompany!$H$5)+(AV10*SageDataCompany!$H$6)+(AW10*SageDataCompany!$H$7)+(AX10*SageDataCompany!$H$8)+(AY10*SageDataCompany!$H$9)+(AZ10*SageDataCompany!$H$10)+(BA10*SageDataCompany!$H$11)+(BB10*SageDataCompany!$H$12)+(BC10*SageDataCompany!$H$13) -> 2950 | DG10: =(BD10*SageDataCompany!$H$2)+(BE10*SageDataCompany!$H$3)+(BF10*SageDataCompany!$H$4)+(BG10*SageDataCompany!$H$5)+(BH10*SageDataCompany!$H$6)+(BI10*SageDataCompany!$H$7)+(BJ10*SageDataCompany!$H$8)+(BK10*SageDataCompany!$H$9)+(BL10*SageDataCompany!$H$10)+(BM10*SageDataCompany!$H$11)+(BN10*SageDataCompany!$H$12)+(BO10*SageDataCompany!$H$13) -> 2850 | DH10: =(BP10*SageDataCompany!$H$2)+(BQ10*SageDataCompany!$H$3)+(BR10*SageDataCompany!$H$4)+(BS10*SageDataCompany!$H$5)+(BT10*SageDataCompany!$H$6)+(BU10*SageDataCompany!$H$7)+(BV10*SageDataCompany!$H$8)+(BW10*SageDataCompany!$H$9)+(BX10*SageDataCompany!$H$10)+(BY10*SageDataCompany!$H$11)+(BZ10*SageDataCompany!$H$12)+(CA10*SageDataCompany!$H$13) -> 0 | DI10: 100 | DJ10: 2950 | DK10: =(AR10*SageDataCompany!$I$2)+(AS10*SageDataCompany!$I$3)+(AT10*SageDataCompany!$I$4)+(AU10*SageDataCompany!$I$5)+(AV10*SageDataCompany!$I$6)+(AW10*SageDataCompany!$I$7)+(AX10*SageDataCompany!$I$8)+(AY10*SageDataCompany!$I$9)+(AZ10*SageDataCompany!$I$10)+(BA10*SageDataCompany!$I$11)+(BB10*SageDataCompany!$I$12)+(BC10*SageDataCompany!$I$13) -> 2950 | DL10: =(BD10*SageDataCompany!$I$2)+(BE10*SageDataCompany!$I$3)+(BF10*SageDataCompany!$I$4)+(BG10*SageDataCompany!$I$5)+(BH10*SageDataCompany!$I$6)+(BI10*SageDataCompany!$I$7)+(BJ10*SageDataCompany!$I$8)+(BK10*SageDataCompany!$I$9)+(BL10*SageDataCompany!$I$10)+(BM10*SageDataCompany!$I$11)+(BN10*SageDataCompany!$I$12)+(BO10*SageDataCompany!$I$13) -> 2850 | DM10: =(BP10*SageDataCompany!$I$2)+(BQ10*SageDataCompany!$I$3)+(BR10*SageDataCompany!$I$4)+(BS10*SageDataCompany!$I$5)+(BT10*SageDataCompany!$I$6)+(BU10*SageDataCompany!$I$7)+(BV10*SageDataCompany!$I$8)+(BW10*SageDataCompany!$I$9)+(BX10*SageDataCompany!$I$10)+(BY10*SageDataCompany!$I$11)+(BZ10*SageDataCompany!$I$12)+(CA10*SageDataCompany!$I$13) -> 0 | DN10: 100 | DO10: 2950 | DP10: Yes | DQ10: Yes | DS10: Yes | DT10: =Table_Query_from_SageLine50v17[[#This Row],[PY Mth1]]+Table_Query_from_SageLine50v17[[#This Row],[PY Mth2]]+Table_Query_from_SageLine50v17[[#This Row],[PY Mth3]]+Table_Query_from_SageLine50v17[[#This Row],[PY Mth4]]+Table_Query_from_SageLine50v17[[#This Row],[PY Mth5]]+Table_Query_from_SageLine50v17[[#This Row],[PY Mth6]]+Table_Query_from_SageLine50v17[[#This Row],[PY Mth7]]+Table_Query_from_SageLine50v17[[#This Row],[PY Mth8]]+Table_Query_from_SageLine50v17[[#This Row],[PY Mth9]]+Table_Query_from_SageLine50v17[[#This Row],[PY Mth10]]+Table_Query_from_SageLine50v17[[#This Row],[PY Mth11]]+Table_Query_from_SageLine50v17[[#This Row],[PY Mth12]] -> 0
A11: 3210 | B11: Leaving Cert Applied | C11: 0 | D11: 0 | E11: 0 | F11: 0 | G11: 0 | H11: 0 | I11: 0 | J11: 0 | K11: 0 | L11: 0 | M11: 0 | N11: 0 | O11: 0 | P11: 0 | Q11: 0 | R11: 0 | S11: 0 | T11: 0 | U11: 0 | V11: 0 | W11: 0 | X11: 0 | Y11: 0 | Z11: 0 | AA11: 0 | AB11: 0 | AC11: 0 | AD11: 0 | AE11: 0 | AF11: 0 | AG11: 0 | AH11: 0 | AI11: 0 | AJ11: 0 | AK11: 0 | AL11: 0 | AM11: 0 | AN11: =IF(VLOOKUP(A11,DR_ODBC_COALIST,16,FALSE),CONCATENATE("9999"," - ",SageDataCOAList!$L$2),SageData!$A11&" - "&SageData!$B11) -> 3210 - Leaving Cert Applied | AO11: 1 | AP11: -1 | AQ11: 1 | AR11: 0 | AS11: 0 | AT11: 0 | AU11: 0 | AV11: 0 | AW11: 0 | AX11: 0 | AY11: 0 | AZ11: 0 | BA11: 0 | BB11: 0 | BC11: 0 | BD11: 0 | BE11: 0 | BF11: 0 | BG11: 0 | BH11: 0 | BI11: 0 | BJ11: 0 | BK11: 0 | BL11: 0 | BM11: 0 | BN11: 0 | BO11: 0 | BP11: 0 | BQ11: 0 | BR11: 0 | BS11: 0 | BT11: 0 | BU11: 0 | BV11: 0 | BW11: 0 | BX11: 0 | BY11: 0 | BZ11: 0 | CA11: 0 | CB11: 0 | CC11: 0 | CD11: 0 | CE11: 0 | CF11: 0 | CG11: 0 | CH11: 0 | CI11: 0 | CJ11: 0 | CK11: 0 | CL11: 0 | CM11: 0 | CN11: 0 | CO11: 0 | CP11: 0 | CQ11: 0 | CR11: 0 | CS11: 0 | CT11: 0 | CU11: 0 | CV11: 0 | CW11: 0 | CX11: 0 | CY11: 0 | CZ11: 001 | DA11: 01 | DB11: Sales | DC11: Department Income | DD11: 01 - Sales | DE11: 001 - Department Income | DF11: =(AR11*SageDataCompany!$H$2)+(AS11*SageDataCompany!$H$3)+(AT11*SageDataCompany!$H$4)+(AU11*SageDataCompany!$H$5)+(AV11*SageDataCompany!$H$6)+(AW11*SageDataCompany!$H$7)+(AX11*SageDataCompany!$H$8)+(AY11*SageDataCompany!$H$9)+(AZ11*SageDataCompany!$H$10)+(BA11*SageDataCompany!$H$11)+(BB11*SageDataCompany!$H$12)+(BC11*SageDataCompany!$H$13) -> 0 | DG11: =(BD11*SageDataCompany!$H$2)+(BE11*SageDataCompany!$H$3)+(BF11*SageDataCompany!$H$4)+(BG11*SageDataCompany!$H$5)+(BH11*SageDataCompany!$H$6)+(BI11*SageDataCompany!$H$7)+(BJ11*SageDataCompany!$H$8)+(BK11*SageDataCompany!$H$9)+(BL11*SageDataCompany!$H$10)+(BM11*SageDataCompany!$H$11)+(BN11*SageDataCompany!$H$12)+(BO11*SageDataCompany!$H$13) -> 0 | DH11: =(BP11*SageDataCompany!$H$2)+(BQ11*SageDataCompany!$H$3)+(BR11*SageDataCompany!$H$4)+(BS11*SageDataCompany!$H$5)+(BT11*SageDataCompany!$H$6)+(BU11*SageDataCompany!$H$7)+(BV11*SageDataCompany!$H$8)+(BW11*SageDataCompany!$H$9)+(BX11*SageDataCompany!$H$10)+(BY11*SageDataCompany!$H$11)+(BZ11*SageDataCompany!$H$12)+(CA11*SageDataCompany!$H$13) -> 0 | DI11: 0 | DJ11: 0 | DK11: =(AR11*SageDataCompany!$I$2)+(AS11*SageDataCompany!$I$3)+(AT11*SageDataCompany!$I$4)+(AU11*SageDataCompany!$I$5)+(AV11*SageDataCompany!$I$6)+(AW11*SageDataCompany!$I$7)+(AX11*SageDataCompany!$I$8)+(AY11*SageDataCompany!$I$9)+(AZ11*SageDataCompany!$I$10)+(BA11*SageDataCompany!$I$11)+(BB11*SageDataCompany!$I$12)+(BC11*SageDataCompany!$I$13) -> 0 | DL11: =(BD11*SageDataCompany!$I$2)+(BE11*SageDataCompany!$I$3)+(BF11*SageDataCompany!$I$4)+(BG11*SageDataCompany!$I$5)+(BH11*SageDataCompany!$I$6)+(BI11*SageDataCompany!$I$7)+(BJ11*SageDataCompany!$I$8)+(BK11*SageDataCompany!$I$9)+(BL11*SageDataCompany!$I$10)+(BM11*SageDataCompany!$I$11)+(BN11*SageDataCompany!$I$12)+(BO11*SageDataCompany!$I$13) -> 0 | DM11: =(BP11*SageDataCompany!$I$2)+(BQ11*SageDataCompany!$I$3)+(BR11*SageDataCompany!$I$4)+(BS11*SageDataCompany!$I$5)+(BT11*SageDataCompany!$I$6)+(BU11*SageDataCompany!$I$7)+(BV11*SageDataCompany!$I$8)+(BW11*SageDataCompany!$I$9)+(BX11*SageDataCompany!$I$10)+(BY11*SageDataCompany!$I$11)+(BZ11*SageDataCompany!$I$12)+(CA11*SageDataCompany!$I$13) -> 0 | DN11: 0 | DO11: 0 | DT11: =Table_Query_from_SageLine50v17[[#This Row],[PY Mth1]]+Table_Query_from_SageLine50v17[[#This Row],[PY Mth2]]+Table_Query_from_SageLine50v17[[#This Row],[PY Mth3]]+Table_Query_from_SageLine50v17[[#This Row],[PY Mth4]]+Table_Query_from_SageLine50v17[[#This Row],[PY Mth5]]+Table_Query_from_SageLine50v17[[#This Row],[PY Mth6]]+Table_Query_from_SageLine50v17[[#This Row],[PY Mth7]]+Table_Query_from_SageLine50v17[[#This Row],[PY Mth8]]+Table_Query_from_SageLine50v17[[#This Row],[PY Mth9]]+Table_Query_from_SageLine50v17[[#This Row],[PY Mth10]]+Table_Query_from_SageLine50v17[[#This Row],[PY Mth11]]+Table_Query_from_SageLine50v17[[#This Row],[PY Mth12]] -> 0
A12: 3220 | B12: Grant for Traveller Students | C12: 0 | D12: 0 | E12: 0 | F12: 0 | G12: 0 | H12: 0 | I12: 0 | J12: 0 | K12: 0 | L12: -402 | M12: 0 | N12: 0 | O12: 402 | P12: 0 | Q12: 0 | R12: 0 | S12: 0 | T12: 0 | U12: 0 | V12: 0 | W12: 0 | X12: 0 | Y12: 0 | Z12: 0 | AA12: 0 | AB12: 0 | AC12: 0 | AD12: 0 | AE12: 0 | AF12: 0 | AG12: 0 | AH12: 0 | AI12: 0 | AJ12: 0 | AK12: 0 | AL12: 0 | AM12: 0 | AN12: =IF(VLOOKUP(A12,DR_ODBC_COALIST,16,FALSE),CONCATENATE("9999"," - ",SageDataCOAList!$L$2),SageData!$A12&" - "&SageData!$B12) -> 3220 - Grant for Traveller Students | AO12: 1 | AP12: -1 | AQ12: 1 | AR12: 0 | AS12: 0 | AT12: 0 | AU12: 0 | AV12: 0 | AW12: 0 | AX12: 0 | AY12: 0 | AZ12: 0 | BA12: 402 | BB12: 0 | BC12: 0 | BD12: 402 | BE12: 0 | BF12: 0 | BG12: 0 | BH12: 0 | BI12: 0 | BJ12: 0 | BK12: 0 | BL12: 0 | BM12: 0 | BN12: 0 | BO12: 0 | BP12: 0 | BQ12: 0 | BR12: 0 | BS12: 0 | BT12: 0 | BU12: 0 | BV12: 0 | BW12: 0 | BX12: 0 | BY12: 0 | BZ12: 0 | CA12: 0 | CB12: -402 | CC12: 0 | CD12: 0 | CE12: 0 | CF12: 0 | CG12: 0 | CH12: 0 | CI12: 0 | CJ12: 0 | CK12: 402 | CL12: 0 | CM12: 0 | CN12: 0 | CO12: 0 | CP12: 0 | CQ12: 0 | CR12: 0 | CS12: 0 | CT12: 0 | CU12: 0 | CV12: 0 | CW12: 402 | CX12: 0 | CY12: 0 | CZ12: 001 | DA12: 01 | DB12: Sales | DC12: Department Income | DD12: 01 - Sales | DE12: 001 - Department Income | DF12: =(AR12*SageDataCompany!$H$2)+(AS12*SageDataCompany!$H$3)+(AT12*SageDataCompany!$H$4)+(AU12*SageDataCompany!$H$5)+(AV12*SageDataCompany!$H$6)+(AW12*SageDataCompany!$H$7)+(AX12*SageDataCompany!$H$8)+(AY12*SageDataCompany!$H$9)+(AZ12*SageDataCompany!$H$10)+(BA12*SageDataCompany!$H$11)+(BB12*SageDataCompany!$H$12)+(BC12*SageDataCompany!$H$13) -> 402 | DG12: =(BD12*SageDataCompany!$H$2)+(BE12*SageDataCompany!$H$3)+(BF12*SageDataCompany!$H$4)+(BG12*SageDataCompany!$H$5)+(BH12*SageDataCompany!$H$6)+(BI12*SageDataCompany!$H$7)+(BJ12*SageDataCompany!$H$8)+(BK12*SageDataCompany!$H$9)+(BL12*SageDataCompany!$H$10)+(BM12*SageDataCompany!$H$11)+(BN12*SageDataCompany!$H$12)+(BO12*SageDataCompany!$H$13) -> 402 | DH12: =(BP12*SageDataCompany!$H$2)+(BQ12*SageDataCompany!$H$3)+(BR12*SageDataCompany!$H$4)+(BS12*SageDataCompany!$H$5)+(BT12*SageDataCompany!$H$6)+(BU12*SageDataCompany!$H$7)+(BV12*SageDataCompany!$H$8)+(BW12*SageDataCompany!$H$9)+(BX12*SageDataCompany!$H$10)+(BY12*SageDataCompany!$H$11)+(BZ12*SageDataCompany!$H$12)+(CA12*SageDataCompany!$H$13) -> 0 | DI12: 0 | DJ12: 402 | DK12: =(AR12*SageDataCompany!$I$2)+(AS12*SageDataCompany!$I$3)+(AT12*SageDataCompany!$I$4)+(AU12*SageDataCompany!$I$5)+(AV12*SageDataCompany!$I$6)+(AW12*SageDataCompany!$I$7)+(AX12*SageDataCompany!$I$8)+(AY12*SageDataCompany!$I$9)+(AZ12*SageDataCompany!$I$10)+(BA12*SageDataCompany!$I$11)+(BB12*SageDataCompany!$I$12)+(BC12*SageDataCompany!$I$13) -> 402 | DL12: =(BD12*SageDataCompany!$I$2)+(BE12*SageDataCompany!$I$3)+(BF12*SageDataCompany!$I$4)+(BG12*SageDataCompany!$I$5)+(BH12*SageDataCompany!$I$6)+(BI12*SageDataCompany!$I$7)+(BJ12*SageDataCompany!$I$8)+(BK12*SageDataCompany!$I$9)+(BL12*SageDataCompany!$I$10)+(BM12*SageDataCompany!$I$11)+(BN12*SageDataCompany!$I$12)+(BO12*SageDataCompany!$I$13) -> 402 | DM12: =(BP12*SageDataCompany!$I$2)+(BQ12*SageDataCompany!$I$3)+(BR12*SageDataCompany!$I$4)+(BS12*SageDataCompany!$I$5)+(BT12*SageDataCompany!$I$6)+(BU12*SageDataCompany!$I$7)+(BV12*SageDataCompany!$I$8)+(BW12*SageDataCompany!$I$9)+(BX12*SageDataCompany!$I$10)+(BY12*SageDataCompany!$I$11)+(BZ12*SageDataCompany!$I$12)+(CA12*SageDataCompany!$I$13) -> 0 | DN12: 0 | DO12: 402 | DP12: Yes | DQ12: Yes | DS12: Yes | DT12: =Table_Query_from_SageLine50v17[[#This Row],[PY Mth1]]+Table_Query_from_SageLine50v17[[#This Row],[PY Mth2]]+Table_Query_from_SageLine50v17[[#This Row],[PY Mth3]]+Table_Query_from_SageLine50v17[[#This Row],[PY Mth4]]+Table_Query_from_SageLine50v17[[#This Row],[PY Mth5]]+Table_Query_from_SageLine50v17[[#This Row],[PY Mth6]]+Table_Query_from_SageLine50v17[[#This Row],[PY Mth7]]+Table_Query_from_SageLine50v17[[#This Row],[PY Mth8]]+Table_Query_from_SageLine50v17[[#This Row],[PY Mth9]]+Table_Query_from_SageLine50v17[[#This Row],[PY Mth10]]+Table_Query_from_SageLine50v17[[#This Row],[PY Mth11]]+Table_Query_from_SageLine50v17[[#This Row],[PY Mth12]] -> 0
A13: 3230 | B13: Computer/It Grant | C13: 0 | D13: 0 | E13: 0 | F13: 0 | G13: 0 | H13: 0 | I13: 0 | J13: 0 | K13: 0 | L13: 0 | M13: 0 | N13: 0 | O13: 0 | P13: 0 | Q13: 0 | R13: 0 | S13: 0 | T13: 0 | U13: 0 | V13: 0 | W13: 0 | X13: 0 | Y13: 0 | Z13: 0 | AA13: 0 | AB13: 0 | AC13: 0 | AD13: 0 | AE13: 0 | AF13: 0 | AG13: 0 | AH13: 0 | AI13: 0 | AJ13: 0 | AK13: 0 | AL13: 0 | AM13: 0 | AN13: =IF(VLOOKUP(A13,DR_ODBC_COALIST,16,FALSE),CONCATENATE("9999"," - ",SageDataCOAList!$L$2),SageData!$A13&" - "&SageData!$B13) -> 3230 - Computer/It Grant | AO13: 1 | AP13: -1 | AQ13: 1 | AR13: 0 | AS13: 0 | AT13: 0 | AU13: 0 | AV13: 0 | AW13: 0 | AX13: 0 | AY13: 0 | AZ13: 0 | BA13: 0 | BB13: 0 | BC13: 0 | BD13: 0 | BE13: 0 | BF13: 0 | BG13: 0 | BH13: 0 | BI13: 0 | BJ13: 0 | BK13: 0 | BL13: 0 | BM13: 0 | BN13: 0 | BO13: 0 | BP13: 0 | BQ13: 0 | BR13: 0 | BS13: 0 | BT13: 0 | BU13: 0 | BV13: 0 | BW13: 0 | BX13: 0 | BY13: 0 | BZ13: 0 | CA13: 0 | CB13: 0 | CC13: 0 | CD13: 0 | CE13: 0 | CF13: 0 | CG13: 0 | CH13: 0 | CI13: 0 | CJ13: 0 | CK13: 0 | CL13: 0 | CM13: 0 | CN13: 0 | CO13: 0 | CP13: 0 | CQ13: 0 | CR13: 0 | CS13: 0 | CT13: 0 | CU13: 0 | CV13: 0 | CW13: 0 | CX13: 0 | CY13: 0 | CZ13: 001 | DA13: 01 | DB13: Sales | DC13: Department Income | DD13: 01 - Sales | DE13: 001 - Department Income | DF13: =(AR13*SageDataCompany!$H$2)+(AS13*SageDataCompany!$H$3)+(AT13*SageDataCompany!$H$4)+(AU13*SageDataCompany!$H$5)+(AV13*SageDataCompany!$H$6)+(AW13*SageDataCompany!$H$7)+(AX13*SageDataCompany!$H$8)+(AY13*SageDataCompany!$H$9)+(AZ13*SageDataCompany!$H$10)+(BA13*SageDataCompany!$H$11)+(BB13*SageDataCompany!$H$12)+(BC13*SageDataCompany!$H$13) -> 0 | DG13: =(BD13*SageDataCompany!$H$2)+(BE13*SageDataCompany!$H$3)+(BF13*SageDataCompany!$H$4)+(BG13*SageDataCompany!$H$5)+(BH13*SageDataCompany!$H$6)+(BI13*SageDataCompany!$H$7)+(BJ13*SageDataCompany!$H$8)+(BK13*SageDataCompany!$H$9)+(BL13*SageDataCompany!$H$10)+(BM13*SageDataCompany!$H$11)+(BN13*SageDataCompany!$H$12)+(BO13*SageDataCompany!$H$13) -> 0 | DH13: =(BP13*SageDataCompany!$H$2)+(BQ13*SageDataCompany!$H$3)+(BR13*SageDataCompany!$H$4)+(BS13*SageDataCompany!$H$5)+(BT13*SageDataCompany!$H$6)+(BU13*SageDataCompany!$H$7)+(BV13*SageDataCompany!$H$8)+(BW13*SageDataCompany!$H$9)+(BX13*SageDataCompany!$H$10)+(BY13*SageDataCompany!$H$11)+(BZ13*SageDataCompany!$H$12)+(CA13*SageDataCompany!$H$13) -> 0 | DI13: 0 | DJ13: 0 | DK13: =(AR13*SageDataCompany!$I$2)+(AS13*SageDataCompany!$I$3)+(AT13*SageDataCompany!$I$4)+(AU13*SageDataCompany!$I$5)+(AV13*SageDataCompany!$I$6)+(AW13*SageDataCompany!$I$7)+(AX13*SageDataCompany!$I$8)+(AY13*SageDataCompany!$I$9)+(AZ13*SageDataCompany!$I$10)+(BA13*SageDataCompany!$I$11)+(BB13*SageDataCompany!$I$12)+(BC13*SageDataCompany!$I$13) -> 0 | DL13: =(BD13*SageDataCompany!$I$2)+(BE13*SageDataCompany!$I$3)+(BF13*SageDataCompany!$I$4)+(BG13*SageDataCompany!$I$5)+(BH13*SageDataCompany!$I$6)+(BI13*SageDataCompany!$I$7)+(BJ13*SageDataCompany!$I$8)+(BK13*SageDataCompany!$I$9)+(BL13*SageDataCompany!$I$10)+(BM13*SageDataCompany!$I$11)+(BN13*SageDataCompany!$I$12)+(BO13*SageDataCompany!$I$13) -> 0 | DM13: =(BP13*SageDataCompany!$I$2)+(BQ13*SageDataCompany!$I$3)+(BR13*SageDataCompany!$I$4)+(BS13*SageDataCompany!$I$5)+(BT13*SageDataCompany!$I$6)+(BU13*SageDataCompany!$I$7)+(BV13*SageDataCompany!$I$8)+(BW13*SageDataCompany!$I$9)+(BX13*SageDataCompany!$I$10)+(BY13*SageDataCompany!$I$11)+(BZ13*SageDataCompany!$I$12)+(CA13*SageDataCompany!$I$13) -> 0 | DN13: 0 | DO13: 0 | DT13: =Table_Query_from_SageLine50v17[[#This Row],[PY Mth1]]+Table_Query_from_SageLine50v17[[#This Row],[PY Mth2]]+Table_Query_from_SageLine50v17[[#This Row],[PY Mth3]]+Table_Query_from_SageLine50v17[[#This Row],[PY Mth4]]+Table_Query_from_SageLine50v17[[#This Row],[PY Mth5]]+Table_Query_from_SageLine50v17[[#This Row],[PY Mth6]]+Table_Query_from_SageLine50v17[[#This Row],[PY Mth7]]+Table_Query_from_SageLine50v17[[#This Row],[PY Mth8]]+Table_Query_from_SageLine50v17[[#This Row],[PY Mth9]]+Table_Query_from_SageLine50v17[[#This Row],[PY Mth10]]+Table_Query_from_SageLine50v17[[#This Row],[PY Mth11]]+Table_Query_from_SageLine50v17[[#This Row],[PY Mth12]] -> 0
A14: 3240 | B14: Supervision/Substitution | C14: 0 | D14: 0 | E14: 0 | F14: 0 | G14: 0 | H14: 0 | I14: 0 | J14: 0 | K14: 0 | L14: 0 | M14: 0 | N14: 0 | O14: 0 | P14: 0 | Q14: 0 | R14: 0 | S14: 0 | T14: 0 | U14: 0 | V14: 0 | W14: 0 | X14: 0 | Y14: 0 | Z14: 0 | AA14: 0 | AB14: 0 | AC14: 0 | AD14: 0 | AE14: 0 | AF14: 0 | AG14: 0 | AH14: 0 | AI14: 0 | AJ14: 0 | AK14: 0 | AL14: 0 | AM14: 0 | AN14: =IF(VLOOKUP(A14,DR_ODBC_COALIST,16,FALSE),CONCATENATE("9999"," - ",SageDataCOAList!$L$2),SageData!$A14&" - "&SageData!$B14) -> 3240 - Supervision/Substitution | AO14: 1 | AP14: -1 | AQ14: 1 | AR14: 0 | AS14: 0 | AT14: 0 | AU14: 0 | AV14: 0 | AW14: 0 | AX14: 0 | AY14: 0 | AZ14: 0 | BA14: 0 | BB14: 0 | BC14: 0 | BD14: 0 | BE14: 0 | BF14: 0 | BG14: 0 | BH14: 0 | BI14: 0 | BJ14: 0 | BK14: 0 | BL14: 0 | BM14: 0 | BN14: 0 | BO14: 0 | BP14: 0 | BQ14: 0 | BR14: 0 | BS14: 0 | BT14: 0 | BU14: 0 | BV14: 0 | BW14: 0 | BX14: 0 | BY14: 0 | BZ14: 0 | CA14: 0 | CB14: 0 | CC14: 0 | CD14: 0 | CE14: 0 | CF14: 0 | CG14: 0 | CH14: 0 | CI14: 0 | CJ14: 0 | CK14: 0 | CL14: 0 | CM14: 0 | CN14: 0 | CO14: 0 | CP14: 0 | CQ14: 0 | CR14: 0 | CS14: 0 | CT14: 0 | CU14: 0 | CV14: 0 | CW14: 0 | CX14: 0 | CY14: 0 | CZ14: 001 | DA14: 01 | DB14: Sales | DC14: Department Income | DD14: 01 - Sales | DE14: 001 - Department Income | DF14: =(AR14*SageDataCompany!$H$2)+(AS14*SageDataCompany!$H$3)+(AT14*SageDataCompany!$H$4)+(AU14*SageDataCompany!$H$5)+(AV14*SageDataCompany!$H$6)+(AW14*SageDataCompany!$H$7)+(AX14*SageDataCompany!$H$8)+(AY14*SageDataCompany!$H$9)+(AZ14*SageDataCompany!$H$10)+(BA14*SageDataCompany!$H$11)+(BB14*SageDataCompany!$H$12)+(BC14*SageDataCompany!$H$13) -> 0 | DG14: =(BD14*SageDataCompany!$H$2)+(BE14*SageDataCompany!$H$3)+(BF14*SageDataCompany!$H$4)+(BG14*SageDataCompany!$H$5)+(BH14*SageDataCompany!$H$6)+(BI14*SageDataCompany!$H$7)+(BJ14*SageDataCompany!$H$8)+(BK14*SageDataCompany!$H$9)+(BL14*SageDataCompany!$H$10)+(BM14*SageDataCompany!$H$11)+(BN14*SageDataCompany!$H$12)+(BO14*SageDataCompany!$H$13) -> 0 | DH14: =(BP14*SageDataCompany!$H$2)+(BQ14*SageDataCompany!$H$3)+(BR14*SageDataCompany!$H$4)+(BS14*SageDataCompany!$H$5)+(BT14*SageDataCompany!$H$6)+(BU14*SageDataCompany!$H$7)+(BV14*SageDataCompany!$H$8)+(BW14*SageDataCompany!$H$9)+(BX14*SageDataCompany!$H$10)+(BY14*SageDataCompany!$H$11)+(BZ14*SageDataCompany!$H$12)+(CA14*SageDataCompany!$H$13) -> 0 | DI14: 0 | DJ14: 0 | DK14: =(AR14*SageDataCompany!$I$2)+(AS14*SageDataCompany!$I$3)+(AT14*SageDataCompany!$I$4)+(AU14*SageDataCompany!$I$5)+(AV14*SageDataCompany!$I$6)+(AW14*SageDataCompany!$I$7)+(AX14*SageDataCompany!$I$8)+(AY14*SageDataCompany!$I$9)+(AZ14*SageDataCompany!$I$10)+(BA14*SageDataCompany!$I$11)+(BB14*SageDataCompany!$I$12)+(BC14*SageDataCompany!$I$13) -> 0 | DL14: =(BD14*SageDataCompany!$I$2)+(BE14*SageDataCompany!$I$3)+(BF14*SageDataCompany!$I$4)+(BG14*SageDataCompany!$I$5)+(BH14*SageDataCompany!$I$6)+(BI14*SageDataCompany!$I$7)+(BJ14*SageDataCompany!$I$8)+(BK14*SageDataCompany!$I$9)+(BL14*SageDataCompany!$I$10)+(BM14*SageDataCompany!$I$11)+(BN14*SageDataCompany!$I$12)+(BO14*SageDataCompany!$I$13) -> 0 | DM14: =(BP14*SageDataCompany!$I$2)+(BQ14*SageDataCompany!$I$3)+(BR14*SageDataCompany!$I$4)+(BS14*SageDataCompany!$I$5)+(BT14*SageDataCompany!$I$6)+(BU14*SageDataCompany!$I$7)+(BV14*SageDataCompany!$I$8)+(BW14*SageDataCompany!$I$9)+(BX14*SageDataCompany!$I$10)+(BY14*SageDataCompany!$I$11)+(BZ14*SageDataCompany!$I$12)+(CA14*SageDataCompany!$I$13) -> 0 | DN14: 0 | DO14: 0 | DT14: =Table_Query_from_SageLine50v17[[#This Row],[PY Mth1]]+Table_Query_from_SageLine50v17[[#This Row],[PY Mth2]]+Table_Query_from_SageLine50v17[[#This Row],[PY Mth3]]+Table_Query_from_SageLine50v17[[#This Row],[PY Mth4]]+Table_Query_from_SageLine50v17[[#This Row],[PY Mth5]]+Table_Query_from_SageLine50v17[[#This Row],[PY Mth6]]+Table_Query_from_SageLine50v17[[#This Row],[PY Mth7]]+Table_Query_from_SageLine50v17[[#This Row],[PY Mth8]]+Table_Query_from_SageLine50v17[[#This Row],[PY Mth9]]+Table_Query_from_SageLine50v17[[#This Row],[PY Mth10]]+Table_Query_from_SageLine50v17[[#This Row],[PY Mth11]]+Table_Query_from_SageLine50v17[[#This Row],[PY Mth12]] -> 0
A15: 3250 | B15: Substitute Teachers | C15: 0 | D15: 0 | E15: 0 | F15: 0 | G15: 0 | H15: 0 | I15: 0 | J15: 0 | K15: 0 | L15: 0 | M15: 0 | N15: 0 | O15: 0 | P15: 0 | Q15: 0 | R15: 0 | S15: 0 | T15: 0 | U15: 0 | V15: 0 | W15: 0 | X15: 0 | Y15: 0 | Z15: 0 | AA15: 0 | AB15: 0 | AC15: 0 | AD15: 0 | AE15: 0 | AF15: 0 | AG15: 0 | AH15: 0 | AI15: 0 | AJ15: 0 | AK15: 0 | AL15: 0 | AM15: 0 | AN15: =IF(VLOOKUP(A15,DR_ODBC_COALIST,16,FALSE),CONCATENATE("9999"," - ",SageDataCOAList!$L$2),SageData!$A15&" - "&SageData!$B15) -> 3250 - Substitute Teachers | AO15: 1 | AP15: -1 | AQ15: 1 | AR15: 0 | AS15: 0 | AT15: 0 | AU15: 0 | AV15: 0 | AW15: 0 | AX15: 0 | AY15: 0 | AZ15: 0 | BA15: 0 | BB15: 0 | BC15: 0 | BD15: 0 | BE15: 0 | BF15: 0 | BG15: 0 | BH15: 0 | BI15: 0 | BJ15: 0 | BK15: 0 | BL15: 0 | BM15: 0 | BN15: 0 | BO15: 0 | BP15: 0 | BQ15: 0 | BR15: 0 | BS15: 0 | BT15: 0 | BU15: 0 | BV15: 0 | BW15: 0 | BX15: 0 | BY15: 0 | BZ15: 0 | CA15: 0 | CB15: 0 | CC15: 0 | CD15: 0 | CE15: 0 | CF15: 0 | CG15: 0 | CH15: 0 | CI15: 0 | CJ15: 0 | CK15: 0 | CL15: 0 | CM15: 0 | CN15: 0 | CO15: 0 | CP15: 0 | CQ15: 0 | CR15: 0 | CS15: 0 | CT15: 0 | CU15: 0 | CV15: 0 | CW15: 0 | CX15: 0 | CY15: 0 | CZ15: 001 | DA15: 01 | DB15: Sales | DC15: Department Income | DD15: 01 - Sales | DE15: 001 - Department Income | DF15: =(AR15*SageDataCompany!$H$2)+(AS15*SageDataCompany!$H$3)+(AT15*SageDataCompany!$H$4)+(AU15*SageDataCompany!$H$5)+(AV15*SageDataCompany!$H$6)+(AW15*SageDataCompany!$H$7)+(AX15*SageDataCompany!$H$8)+(AY15*SageDataCompany!$H$9)+(AZ15*SageDataCompany!$H$10)+(BA15*SageDataCompany!$H$11)+(BB15*SageDataCompany!$H$12)+(BC15*SageDataCompany!$H$13) -> 0 | DG15: =(BD15*SageDataCompany!$H$2)+(BE15*SageDataCompany!$H$3)+(BF15*SageDataCompany!$H$4)+(BG15*SageDataCompany!$H$5)+(BH15*SageDataCompany!$H$6)+(BI15*SageDataCompany!$H$7)+(BJ15*SageDataCompany!$H$8)+(BK15*SageDataCompany!$H$9)+(BL15*SageDataCompany!$H$10)+(BM15*SageDataCompany!$H$11)+(BN15*SageDataCompany!$H$12)+(BO15*SageDataCompany!$H$13) -> 0 | DH15: =(BP15*SageDataCompany!$H$2)+(BQ15*SageDataCompany!$H$3)+(BR15*SageDataCompany!$H$4)+(BS15*SageDataCompany!$H$5)+(BT15*SageDataCompany!$H$6)+(BU15*SageDataCompany!$H$7)+(BV15*SageDataCompany!$H$8)+(BW15*SageDataCompany!$H$9)+(BX15*SageDataCompany!$H$10)+(BY15*SageDataCompany!$H$11)+(BZ15*SageDataCompany!$H$12)+(CA15*SageDataCompany!$H$13) -> 0 | DI15: 0 | DJ15: 0 | DK15: =(AR15*SageDataCompany!$I$2)+(AS15*SageDataCompany!$I$3)+(AT15*SageDataCompany!$I$4)+(AU15*SageDataCompany!$I$5)+(AV15*SageDataCompany!$I$6)+(AW15*SageDataCompany!$I$7)+(AX15*SageDataCompany!$I$8)+(AY15*SageDataCompany!$I$9)+(AZ15*SageDataCompany!$I$10)+(BA15*SageDataCompany!$I$11)+(BB15*SageDataCompany!$I$12)+(BC15*SageDataCompany!$I$13) -> 0 | DL15: =(BD15*SageDataCompany!$I$2)+(BE15*SageDataCompany!$I$3)+(BF15*SageDataCompany!$I$4)+(BG15*SageDataCompany!$I$5)+(BH15*SageDataCompany!$I$6)+(BI15*SageDataCompany!$I$7)+(BJ15*SageDataCompany!$I$8)+(BK15*SageDataCompany!$I$9)+(BL15*SageDataCompany!$I$10)+(BM15*SageDataCompany!$I$11)+(BN15*SageDataCompany!$I$12)+(BO15*SageDataCompany!$I$13) -> 0 | DM15: =(BP15*SageDataCompany!$I$2)+(BQ15*SageDataCompany!$I$3)+(BR15*SageDataCompany!$I$4)+(BS15*SageDataCompany!$I$5)+(BT15*SageDataCompany!$I$6)+(BU15*SageDataCompany!$I$7)+(BV15*SageDataCompany!$I$8)+(BW15*SageDataCompany!$I$9)+(BX15*SageDataCompany!$I$10)+(BY15*SageDataCompany!$I$11)+(BZ15*SageDataCompany!$I$12)+(CA15*SageDataCompany!$I$13) -> 0 | DN15: 0 | DO15: 0 | DT15: =Table_Query_from_SageLine50v17[[#This Row],[PY Mth1]]+Table_Query_from_SageLine50v17[[#This Row],[PY Mth2]]+Table_Query_from_SageLine50v17[[#This Row],[PY Mth3]]+Table_Query_from_SageLine50v17[[#This Row],[PY Mth4]]+Table_Query_from_SageLine50v17[[#This Row],[PY Mth5]]+Table_Query_from_SageLine50v17[[#This Row],[PY Mth6]]+Table_Query_from_SageLine50v17[[#This Row],[PY Mth7]]+Table_Query_from_SageLine50v17[[#This Row],[PY Mth8]]+Table_Query_from_SageLine50v17[[#This Row],[PY Mth9]]+Table_Query_from_SageLine50v17[[#This Row],[PY Mth10]]+Table_Query_from_SageLine50v17[[#This Row],[PY Mth11]]+Table_Query_from_SageLine50v17[[#This Row],[PY Mth12]] -> 0
A16: 3255 | B16: DES Exam Income | C16: 0 | D16: 0 | E16: 0 | F16: 0 | G16: 0 | H16: 0 | I16: 0 | J16: 0 | K16: 0 | L16: -6500 | M16: 0 | N16: 0 | O16: 7000 | P16: 0 | Q16: 0 | R16: 0 | S16: 0 | T16: 0 | U16: 0 | V16: 0 | W16: 0 | X16: 0 | Y16: 0 | Z16: 0 | AA16: 0 | AB16: 0 | AC16: 0 | AD16: 0 | AE16: 0 | AF16: 0 | AG16: 0 | AH16: 0 | AI16: 0 | AJ16: 0 | AK16: 0 | AL16: 0 | AM16: 0 | AN16: =IF(VLOOKUP(A16,DR_ODBC_COALIST,16,FALSE),CONCATENATE("9999"," - ",SageDataCOAList!$L$2),SageData!$A16&" - "&SageData!$B16) -> 3255 - DES Exam Income | AO16: 1 | AP16: -1 | AQ16: 1 | AR16: 0 | AS16: 0 | AT16: 0 | AU16: 0 | AV16: 0 | AW16: 0 | AX16: 0 | AY16: 0 | AZ16: 0 | BA16: 6500 | BB16: 0 | BC16: 0 | BD16: 7000 | BE16: 0 | BF16: 0 | BG16: 0 | BH16: 0 | BI16: 0 | BJ16: 0 | BK16: 0 | BL16: 0 | BM16: 0 | BN16: 0 | BO16: 0 | BP16: 0 | BQ16: 0 | BR16: 0 | BS16: 0 | BT16: 0 | BU16: 0 | BV16: 0 | BW16: 0 | BX16: 0 | BY16: 0 | BZ16: 0 | CA16: 0 | CB16: -7000 | CC16: 0 | CD16: 0 | CE16: 0 | CF16: 0 | CG16: 0 | CH16: 0 | CI16: 0 | CJ16: 0 | CK16: 6500 | CL16: 0 | CM16: 0 | CN16: 0 | CO16: 0 | CP16: 0 | CQ16: 0 | CR16: 0 | CS16: 0 | CT16: 0 | CU16: 0 | CV16: 0 | CW16: 6500 | CX16: 0 | CY16: 0 | CZ16: 001 | DA16: 01 | DB16: Sales | DC16: Department Income | DD16: 01 - Sales | DE16: 001 - Department Income | DF16: =(AR16*SageDataCompany!$H$2)+(AS16*SageDataCompany!$H$3)+(AT16*SageDataCompany!$H$4)+(AU16*SageDataCompany!$H$5)+(AV16*SageDataCompany!$H$6)+(AW16*SageDataCompany!$H$7)+(AX16*SageDataCompany!$H$8)+(AY16*SageDataCompany!$H$9)+(AZ16*SageDataCompany!$H$10)+(BA16*SageDataCompany!$H$11)+(BB16*SageDataCompany!$H$12)+(BC16*SageDataCompany!$H$13) -> 6500 | DG16: =(BD16*SageDataCompany!$H$2)+(BE16*SageDataCompany!$H$3)+(BF16*SageDataCompany!$H$4)+(BG16*SageDataCompany!$H$5)+(BH16*SageDataCompany!$H$6)+(BI16*SageDataCompany!$H$7)+(BJ16*SageDataCompany!$H$8)+(BK16*SageDataCompany!$H$9)+(BL16*SageDataCompany!$H$10)+(BM16*SageDataCompany!$H$11)+(BN16*SageDataCompany!$H$12)+(BO16*SageDataCompany!$H$13) -> 7000 | DH16: =(BP16*SageDataCompany!$H$2)+(BQ16*SageDataCompany!$H$3)+(BR16*SageDataCompany!$H$4)+(BS16*SageDataCompany!$H$5)+(BT16*SageDataCompany!$H$6)+(BU16*SageDataCompany!$H$7)+(BV16*SageDataCompany!$H$8)+(BW16*SageDataCompany!$H$9)+(BX16*SageDataCompany!$H$10)+(BY16*SageDataCompany!$H$11)+(BZ16*SageDataCompany!$H$12)+(CA16*SageDataCompany!$H$13) -> 0 | DI16: -500 | DJ16: 6500 | DK16: =(AR16*SageDataCompany!$I$2)+(AS16*SageDataCompany!$I$3)+(AT16*SageDataCompany!$I$4)+(AU16*SageDataCompany!$I$5)+(AV16*SageDataCompany!$I$6)+(AW16*SageDataCompany!$I$7)+(AX16*SageDataCompany!$I$8)+(AY16*SageDataCompany!$I$9)+(AZ16*SageDataCompany!$I$10)+(BA16*SageDataCompany!$I$11)+(BB16*SageDataCompany!$I$12)+(BC16*SageDataCompany!$I$13) -> 6500 | DL16: =(BD16*SageDataCompany!$I$2)+(BE16*SageDataCompany!$I$3)+(BF16*SageDataCompany!$I$4)+(BG16*SageDataCompany!$I$5)+(BH16*SageDataCompany!$I$6)+(BI16*SageDataCompany!$I$7)+(BJ16*SageDataCompany!$I$8)+(BK16*SageDataCompany!$I$9)+(BL16*SageDataCompany!$I$10)+(BM16*SageDataCompany!$I$11)+(BN16*SageDataCompany!$I$12)+(BO16*SageDataCompany!$I$13) -> 7000 | DM16: =(BP16*SageDataCompany!$I$2)+(BQ16*SageDataCompany!$I$3)+(BR16*SageDataCompany!$I$4)+(BS16*SageDataCompany!$I$5)+(BT16*SageDataCompany!$I$6)+(BU16*SageDataCompany!$I$7)+(BV16*SageDataCompany!$I$8)+(BW16*SageDataCompany!$I$9)+(BX16*SageDataCompany!$I$10)+(BY16*SageDataCompany!$I$11)+(BZ16*SageDataCompany!$I$12)+(CA16*SageDataCompany!$I$13) -> 0 | DN16: -500 | DO16: 6500 | DP16: Yes | DQ16: Yes | DS16: Yes | DT16: =Table_Query_from_SageLine50v17[[#This Row],[PY Mth1]]+Table_Query_from_SageLine50v17[[#This Row],[PY Mth2]]+Table_Query_from_SageLine50v17[[#This Row],[PY Mth3]]+Table_Query_from_SageLine50v17[[#This Row],[PY Mth4]]+Table_Query_from_SageLine50v17[[#This Row],[PY Mth5]]+Table_Query_from_SageLine50v17[[#This Row],[PY Mth6]]+Table_Query_from_SageLine50v17[[#This Row],[PY Mth7]]+Table_Query_from_SageLine50v17[[#This Row],[PY Mth8]]+Table_Query_from_SageLine50v17[[#This Row],[PY Mth9]]+Table_Query_from_SageLine50v17[[#This Row],[PY Mth10]]+Table_Query_from_SageLine50v17[[#This Row],[PY Mth11]]+Table_Query_from_SageLine50v17[[#This Row],[PY Mth12]] -> 0
A17: 3270 | B17: Library | C17: 0 | D17: 0 | E17: 0 | F17: 0 | G17: 0 | H17: 0 | I17: 0 | J17: 0 | K17: 0 | L17: 0 | M17: 0 | N17: 0 | O17: 0 | P17: 0 | Q17: 0 | R17: 0 | S17: 0 | T17: 0 | U17: 0 | V17: 0 | W17: 0 | X17: 0 | Y17: 0 | Z17: 0 | AA17: 0 | AB17: 0 | AC17: 0 | AD17: 0 | AE17: 0 | AF17: 0 | AG17: 0 | AH17: 0 | AI17: 0 | AJ17: 0 | AK17: 0 | AL17: 0 | AM17: 0 | AN17: =IF(VLOOKUP(A17,DR_ODBC_COALIST,16,FALSE),CONCATENATE("9999"," - ",SageDataCOAList!$L$2),SageData!$A17&" - "&SageData!$B17) -> 3270 - Library | AO17: 1 | AP17: -1 | AQ17: 1 | AR17: 0 | AS17: 0 | AT17: 0 | AU17: 0 | AV17: 0 | AW17: 0 | AX17: 0 | AY17: 0 | AZ17: 0 | BA17: 0 | BB17: 0 | BC17: 0 | BD17: 0 | BE17: 0 | BF17: 0 | BG17: 0 | BH17: 0 | BI17: 0 | BJ17: 0 | BK17: 0 | BL17: 0 | BM17: 0 | BN17: 0 | BO17: 0 | BP17: 0 | BQ17: 0 | BR17: 0 | BS17: 0 | BT17: 0 | BU17: 0 | BV17: 0 | BW17: 0 | BX17: 0 | BY17: 0 | BZ17: 0 | CA17: 0 | CB17: 0 | CC17: 0 | CD17: 0 | CE17: 0 | CF17: 0 | CG17: 0 | CH17: 0 | CI17: 0 | CJ17: 0 | CK17: 0 | CL17: 0 | CM17: 0 | CN17: 0 | CO17: 0 | CP17: 0 | CQ17: 0 | CR17: 0 | CS17: 0 | CT17: 0 | CU17: 0 | CV17: 0 | CW17: 0 | CX17: 0 | CY17: 0 | CZ17: 001 | DA17: 01 | DB17: Sales | DC17: Department Income | DD17: 01 - Sales | DE17: 001 - Department Income | DF17: =(AR17*SageDataCompany!$H$2)+(AS17*SageDataCompany!$H$3)+(AT17*SageDataCompany!$H$4)+(AU17*SageDataCompany!$H$5)+(AV17*SageDataCompany!$H$6)+(AW17*SageDataCompany!$H$7)+(AX17*SageDataCompany!$H$8)+(AY17*SageDataCompany!$H$9)+(AZ17*SageDataCompany!$H$10)+(BA17*SageDataCompany!$H$11)+(BB17*SageDataCompany!$H$12)+(BC17*SageDataCompany!$H$13) -> 0 | DG17: =(BD17*SageDataCompany!$H$2)+(BE17*SageDataCompany!$H$3)+(BF17*SageDataCompany!$H$4)+(BG17*SageDataCompany!$H$5)+(BH17*SageDataCompany!$H$6)+(BI17*SageDataCompany!$H$7)+(BJ17*SageDataCompany!$H$8)+(BK17*SageDataCompany!$H$9)+(BL17*SageDataCompany!$H$10)+(BM17*SageDataCompany!$H$11)+(BN17*SageDataCompany!$H$12)+(BO17*SageDataCompany!$H$13) -> 0 | DH17: =(BP17*SageDataCompany!$H$2)+(BQ17*SageDataCompany!$H$3)+(BR17*SageDataCompany!$H$4)+(BS17*SageDataCompany!$H$5)+(BT17*SageDataCompany!$H$6)+(BU17*SageDataCompany!$H$7)+(BV17*SageDataCompany!$H$8)+(BW17*SageDataCompany!$H$9)+(BX17*SageDataCompany!$H$10)+(BY17*SageDataCompany!$H$11)+(BZ17*SageDataCompany!$H$12)+(CA17*SageDataCompany!$H$13) -> 0 | DI17: 0 | DJ17: 0 | DK17: =(AR17*SageDataCompany!$I$2)+(AS17*SageDataCompany!$I$3)+(AT17*SageDataCompany!$I$4)+(AU17*SageDataCompany!$I$5)+(AV17*SageDataCompany!$I$6)+(AW17*SageDataCompany!$I$7)+(AX17*SageDataCompany!$I$8)+(AY17*SageDataCompany!$I$9)+(AZ17*SageDataCompany!$I$10)+(BA17*SageDataCompany!$I$11)+(BB17*SageDataCompany!$I$12)+(BC17*SageDataCompany!$I$13) -> 0 | DL17: =(BD17*SageDataCompany!$I$2)+(BE17*SageDataCompany!$I$3)+(BF17*SageDataCompany!$I$4)+(BG17*SageDataCompany!$I$5)+(BH17*SageDataCompany!$I$6)+(BI17*SageDataCompany!$I$7)+(BJ17*SageDataCompany!$I$8)+(BK17*SageDataCompany!$I$9)+(BL17*SageDataCompany!$I$10)+(BM17*SageDataCompany!$I$11)+(BN17*SageDataCompany!$I$12)+(BO17*SageDataCompany!$I$13) -> 0 | DM17: =(BP17*SageDataCompany!$I$2)+(BQ17*SageDataCompany!$I$3)+(BR17*SageDataCompany!$I$4)+(BS17*SageDataCompany!$I$5)+(BT17*SageDataCompany!$I$6)+(BU17*SageDataCompany!$I$7)+(BV17*SageDataCompany!$I$8)+(BW17*SageDataCompany!$I$9)+(BX17*SageDataCompany!$I$10)+(BY17*SageDataCompany!$I$11)+(BZ17*SageDataCompany!$I$12)+(CA17*SageDataCompany!$I$13) -> 0 | DN17: 0 | DO17: 0 | DT17: =Table_Query_from_SageLine50v17[[#This Row],[PY Mth1]]+Table_Query_from_SageLine50v17[[#This Row],[PY Mth2]]+Table_Query_from_SageLine50v17[[#This Row],[PY Mth3]]+Table_Query_from_SageLine50v17[[#This Row],[PY Mth4]]+Table_Query_from_SageLine50v17[[#This Row],[PY Mth5]]+Table_Query_from_SageLine50v17[[#This Row],[PY Mth6]]+Table_Query_from_SageLine50v17[[#This Row],[PY Mth7]]+Table_Query_from_SageLine50v17[[#This Row],[PY Mth8]]+Table_Query_from_SageLine50v17[[#This Row],[PY Mth9]]+Table_Query_from_SageLine50v17[[#This Row],[PY Mth10]]+Table_Query_from_SageLine50v17[[#This Row],[PY Mth11]]+Table_Query_from_SageLine50v17[[#This Row],[PY Mth12]] -> 0
A18: 3275 | B18: DES Minor Works Grant -non capital | C18: 0 | D18: 0 | E18: 0 | F18: 0 | G18: 0 | H18: 0 | I18: 0 | J18: 0 | K18: 0 | L18: 0 | M18: 0 | N18: 0 | O18: 0 | P18: 0 | Q18: 0 | R18: 0 | S18: 0 | T18: 0 | U18: 0 | V18: 0 | W18: 0 | X18: 0 | Y18: 0 | Z18: 0 | AA18: 0 | AB18: 0 | AC18: 0 | AD18: 0 | AE18: 0 | AF18: 0 | AG18: 0 | AH18: 0 | AI18: 0 | AJ18: 0 | AK18: 0 | AL18: 0 | AM18: 0 | AN18: =IF(VLOOKUP(A18,DR_ODBC_COALIST,16,FALSE),CONCATENATE("9999"," - ",SageDataCOAList!$L$2),SageData!$A18&" - "&SageData!$B18) -> 3275 - DES Minor Works Grant -non capital | AO18: 1 | AP18: -1 | AQ18: 1 | AR18: 0 | AS18: 0 | AT18: 0 | AU18: 0 | AV18: 0 | AW18: 0 | AX18: 0 | AY18: 0 | AZ18: 0 | BA18: 0 | BB18: 0 | BC18: 0 | BD18: 0 | BE18: 0 | BF18: 0 | BG18: 0 | BH18: 0 | BI18: 0 | BJ18: 0 | BK18: 0 | BL18: 0 | BM18: 0 | BN18: 0 | BO18: 0 | BP18: 0 | BQ18: 0 | BR18: 0 | BS18: 0 | BT18: 0 | BU18: 0 | BV18: 0 | BW18: 0 | BX18: 0 | BY18: 0 | BZ18: 0 | CA18: 0 | CB18: 0 | CC18: 0 | CD18: 0 | CE18: 0 | CF18: 0 | CG18: 0 | CH18: 0 | CI18: 0 | CJ18: 0 | CK18: 0 | CL18: 0 | CM18: 0 | CN18: 0 | CO18: 0 | CP18: 0 | CQ18: 0 | CR18: 0 | CS18: 0 | CT18: 0 | CU18: 0 | CV18: 0 | CW18: 0 | CX18: 0 | CY18: 0 | CZ18: 001 | DA18: 01 | DB18: Sales | DC18: Department Income | DD18: 01 - Sales | DE18: 001 - Department Income | DF18: =(AR18*SageDataCompany!$H$2)+(AS18*SageDataCompany!$H$3)+(AT18*SageDataCompany!$H$4)+(AU18*SageDataCompany!$H$5)+(AV18*SageDataCompany!$H$6)+(AW18*SageDataCompany!$H$7)+(AX18*SageDataCompany!$H$8)+(AY18*SageDataCompany!$H$9)+(AZ18*SageDataCompany!$H$10)+(BA18*SageDataCompany!$H$11)+(BB18*SageDataCompany!$H$12)+(BC18*SageDataCompany!$H$13) -> 0 | DG18: =(BD18*SageDataCompany!$H$2)+(BE18*SageDataCompany!$H$3)+(BF18*SageDataCompany!$H$4)+(BG18*SageDataCompany!$H$5)+(BH18*SageDataCompany!$H$6)+(BI18*SageDataCompany!$H$7)+(BJ18*SageDataCompany!$H$8)+(BK18*SageDataCompany!$H$9)+(BL18*SageDataCompany!$H$10)+(BM18*SageDataCompany!$H$11)+(BN18*SageDataCompany!$H$12)+(BO18*SageDataCompany!$H$13) -> 0 | DH18: =(BP18*SageDataCompany!$H$2)+(BQ18*SageDataCompany!$H$3)+(BR18*SageDataCompany!$H$4)+(BS18*SageDataCompany!$H$5)+(BT18*SageDataCompany!$H$6)+(BU18*SageDataCompany!$H$7)+(BV18*SageDataCompany!$H$8)+(BW18*SageDataCompany!$H$9)+(BX18*SageDataCompany!$H$10)+(BY18*SageDataCompany!$H$11)+(BZ18*SageDataCompany!$H$12)+(CA18*SageDataCompany!$H$13) -> 0 | DI18: 0 | DJ18: 0 | DK18: =(AR18*SageDataCompany!$I$2)+(AS18*SageDataCompany!$I$3)+(AT18*SageDataCompany!$I$4)+(AU18*SageDataCompany!$I$5)+(AV18*SageDataCompany!$I$6)+(AW18*SageDataCompany!$I$7)+(AX18*SageDataCompany!$I$8)+(AY18*SageDataCompany!$I$9)+(AZ18*SageDataCompany!$I$10)+(BA18*SageDataCompany!$I$11)+(BB18*SageDataCompany!$I$12)+(BC18*SageDataCompany!$I$13) -> 0 | DL18: =(BD18*SageDataCompany!$I$2)+(BE18*SageDataCompany!$I$3)+(BF18*SageDataCompany!$I$4)+(BG18*SageDataCompany!$I$5)+(BH18*SageDataCompany!$I$6)+(BI18*SageDataCompany!$I$7)+(BJ18*SageDataCompany!$I$8)+(BK18*SageDataCompany!$I$9)+(BL18*SageDataCompany!$I$10)+(BM18*SageDataCompany!$I$11)+(BN18*SageDataCompany!$I$12)+(BO18*SageDataCompany!$I$13) -> 0 | DM18: =(BP18*SageDataCompany!$I$2)+(BQ18*SageDataCompany!$I$3)+(BR18*SageDataCompany!$I$4)+(BS18*SageDataCompany!$I$5)+(BT18*SageDataCompany!$I$6)+(BU18*SageDataCompany!$I$7)+(BV18*SageDataCompany!$I$8)+(BW18*SageDataCompany!$I$9)+(BX18*SageDataCompany!$I$10)+(BY18*SageDataCompany!$I$11)+(BZ18*SageDataCompany!$I$12)+(CA18*SageDataCompany!$I$13) -> 0 | DN18: 0 | DO18: 0 | DT18: =Table_Query_from_SageLine50v17[[#This Row],[PY Mth1]]+Table_Query_from_SageLine50v17[[#This Row],[PY Mth2]]+Table_Query_from_SageLine50v17[[#This Row],[PY Mth3]]+Table_Query_from_SageLine50v17[[#This Row],[PY Mth4]]+Table_Query_from_SageLine50v17[[#This Row],[PY Mth5]]+Table_Query_from_SageLine50v17[[#This Row],[PY Mth6]]+Table_Query_from_SageLine50v17[[#This Row],[PY Mth7]]+Table_Query_from_SageLine50v17[[#This Row],[PY Mth8]]+Table_Query_from_SageLine50v17[[#This Row],[PY Mth9]]+Table_Query_from_SageLine50v17[[#This Row],[PY Mth10]]+Table_Query_from_SageLine50v17[[#This Row],[PY Mth11]]+Table_Query_from_SageLine50v17[[#This Row],[PY Mth12]] -> 0
A19: 3290 | B19: Other DES Grants | C19: 0 | D19: 0 | E19: 0 | F19: 0 | G19: 0 | H19: 0 | I19: 0 | J19: 0 | K19: 0 | L19: 0 | M19: 0 | N19: 0 | O19: 0 | P19: 0 | Q19: 0 | R19: 0 | S19: 0 | T19: 0 | U19: 0 | V19: 0 | W19: 0 | X19: 0 | Y19: 0 | Z19: 0 | AA19: 0 | AB19: 0 | AC19: 0 | AD19: 0 | AE19: 0 | AF19: 0 | AG19: 0 | AH19: 0 | AI19: 0 | AJ19: 0 | AK19: 0 | AL19: 0 | AM19: 0 | AN19: =IF(VLOOKUP(A19,DR_ODBC_COALIST,16,FALSE),CONCATENATE("9999"," - ",SageDataCOAList!$L$2),SageData!$A19&" - "&SageData!$B19) -> 3290 - Other DES Grants | AO19: 1 | AP19: -1 | AQ19: 1 | AR19: 0 | AS19: 0 | AT19: 0 | AU19: 0 | AV19: 0 | AW19: 0 | AX19: 0 | AY19: 0 | AZ19: 0 | BA19: 0 | BB19: 0 | BC19: 0 | BD19: 0 | BE19: 0 | BF19: 0 | BG19: 0 | BH19: 0 | BI19: 0 | BJ19: 0 | BK19: 0 | BL19: 0 | BM19: 0 | BN19: 0 | BO19: 0 | BP19: 0 | BQ19: 0 | BR19: 0 | BS19: 0 | BT19: 0 | BU19: 0 | BV19: 0 | BW19: 0 | BX19: 0 | BY19: 0 | BZ19: 0 | CA19: 0 | CB19: 0 | CC19: 0 | CD19: 0 | CE19: 0 | CF19: 0 | CG19: 0 | CH19: 0 | CI19: 0 | CJ19: 0 | CK19: 0 | CL19: 0 | CM19: 0 | CN19: 0 | CO19: 0 | CP19: 0 | CQ19: 0 | CR19: 0 | CS19: 0 | CT19: 0 | CU19: 0 | CV19: 0 | CW19: 0 | CX19: 0 | CY19: 0 | CZ19: 001 | DA19: 01 | DB19: Sales | DC19: Department Income | DD19: 01 - Sales | DE19: 001 - Department Income | DF19: =(AR19*SageDataCompany!$H$2)+(AS19*SageDataCompany!$H$3)+(AT19*SageDataCompany!$H$4)+(AU19*SageDataCompany!$H$5)+(AV19*SageDataCompany!$H$6)+(AW19*SageDataCompany!$H$7)+(AX19*SageDataCompany!$H$8)+(AY19*SageDataCompany!$H$9)+(AZ19*SageDataCompany!$H$10)+(BA19*SageDataCompany!$H$11)+(BB19*SageDataCompany!$H$12)+(BC19*SageDataCompany!$H$13) -> 0 | DG19: =(BD19*SageDataCompany!$H$2)+(BE19*SageDataCompany!$H$3)+(BF19*SageDataCompany!$H$4)+(BG19*SageDataCompany!$H$5)+(BH19*SageDataCompany!$H$6)+(BI19*SageDataCompany!$H$7)+(BJ19*SageDataCompany!$H$8)+(BK19*SageDataCompany!$H$9)+(BL19*SageDataCompany!$H$10)+(BM19*SageDataCompany!$H$11)+(BN19*SageDataCompany!$H$12)+(BO19*SageDataCompany!$H$13) -> 0 | DH19: =(BP19*SageDataCompany!$H$2)+(BQ19*SageDataCompany!$H$3)+(BR19*SageDataCompany!$H$4)+(BS19*SageDataCompany!$H$5)+(BT19*SageDataCompany!$H$6)+(BU19*SageDataCompany!$H$7)+(BV19*SageDataCompany!$H$8)+(BW19*SageDataCompany!$H$9)+(BX19*SageDataCompany!$H$10)+(BY19*SageDataCompany!$H$11)+(BZ19*SageDataCompany!$H$12)+(CA19*SageDataCompany!$H$13) -> 0 | DI19: 0 | DJ19: 0 | DK19: =(AR19*SageDataCompany!$I$2)+(AS19*SageDataCompany!$I$3)+(AT19*SageDataCompany!$I$4)+(AU19*SageDataCompany!$I$5)+(AV19*SageDataCompany!$I$6)+(AW19*SageDataCompany!$I$7)+(AX19*SageDataCompany!$I$8)+(AY19*SageDataCompany!$I$9)+(AZ19*SageDataCompany!$I$10)+(BA19*SageDataCompany!$I$11)+(BB19*SageDataCompany!$I$12)+(BC19*SageDataCompany!$I$13) -> 0 | DL19: =(BD19*SageDataCompany!$I$2)+(BE19*SageDataCompany!$I$3)+(BF19*SageDataCompany!$I$4)+(BG19*SageDataCompany!$I$5)+(BH19*SageDataCompany!$I$6)+(BI19*SageDataCompany!$I$7)+(BJ19*SageDataCompany!$I$8)+(BK19*SageDataCompany!$I$9)+(BL19*SageDataCompany!$I$10)+(BM19*SageDataCompany!$I$11)+(BN19*SageDataCompany!$I$12)+(BO19*SageDataCompany!$I$13) -> 0 | DM19: =(BP19*SageDataCompany!$I$2)+(BQ19*SageDataCompany!$I$3)+(BR19*SageDataCompany!$I$4)+(BS19*SageDataCompany!$I$5)+(BT19*SageDataCompany!$I$6)+(BU19*SageDataCompany!$I$7)+(BV19*SageDataCompany!$I$8)+(BW19*SageDataCompany!$I$9)+(BX19*SageDataCompany!$I$10)+(BY19*SageDataCompany!$I$11)+(BZ19*SageDataCompany!$I$12)+(CA19*SageDataCompany!$I$13) -> 0 | DN19: 0 | DO19: 0 | DT19: =Table_Query_from_SageLine50v17[[#This Row],[PY Mth1]]+Table_Query_from_SageLine50v17[[#This Row],[PY Mth2]]+Table_Query_from_SageLine50v17[[#This Row],[PY Mth3]]+Table_Query_from_SageLine50v17[[#This Row],[PY Mth4]]+Table_Query_from_SageLine50v17[[#This Row],[PY Mth5]]+Table_Query_from_SageLine50v17[[#This Row],[PY Mth6]]+Table_Query_from_SageLine50v17[[#This Row],[PY Mth7]]+Table_Query_from_SageLine50v17[[#This Row],[PY Mth8]]+Table_Query_from_SageLine50v17[[#This Row],[PY Mth9]]+Table_Query_from_SageLine50v17[[#This Row],[PY Mth10]]+Table_Query_from_SageLine50v17[[#This Row],[PY Mth11]]+Table_Query_from_SageLine50v17[[#This Row],[PY Mth12]] -> 0
A20: 3300 | B20: Fees ( Fee Paying School) | C20: 0 | D20: 0 | E20: 0 | F20: 0 | G20: 0 | H20: 0 | I20: 0 | J20: 0 | K20: 0 | L20: 0 | M20: 0 | N20: 0 | O20: 0 | P20: 0 | Q20: 0 | R20: 0 | S20: 0 | T20: 0 | U20: 0 | V20: 0 | W20: 0 | X20: 0 | Y20: 0 | Z20: 0 | AA20: 0 | AB20: 0 | AC20: 0 | AD20: 0 | AE20: 0 | AF20: 0 | AG20: 0 | AH20: 0 | AI20: 0 | AJ20: 0 | AK20: 0 | AL20: 0 | AM20: 0 | AN20: =IF(VLOOKUP(A20,DR_ODBC_COALIST,16,FALSE),CONCATENATE("9999"," - ",SageDataCOAList!$L$2),SageData!$A20&" - "&SageData!$B20) -> 3300 - Fees ( Fee Paying School) | AO20: 1 | AP20: -1 | AQ20: 1 | AR20: 0 | AS20: 0 | AT20: 0 | AU20: 0 | AV20: 0 | AW20: 0 | AX20: 0 | AY20: 0 | AZ20: 0 | BA20: 0 | BB20: 0 | BC20: 0 | BD20: 0 | BE20: 0 | BF20: 0 | BG20: 0 | BH20: 0 | BI20: 0 | BJ20: 0 | BK20: 0 | BL20: 0 | BM20: 0 | BN20: 0 | BO20: 0 | BP20: 0 | BQ20: 0 | BR20: 0 | BS20: 0 | BT20: 0 | BU20: 0 | BV20: 0 | BW20: 0 | BX20: 0 | BY20: 0 | BZ20: 0 | CA20: 0 | CB20: 0 | CC20: 0 | CD20: 0 | CE20: 0 | CF20: 0 | CG20: 0 | CH20: 0 | CI20: 0 | CJ20: 0 | CK20: 0 | CL20: 0 | CM20: 0 | CN20: 0 | CO20: 0 | CP20: 0 | CQ20: 0 | CR20: 0 | CS20: 0 | CT20: 0 | CU20: 0 | CV20: 0 | CW20: 0 | CX20: 0 | CY20: 0 | CZ20: 002 | DA20: 01 | DB20: Sales | DC20: School Generated Income | DD20: 01 - Sales | DE20: 002 - School Generated Income | DF20: =(AR20*SageDataCompany!$H$2)+(AS20*SageDataCompany!$H$3)+(AT20*SageDataCompany!$H$4)+(AU20*SageDataCompany!$H$5)+(AV20*SageDataCompany!$H$6)+(AW20*SageDataCompany!$H$7)+(AX20*SageDataCompany!$H$8)+(AY20*SageDataCompany!$H$9)+(AZ20*SageDataCompany!$H$10)+(BA20*SageDataCompany!$H$11)+(BB20*SageDataCompany!$H$12)+(BC20*SageDataCompany!$H$13) -> 0 | DG20: =(BD20*SageDataCompany!$H$2)+(BE20*SageDataCompany!$H$3)+(BF20*SageDataCompany!$H$4)+(BG20*SageDataCompany!$H$5)+(BH20*SageDataCompany!$H$6)+(BI20*SageDataCompany!$H$7)+(BJ20*SageDataCompany!$H$8)+(BK20*SageDataCompany!$H$9)+(BL20*SageDataCompany!$H$10)+(BM20*SageDataCompany!$H$11)+(BN20*SageDataCompany!$H$12)+(BO20*SageDataCompany!$H$13) -> 0 | DH20: =(BP20*SageDataCompany!$H$2)+(BQ20*SageDataCompany!$H$3)+(BR20*SageDataCompany!$H$4)+(BS20*SageDataCompany!$H$5)+(BT20*SageDataCompany!$H$6)+(BU20*SageDataCompany!$H$7)+(BV20*SageDataCompany!$H$8)+(BW20*SageDataCompany!$H$9)+(BX20*SageDataCompany!$H$10)+(BY20*SageDataCompany!$H$11)+(BZ20*SageDataCompany!$H$12)+(CA20*SageDataCompany!$H$13) -> 0 | DI20: 0 | DJ20: 0 | DK20: =(AR20*SageDataCompany!$I$2)+(AS20*SageDataCompany!$I$3)+(AT20*SageDataCompany!$I$4)+(AU20*SageDataCompany!$I$5)+(AV20*SageDataCompany!$I$6)+(AW20*SageDataCompany!$I$7)+(AX20*SageDataCompany!$I$8)+(AY20*SageDataCompany!$I$9)+(AZ20*SageDataCompany!$I$10)+(BA20*SageDataCompany!$I$11)+(BB20*SageDataCompany!$I$12)+(BC20*SageDataCompany!$I$13) -> 0 | DL20: =(BD20*SageDataCompany!$I$2)+(BE20*SageDataCompany!$I$3)+(BF20*SageDataCompany!$I$4)+(BG20*SageDataCompany!$I$5)+(BH20*SageDataCompany!$I$6)+(BI20*SageDataCompany!$I$7)+(BJ20*SageDataCompany!$I$8)+(BK20*SageDataCompany!$I$9)+(BL20*SageDataCompany!$I$10)+(BM20*SageDataCompany!$I$11)+(BN20*SageDataCompany!$I$12)+(BO20*SageDataCompany!$I$13) -> 0 | DM20: =(BP20*SageDataCompany!$I$2)+(BQ20*SageDataCompany!$I$3)+(BR20*SageDataCompany!$I$4)+(BS20*SageDataCompany!$I$5)+(BT20*SageDataCompany!$I$6)+(BU20*SageDataCompany!$I$7)+(BV20*SageDataCompany!$I$8)+(BW20*SageDataCompany!$I$9)+(BX20*SageDataCompany!$I$10)+(BY20*SageDataCompany!$I$11)+(BZ20*SageDataCompany!$I$12)+(CA20*SageDataCompany!$I$13) -> 0 | DN20: 0 | DO20: 0 | DT20: =Table_Query_from_SageLine50v17[[#This Row],[PY Mth1]]+Table_Query_from_SageLine50v17[[#This Row],[PY Mth2]]+Table_Query_from_SageLine50v17[[#This Row],[PY Mth3]]+Table_Query_from_SageLine50v17[[#This Row],[PY Mth4]]+Table_Query_from_SageLine50v17[[#This Row],[PY Mth5]]+Table_Query_from_SageLine50v17[[#This Row],[PY Mth6]]+Table_Query_from_SageLine50v17[[#This Row],[PY Mth7]]+Table_Query_from_SageLine50v17[[#This Row],[PY Mth8]]+Table_Query_from_SageLine50v17[[#This Row],[PY Mth9]]+Table_Query_from_SageLine50v17[[#This Row],[PY Mth10]]+Table_Query_from_SageLine50v17[[#This Row],[PY Mth11]]+Table_Query_from_SageLine50v17[[#This Row],[PY Mth12]] -> 0
A21: 3310 | B21: Transition Year | C21: 0 | D21: 0 | E21: 0 | F21: 0 | G21: 0 | H21: 0 | I21: 0 | J21: 0 | K21: 0 | L21: -4100 | M21: 0 | N21: 0 | O21: 0 | P21: 0 | Q21: 0 | R21: 0 | S21: 0 | T21: 0 | U21: 0 | V21: 0 | W21: 0 | X21: 0 | Y21: 0 | Z21: 0 | AA21: 0 | AB21: 0 | AC21: 0 | AD21: 0 | AE21: 0 | AF21: 0 | AG21: 0 | AH21: 0 | AI21: 0 | AJ21: 0 | AK21: 0 | AL21: 0 | AM21: 0 | AN21: =IF(VLOOKUP(A21,DR_ODBC_COALIST,16,FALSE),CONCATENATE("9999"," - ",SageDataCOAList!$L$2),SageData!$A21&" - "&SageData!$B21) -> 3310 - Transition Year | AO21: 1 | AP21: -1 | AQ21: 1 | AR21: 0 | AS21: 0 | AT21: 0 | AU21: 0 | AV21: 0 | AW21: 0 | AX21: 0 | AY21: 0 | AZ21: 0 | BA21: 4100 | BB21: 0 | BC21: 0 | BD21: 0 | BE21: 0 | BF21: 0 | BG21: 0 | BH21: 0 | BI21: 0 | BJ21: 0 | BK21: 0 | BL21: 0 | BM21: 0 | BN21: 0 | BO21: 0 | BP21: 0 | BQ21: 0 | BR21: 0 | BS21: 0 | BT21: 0 | BU21: 0 | BV21: 0 | BW21: 0 | BX21: 0 | BY21: 0 | BZ21: 0 | CA21: 0 | CB21: 0 | CC21: 0 | CD21: 0 | CE21: 0 | CF21: 0 | CG21: 0 | CH21: 0 | CI21: 0 | CJ21: 0 | CK21: 4100 | CL21: 0 | CM21: 0 | CN21: 0 | CO21: 0 | CP21: 0 | CQ21: 0 | CR21: 0 | CS21: 0 | CT21: 0 | CU21: 0 | CV21: 0 | CW21: 4100 | CX21: 0 | CY21: 0 | CZ21: 002 | DA21: 01 | DB21: Sales | DC21: School Generated Income | DD21: 01 - Sales | DE21: 002 - School Generated Income | DF21: =(AR21*SageDataCompany!$H$2)+(AS21*SageDataCompany!$H$3)+(AT21*SageDataCompany!$H$4)+(AU21*SageDataCompany!$H$5)+(AV21*SageDataCompany!$H$6)+(AW21*SageDataCompany!$H$7)+(AX21*SageDataCompany!$H$8)+(AY21*SageDataCompany!$H$9)+(AZ21*SageDataCompany!$H$10)+(BA21*SageDataCompany!$H$11)+(BB21*SageDataCompany!$H$12)+(BC21*SageDataCompany!$H$13) -> 4100 | DG21: =(BD21*SageDataCompany!$H$2)+(BE21*SageDataCompany!$H$3)+(BF21*SageDataCompany!$H$4)+(BG21*SageDataCompany!$H$5)+(BH21*SageDataCompany!$H$6)+(BI21*SageDataCompany!$H$7)+(BJ21*SageDataCompany!$H$8)+(BK21*SageDataCompany!$H$9)+(BL21*SageDataCompany!$H$10)+(BM21*SageDataCompany!$H$11)+(BN21*SageDataCompany!$H$12)+(BO21*SageDataCompany!$H$13) -> 0 | DH21: =(BP21*SageDataCompany!$H$2)+(BQ21*SageDataCompany!$H$3)+(BR21*SageDataCompany!$H$4)+(BS21*SageDataCompany!$H$5)+(BT21*SageDataCompany!$H$6)+(BU21*SageDataCompany!$H$7)+(BV21*SageDataCompany!$H$8)+(BW21*SageDataCompany!$H$9)+(BX21*SageDataCompany!$H$10)+(BY21*SageDataCompany!$H$11)+(BZ21*SageDataCompany!$H$12)+(CA21*SageDataCompany!$H$13) -> 0 | DI21: 4100 | DJ21: 4100 | DK21: =(AR21*SageDataCompany!$I$2)+(AS21*SageDataCompany!$I$3)+(AT21*SageDataCompany!$I$4)+(AU21*SageDataCompany!$I$5)+(AV21*SageDataCompany!$I$6)+(AW21*SageDataCompany!$I$7)+(AX21*SageDataCompany!$I$8)+(AY21*SageDataCompany!$I$9)+(AZ21*SageDataCompany!$I$10)+(BA21*SageDataCompany!$I$11)+(BB21*SageDataCompany!$I$12)+(BC21*SageDataCompany!$I$13) -> 4100 | DL21: =(BD21*SageDataCompany!$I$2)+(BE21*SageDataCompany!$I$3)+(BF21*SageDataCompany!$I$4)+(BG21*SageDataCompany!$I$5)+(BH21*SageDataCompany!$I$6)+(BI21*SageDataCompany!$I$7)+(BJ21*SageDataCompany!$I$8)+(BK21*SageDataCompany!$I$9)+(BL21*SageDataCompany!$I$10)+(BM21*SageDataCompany!$I$11)+(BN21*SageDataCompany!$I$12)+(BO21*SageDataCompany!$I$13) -> 0 | DM21: =(BP21*SageDataCompany!$I$2)+(BQ21*SageDataCompany!$I$3)+(BR21*SageDataCompany!$I$4)+(BS21*SageDataCompany!$I$5)+(BT21*SageDataCompany!$I$6)+(BU21*SageDataCompany!$I$7)+(BV21*SageDataCompany!$I$8)+(BW21*SageDataCompany!$I$9)+(BX21*SageDataCompany!$I$10)+(BY21*SageDataCompany!$I$11)+(BZ21*SageDataCompany!$I$12)+(CA21*SageDataCompany!$I$13) -> 0 | DN21: 4100 | DO21: 4100 | DP21: Yes | DS21: Yes | DT21: =Table_Query_from_SageLine50v17[[#This Row],[PY Mth1]]+Table_Query_from_SageLine50v17[[#This Row],[PY Mth2]]+Table_Query_from_SageLine50v17[[#This Row],[PY Mth3]]+Table_Query_from_SageLine50v17[[#This Row],[PY Mth4]]+Table_Query_from_SageLine50v17[[#This Row],[PY Mth5]]+Table_Query_from_SageLine50v17[[#This Row],[PY Mth6]]+Table_Query_from_SageLine50v17[[#This Row],[PY Mth7]]+Table_Query_from_SageLine50v17[[#This Row],[PY Mth8]]+Table_Query_from_SageLine50v17[[#This Row],[PY Mth9]]+Table_Query_from_SageLine50v17[[#This Row],[PY Mth10]]+Table_Query_from_SageLine50v17[[#This Row],[PY Mth11]]+Table_Query_from_SageLine50v17[[#This Row],[PY Mth12]] -> 0
A22: 3330 | B22: Book Rental | C22: 0 | D22: 0 | E22: 0 | F22: 0 | G22: 0 | H22: 0 | I22: 0 | J22: 0 | K22: 0 | L22: -1500 | M22: -680 | N22: 0 | O22: 0 | P22: 0 | Q22: 0 | R22: 0 | S22: 0 | T22: 0 | U22: 0 | V22: 0 | W22: 0 | X22: 0 | Y22: 0 | Z22: 0 | AA22: 0 | AB22: 0 | AC22: 0 | AD22: 0 | AE22: 0 | AF22: 0 | AG22: 0 | AH22: 0 | AI22: 0 | AJ22: 0 | AK22: 0 | AL22: 0 | AM22: 0 | AN22: =IF(VLOOKUP(A22,DR_ODBC_COALIST,16,FALSE),CONCATENATE("9999"," - ",SageDataCOAList!$L$2),SageData!$A22&" - "&SageData!$B22) -> 3330 - Book Rental | AO22: 1 | AP22: -1 | AQ22: 1 | AR22: 0 | AS22: 0 | AT22: 0 | AU22: 0 | AV22: 0 | AW22: 0 | AX22: 0 | AY22: 0 | AZ22: 0 | BA22: 1500 | BB22: 680 | BC22: 0 | BD22: 0 | BE22: 0 | BF22: 0 | BG22: 0 | BH22: 0 | BI22: 0 | BJ22: 0 | BK22: 0 | BL22: 0 | BM22: 0 | BN22: 0 | BO22: 0 | BP22: 0 | BQ22: 0 | BR22: 0 | BS22: 0 | BT22: 0 | BU22: 0 | BV22: 0 | BW22: 0 | BX22: 0 | BY22: 0 | BZ22: 0 | CA22: 0 | CB22: 0 | CC22: 0 | CD22: 0 | CE22: 0 | CF22: 0 | CG22: 0 | CH22: 0 | CI22: 0 | CJ22: 0 | CK22: 1500 | CL22: 680 | CM22: 0 | CN22: 0 | CO22: 0 | CP22: 0 | CQ22: 0 | CR22: 0 | CS22: 0 | CT22: 0 | CU22: 0 | CV22: 0 | CW22: 1500 | CX22: 680 | CY22: 0 | CZ22: 002 | DA22: 01 | DB22: Sales | DC22: School Generated Income | DD22: 01 - Sales | DE22: 002 - School Generated Income | DF22: =(AR22*SageDataCompany!$H$2)+(AS22*SageDataCompany!$H$3)+(AT22*SageDataCompany!$H$4)+(AU22*SageDataCompany!$H$5)+(AV22*SageDataCompany!$H$6)+(AW22*SageDataCompany!$H$7)+(AX22*SageDataCompany!$H$8)+(AY22*SageDataCompany!$H$9)+(AZ22*SageDataCompany!$H$10)+(BA22*SageDataCompany!$H$11)+(BB22*SageDataCompany!$H$12)+(BC22*SageDataCompany!$H$13) -> 2180 | DG22: =(BD22*SageDataCompany!$H$2)+(BE22*SageDataCompany!$H$3)+(BF22*SageDataCompany!$H$4)+(BG22*SageDataCompany!$H$5)+(BH22*SageDataCompany!$H$6)+(BI22*SageDataCompany!$H$7)+(BJ22*SageDataCompany!$H$8)+(BK22*SageDataCompany!$H$9)+(BL22*SageDataCompany!$H$10)+(BM22*SageDataCompany!$H$11)+(BN22*SageDataCompany!$H$12)+(BO22*SageDataCompany!$H$13) -> 0 | DH22: =(BP22*SageDataCompany!$H$2)+(BQ22*SageDataCompany!$H$3)+(BR22*SageDataCompany!$H$4)+(BS22*SageDataCompany!$H$5)+(BT22*SageDataCompany!$H$6)+(BU22*SageDataCompany!$H$7)+(BV22*SageDataCompany!$H$8)+(BW22*SageDataCompany!$H$9)+(BX22*SageDataCompany!$H$10)+(BY22*SageDataCompany!$H$11)+(BZ22*SageDataCompany!$H$12)+(CA22*SageDataCompany!$H$13) -> 0 | DI22: 2180 | DJ22: 2180 | DK22: =(AR22*SageDataCompany!$I$2)+(AS22*SageDataCompany!$I$3)+(AT22*SageDataCompany!$I$4)+(AU22*SageDataCompany!$I$5)+(AV22*SageDataCompany!$I$6)+(AW22*SageDataCompany!$I$7)+(AX22*SageDataCompany!$I$8)+(AY22*SageDataCompany!$I$9)+(AZ22*SageDataCompany!$I$10)+(BA22*SageDataCompany!$I$11)+(BB22*SageDataCompany!$I$12)+(BC22*SageDataCompany!$I$13) -> 2180 | DL22: =(BD22*SageDataCompany!$I$2)+(BE22*SageDataCompany!$I$3)+(BF22*SageDataCompany!$I$4)+(BG22*SageDataCompany!$I$5)+(BH22*SageDataCompany!$I$6)+(BI22*SageDataCompany!$I$7)+(BJ22*SageDataCompany!$I$8)+(BK22*SageDataCompany!$I$9)+(BL22*SageDataCompany!$I$10)+(BM22*SageDataCompany!$I$11)+(BN22*SageDataCompany!$I$12)+(BO22*SageDataCompany!$I$13) -> 0 | DM22: =(BP22*SageDataCompany!$I$2)+(BQ22*SageDataCompany!$I$3)+(BR22*SageDataCompany!$I$4)+(BS22*SageDataCompany!$I$5)+(BT22*SageDataCompany!$I$6)+(BU22*SageDataCompany!$I$7)+(BV22*SageDataCompany!$I$8)+(BW22*SageDataCompany!$I$9)+(BX22*SageDataCompany!$I$10)+(BY22*SageDataCompany!$I$11)+(BZ22*SageDataCompany!$I$12)+(CA22*SageDataCompany!$I$13) -> 0 | DN22: 2180 | DO22: 2180 | DP22: Yes | DS22: Yes | DT22: =Table_Query_from_SageLine50v17[[#This Row],[PY Mth1]]+Table_Query_from_SageLine50v17[[#This Row],[PY Mth2]]+Table_Query_from_SageLine50v17[[#This Row],[PY Mth3]]+Table_Query_from_SageLine50v17[[#This Row],[PY Mth4]]+Table_Query_from_SageLine50v17[[#This Row],[PY Mth5]]+Table_Query_from_SageLine50v17[[#This Row],[PY Mth6]]+Table_Query_from_SageLine50v17[[#This Row],[PY Mth7]]+Table_Query_from_SageLine50v17[[#This Row],[PY Mth8]]+Table_Query_from_SageLine50v17[[#This Row],[PY Mth9]]+Table_Query_from_SageLine50v17[[#This Row],[PY Mth10]]+Table_Query_from_SageLine50v17[[#This Row],[PY Mth11]]+Table_Query_from_SageLine50v17[[#This Row],[PY Mth12]] -> 0
A23: 3335 | B23: Classroom Books | C23: 0 | D23: 0 | E23: 0 | F23: 0 | G23: 0 | H23: 0 | I23: 0 | J23: 0 | K23: 0 | L23: 0 | M23: 0 | N23: 0 | O23: 0 | P23: 0 | Q23: 0 | R23: 0 | S23: 0 | T23: 0 | U23: 0 | V23: 0 | W23: 0 | X23: 0 | Y23: 0 | Z23: 0 | AA23: 0 | AB23: 0 | AC23: 0 | AD23: 0 | AE23: 0 | AF23: 0 | AG23: 0 | AH23: 0 | AI23: 0 | AJ23: 0 | AK23: 0 | AL23: 0 | AM23: 0 | AN23: =IF(VLOOKUP(A23,DR_ODBC_COALIST,16,FALSE),CONCATENATE("9999"," - ",SageDataCOAList!$L$2),SageData!$A23&" - "&SageData!$B23) -> 3335 - Classroom Books | AO23: 1 | AP23: -1 | AQ23: 1 | AR23: 0 | AS23: 0 | AT23: 0 | AU23: 0 | AV23: 0 | AW23: 0 | AX23: 0 | AY23: 0 | AZ23: 0 | BA23: 0 | BB23: 0 | BC23: 0 | BD23: 0 | BE23: 0 | BF23: 0 | BG23: 0 | BH23: 0 | BI23: 0 | BJ23: 0 | BK23: 0 | BL23: 0 | BM23: 0 | BN23: 0 | BO23: 0 | BP23: 0 | BQ23: 0 | BR23: 0 | BS23: 0 | BT23: 0 | BU23: 0 | BV23: 0 | BW23: 0 | BX23: 0 | BY23: 0 | BZ23: 0 | CA23: 0 | CB23: 0 | CC23: 0 | CD23: 0 | CE23: 0 | CF23: 0 | CG23: 0 | CH23: 0 | CI23: 0 | CJ23: 0 | CK23: 0 | CL23: 0 | CM23: 0 | CN23: 0 | CO23: 0 | CP23: 0 | CQ23: 0 | CR23: 0 | CS23: 0 | CT23: 0 | CU23: 0 | CV23: 0 | CW23: 0 | CX23: 0 | CY23: 0 | CZ23: 002 | DA23: 01 | DB23: Sales | DC23: School Generated Income | DD23: 01 - Sales | DE23: 002 - School Generated Income | DF23: =(AR23*SageDataCompany!$H$2)+(AS23*SageDataCompany!$H$3)+(AT23*SageDataCompany!$H$4)+(AU23*SageDataCompany!$H$5)+(AV23*SageDataCompany!$H$6)+(AW23*SageDataCompany!$H$7)+(AX23*SageDataCompany!$H$8)+(AY23*SageDataCompany!$H$9)+(AZ23*SageDataCompany!$H$10)+(BA23*SageDataCompany!$H$11)+(BB23*SageDataCompany!$H$12)+(BC23*SageDataCompany!$H$13) -> 0 | DG23: =(BD23*SageDataCompany!$H$2)+(BE23*SageDataCompany!$H$3)+(BF23*SageDataCompany!$H$4)+(BG23*SageDataCompany!$H$5)+(BH23*SageDataCompany!$H$6)+(BI23*SageDataCompany!$H$7)+(BJ23*SageDataCompany!$H$8)+(BK23*SageDataCompany!$H$9)+(BL23*SageDataCompany!$H$10)+(BM23*SageDataCompany!$H$11)+(BN23*SageDataCompany!$H$12)+(BO23*SageDataCompany!$H$13) -> 0 | DH23: =(BP23*SageDataCompany!$H$2)+(BQ23*SageDataCompany!$H$3)+(BR23*SageDataCompany!$H$4)+(BS23*SageDataCompany!$H$5)+(BT23*SageDataCompany!$H$6)+(BU23*SageDataCompany!$H$7)+(BV23*SageDataCompany!$H$8)+(BW23*SageDataCompany!$H$9)+(BX23*SageDataCompany!$H$10)+(BY23*SageDataCompany!$H$11)+(BZ23*SageDataCompany!$H$12)+(CA23*SageDataCompany!$H$13) -> 0 | DI23: 0 | DJ23: 0 | DK23: =(AR23*SageDataCompany!$I$2)+(AS23*SageDataCompany!$I$3)+(AT23*SageDataCompany!$I$4)+(AU23*SageDataCompany!$I$5)+(AV23*SageDataCompany!$I$6)+(AW23*SageDataCompany!$I$7)+(AX23*SageDataCompany!$I$8)+(AY23*SageDataCompany!$I$9)+(AZ23*SageDataCompany!$I$10)+(BA23*SageDataCompany!$I$11)+(BB23*SageDataCompany!$I$12)+(BC23*SageDataCompany!$I$13) -> 0 | DL23: =(BD23*SageDataCompany!$I$2)+(BE23*SageDataCompany!$I$3)+(BF23*SageDataCompany!$I$4)+(BG23*SageDataCompany!$I$5)+(BH23*SageDataCompany!$I$6)+(BI23*SageDataCompany!$I$7)+(BJ23*SageDataCompany!$I$8)+(BK23*SageDataCompany!$I$9)+(BL23*SageDataCompany!$I$10)+(BM23*SageDataCompany!$I$11)+(BN23*SageDataCompany!$I$12)+(BO23*SageDataCompany!$I$13) -> 0 | DM23: =(BP23*SageDataCompany!$I$2)+(BQ23*SageDataCompany!$I$3)+(BR23*SageDataCompany!$I$4)+(BS23*SageDataCompany!$I$5)+(BT23*SageDataCompany!$I$6)+(BU23*SageDataCompany!$I$7)+(BV23*SageDataCompany!$I$8)+(BW23*SageDataCompany!$I$9)+(BX23*SageDataCompany!$I$10)+(BY23*SageDataCompany!$I$11)+(BZ23*SageDataCompany!$I$12)+(CA23*SageDataCompany!$I$13) -> 0 | DN23: 0 | DO23: 0 | DT23: =Table_Query_from_SageLine50v17[[#This Row],[PY Mth1]]+Table_Query_from_SageLine50v17[[#This Row],[PY Mth2]]+Table_Query_from_SageLine50v17[[#This Row],[PY Mth3]]+Table_Query_from_SageLine50v17[[#This Row],[PY Mth4]]+Table_Query_from_SageLine50v17[[#This Row],[PY Mth5]]+Table_Query_from_SageLine50v17[[#This Row],[PY Mth6]]+Table_Query_from_SageLine50v17[[#This Row],[PY Mth7]]+Table_Query_from_SageLine50v17[[#This Row],[PY Mth8]]+Table_Query_from_SageLine50v17[[#This Row],[PY Mth9]]+Table_Query_from_SageLine50v17[[#This Row],[PY Mth10]]+Table_Query_from_SageLine50v17[[#This Row],[PY Mth11]]+Table_Query_from_SageLine50v17[[#This Row],[PY Mth12]] -> 0
A24: 3350 | B24: Hall Rental | C24: 0 | D24: 0 | E24: 0 | F24: 0 | G24: 0 | H24: 0 | I24: 0 | J24: 0 | K24: 0 | L24: -800 | M24: -1560 | N24: 0 | O24: 0 | P24: 0 | Q24: 0 | R24: 0 | S24: 0 | T24: 0 | U24: 0 | V24: 0 | W24: 0 | X24: 0 | Y24: 0 | Z24: 0 | AA24: 0 | AB24: 0 | AC24: 0 | AD24: 0 | AE24: 0 | AF24: 0 | AG24: 0 | AH24: 0 | AI24: 0 | AJ24: 0 | AK24: 0 | AL24: 0 | AM24: 0 | AN24: =IF(VLOOKUP(A24,DR_ODBC_COALIST,16,FALSE),CONCATENATE("9999"," - ",SageDataCOAList!$L$2),SageData!$A24&" - "&SageData!$B24) -> 3350 - Hall Rental | AO24: 1 | AP24: -1 | AQ24: 1 | AR24: 0 | AS24: 0 | AT24: 0 | AU24: 0 | AV24: 0 | AW24: 0 | AX24: 0 | AY24: 0 | AZ24: 0 | BA24: 800 | BB24: 1560 | BC24: 0 | BD24: 0 | BE24: 0 | BF24: 0 | BG24: 0 | BH24: 0 | BI24: 0 | BJ24: 0 | BK24: 0 | BL24: 0 | BM24: 0 | BN24: 0 | BO24: 0 | BP24: 0 | BQ24: 0 | BR24: 0 | BS24: 0 | BT24: 0 | BU24: 0 | BV24: 0 | BW24: 0 | BX24: 0 | BY24: 0 | BZ24: 0 | CA24: 0 | CB24: 0 | CC24: 0 | CD24: 0 | CE24: 0 | CF24: 0 | CG24: 0 | CH24: 0 | CI24: 0 | CJ24: 0 | CK24: 800 | CL24: 1560 | CM24: 0 | CN24: 0 | CO24: 0 | CP24: 0 | CQ24: 0 | CR24: 0 | CS24: 0 | CT24: 0 | CU24: 0 | CV24: 0 | CW24: 800 | CX24: 1560 | CY24: 0 | CZ24: 002 | DA24: 01 | DB24: Sales | DC24: School Generated Income | DD24: 01 - Sales | DE24: 002 - School Generated Income | DF24: =(AR24*SageDataCompany!$H$2)+(AS24*SageDataCompany!$H$3)+(AT24*SageDataCompany!$H$4)+(AU24*SageDataCompany!$H$5)+(AV24*SageDataCompany!$H$6)+(AW24*SageDataCompany!$H$7)+(AX24*SageDataCompany!$H$8)+(AY24*SageDataCompany!$H$9)+(AZ24*SageDataCompany!$H$10)+(BA24*SageDataCompany!$H$11)+(BB24*SageDataCompany!$H$12)+(BC24*SageDataCompany!$H$13) -> 2360 | DG24: =(BD24*SageDataCompany!$H$2)+(BE24*SageDataCompany!$H$3)+(BF24*SageDataCompany!$H$4)+(BG24*SageDataCompany!$H$5)+(BH24*SageDataCompany!$H$6)+(BI24*SageDataCompany!$H$7)+(BJ24*SageDataCompany!$H$8)+(BK24*SageDataCompany!$H$9)+(BL24*SageDataCompany!$H$10)+(BM24*SageDataCompany!$H$11)+(BN24*SageDataCompany!$H$12)+(BO24*SageDataCompany!$H$13) -> 0 | DH24: =(BP24*SageDataCompany!$H$2)+(BQ24*SageDataCompany!$H$3)+(BR24*SageDataCompany!$H$4)+(BS24*SageDataCompany!$H$5)+(BT24*SageDataCompany!$H$6)+(BU24*SageDataCompany!$H$7)+(BV24*SageDataCompany!$H$8)+(BW24*SageDataCompany!$H$9)+(BX24*SageDataCompany!$H$10)+(BY24*SageDataCompany!$H$11)+(BZ24*SageDataCompany!$H$12)+(CA24*SageDataCompany!$H$13) -> 0 | DI24: 2360 | DJ24: 2360 | DK24: =(AR24*SageDataCompany!$I$2)+(AS24*SageDataCompany!$I$3)+(AT24*SageDataCompany!$I$4)+(AU24*SageDataCompany!$I$5)+(AV24*SageDataCompany!$I$6)+(AW24*SageDataCompany!$I$7)+(AX24*SageDataCompany!$I$8)+(AY24*SageDataCompany!$I$9)+(AZ24*SageDataCompany!$I$10)+(BA24*SageDataCompany!$I$11)+(BB24*SageDataCompany!$I$12)+(BC24*SageDataCompany!$I$13) -> 2360 | DL24: =(BD24*SageDataCompany!$I$2)+(BE24*SageDataCompany!$I$3)+(BF24*SageDataCompany!$I$4)+(BG24*SageDataCompany!$I$5)+(BH24*SageDataCompany!$I$6)+(BI24*SageDataCompany!$I$7)+(BJ24*SageDataCompany!$I$8)+(BK24*SageDataCompany!$I$9)+(BL24*SageDataCompany!$I$10)+(BM24*SageDataCompany!$I$11)+(BN24*SageDataCompany!$I$12)+(BO24*SageDataCompany!$I$13) -> 0 | DM24: =(BP24*SageDataCompany!$I$2)+(BQ24*SageDataCompany!$I$3)+(BR24*SageDataCompany!$I$4)+(BS24*SageDataCompany!$I$5)+(BT24*SageDataCompany!$I$6)+(BU24*SageDataCompany!$I$7)+(BV24*SageDataCompany!$I$8)+(BW24*SageDataCompany!$I$9)+(BX24*SageDataCompany!$I$10)+(BY24*SageDataCompany!$I$11)+(BZ24*SageDataCompany!$I$12)+(CA24*SageDataCompany!$I$13) -> 0 | DN24: 2360 | DO24: 2360 | DP24: Yes | DS24: Yes | DT24: =Table_Query_from_SageLine50v17[[#This Row],[PY Mth1]]+Table_Query_from_SageLine50v17[[#This Row],[PY Mth2]]+Table_Query_from_SageLine50v17[[#This Row],[PY Mth3]]+Table_Query_from_SageLine50v17[[#This Row],[PY Mth4]]+Table_Query_from_SageLine50v17[[#This Row],[PY Mth5]]+Table_Query_from_SageLine50v17[[#This Row],[PY Mth6]]+Table_Query_from_SageLine50v17[[#This Row],[PY Mth7]]+Table_Query_from_SageLine50v17[[#This Row],[PY Mth8]]+Table_Query_from_SageLine50v17[[#This Row],[PY Mth9]]+Table_Query_from_SageLine50v17[[#This Row],[PY Mth10]]+Table_Query_from_SageLine50v17[[#This Row],[PY Mth11]]+Table_Query_from_SageLine50v17[[#This Row],[PY Mth12]] -> 0
A25: 3370 | B25: Locker Receipts | C25: 0 | D25: 0 | E25: 0 | F25: 0 | G25: 0 | H25: 0 | I25: 0 | J25: 0 | K25: 0 | L25: 0 | M25: 0 | N25: 0 | O25: 0 | P25: 0 | Q25: 0 | R25: 0 | S25: 0 | T25: 0 | U25: 0 | V25: 0 | W25: 0 | X25: 0 | Y25: 0 | Z25: 0 | AA25: 0 | AB25: 0 | AC25: 0 | AD25: 0 | AE25: 0 | AF25: 0 | AG25: 0 | AH25: 0 | AI25: 0 | AJ25: 0 | AK25: 0 | AL25: 0 | AM25: 0 | AN25: =IF(VLOOKUP(A25,DR_ODBC_COALIST,16,FALSE),CONCATENATE("9999"," - ",SageDataCOAList!$L$2),SageData!$A25&" - "&SageData!$B25) -> 3370 - Locker Receipts | AO25: 1 | AP25: -1 | AQ25: 1 | AR25: 0 | AS25: 0 | AT25: 0 | AU25: 0 | AV25: 0 | AW25: 0 | AX25: 0 | AY25: 0 | AZ25: 0 | BA25: 0 | BB25: 0 | BC25: 0 | BD25: 0 | BE25: 0 | BF25: 0 | BG25: 0 | BH25: 0 | BI25: 0 | BJ25: 0 | BK25: 0 | BL25: 0 | BM25: 0 | BN25: 0 | BO25: 0 | BP25: 0 | BQ25: 0 | BR25: 0 | BS25: 0 | BT25: 0 | BU25: 0 | BV25: 0 | BW25: 0 | BX25: 0 | BY25: 0 | BZ25: 0 | CA25: 0 | CB25: 0 | CC25: 0 | CD25: 0 | CE25: 0 | CF25: 0 | CG25: 0 | CH25: 0 | CI25: 0 | CJ25: 0 | CK25: 0 | CL25: 0 | CM25: 0 | CN25: 0 | CO25: 0 | CP25: 0 | CQ25: 0 | CR25: 0 | CS25: 0 | CT25: 0 | CU25: 0 | CV25: 0 | CW25: 0 | CX25: 0 | CY25: 0 | CZ25: 002 | DA25: 01 | DB25: Sales | DC25: School Generated Income | DD25: 01 - Sales | DE25: 002 - School Generated Income | DF25: =(AR25*SageDataCompany!$H$2)+(AS25*SageDataCompany!$H$3)+(AT25*SageDataCompany!$H$4)+(AU25*SageDataCompany!$H$5)+(AV25*SageDataCompany!$H$6)+(AW25*SageDataCompany!$H$7)+(AX25*SageDataCompany!$H$8)+(AY25*SageDataCompany!$H$9)+(AZ25*SageDataCompany!$H$10)+(BA25*SageDataCompany!$H$11)+(BB25*SageDataCompany!$H$12)+(BC25*SageDataCompany!$H$13) -> 0 | DG25: =(BD25*SageDataCompany!$H$2)+(BE25*SageDataCompany!$H$3)+(BF25*SageDataCompany!$H$4)+(BG25*SageDataCompany!$H$5)+(BH25*SageDataCompany!$H$6)+(BI25*SageDataCompany!$H$7)+(BJ25*SageDataCompany!$H$8)+(BK25*SageDataCompany!$H$9)+(BL25*SageDataCompany!$H$10)+(BM25*SageDataCompany!$H$11)+(BN25*SageDataCompany!$H$12)+(BO25*SageDataCompany!$H$13) -> 0 | DH25: =(BP25*SageDataCompany!$H$2)+(BQ25*SageDataCompany!$H$3)+(BR25*SageDataCompany!$H$4)+(BS25*SageDataCompany!$H$5)+(BT25*SageDataCompany!$H$6)+(BU25*SageDataCompany!$H$7)+(BV25*SageDataCompany!$H$8)+(BW25*SageDataCompany!$H$9)+(BX25*SageDataCompany!$H$10)+(BY25*SageDataCompany!$H$11)+(BZ25*SageDataCompany!$H$12)+(CA25*SageDataCompany!$H$13) -> 0 | DI25: 0 | DJ25: 0 | DK25: =(AR25*SageDataCompany!$I$2)+(AS25*SageDataCompany!$I$3)+(AT25*SageDataCompany!$I$4)+(AU25*SageDataCompany!$I$5)+(AV25*SageDataCompany!$I$6)+(AW25*SageDataCompany!$I$7)+(AX25*SageDataCompany!$I$8)+(AY25*SageDataCompany!$I$9)+(AZ25*SageDataCompany!$I$10)+(BA25*SageDataCompany!$I$11)+(BB25*SageDataCompany!$I$12)+(BC25*SageDataCompany!$I$13) -> 0 | DL25: =(BD25*SageDataCompany!$I$2)+(BE25*SageDataCompany!$I$3)+(BF25*SageDataCompany!$I$4)+(BG25*SageDataCompany!$I$5)+(BH25*SageDataCompany!$I$6)+(BI25*SageDataCompany!$I$7)+(BJ25*SageDataCompany!$I$8)+(BK25*SageDataCompany!$I$9)+(BL25*SageDataCompany!$I$10)+(BM25*SageDataCompany!$I$11)+(BN25*SageDataCompany!$I$12)+(BO25*SageDataCompany!$I$13) -> 0 | DM25: =(BP25*SageDataCompany!$I$2)+(BQ25*SageDataCompany!$I$3)+(BR25*SageDataCompany!$I$4)+(BS25*SageDataCompany!$I$5)+(BT25*SageDataCompany!$I$6)+(BU25*SageDataCompany!$I$7)+(BV25*SageDataCompany!$I$8)+(BW25*SageDataCompany!$I$9)+(BX25*SageDataCompany!$I$10)+(BY25*SageDataCompany!$I$11)+(BZ25*SageDataCompany!$I$12)+(CA25*SageDataCompany!$I$13) -> 0 | DN25: 0 | DO25: 0 | DT25: =Table_Query_from_SageLine50v17[[#This Row],[PY Mth1]]+Table_Query_from_SageLine50v17[[#This Row],[PY Mth2]]+Table_Query_from_SageLine50v17[[#This Row],[PY Mth3]]+Table_Query_from_SageLine50v17[[#This Row],[PY Mth4]]+Table_Query_from_SageLine50v17[[#This Row],[PY Mth5]]+Table_Query_from_SageLine50v17[[#This Row],[PY Mth6]]+Table_Query_from_SageLine50v17[[#This Row],[PY Mth7]]+Table_Query_from_SageLine50v17[[#This Row],[PY Mth8]]+Table_Query_from_SageLine50v17[[#This Row],[PY Mth9]]+Table_Query_from_SageLine50v17[[#This Row],[PY Mth10]]+Table_Query_from_SageLine50v17[[#This Row],[PY Mth11]]+Table_Query_from_SageLine50v17[[#This Row],[PY Mth12]] -> 0
A26: 3375 | B26: Journals & Year Book Income | C26: 0 | D26: 0 | E26: 0 | F26: 0 | G26: 0 | H26: 0 | I26: 0 | J26: 0 | K26: 0 | L26: -1500 | M26: 0 | N26: 0 | O26: 0 | P26: 0 | Q26: 0 | R26: 0 | S26: 0 | T26: 0 | U26: 0 | V26: 0 | W26: 0 | X26: 0 | Y26: 0 | Z26: 0 | AA26: 0 | AB26: 0 | AC26: 0 | AD26: 0 | AE26: 0 | AF26: 0 | AG26: 0 | AH26: 0 | AI26: 0 | AJ26: 0 | AK26: 0 | AL26: 0 | AM26: 0 | AN26: =IF(VLOOKUP(A26,DR_ODBC_COALIST,16,FALSE),CONCATENATE("9999"," - ",SageDataCOAList!$L$2),SageData!$A26&" - "&SageData!$B26) -> 3375 - Journals & Year Book Income | AO26: 1 | AP26: -1 | AQ26: 1 | AR26: 0 | AS26: 0 | AT26: 0 | AU26: 0 | AV26: 0 | AW26: 0 | AX26: 0 | AY26: 0 | AZ26: 0 | BA26: 1500 | BB26: 0 | BC26: 0 | BD26: 0 | BE26: 0 | BF26: 0 | BG26: 0 | BH26: 0 | BI26: 0 | BJ26: 0 | BK26: 0 | BL26: 0 | BM26: 0 | BN26: 0 | BO26: 0 | BP26: 0 | BQ26: 0 | BR26: 0 | BS26: 0 | BT26: 0 | BU26: 0 | BV26: 0 | BW26: 0 | BX26: 0 | BY26: 0 | BZ26: 0 | CA26: 0 | CB26: 0 | CC26: 0 | CD26: 0 | CE26: 0 | CF26: 0 | CG26: 0 | CH26: 0 | CI26: 0 | CJ26: 0 | CK26: 1500 | CL26: 0 | CM26: 0 | CN26: 0 | CO26: 0 | CP26: 0 | CQ26: 0 | CR26: 0 | CS26: 0 | CT26: 0 | CU26: 0 | CV26: 0 | CW26: 1500 | CX26: 0 | CY26: 0 | CZ26: 002 | DA26: 01 | DB26: Sales | DC26: School Generated Income | DD26: 01 - Sales | DE26: 002 - School Generated Income | DF26: =(AR26*SageDataCompany!$H$2)+(AS26*SageDataCompany!$H$3)+(AT26*SageDataCompany!$H$4)+(AU26*SageDataCompany!$H$5)+(AV26*SageDataCompany!$H$6)+(AW26*SageDataCompany!$H$7)+(AX26*SageDataCompany!$H$8)+(AY26*SageDataCompany!$H$9)+(AZ26*SageDataCompany!$H$10)+(BA26*SageDataCompany!$H$11)+(BB26*SageDataCompany!$H$12)+(BC26*SageDataCompany!$H$13) -> 1500 | DG26: =(BD26*SageDataCompany!$H$2)+(BE26*SageDataCompany!$H$3)+(BF26*SageDataCompany!$H$4)+(BG26*SageDataCompany!$H$5)+(BH26*SageDataCompany!$H$6)+(BI26*SageDataCompany!$H$7)+(BJ26*SageDataCompany!$H$8)+(BK26*SageDataCompany!$H$9)+(BL26*SageDataCompany!$H$10)+(BM26*SageDataCompany!$H$11)+(BN26*SageDataCompany!$H$12)+(BO26*SageDataCompany!$H$13) -> 0 | DH26: =(BP26*SageDataCompany!$H$2)+(BQ26*SageDataCompany!$H$3)+(BR26*SageDataCompany!$H$4)+(BS26*SageDataCompany!$H$5)+(BT26*SageDataCompany!$H$6)+(BU26*SageDataCompany!$H$7)+(BV26*SageDataCompany!$H$8)+(BW26*SageDataCompany!$H$9)+(BX26*SageDataCompany!$H$10)+(BY26*SageDataCompany!$H$11)+(BZ26*SageDataCompany!$H$12)+(CA26*SageDataCompany!$H$13) -> 0 | DI26: 1500 | DJ26: 1500 | DK26: =(AR26*SageDataCompany!$I$2)+(AS26*SageDataCompany!$I$3)+(AT26*SageDataCompany!$I$4)+(AU26*SageDataCompany!$I$5)+(AV26*SageDataCompany!$I$6)+(AW26*SageDataCompany!$I$7)+(AX26*SageDataCompany!$I$8)+(AY26*SageDataCompany!$I$9)+(AZ26*SageDataCompany!$I$10)+(BA26*SageDataCompany!$I$11)+(BB26*SageDataCompany!$I$12)+(BC26*SageDataCompany!$I$13) -> 1500 | DL26: =(BD26*SageDataCompany!$I$2)+(BE26*SageDataCompany!$I$3)+(BF26*SageDataCompany!$I$4)+(BG26*SageDataCompany!$I$5)+(BH26*SageDataCompany!$I$6)+(BI26*SageDataCompany!$I$7)+(BJ26*SageDataCompany!$I$8)+(BK26*SageDataCompany!$I$9)+(BL26*SageDataCompany!$I$10)+(BM26*SageDataCompany!$I$11)+(BN26*SageDataCompany!$I$12)+(BO26*SageDataCompany!$I$13) -> 0 | DM26: =(BP26*SageDataCompany!$I$2)+(BQ26*SageDataCompany!$I$3)+(BR26*SageDataCompany!$I$4)+(BS26*SageDataCompany!$I$5)+(BT26*SageDataCompany!$I$6)+(BU26*SageDataCompany!$I$7)+(BV26*SageDataCompany!$I$8)+(BW26*SageDataCompany!$I$9)+(BX26*SageDataCompany!$I$10)+(BY26*SageDataCompany!$I$11)+(BZ26*SageDataCompany!$I$12)+(CA26*SageDataCompany!$I$13) -> 0 | DN26: 1500 | DO26: 1500 | DP26: Yes | DS26: Yes | DT26: =Table_Query_from_SageLine50v17[[#This Row],[PY Mth1]]+Table_Query_from_SageLine50v17[[#This Row],[PY Mth2]]+Table_Query_from_SageLine50v17[[#This Row],[PY Mth3]]+Table_Query_from_SageLine50v17[[#This Row],[PY Mth4]]+Table_Query_from_SageLine50v17[[#This Row],[PY Mth5]]+Table_Query_from_SageLine50v17[[#This Row],[PY Mth6]]+Table_Query_from_SageLine50v17[[#This Row],[PY Mth7]]+Table_Query_from_SageLine50v17[[#This Row],[PY Mth8]]+Table_Query_from_SageLine50v17[[#This Row],[PY Mth9]]+Table_Query_from_SageLine50v17[[#This Row],[PY Mth10]]+Table_Query_from_SageLine50v17[[#This Row],[PY Mth11]]+Table_Query_from_SageLine50v17[[#This Row],[PY Mth12]] -> 0
A27: 3390 | B27: School Administration Charges | C27: 0 | D27: 0 | E27: 0 | F27: 0 | G27: 0 | H27: 0 | I27: 0 | J27: 0 | K27: 0 | L27: 0 | M27: 0 | N27: 0 | O27: 0 | P27: 0 | Q27: 0 | R27: 0 | S27: 0 | T27: 0 | U27: 0 | V27: 0 | W27: 0 | X27: 0 | Y27: 0 | Z27: 0 | AA27: 0 | AB27: 0 | AC27: 0 | AD27: 0 | AE27: 0 | AF27: 0 | AG27: 0 | AH27: 0 | AI27: 0 | AJ27: 0 | AK27: 0 | AL27: 0 | AM27: 0 | AN27: =IF(VLOOKUP(A27,DR_ODBC_COALIST,16,FALSE),CONCATENATE("9999"," - ",SageDataCOAList!$L$2),SageData!$A27&" - "&SageData!$B27) -> 3390 - School Administration Charges | AO27: 1 | AP27: -1 | AQ27: 1 | AR27: 0 | AS27: 0 | AT27: 0 | AU27: 0 | AV27: 0 | AW27: 0 | AX27: 0 | AY27: 0 | AZ27: 0 | BA27: 0 | BB27: 0 | BC27: 0 | BD27: 0 | BE27: 0 | BF27: 0 | BG27: 0 | BH27: 0 | BI27: 0 | BJ27: 0 | BK27: 0 | BL27: 0 | BM27: 0 | BN27: 0 | BO27: 0 | BP27: 0 | BQ27: 0 | BR27: 0 | BS27: 0 | BT27: 0 | BU27: 0 | BV27: 0 | BW27: 0 | BX27: 0 | BY27: 0 | BZ27: 0 | CA27: 0 | CB27: 0 | CC27: 0 | CD27: 0 | CE27: 0 | CF27: 0 | CG27: 0 | CH27: 0 | CI27: 0 | CJ27: 0 | CK27: 0 | CL27: 0 | CM27: 0 | CN27: 0 | CO27: 0 | CP27: 0 | CQ27: 0 | CR27: 0 | CS27: 0 | CT27: 0 | CU27: 0 | CV27: 0 | CW27: 0 | CX27: 0 | CY27: 0 | CZ27: 002 | DA27: 01 | DB27: Sales | DC27: School Generated Income | DD27: 01 - Sales | DE27: 002 - School Generated Income | DF27: =(AR27*SageDataCompany!$H$2)+(AS27*SageDataCompany!$H$3)+(AT27*SageDataCompany!$H$4)+(AU27*SageDataCompany!$H$5)+(AV27*SageDataCompany!$H$6)+(AW27*SageDataCompany!$H$7)+(AX27*SageDataCompany!$H$8)+(AY27*SageDataCompany!$H$9)+(AZ27*SageDataCompany!$H$10)+(BA27*SageDataCompany!$H$11)+(BB27*SageDataCompany!$H$12)+(BC27*SageDataCompany!$H$13) -> 0 | DG27: =(BD27*SageDataCompany!$H$2)+(BE27*SageDataCompany!$H$3)+(BF27*SageDataCompany!$H$4)+(BG27*SageDataCompany!$H$5)+(BH27*SageDataCompany!$H$6)+(BI27*SageDataCompany!$H$7)+(BJ27*SageDataCompany!$H$8)+(BK27*SageDataCompany!$H$9)+(BL27*SageDataCompany!$H$10)+(BM27*SageDataCompany!$H$11)+(BN27*SageDataCompany!$H$12)+(BO27*SageDataCompany!$H$13) -> 0 | DH27: =(BP27*SageDataCompany!$H$2)+(BQ27*SageDataCompany!$H$3)+(BR27*SageDataCompany!$H$4)+(BS27*SageDataCompany!$H$5)+(BT27*SageDataCompany!$H$6)+(BU27*SageDataCompany!$H$7)+(BV27*SageDataCompany!$H$8)+(BW27*SageDataCompany!$H$9)+(BX27*SageDataCompany!$H$10)+(BY27*SageDataCompany!$H$11)+(BZ27*SageDataCompany!$H$12)+(CA27*SageDataCompany!$H$13) -> 0 | DI27: 0 | DJ27: 0 | DK27: =(AR27*SageDataCompany!$I$2)+(AS27*SageDataCompany!$I$3)+(AT27*SageDataCompany!$I$4)+(AU27*SageDataCompany!$I$5)+(AV27*SageDataCompany!$I$6)+(AW27*SageDataCompany!$I$7)+(AX27*SageDataCompany!$I$8)+(AY27*SageDataCompany!$I$9)+(AZ27*SageDataCompany!$I$10)+(BA27*SageDataCompany!$I$11)+(BB27*SageDataCompany!$I$12)+(BC27*SageDataCompany!$I$13) -> 0 | DL27: =(BD27*SageDataCompany!$I$2)+(BE27*SageDataCompany!$I$3)+(BF27*SageDataCompany!$I$4)+(BG27*SageDataCompany!$I$5)+(BH27*SageDataCompany!$I$6)+(BI27*SageDataCompany!$I$7)+(BJ27*SageDataCompany!$I$8)+(BK27*SageDataCompany!$I$9)+(BL27*SageDataCompany!$I$10)+(BM27*SageDataCompany!$I$11)+(BN27*SageDataCompany!$I$12)+(BO27*SageDataCompany!$I$13) -> 0 | DM27: =(BP27*SageDataCompany!$I$2)+(BQ27*SageDataCompany!$I$3)+(BR27*SageDataCompany!$I$4)+(BS27*SageDataCompany!$I$5)+(BT27*SageDataCompany!$I$6)+(BU27*SageDataCompany!$I$7)+(BV27*SageDataCompany!$I$8)+(BW27*SageDataCompany!$I$9)+(BX27*SageDataCompany!$I$10)+(BY27*SageDataCompany!$I$11)+(BZ27*SageDataCompany!$I$12)+(CA27*SageDataCompany!$I$13) -> 0 | DN27: 0 | DO27: 0 | DT27: =Table_Query_from_SageLine50v17[[#This Row],[PY Mth1]]+Table_Query_from_SageLine50v17[[#This Row],[PY Mth2]]+Table_Query_from_SageLine50v17[[#This Row],[PY Mth3]]+Table_Query_from_SageLine50v17[[#This Row],[PY Mth4]]+Table_Query_from_SageLine50v17[[#This Row],[PY Mth5]]+Table_Query_from_SageLine50v17[[#This Row],[PY Mth6]]+Table_Query_from_SageLine50v17[[#This Row],[PY Mth7]]+Table_Query_from_SageLine50v17[[#This Row],[PY Mth8]]+Table_Query_from_SageLine50v17[[#This Row],[PY Mth9]]+Table_Query_from_SageLine50v17[[#This Row],[PY Mth10]]+Table_Query_from_SageLine50v17[[#This Row],[PY Mth11]]+Table_Query_from_SageLine50v17[[#This Row],[PY Mth12]] -> 0
A28: 3410 | B28: Adult Education Grant | C28: 0 | D28: 0 | E28: 0 | F28: 0 | G28: 0 | H28: 0 | I28: 0 | J28: 0 | K28: 0 | L28: 0 | M28: 0 | N28: 0 | O28: 0 | P28: 0 | Q28: 0 | R28: 0 | S28: 0 | T28: 0 | U28: 0 | V28: 0 | W28: 0 | X28: 0 | Y28: 0 | Z28: 0 | AA28: 0 | AB28: 0 | AC28: 0 | AD28: 0 | AE28: 0 | AF28: 0 | AG28: 0 | AH28: 0 | AI28: 0 | AJ28: 0 | AK28: 0 | AL28: 0 | AM28: 0 | AN28: =IF(VLOOKUP(A28,DR_ODBC_COALIST,16,FALSE),CONCATENATE("9999"," - ",SageDataCOAList!$L$2),SageData!$A28&" - "&SageData!$B28) -> 3410 - Adult Education Grant | AO28: 1 | AP28: -1 | AQ28: 1 | AR28: 0 | AS28: 0 | AT28: 0 | AU28: 0 | AV28: 0 | AW28: 0 | AX28: 0 | AY28: 0 | AZ28: 0 | BA28: 0 | BB28: 0 | BC28: 0 | BD28: 0 | BE28: 0 | BF28: 0 | BG28: 0 | BH28: 0 | BI28: 0 | BJ28: 0 | BK28: 0 | BL28: 0 | BM28: 0 | BN28: 0 | BO28: 0 | BP28: 0 | BQ28: 0 | BR28: 0 | BS28: 0 | BT28: 0 | BU28: 0 | BV28: 0 | BW28: 0 | BX28: 0 | BY28: 0 | BZ28: 0 | CA28: 0 | CB28: 0 | CC28: 0 | CD28: 0 | CE28: 0 | CF28: 0 | CG28: 0 | CH28: 0 | CI28: 0 | CJ28: 0 | CK28: 0 | CL28: 0 | CM28: 0 | CN28: 0 | CO28: 0 | CP28: 0 | CQ28: 0 | CR28: 0 | CS28: 0 | CT28: 0 | CU28: 0 | CV28: 0 | CW28: 0 | CX28: 0 | CY28: 0 | CZ28: 002 | DA28: 01 | DB28: Sales | DC28: School Generated Income | DD28: 01 - Sales | DE28: 002 - School Generated Income | DF28: =(AR28*SageDataCompany!$H$2)+(AS28*SageDataCompany!$H$3)+(AT28*SageDataCompany!$H$4)+(AU28*SageDataCompany!$H$5)+(AV28*SageDataCompany!$H$6)+(AW28*SageDataCompany!$H$7)+(AX28*SageDataCompany!$H$8)+(AY28*SageDataCompany!$H$9)+(AZ28*SageDataCompany!$H$10)+(BA28*SageDataCompany!$H$11)+(BB28*SageDataCompany!$H$12)+(BC28*SageDataCompany!$H$13) -> 0 | DG28: =(BD28*SageDataCompany!$H$2)+(BE28*SageDataCompany!$H$3)+(BF28*SageDataCompany!$H$4)+(BG28*SageDataCompany!$H$5)+(BH28*SageDataCompany!$H$6)+(BI28*SageDataCompany!$H$7)+(BJ28*SageDataCompany!$H$8)+(BK28*SageDataCompany!$H$9)+(BL28*SageDataCompany!$H$10)+(BM28*SageDataCompany!$H$11)+(BN28*SageDataCompany!$H$12)+(BO28*SageDataCompany!$H$13) -> 0 | DH28: =(BP28*SageDataCompany!$H$2)+(BQ28*SageDataCompany!$H$3)+(BR28*SageDataCompany!$H$4)+(BS28*SageDataCompany!$H$5)+(BT28*SageDataCompany!$H$6)+(BU28*SageDataCompany!$H$7)+(BV28*SageDataCompany!$H$8)+(BW28*SageDataCompany!$H$9)+(BX28*SageDataCompany!$H$10)+(BY28*SageDataCompany!$H$11)+(BZ28*SageDataCompany!$H$12)+(CA28*SageDataCompany!$H$13) -> 0 | DI28: 0 | DJ28: 0 | DK28: =(AR28*SageDataCompany!$I$2)+(AS28*SageDataCompany!$I$3)+(AT28*SageDataCompany!$I$4)+(AU28*SageDataCompany!$I$5)+(AV28*SageDataCompany!$I$6)+(AW28*SageDataCompany!$I$7)+(AX28*SageDataCompany!$I$8)+(AY28*SageDataCompany!$I$9)+(AZ28*SageDataCompany!$I$10)+(BA28*SageDataCompany!$I$11)+(BB28*SageDataCompany!$I$12)+(BC28*SageDataCompany!$I$13) -> 0 | DL28: =(BD28*SageDataCompany!$I$2)+(BE28*SageDataCompany!$I$3)+(BF28*SageDataCompany!$I$4)+(BG28*SageDataCompany!$I$5)+(BH28*SageDataCompany!$I$6)+(BI28*SageDataCompany!$I$7)+(BJ28*SageDataCompany!$I$8)+(BK28*SageDataCompany!$I$9)+(BL28*SageDataCompany!$I$10)+(BM28*SageDataCompany!$I$11)+(BN28*SageDataCompany!$I$12)+(BO28*SageDataCompany!$I$13) -> 0 | DM28: =(BP28*SageDataCompany!$I$2)+(BQ28*SageDataCompany!$I$3)+(BR28*SageDataCompany!$I$4)+(BS28*SageDataCompany!$I$5)+(BT28*SageDataCompany!$I$6)+(BU28*SageDataCompany!$I$7)+(BV28*SageDataCompany!$I$8)+(BW28*SageDataCompany!$I$9)+(BX28*SageDataCompany!$I$10)+(BY28*SageDataCompany!$I$11)+(BZ28*SageDataCompany!$I$12)+(CA28*SageDataCompany!$I$13) -> 0 | DN28: 0 | DO28: 0 | DT28: =Table_Query_from_SageLine50v17[[#This Row],[PY Mth1]]+Table_Query_from_SageLine50v17[[#This Row],[PY Mth2]]+Table_Query_from_SageLine50v17[[#This Row],[PY Mth3]]+Table_Query_from_SageLine50v17[[#This Row],[PY Mth4]]+Table_Query_from_SageLine50v17[[#This Row],[PY Mth5]]+Table_Query_from_SageLine50v17[[#This Row],[PY Mth6]]+Table_Query_from_SageLine50v17[[#This Row],[PY Mth7]]+Table_Query_from_SageLine50v17[[#This Row],[PY Mth8]]+Table_Query_from_SageLine50v17[[#This Row],[PY Mth9]]+Table_Query_from_SageLine50v17[[#This Row],[PY Mth10]]+Table_Query_from_SageLine50v17[[#This Row],[PY Mth11]]+Table_Query_from_SageLine50v17[[#This Row],[PY Mth12]] -> 0
A29: 3420 | B29: Canteen Income | C29: 0 | D29: 0 | E29: 0 | F29: 0 | G29: 0 | H29: 0 | I29: 0 | J29: 0 | K29: 0 | L29: 0 | M29: 0 | N29: 0 | O29: 0 | P29: 0 | Q29: 0 | R29: 0 | S29: 0 | T29: 0 | U29: 0 | V29: 0 | W29: 0 | X29: 0 | Y29: 0 | Z29: 0 | AA29: 0 | AB29: 0 | AC29: 0 | AD29: 0 | AE29: 0 | AF29: 0 | AG29: 0 | AH29: 0 | AI29: 0 | AJ29: 0 | AK29: 0 | AL29: 0 | AM29: 0 | AN29: =IF(VLOOKUP(A29,DR_ODBC_COALIST,16,FALSE),CONCATENATE("9999"," - ",SageDataCOAList!$L$2),SageData!$A29&" - "&SageData!$B29) -> 3420 - Canteen Income | AO29: 1 | AP29: -1 | AQ29: 1 | AR29: 0 | AS29: 0 | AT29: 0 | AU29: 0 | AV29: 0 | AW29: 0 | AX29: 0 | AY29: 0 | AZ29: 0 | BA29: 0 | BB29: 0 | BC29: 0 | BD29: 0 | BE29: 0 | BF29: 0 | BG29: 0 | BH29: 0 | BI29: 0 | BJ29: 0 | BK29: 0 | BL29: 0 | BM29: 0 | BN29: 0 | BO29: 0 | BP29: 0 | BQ29: 0 | BR29: 0 | BS29: 0 | BT29: 0 | BU29: 0 | BV29: 0 | BW29: 0 | BX29: 0 | BY29: 0 | BZ29: 0 | CA29: 0 | CB29: 0 | CC29: 0 | CD29: 0 | CE29: 0 | CF29: 0 | CG29: 0 | CH29: 0 | CI29: 0 | CJ29: 0 | CK29: 0 | CL29: 0 | CM29: 0 | CN29: 0 | CO29: 0 | CP29: 0 | CQ29: 0 | CR29: 0 | CS29: 0 | CT29: 0 | CU29: 0 | CV29: 0 | CW29: 0 | CX29: 0 | CY29: 0 | CZ29: 002 | DA29: 01 | DB29: Sales | DC29: School Generated Income | DD29: 01 - Sales | DE29: 002 - School Generated Income | DF29: =(AR29*SageDataCompany!$H$2)+(AS29*SageDataCompany!$H$3)+(AT29*SageDataCompany!$H$4)+(AU29*SageDataCompany!$H$5)+(AV29*SageDataCompany!$H$6)+(AW29*SageDataCompany!$H$7)+(AX29*SageDataCompany!$H$8)+(AY29*SageDataCompany!$H$9)+(AZ29*SageDataCompany!$H$10)+(BA29*SageDataCompany!$H$11)+(BB29*SageDataCompany!$H$12)+(BC29*SageDataCompany!$H$13) -> 0 | DG29: =(BD29*SageDataCompany!$H$2)+(BE29*SageDataCompany!$H$3)+(BF29*SageDataCompany!$H$4)+(BG29*SageDataCompany!$H$5)+(BH29*SageDataCompany!$H$6)+(BI29*SageDataCompany!$H$7)+(BJ29*SageDataCompany!$H$8)+(BK29*SageDataCompany!$H$9)+(BL29*SageDataCompany!$H$10)+(BM29*SageDataCompany!$H$11)+(BN29*SageDataCompany!$H$12)+(BO29*SageDataCompany!$H$13) -> 0 | DH29: =(BP29*SageDataCompany!$H$2)+(BQ29*SageDataCompany!$H$3)+(BR29*SageDataCompany!$H$4)+(BS29*SageDataCompany!$H$5)+(BT29*SageDataCompany!$H$6)+(BU29*SageDataCompany!$H$7)+(BV29*SageDataCompany!$H$8)+(BW29*SageDataCompany!$H$9)+(BX29*SageDataCompany!$H$10)+(BY29*SageDataCompany!$H$11)+(BZ29*SageDataCompany!$H$12)+(CA29*SageDataCompany!$H$13) -> 0 | DI29: 0 | DJ29: 0 | DK29: =(AR29*SageDataCompany!$I$2)+(AS29*SageDataCompany!$I$3)+(AT29*SageDataCompany!$I$4)+(AU29*SageDataCompany!$I$5)+(AV29*SageDataCompany!$I$6)+(AW29*SageDataCompany!$I$7)+(AX29*SageDataCompany!$I$8)+(AY29*SageDataCompany!$I$9)+(AZ29*SageDataCompany!$I$10)+(BA29*SageDataCompany!$I$11)+(BB29*SageDataCompany!$I$12)+(BC29*SageDataCompany!$I$13) -> 0 | DL29: =(BD29*SageDataCompany!$I$2)+(BE29*SageDataCompany!$I$3)+(BF29*SageDataCompany!$I$4)+(BG29*SageDataCompany!$I$5)+(BH29*SageDataCompany!$I$6)+(BI29*SageDataCompany!$I$7)+(BJ29*SageDataCompany!$I$8)+(BK29*SageDataCompany!$I$9)+(BL29*SageDataCompany!$I$10)+(BM29*SageDataCompany!$I$11)+(BN29*SageDataCompany!$I$12)+(BO29*SageDataCompany!$I$13) -> 0 | DM29: =(BP29*SageDataCompany!$I$2)+(BQ29*SageDataCompany!$I$3)+(BR29*SageDataCompany!$I$4)+(BS29*SageDataCompany!$I$5)+(BT29*SageDataCompany!$I$6)+(BU29*SageDataCompany!$I$7)+(BV29*SageDataCompany!$I$8)+(BW29*SageDataCompany!$I$9)+(BX29*SageDataCompany!$I$10)+(BY29*SageDataCompany!$I$11)+(BZ29*SageDataCompany!$I$12)+(CA29*SageDataCompany!$I$13) -> 0 | DN29: 0 | DO29: 0 | DT29: =Table_Query_from_SageLine50v17[[#This Row],[PY Mth1]]+Table_Query_from_SageLine50v17[[#This Row],[PY Mth2]]+Table_Query_from_SageLine50v17[[#This Row],[PY Mth3]]+Table_Query_from_SageLine50v17[[#This Row],[PY Mth4]]+Table_Query_from_SageLine50v17[[#This Row],[PY Mth5]]+Table_Query_from_SageLine50v17[[#This Row],[PY Mth6]]+Table_Query_from_SageLine50v17[[#This Row],[PY Mth7]]+Table_Query_from_SageLine50v17[[#This Row],[PY Mth8]]+Table_Query_from_SageLine50v17[[#This Row],[PY Mth9]]+Table_Query_from_SageLine50v17[[#This Row],[PY Mth10]]+Table_Query_from_SageLine50v17[[#This Row],[PY Mth11]]+Table_Query_from_SageLine50v17[[#This Row],[PY Mth12]] -> 0
A30: 3430 | B30: Tuck Shop Income | C30: 0 | D30: 0 | E30: 0 | F30: 0 | G30: 0 | H30: 0 | I30: 0 | J30: 0 | K30: 0 | L30: 0 | M30: 0 | N30: 0 | O30: 0 | P30: 0 | Q30: 0 | R30: 0 | S30: 0 | T30: 0 | U30: 0 | V30: 0 | W30: 0 | X30: 0 | Y30: 0 | Z30: 0 | AA30: 0 | AB30: 0 | AC30: 0 | AD30: 0 | AE30: 0 | AF30: 0 | AG30: 0 | AH30: 0 | AI30: 0 | AJ30: 0 | AK30: 0 | AL30: 0 | AM30: 0 | AN30: =IF(VLOOKUP(A30,DR_ODBC_COALIST,16,FALSE),CONCATENATE("9999"," - ",SageDataCOAList!$L$2),SageData!$A30&" - "&SageData!$B30) -> 3430 - Tuck Shop Income | AO30: 1 | AP30: -1 | AQ30: 1 | AR30: 0 | AS30: 0 | AT30: 0 | AU30: 0 | AV30: 0 | AW30: 0 | AX30: 0 | AY30: 0 | AZ30: 0 | BA30: 0 | BB30: 0 | BC30: 0 | BD30: 0 | BE30: 0 | BF30: 0 | BG30: 0 | BH30: 0 | BI30: 0 | BJ30: 0 | BK30: 0 | BL30: 0 | BM30: 0 | BN30: 0 | BO30: 0 | BP30: 0 | BQ30: 0 | BR30: 0 | BS30: 0 | BT30: 0 | BU30: 0 | BV30: 0 | BW30: 0 | BX30: 0 | BY30: 0 | BZ30: 0 | CA30: 0 | CB30: 0 | CC30: 0 | CD30: 0 | CE30: 0 | CF30: 0 | CG30: 0 | CH30: 0 | CI30: 0 | CJ30: 0 | CK30: 0 | CL30: 0 | CM30: 0 | CN30: 0 | CO30: 0 | CP30: 0 | CQ30: 0 | CR30: 0 | CS30: 0 | CT30: 0 | CU30: 0 | CV30: 0 | CW30: 0 | CX30: 0 | CY30: 0 | CZ30: 002 | DA30: 01 | DB30: Sales | DC30: School Generated Income | DD30: 01 - Sales | DE30: 002 - School Generated Income | DF30: =(AR30*SageDataCompany!$H$2)+(AS30*SageDataCompany!$H$3)+(AT30*SageDataCompany!$H$4)+(AU30*SageDataCompany!$H$5)+(AV30*SageDataCompany!$H$6)+(AW30*SageDataCompany!$H$7)+(AX30*SageDataCompany!$H$8)+(AY30*SageDataCompany!$H$9)+(AZ30*SageDataCompany!$H$10)+(BA30*SageDataCompany!$H$11)+(BB30*SageDataCompany!$H$12)+(BC30*SageDataCompany!$H$13) -> 0 | DG30: =(BD30*SageDataCompany!$H$2)+(BE30*SageDataCompany!$H$3)+(BF30*SageDataCompany!$H$4)+(BG30*SageDataCompany!$H$5)+(BH30*SageDataCompany!$H$6)+(BI30*SageDataCompany!$H$7)+(BJ30*SageDataCompany!$H$8)+(BK30*SageDataCompany!$H$9)+(BL30*SageDataCompany!$H$10)+(BM30*SageDataCompany!$H$11)+(BN30*SageDataCompany!$H$12)+(BO30*SageDataCompany!$H$13) -> 0 | DH30: =(BP30*SageDataCompany!$H$2)+(BQ30*SageDataCompany!$H$3)+(BR30*SageDataCompany!$H$4)+(BS30*SageDataCompany!$H$5)+(BT30*SageDataCompany!$H$6)+(BU30*SageDataCompany!$H$7)+(BV30*SageDataCompany!$H$8)+(BW30*SageDataCompany!$H$9)+(BX30*SageDataCompany!$H$10)+(BY30*SageDataCompany!$H$11)+(BZ30*SageDataCompany!$H$12)+(CA30*SageDataCompany!$H$13) -> 0 | DI30: 0 | DJ30: 0 | DK30: =(AR30*SageDataCompany!$I$2)+(AS30*SageDataCompany!$I$3)+(AT30*SageDataCompany!$I$4)+(AU30*SageDataCompany!$I$5)+(AV30*SageDataCompany!$I$6)+(AW30*SageDataCompany!$I$7)+(AX30*SageDataCompany!$I$8)+(AY30*SageDataCompany!$I$9)+(AZ30*SageDataCompany!$I$10)+(BA30*SageDataCompany!$I$11)+(BB30*SageDataCompany!$I$12)+(BC30*SageDataCompany!$I$13) -> 0 | DL30: =(BD30*SageDataCompany!$I$2)+(BE30*SageDataCompany!$I$3)+(BF30*SageDataCompany!$I$4)+(BG30*SageDataCompany!$I$5)+(BH30*SageDataCompany!$I$6)+(BI30*SageDataCompany!$I$7)+(BJ30*SageDataCompany!$I$8)+(BK30*SageDataCompany!$I$9)+(BL30*SageDataCompany!$I$10)+(BM30*SageDataCompany!$I$11)+(BN30*SageDataCompany!$I$12)+(BO30*SageDataCompany!$I$13) -> 0 | DM30: =(BP30*SageDataCompany!$I$2)+(BQ30*SageDataCompany!$I$3)+(BR30*SageDataCompany!$I$4)+(BS30*SageDataCompany!$I$5)+(BT30*SageDataCompany!$I$6)+(BU30*SageDataCompany!$I$7)+(BV30*SageDataCompany!$I$8)+(BW30*SageDataCompany!$I$9)+(BX30*SageDataCompany!$I$10)+(BY30*SageDataCompany!$I$11)+(BZ30*SageDataCompany!$I$12)+(CA30*SageDataCompany!$I$13) -> 0 | DN30: 0 | DO30: 0 | DT30: =Table_Query_from_SageLine50v17[[#This Row],[PY Mth1]]+Table_Query_from_SageLine50v17[[#This Row],[PY Mth2]]+Table_Query_from_SageLine50v17[[#This Row],[PY Mth3]]+Table_Query_from_SageLine50v17[[#This Row],[PY Mth4]]+Table_Query_from_SageLine50v17[[#This Row],[PY Mth5]]+Table_Query_from_SageLine50v17[[#This Row],[PY Mth6]]+Table_Query_from_SageLine50v17[[#This Row],[PY Mth7]]+Table_Query_from_SageLine50v17[[#This Row],[PY Mth8]]+Table_Query_from_SageLine50v17[[#This Row],[PY Mth9]]+Table_Query_from_SageLine50v17[[#This Row],[PY Mth10]]+Table_Query_from_SageLine50v17[[#This Row],[PY Mth11]]+Table_Query_from_SageLine50v17[[#This Row],[PY Mth12]] -> 0
A31: 3440 | B31: Uniforms | C31: 0 | D31: 0 | E31: 0 | F31: 0 | G31: 0 | H31: 0 | I31: 0 | J31: 0 | K31: 0 | L31: 0 | M31: 0 | N31: 0 | O31: 0 | P31: 0 | Q31: 0 | R31: 0 | S31: 0 | T31: 0 | U31: 0 | V31: 0 | W31: 0 | X31: 0 | Y31: 0 | Z31: 0 | AA31: 0 | AB31: 0 | AC31: 0 | AD31: 0 | AE31: 0 | AF31: 0 | AG31: 0 | AH31: 0 | AI31: 0 | AJ31: 0 | AK31: 0 | AL31: 0 | AM31: 0 | AN31: =IF(VLOOKUP(A31,DR_ODBC_COALIST,16,FALSE),CONCATENATE("9999"," - ",SageDataCOAList!$L$2),SageData!$A31&" - "&SageData!$B31) -> 3440 - Uniforms | AO31: 1 | AP31: -1 | AQ31: 1 | AR31: 0 | AS31: 0 | AT31: 0 | AU31: 0 | AV31: 0 | AW31: 0 | AX31: 0 | AY31: 0 | AZ31: 0 | BA31: 0 | BB31: 0 | BC31: 0 | BD31: 0 | BE31: 0 | BF31: 0 | BG31: 0 | BH31: 0 | BI31: 0 | BJ31: 0 | BK31: 0 | BL31: 0 | BM31: 0 | BN31: 0 | BO31: 0 | BP31: 0 | BQ31: 0 | BR31: 0 | BS31: 0 | BT31: 0 | BU31: 0 | BV31: 0 | BW31: 0 | BX31: 0 | BY31: 0 | BZ31: 0 | CA31: 0 | CB31: 0 | CC31: 0 | CD31: 0 | CE31: 0 | CF31: 0 | CG31: 0 | CH31: 0 | CI31: 0 | CJ31: 0 | CK31: 0 | CL31: 0 | CM31: 0 | CN31: 0 | CO31: 0 | CP31: 0 | CQ31: 0 | CR31: 0 | CS31: 0 | CT31: 0 | CU31: 0 | CV31: 0 | CW31: 0 | CX31: 0 | CY31: 0 | CZ31: 002 | DA31: 01 | DB31: Sales | DC31: School Generated Income | DD31: 01 - Sales | DE31: 002 - School Generated Income | DF31: =(AR31*SageDataCompany!$H$2)+(AS31*SageDataCompany!$H$3)+(AT31*SageDataCompany!$H$4)+(AU31*SageDataCompany!$H$5)+(AV31*SageDataCompany!$H$6)+(AW31*SageDataCompany!$H$7)+(AX31*SageDataCompany!$H$8)+(AY31*SageDataCompany!$H$9)+(AZ31*SageDataCompany!$H$10)+(BA31*SageDataCompany!$H$11)+(BB31*SageDataCompany!$H$12)+(BC31*SageDataCompany!$H$13) -> 0 | DG31: =(BD31*SageDataCompany!$H$2)+(BE31*SageDataCompany!$H$3)+(BF31*SageDataCompany!$H$4)+(BG31*SageDataCompany!$H$5)+(BH31*SageDataCompany!$H$6)+(BI31*SageDataCompany!$H$7)+(BJ31*SageDataCompany!$H$8)+(BK31*SageDataCompany!$H$9)+(BL31*SageDataCompany!$H$10)+(BM31*SageDataCompany!$H$11)+(BN31*SageDataCompany!$H$12)+(BO31*SageDataCompany!$H$13) -> 0 | DH31: =(BP31*SageDataCompany!$H$2)+(BQ31*SageDataCompany!$H$3)+(BR31*SageDataCompany!$H$4)+(BS31*SageDataCompany!$H$5)+(BT31*SageDataCompany!$H$6)+(BU31*SageDataCompany!$H$7)+(BV31*SageDataCompany!$H$8)+(BW31*SageDataCompany!$H$9)+(BX31*SageDataCompany!$H$10)+(BY31*SageDataCompany!$H$11)+(BZ31*SageDataCompany!$H$12)+(CA31*SageDataCompany!$H$13) -> 0 | DI31: 0 | DJ31: 0 | DK31: =(AR31*SageDataCompany!$I$2)+(AS31*SageDataCompany!$I$3)+(AT31*SageDataCompany!$I$4)+(AU31*SageDataCompany!$I$5)+(AV31*SageDataCompany!$I$6)+(AW31*SageDataCompany!$I$7)+(AX31*SageDataCompany!$I$8)+(AY31*SageDataCompany!$I$9)+(AZ31*SageDataCompany!$I$10)+(BA31*SageDataCompany!$I$11)+(BB31*SageDataCompany!$I$12)+(BC31*SageDataCompany!$I$13) -> 0 | DL31: =(BD31*SageDataCompany!$I$2)+(BE31*SageDataCompany!$I$3)+(BF31*SageDataCompany!$I$4)+(BG31*SageDataCompany!$I$5)+(BH31*SageDataCompany!$I$6)+(BI31*SageDataCompany!$I$7)+(BJ31*SageDataCompany!$I$8)+(BK31*SageDataCompany!$I$9)+(BL31*SageDataCompany!$I$10)+(BM31*SageDataCompany!$I$11)+(BN31*SageDataCompany!$I$12)+(BO31*SageDataCompany!$I$13) -> 0 | DM31: =(BP31*SageDataCompany!$I$2)+(BQ31*SageDataCompany!$I$3)+(BR31*SageDataCompany!$I$4)+(BS31*SageDataCompany!$I$5)+(BT31*SageDataCompany!$I$6)+(BU31*SageDataCompany!$I$7)+(BV31*SageDataCompany!$I$8)+(BW31*SageDataCompany!$I$9)+(BX31*SageDataCompany!$I$10)+(BY31*SageDataCompany!$I$11)+(BZ31*SageDataCompany!$I$12)+(CA31*SageDataCompany!$I$13) -> 0 | DN31: 0 | DO31: 0 | DT31: =Table_Query_from_SageLine50v17[[#This Row],[PY Mth1]]+Table_Query_from_SageLine50v17[[#This Row],[PY Mth2]]+Table_Query_from_SageLine50v17[[#This Row],[PY Mth3]]+Table_Query_from_SageLine50v17[[#This Row],[PY Mth4]]+Table_Query_from_SageLine50v17[[#This Row],[PY Mth5]]+Table_Query_from_SageLine50v17[[#This Row],[PY Mth6]]+Table_Query_from_SageLine50v17[[#This Row],[PY Mth7]]+Table_Query_from_SageLine50v17[[#This Row],[PY Mth8]]+Table_Query_from_SageLine50v17[[#This Row],[PY Mth9]]+Table_Query_from_SageLine50v17[[#This Row],[PY Mth10]]+Table_Query_from_SageLine50v17[[#This Row],[PY Mth11]]+Table_Query_from_SageLine50v17[[#This Row],[PY Mth12]] -> 0
A32: 3441 | B32: Art Income | C32: 0 | D32: 0 | E32: 0 | F32: 0 | G32: 0 | H32: 0 | I32: 0 | J32: 0 | K32: 0 | L32: -850 | M32: 0 | N32: 0 | O32: 0 | P32: 0 | Q32: 0 | R32: 0 | S32: 0 | T32: 0 | U32: 0 | V32: 0 | W32: 0 | X32: 0 | Y32: 0 | Z32: 0 | AA32: 0 | AB32: 0 | AC32: 0 | AD32: 0 | AE32: 0 | AF32: 0 | AG32: 0 | AH32: 0 | AI32: 0 | AJ32: 0 | AK32: 0 | AL32: 0 | AM32: 0 | AN32: =IF(VLOOKUP(A32,DR_ODBC_COALIST,16,FALSE),CONCATENATE("9999"," - ",SageDataCOAList!$L$2),SageData!$A32&" - "&SageData!$B32) -> 3441 - Art Income | AO32: 1 | AP32: -1 | AQ32: 1 | AR32: 0 | AS32: 0 | AT32: 0 | AU32: 0 | AV32: 0 | AW32: 0 | AX32: 0 | AY32: 0 | AZ32: 0 | BA32: 850 | BB32: 0 | BC32: 0 | BD32: 0 | BE32: 0 | BF32: 0 | BG32: 0 | BH32: 0 | BI32: 0 | BJ32: 0 | BK32: 0 | BL32: 0 | BM32: 0 | BN32: 0 | BO32: 0 | BP32: 0 | BQ32: 0 | BR32: 0 | BS32: 0 | BT32: 0 | BU32: 0 | BV32: 0 | BW32: 0 | BX32: 0 | BY32: 0 | BZ32: 0 | CA32: 0 | CB32: 0 | CC32: 0 | CD32: 0 | CE32: 0 | CF32: 0 | CG32: 0 | CH32: 0 | CI32: 0 | CJ32: 0 | CK32: 850 | CL32: 0 | CM32: 0 | CN32: 0 | CO32: 0 | CP32: 0 | CQ32: 0 | CR32: 0 | CS32: 0 | CT32: 0 | CU32: 0 | CV32: 0 | CW32: 850 | CX32: 0 | CY32: 0 | CZ32: 002 | DA32: 01 | DB32: Sales | DC32: School Generated Income | DD32: 01 - Sales | DE32: 002 - School Generated Income | DF32: =(AR32*SageDataCompany!$H$2)+(AS32*SageDataCompany!$H$3)+(AT32*SageDataCompany!$H$4)+(AU32*SageDataCompany!$H$5)+(AV32*SageDataCompany!$H$6)+(AW32*SageDataCompany!$H$7)+(AX32*SageDataCompany!$H$8)+(AY32*SageDataCompany!$H$9)+(AZ32*SageDataCompany!$H$10)+(BA32*SageDataCompany!$H$11)+(BB32*SageDataCompany!$H$12)+(BC32*SageDataCompany!$H$13) -> 850 | DG32: =(BD32*SageDataCompany!$H$2)+(BE32*SageDataCompany!$H$3)+(BF32*SageDataCompany!$H$4)+(BG32*SageDataCompany!$H$5)+(BH32*SageDataCompany!$H$6)+(BI32*SageDataCompany!$H$7)+(BJ32*SageDataCompany!$H$8)+(BK32*SageDataCompany!$H$9)+(BL32*SageDataCompany!$H$10)+(BM32*SageDataCompany!$H$11)+(BN32*SageDataCompany!$H$12)+(BO32*SageDataCompany!$H$13) -> 0 | DH32: =(BP32*SageDataCompany!$H$2)+(BQ32*SageDataCompany!$H$3)+(BR32*SageDataCompany!$H$4)+(BS32*SageDataCompany!$H$5)+(BT32*SageDataCompany!$H$6)+(BU32*SageDataCompany!$H$7)+(BV32*SageDataCompany!$H$8)+(BW32*SageDataCompany!$H$9)+(BX32*SageDataCompany!$H$10)+(BY32*SageDataCompany!$H$11)+(BZ32*SageDataCompany!$H$12)+(CA32*SageDataCompany!$H$13) -> 0 | DI32: 850 | DJ32: 850 | DK32: =(AR32*SageDataCompany!$I$2)+(AS32*SageDataCompany!$I$3)+(AT32*SageDataCompany!$I$4)+(AU32*SageDataCompany!$I$5)+(AV32*SageDataCompany!$I$6)+(AW32*SageDataCompany!$I$7)+(AX32*SageDataCompany!$I$8)+(AY32*SageDataCompany!$I$9)+(AZ32*SageDataCompany!$I$10)+(BA32*SageDataCompany!$I$11)+(BB32*SageDataCompany!$I$12)+(BC32*SageDataCompany!$I$13) -> 850 | DL32: =(BD32*SageDataCompany!$I$2)+(BE32*SageDataCompany!$I$3)+(BF32*SageDataCompany!$I$4)+(BG32*SageDataCompany!$I$5)+(BH32*SageDataCompany!$I$6)+(BI32*SageDataCompany!$I$7)+(BJ32*SageDataCompany!$I$8)+(BK32*SageDataCompany!$I$9)+(BL32*SageDataCompany!$I$10)+(BM32*SageDataCompany!$I$11)+(BN32*SageDataCompany!$I$12)+(BO32*SageDataCompany!$I$13) -> 0 | DM32: =(BP32*SageDataCompany!$I$2)+(BQ32*SageDataCompany!$I$3)+(BR32*SageDataCompany!$I$4)+(BS32*SageDataCompany!$I$5)+(BT32*SageDataCompany!$I$6)+(BU32*SageDataCompany!$I$7)+(BV32*SageDataCompany!$I$8)+(BW32*SageDataCompany!$I$9)+(BX32*SageDataCompany!$I$10)+(BY32*SageDataCompany!$I$11)+(BZ32*SageDataCompany!$I$12)+(CA32*SageDataCompany!$I$13) -> 0 | DN32: 850 | DO32: 850 | DP32: Yes | DS32: Yes | DT32: =Table_Query_from_SageLine50v17[[#This Row],[PY Mth1]]+Table_Query_from_SageLine50v17[[#This Row],[PY Mth2]]+Table_Query_from_SageLine50v17[[#This Row],[PY Mth3]]+Table_Query_from_SageLine50v17[[#This Row],[PY Mth4]]+Table_Query_from_SageLine50v17[[#This Row],[PY Mth5]]+Table_Query_from_SageLine50v17[[#This Row],[PY Mth6]]+Table_Query_from_SageLine50v17[[#This Row],[PY Mth7]]+Table_Query_from_SageLine50v17[[#This Row],[PY Mth8]]+Table_Query_from_SageLine50v17[[#This Row],[PY Mth9]]+Table_Query_from_SageLine50v17[[#This Row],[PY Mth10]]+Table_Query_from_SageLine50v17[[#This Row],[PY Mth11]]+Table_Query_from_SageLine50v17[[#This Row],[PY Mth12]] -> 0
A33: 3450 | B33: Religion | C33: 0 | D33: 0 | E33: 0 | F33: 0 | G33: 0 | H33: 0 | I33: 0 | J33: 0 | K33: 0 | L33: 0 | M33: 0 | N33: 0 | O33: 0 | P33: 0 | Q33: 0 | R33: 0 | S33: 0 | T33: 0 | U33: 0 | V33: 0 | W33: 0 | X33: 0 | Y33: 0 | Z33: 0 | AA33: 0 | AB33: 0 | AC33: 0 | AD33: 0 | AE33: 0 | AF33: 0 | AG33: 0 | AH33: 0 | AI33: 0 | AJ33: 0 | AK33: 0 | AL33: 0 | AM33: 0 | AN33: =IF(VLOOKUP(A33,DR_ODBC_COALIST,16,FALSE),CONCATENATE("9999"," - ",SageDataCOAList!$L$2),SageData!$A33&" - "&SageData!$B33) -> 3450 - Religion | AO33: 1 | AP33: -1 | AQ33: 1 | AR33: 0 | AS33: 0 | AT33: 0 | AU33: 0 | AV33: 0 | AW33: 0 | AX33: 0 | AY33: 0 | AZ33: 0 | BA33: 0 | BB33: 0 | BC33: 0 | BD33: 0 | BE33: 0 | BF33: 0 | BG33: 0 | BH33: 0 | BI33: 0 | BJ33: 0 | BK33: 0 | BL33: 0 | BM33: 0 | BN33: 0 | BO33: 0 | BP33: 0 | BQ33: 0 | BR33: 0 | BS33: 0 | BT33: 0 | BU33: 0 | BV33: 0 | BW33: 0 | BX33: 0 | BY33: 0 | BZ33: 0 | CA33: 0 | CB33: 0 | CC33: 0 | CD33: 0 | CE33: 0 | CF33: 0 | CG33: 0 | CH33: 0 | CI33: 0 | CJ33: 0 | CK33: 0 | CL33: 0 | CM33: 0 | CN33: 0 | CO33: 0 | CP33: 0 | CQ33: 0 | CR33: 0 | CS33: 0 | CT33: 0 | CU33: 0 | CV33: 0 | CW33: 0 | CX33: 0 | CY33: 0 | CZ33: 002 | DA33: 01 | DB33: Sales | DC33: School Generated Income | DD33: 01 - Sales | DE33: 002 - School Generated Income | DF33: =(AR33*SageDataCompany!$H$2)+(AS33*SageDataCompany!$H$3)+(AT33*SageDataCompany!$H$4)+(AU33*SageDataCompany!$H$5)+(AV33*SageDataCompany!$H$6)+(AW33*SageDataCompany!$H$7)+(AX33*SageDataCompany!$H$8)+(AY33*SageDataCompany!$H$9)+(AZ33*SageDataCompany!$H$10)+(BA33*SageDataCompany!$H$11)+(BB33*SageDataCompany!$H$12)+(BC33*SageDataCompany!$H$13) -> 0 | DG33: =(BD33*SageDataCompany!$H$2)+(BE33*SageDataCompany!$H$3)+(BF33*SageDataCompany!$H$4)+(BG33*SageDataCompany!$H$5)+(BH33*SageDataCompany!$H$6)+(BI33*SageDataCompany!$H$7)+(BJ33*SageDataCompany!$H$8)+(BK33*SageDataCompany!$H$9)+(BL33*SageDataCompany!$H$10)+(BM33*SageDataCompany!$H$11)+(BN33*SageDataCompany!$H$12)+(BO33*SageDataCompany!$H$13) -> 0 | DH33: =(BP33*SageDataCompany!$H$2)+(BQ33*SageDataCompany!$H$3)+(BR33*SageDataCompany!$H$4)+(BS33*SageDataCompany!$H$5)+(BT33*SageDataCompany!$H$6)+(BU33*SageDataCompany!$H$7)+(BV33*SageDataCompany!$H$8)+(BW33*SageDataCompany!$H$9)+(BX33*SageDataCompany!$H$10)+(BY33*SageDataCompany!$H$11)+(BZ33*SageDataCompany!$H$12)+(CA33*SageDataCompany!$H$13) -> 0 | DI33: 0 | DJ33: 0 | DK33: =(AR33*SageDataCompany!$I$2)+(AS33*SageDataCompany!$I$3)+(AT33*SageDataCompany!$I$4)+(AU33*SageDataCompany!$I$5)+(AV33*SageDataCompany!$I$6)+(AW33*SageDataCompany!$I$7)+(AX33*SageDataCompany!$I$8)+(AY33*SageDataCompany!$I$9)+(AZ33*SageDataCompany!$I$10)+(BA33*SageDataCompany!$I$11)+(BB33*SageDataCompany!$I$12)+(BC33*SageDataCompany!$I$13) -> 0 | DL33: =(BD33*SageDataCompany!$I$2)+(BE33*SageDataCompany!$I$3)+(BF33*SageDataCompany!$I$4)+(BG33*SageDataCompany!$I$5)+(BH33*SageDataCompany!$I$6)+(BI33*SageDataCompany!$I$7)+(BJ33*SageDataCompany!$I$8)+(BK33*SageDataCompany!$I$9)+(BL33*SageDataCompany!$I$10)+(BM33*SageDataCompany!$I$11)+(BN33*SageDataCompany!$I$12)+(BO33*SageDataCompany!$I$13) -> 0 | DM33: =(BP33*SageDataCompany!$I$2)+(BQ33*SageDataCompany!$I$3)+(BR33*SageDataCompany!$I$4)+(BS33*SageDataCompany!$I$5)+(BT33*SageDataCompany!$I$6)+(BU33*SageDataCompany!$I$7)+(BV33*SageDataCompany!$I$8)+(BW33*SageDataCompany!$I$9)+(BX33*SageDataCompany!$I$10)+(BY33*SageDataCompany!$I$11)+(BZ33*SageDataCompany!$I$12)+(CA33*SageDataCompany!$I$13) -> 0 | DN33: 0 | DO33: 0 | DT33: =Table_Query_from_SageLine50v17[[#This Row],[PY Mth1]]+Table_Query_from_SageLine50v17[[#This Row],[PY Mth2]]+Table_Query_from_SageLine50v17[[#This Row],[PY Mth3]]+Table_Query_from_SageLine50v17[[#This Row],[PY Mth4]]+Table_Query_from_SageLine50v17[[#This Row],[PY Mth5]]+Table_Query_from_SageLine50v17[[#This Row],[PY Mth6]]+Table_Query_from_SageLine50v17[[#This Row],[PY Mth7]]+Table_Query_from_SageLine50v17[[#This Row],[PY Mth8]]+Table_Query_from_SageLine50v17[[#This Row],[PY Mth9]]+Table_Query_from_SageLine50v17[[#This Row],[PY Mth10]]+Table_Query_from_SageLine50v17[[#This Row],[PY Mth11]]+Table_Query_from_SageLine50v17[[#This Row],[PY Mth12]] -> 0
A34: 3490 | B34: Study Income | C34: 0 | D34: 0 | E34: 0 | F34: 0 | G34: 0 | H34: 0 | I34: 0 | J34: 0 | K34: 0 | L34: 0 | M34: 0 | N34: 0 | O34: 0 | P34: 0 | Q34: 0 | R34: 0 | S34: 0 | T34: 0 | U34: 0 | V34: 0 | W34: 0 | X34: 0 | Y34: 0 | Z34: 0 | AA34: 0 | AB34: 0 | AC34: 0 | AD34: 0 | AE34: 0 | AF34: 0 | AG34: 0 | AH34: 0 | AI34: 0 | AJ34: 0 | AK34: 0 | AL34: 0 | AM34: 0 | AN34: =IF(VLOOKUP(A34,DR_ODBC_COALIST,16,FALSE),CONCATENATE("9999"," - ",SageDataCOAList!$L$2),SageData!$A34&" - "&SageData!$B34) -> 3490 - Study Income | AO34: =IF(VALUE($DA34)<12,CHOOSE(VALUE($DA34),1,-1,-1,-1,-1,-1,-1,-1,-1,-1,-1,-1),1) -> 1 | AP34: =IF(VALUE($DA34)<12,CHOOSE(VALUE($DA34),-1,-1,-1,-1,-1,-1,--1,-1,-1,-1,-1,-1),1) -> -1 | AQ34: =IF(VALUE($DA34)<12,CHOOSE(VALUE($DA34),1,-1,-1,-1,-1,-1,--1,-1,-1,-1,-1,-1),1) -> 1 | AR34: =$AP34*C34 -> 0 | AS34: =$AP34*D34 -> 0 | AT34: =$AP34*E34 -> 0 | AU34: =$AP34*F34 -> 0 | AV34: =$AP34*G34 -> 0 | AW34: =$AP34*H34 -> 0 | AX34: =$AP34*I34 -> 0 | AY34: =$AP34*J34 -> 0 | AZ34: =$AP34*K34 -> 0 | BA34: =$AP34*L34 -> 0 | BB34: =$AP34*M34 -> 0 | BC34: =$AP34*N34 -> 0 | BD34: =$AO34*O34 -> 0 | BE34: =$AO34*P34 -> 0 | BF34: =$AO34*Q34 -> 0 | BG34: =$AO34*R34 -> 0 | BH34: =$AO34*S34 -> 0 | BI34: =$AO34*T34 -> 0 | BJ34: =$AO34*U34 -> 0 | BK34: =$AO34*V34 -> 0 | BL34: =$AO34*W34 -> 0 | BM34: =$AO34*X34 -> 0 | BN34: =$AO34*Y34 -> 0 | BO34: =$AO34*Z34 -> 0 | BP34: =$AQ34*AA34 -> 0 | BQ34: =$AQ34*AB34 -> 0 | BR34: =$AQ34*AC34 -> 0 | BS34: =$AQ34*AD34 -> 0 | BT34: =$AQ34*AE34 -> 0 | BU34: =$AQ34*AF34 -> 0 | BV34: =$AQ34*AG34 -> 0 | BW34: =$AQ34*AH34 -> 0 | BX34: =$AQ34*AI34 -> 0 | BY34: =$AQ34*AJ34 -> 0 | BZ34: =$AQ34*AK34 -> 0 | CA34: =$AQ34*AL34 -> 0 | CB34: =(AR34)-(BD34) -> 0 | CC34: =(AS34)-(BE34) -> 0 | CD34: =(AT34)-(BF34) -> 0 | CE34: =(AU34)-(BG34) -> 0 | CF34: =(AV34)-(BH34) -> 0 | CG34: =(AW34)-(BI34) -> 0 | CH34: =(AX34)-(BJ34) -> 0 | CI34: =(AY34)-(BK34) -> 0 | CJ34: =(AZ34)-(BL34) -> 0 | CK34: =(BA34)-(BM34) -> 0 | CL34: =(BB34)-(BN34) -> 0 | CM34: =(BC34)-(BO34) -> 0 | CN34: =AR34-BP34 -> 0 | CO34: =AS34-BQ34 -> 0 | CP34: =AT34-BR34 -> 0 | CQ34: =AU34-BS34 -> 0 | CR34: =AV34-BT34 -> 0 | CS34: =AW34-BU34 -> 0 | CT34: =AX34-BV34 -> 0 | CU34: =AY34-BW34 -> 0 | CV34: =AZ34-BX34 -> 0 | CW34: =BA34-BY34 -> 0 | CX34: =BB34-BZ34 -> 0 | CY34: =BC34-CA34 -> 0 | CZ34: =IF(ISNA(VLOOKUP($A34,DR_ODBC_COALIST,9,FALSE)),"999",VLOOKUP($A34,DR_ODBC_COALIST,9,FALSE)) -> 002 | DA34: =IF(ISNA(VLOOKUP($A34,DR_ODBC_COALIST,12,FALSE)),"99",VLOOKUP($A34,DR_ODBC_COALIST,12,FALSE)) -> 01 | DB34: =IF(ISNA(VLOOKUP($A34,DR_ODBC_COALIST,13,FALSE)),"Not Found",VLOOKUP($A34,DR_ODBC_COALIST,13,FALSE)) -> Sales | DC34: =IF(ISNA(VLOOKUP($A34,DR_ODBC_COALIST,14,FALSE)),"Not Found",VLOOKUP($A34,DR_ODBC_COALIST,14,FALSE)) -> School Generated Income | DD34: =IF(DB34<>"",CONCATENATE(DA34," - ",DB34),"") -> 01 - Sales | DE34: =IF(DC34<>"",CONCATENATE(CZ34," - ",DC34),"") -> 002 - School Generated Income | DF34: =(AR34*SageDataCompany!$H$2)+(AS34*SageDataCompany!$H$3)+(AT34*SageDataCompany!$H$4)+(AU34*SageDataCompany!$H$5)+(AV34*SageDataCompany!$H$6)+(AW34*SageDataCompany!$H$7)+(AX34*SageDataCompany!$H$8)+(AY34*SageDataCompany!$H$9)+(AZ34*SageDataCompany!$H$10)+(BA34*SageDataCompany!$H$11)+(BB34*SageDataCompany!$H$12)+(BC34*SageDataCompany!$H$13) -> 0 | DG34: =(BD34*SageDataCompany!$H$2)+(BE34*SageDataCompany!$H$3)+(BF34*SageDataCompany!$H$4)+(BG34*SageDataCompany!$H$5)+(BH34*SageDataCompany!$H$6)+(BI34*SageDataCompany!$H$7)+(BJ34*SageDataCompany!$H$8)+(BK34*SageDataCompany!$H$9)+(BL34*SageDataCompany!$H$10)+(BM34*SageDataCompany!$H$11)+(BN34*SageDataCompany!$H$12)+(BO34*SageDataCompany!$H$13) -> 0 | DH34: =(BP34*SageDataCompany!$H$2)+(BQ34*SageDataCompany!$H$3)+(BR34*SageDataCompany!$H$4)+(BS34*SageDataCompany!$H$5)+(BT34*SageDataCompany!$H$6)+(BU34*SageDataCompany!$H$7)+(BV34*SageDataCompany!$H$8)+(BW34*SageDataCompany!$H$9)+(BX34*SageDataCompany!$H$10)+(BY34*SageDataCompany!$H$11)+(BZ34*SageDataCompany!$H$12)+(CA34*SageDataCompany!$H$13) -> 0 | DI34: =DF34-DG34 -> 0 | DJ34: =DF34-DH34 -> 0 | DK34: =(AR34*SageDataCompany!$I$2)+(AS34*SageDataCompany!$I$3)+(AT34*SageDataCompany!$I$4)+(AU34*SageDataCompany!$I$5)+(AV34*SageDataCompany!$I$6)+(AW34*SageDataCompany!$I$7)+(AX34*SageDataCompany!$I$8)+(AY34*SageDataCompany!$I$9)+(AZ34*SageDataCompany!$I$10)+(BA34*SageDataCompany!$I$11)+(BB34*SageDataCompany!$I$12)+(BC34*SageDataCompany!$I$13) -> 0 | DL34: =(BD34*SageDataCompany!$I$2)+(BE34*SageDataCompany!$I$3)+(BF34*SageDataCompany!$I$4)+(BG34*SageDataCompany!$I$5)+(BH34*SageDataCompany!$I$6)+(BI34*SageDataCompany!$I$7)+(BJ34*SageDataCompany!$I$8)+(BK34*SageDataCompany!$I$9)+(BL34*SageDataCompany!$I$10)+(BM34*SageDataCompany!$I$11)+(BN34*SageDataCompany!$I$12)+(BO34*SageDataCompany!$I$13) -> 0 | DM34: =(BP34*SageDataCompany!$I$2)+(BQ34*SageDataCompany!$I$3)+(BR34*SageDataCompany!$I$4)+(BS34*SageDataCompany!$I$5)+(BT34*SageDataCompany!$I$6)+(BU34*SageDataCompany!$I$7)+(BV34*SageDataCompany!$I$8)+(BW34*SageDataCompany!$I$9)+(BX34*SageDataCompany!$I$10)+(BY34*SageDataCompany!$I$11)+(BZ34*SageDataCompany!$I$12)+(CA34*SageDataCompany!$I$13) -> 0 | DN34: =DK34-DL34 -> 0 | DO34: =DK34-DM34 -> 0 | DP34: =IF(AND(AR34=0,AS34=0,AT34=0,AU34=0,AV34=0,AW34=0,AX34=0,AY34=0,AZ34=0,BA34=0,BB34=0,BC34=0),"","Yes") ->  | DQ34: =IF(AND(BD34=0,BE34=0,BF34=0,BG34=0,BH34=0,BI34=0,BJ34=0,BK34=0,BL34=0,BM34=0,BN34=0,BO34=0),"","Yes") ->  | DR34: =IF(AND(BP34=0,BQ34=0,BR34=0,BS34=0,BT34=0,BU34=0,BV34=0,BW34=0,BX34=0,BY34=0,BZ34=0,CA34=0),"","Yes") ->  | DS34: =IF(AND(DP34="",DQ34="",DR34=""),"","Yes") ->  | DT34: =Table_Query_from_SageLine50v17[[#This Row],[PY Mth1]]+Table_Query_from_SageLine50v17[[#This Row],[PY Mth2]]+Table_Query_from_SageLine50v17[[#This Row],[PY Mth3]]+Table_Query_from_SageLine50v17[[#This Row],[PY Mth4]]+Table_Query_from_SageLine50v17[[#This Row],[PY Mth5]]+Table_Query_from_SageLine50v17[[#This Row],[PY Mth6]]+Table_Query_from_SageLine50v17[[#This Row],[PY Mth7]]+Table_Query_from_SageLine50v17[[#This Row],[PY Mth8]]+Table_Query_from_SageLine50v17[[#This Row],[PY Mth9]]+Table_Query_from_SageLine50v17[[#This Row],[PY Mth10]]+Table_Query_from_SageLine50v17[[#This Row],[PY Mth11]]+Table_Query_from_SageLine50v17[[#This Row],[PY Mth12]] -> 0
A35: 3495 | B35: Mock Exam Income | C35: 0 | D35: 0 | E35: 0 | F35: 0 | G35: 0 | H35: 0 | I35: 0 | J35: 0 | K35: 0 | L35: 0 | M35: 0 | N35: 0 | O35: 0 | P35: 0 | Q35: 0 | R35: 0 | S35: 0 | T35: 0 | U35: 0 | V35: 0 | W35: 0 | X35: 0 | Y35: 0 | Z35: 0 | AA35: 0 | AB35: 0 | AC35: 0 | AD35: 0 | AE35: 0 | AF35: 0 | AG35: 0 | AH35: 0 | AI35: 0 | AJ35: 0 | AK35: 0 | AL35: 0 | AM35: 0 | AN35: =IF(VLOOKUP(A35,DR_ODBC_COALIST,16,FALSE),CONCATENATE("9999"," - ",SageDataCOAList!$L$2),SageData!$A35&" - "&SageData!$B35) -> 3495 - Mock Exam Income | AO35: 1 | AP35: -1 | AQ35: 1 | AR35: 0 | AS35: 0 | AT35: 0 | AU35: 0 | AV35: 0 | AW35: 0 | AX35: 0 | AY35: 0 | AZ35: 0 | BA35: 0 | BB35: 0 | BC35: 0 | BD35: 0 | BE35: 0 | BF35: 0 | BG35: 0 | BH35: 0 | BI35: 0 | BJ35: 0 | BK35: 0 | BL35: 0 | BM35: 0 | BN35: 0 | BO35: 0 | BP35: 0 | BQ35: 0 | BR35: 0 | BS35: 0 | BT35: 0 | BU35: 0 | BV35: 0 | BW35: 0 | BX35: 0 | BY35: 0 | BZ35: 0 | CA35: 0 | CB35: 0 | CC35: 0 | CD35: 0 | CE35: 0 | CF35: 0 | CG35: 0 | CH35: 0 | CI35: 0 | CJ35: 0 | CK35: 0 | CL35: 0 | CM35: 0 | CN35: 0 | CO35: 0 | CP35: 0 | CQ35: 0 | CR35: 0 | CS35: 0 | CT35: 0 | CU35: 0 | CV35: 0 | CW35: 0 | CX35: 0 | CY35: 0 | CZ35: 002 | DA35: 01 | DB35: Sales | DC35: School Generated Income | DD35: 01 - Sales | DE35: 002 - School Generated Income | DF35: =(AR35*SageDataCompany!$H$2)+(AS35*SageDataCompany!$H$3)+(AT35*SageDataCompany!$H$4)+(AU35*SageDataCompany!$H$5)+(AV35*SageDataCompany!$H$6)+(AW35*SageDataCompany!$H$7)+(AX35*SageDataCompany!$H$8)+(AY35*SageDataCompany!$H$9)+(AZ35*SageDataCompany!$H$10)+(BA35*SageDataCompany!$H$11)+(BB35*SageDataCompany!$H$12)+(BC35*SageDataCompany!$H$13) -> 0 | DG35: =(BD35*SageDataCompany!$H$2)+(BE35*SageDataCompany!$H$3)+(BF35*SageDataCompany!$H$4)+(BG35*SageDataCompany!$H$5)+(BH35*SageDataCompany!$H$6)+(BI35*SageDataCompany!$H$7)+(BJ35*SageDataCompany!$H$8)+(BK35*SageDataCompany!$H$9)+(BL35*SageDataCompany!$H$10)+(BM35*SageDataCompany!$H$11)+(BN35*SageDataCompany!$H$12)+(BO35*SageDataCompany!$H$13) -> 0 | DH35: =(BP35*SageDataCompany!$H$2)+(BQ35*SageDataCompany!$H$3)+(BR35*SageDataCompany!$H$4)+(BS35*SageDataCompany!$H$5)+(BT35*SageDataCompany!$H$6)+(BU35*SageDataCompany!$H$7)+(BV35*SageDataCompany!$H$8)+(BW35*SageDataCompany!$H$9)+(BX35*SageDataCompany!$H$10)+(BY35*SageDataCompany!$H$11)+(BZ35*SageDataCompany!$H$12)+(CA35*SageDataCompany!$H$13) -> 0 | DI35: 0 | DJ35: 0 | DK35: =(AR35*SageDataCompany!$I$2)+(AS35*SageDataCompany!$I$3)+(AT35*SageDataCompany!$I$4)+(AU35*SageDataCompany!$I$5)+(AV35*SageDataCompany!$I$6)+(AW35*SageDataCompany!$I$7)+(AX35*SageDataCompany!$I$8)+(AY35*SageDataCompany!$I$9)+(AZ35*SageDataCompany!$I$10)+(BA35*SageDataCompany!$I$11)+(BB35*SageDataCompany!$I$12)+(BC35*SageDataCompany!$I$13) -> 0 | DL35: =(BD35*SageDataCompany!$I$2)+(BE35*SageDataCompany!$I$3)+(BF35*SageDataCompany!$I$4)+(BG35*SageDataCompany!$I$5)+(BH35*SageDataCompany!$I$6)+(BI35*SageDataCompany!$I$7)+(BJ35*SageDataCompany!$I$8)+(BK35*SageDataCompany!$I$9)+(BL35*SageDataCompany!$I$10)+(BM35*SageDataCompany!$I$11)+(BN35*SageDataCompany!$I$12)+(BO35*SageDataCompany!$I$13) -> 0 | DM35: =(BP35*SageDataCompany!$I$2)+(BQ35*SageDataCompany!$I$3)+(BR35*SageDataCompany!$I$4)+(BS35*SageDataCompany!$I$5)+(BT35*SageDataCompany!$I$6)+(BU35*SageDataCompany!$I$7)+(BV35*SageDataCompany!$I$8)+(BW35*SageDataCompany!$I$9)+(BX35*SageDataCompany!$I$10)+(BY35*SageDataCompany!$I$11)+(BZ35*SageDataCompany!$I$12)+(CA35*SageDataCompany!$I$13) -> 0 | DN35: 0 | DO35: 0 | DT35: =Table_Query_from_SageLine50v17[[#This Row],[PY Mth1]]+Table_Query_from_SageLine50v17[[#This Row],[PY Mth2]]+Table_Query_from_SageLine50v17[[#This Row],[PY Mth3]]+Table_Query_from_SageLine50v17[[#This Row],[PY Mth4]]+Table_Query_from_SageLine50v17[[#This Row],[PY Mth5]]+Table_Query_from_SageLine50v17[[#This Row],[PY Mth6]]+Table_Query_from_SageLine50v17[[#This Row],[PY Mth7]]+Table_Query_from_SageLine50v17[[#This Row],[PY Mth8]]+Table_Query_from_SageLine50v17[[#This Row],[PY Mth9]]+Table_Query_from_SageLine50v17[[#This Row],[PY Mth10]]+Table_Query_from_SageLine50v17[[#This Row],[PY Mth11]]+Table_Query_from_SageLine50v17[[#This Row],[PY Mth12]] -> 0
A36: 3500 | B36: Games | C36: 0 | D36: 0 | E36: 0 | F36: 0 | G36: 0 | H36: 0 | I36: 0 | J36: 0 | K36: 0 | L36: 0 | M36: 0 | N36: 0 | O36: 0 | P36: 0 | Q36: 0 | R36: 0 | S36: 0 | T36: 0 | U36: 0 | V36: 0 | W36: 0 | X36: 0 | Y36: 0 | Z36: 0 | AA36: 0 | AB36: 0 | AC36: 0 | AD36: 0 | AE36: 0 | AF36: 0 | AG36: 0 | AH36: 0 | AI36: 0 | AJ36: 0 | AK36: 0 | AL36: 0 | AM36: 0 | AN36: =IF(VLOOKUP(A36,DR_ODBC_COALIST,16,FALSE),CONCATENATE("9999"," - ",SageDataCOAList!$L$2),SageData!$A36&" - "&SageData!$B36) -> 3500 - Games | AO36: 1 | AP36: -1 | AQ36: 1 | AR36: 0 | AS36: 0 | AT36: 0 | AU36: 0 | AV36: 0 | AW36: 0 | AX36: 0 | AY36: 0 | AZ36: 0 | BA36: 0 | BB36: 0 | BC36: 0 | BD36: 0 | BE36: 0 | BF36: 0 | BG36: 0 | BH36: 0 | BI36: 0 | BJ36: 0 | BK36: 0 | BL36: 0 | BM36: 0 | BN36: 0 | BO36: 0 | BP36: 0 | BQ36: 0 | BR36: 0 | BS36: 0 | BT36: 0 | BU36: 0 | BV36: 0 | BW36: 0 | BX36: 0 | BY36: 0 | BZ36: 0 | CA36: 0 | CB36: 0 | CC36: 0 | CD36: 0 | CE36: 0 | CF36: 0 | CG36: 0 | CH36: 0 | CI36: 0 | CJ36: 0 | CK36: 0 | CL36: 0 | CM36: 0 | CN36: 0 | CO36: 0 | CP36: 0 | CQ36: 0 | CR36: 0 | CS36: 0 | CT36: 0 | CU36: 0 | CV36: 0 | CW36: 0 | CX36: 0 | CY36: 0 | CZ36: 002 | DA36: 01 | DB36: Sales | DC36: School Generated Income | DD36: 01 - Sales | DE36: 002 - School Generated Income | DF36: =(AR36*SageDataCompany!$H$2)+(AS36*SageDataCompany!$H$3)+(AT36*SageDataCompany!$H$4)+(AU36*SageDataCompany!$H$5)+(AV36*SageDataCompany!$H$6)+(AW36*SageDataCompany!$H$7)+(AX36*SageDataCompany!$H$8)+(AY36*SageDataCompany!$H$9)+(AZ36*SageDataCompany!$H$10)+(BA36*SageDataCompany!$H$11)+(BB36*SageDataCompany!$H$12)+(BC36*SageDataCompany!$H$13) -> 0 | DG36: =(BD36*SageDataCompany!$H$2)+(BE36*SageDataCompany!$H$3)+(BF36*SageDataCompany!$H$4)+(BG36*SageDataCompany!$H$5)+(BH36*SageDataCompany!$H$6)+(BI36*SageDataCompany!$H$7)+(BJ36*SageDataCompany!$H$8)+(BK36*SageDataCompany!$H$9)+(BL36*SageDataCompany!$H$10)+(BM36*SageDataCompany!$H$11)+(BN36*SageDataCompany!$H$12)+(BO36*SageDataCompany!$H$13) -> 0 | DH36: =(BP36*SageDataCompany!$H$2)+(BQ36*SageDataCompany!$H$3)+(BR36*SageDataCompany!$H$4)+(BS36*SageDataCompany!$H$5)+(BT36*SageDataCompany!$H$6)+(BU36*SageDataCompany!$H$7)+(BV36*SageDataCompany!$H$8)+(BW36*SageDataCompany!$H$9)+(BX36*SageDataCompany!$H$10)+(BY36*SageDataCompany!$H$11)+(BZ36*SageDataCompany!$H$12)+(CA36*SageDataCompany!$H$13) -> 0 | DI36: 0 | DJ36: 0 | DK36: =(AR36*SageDataCompany!$I$2)+(AS36*SageDataCompany!$I$3)+(AT36*SageDataCompany!$I$4)+(AU36*SageDataCompany!$I$5)+(AV36*SageDataCompany!$I$6)+(AW36*SageDataCompany!$I$7)+(AX36*SageDataCompany!$I$8)+(AY36*SageDataCompany!$I$9)+(AZ36*SageDataCompany!$I$10)+(BA36*SageDataCompany!$I$11)+(BB36*SageDataCompany!$I$12)+(BC36*SageDataCompany!$I$13) -> 0 | DL36: =(BD36*SageDataCompany!$I$2)+(BE36*SageDataCompany!$I$3)+(BF36*SageDataCompany!$I$4)+(BG36*SageDataCompany!$I$5)+(BH36*SageDataCompany!$I$6)+(BI36*SageDataCompany!$I$7)+(BJ36*SageDataCompany!$I$8)+(BK36*SageDataCompany!$I$9)+(BL36*SageDataCompany!$I$10)+(BM36*SageDataCompany!$I$11)+(BN36*SageDataCompany!$I$12)+(BO36*SageDataCompany!$I$13) -> 0 | DM36: =(BP36*SageDataCompany!$I$2)+(BQ36*SageDataCompany!$I$3)+(BR36*SageDataCompany!$I$4)+(BS36*SageDataCompany!$I$5)+(BT36*SageDataCompany!$I$6)+(BU36*SageDataCompany!$I$7)+(BV36*SageDataCompany!$I$8)+(BW36*SageDataCompany!$I$9)+(BX36*SageDataCompany!$I$10)+(BY36*SageDataCompany!$I$11)+(BZ36*SageDataCompany!$I$12)+(CA36*SageDataCompany!$I$13) -> 0 | DN36: 0 | DO36: 0 | DT36: =Table_Query_from_SageLine50v17[[#This Row],[PY Mth1]]+Table_Query_from_SageLine50v17[[#This Row],[PY Mth2]]+Table_Query_from_SageLine50v17[[#This Row],[PY Mth3]]+Table_Query_from_SageLine50v17[[#This Row],[PY Mth4]]+Table_Query_from_SageLine50v17[[#This Row],[PY Mth5]]+Table_Query_from_SageLine50v17[[#This Row],[PY Mth6]]+Table_Query_from_SageLine50v17[[#This Row],[PY Mth7]]+Table_Query_from_SageLine50v17[[#This Row],[PY Mth8]]+Table_Query_from_SageLine50v17[[#This Row],[PY Mth9]]+Table_Query_from_SageLine50v17[[#This Row],[PY Mth10]]+Table_Query_from_SageLine50v17[[#This Row],[PY Mth11]]+Table_Query_from_SageLine50v17[[#This Row],[PY Mth12]] -> 0
A37: 3510 | B37: Bus Income | C37: 0 | D37: 0 | E37: 0 | F37: 0 | G37: 0 | H37: 0 | I37: 0 | J37: 0 | K37: 0 | L37: -2200 | M37: 0 | N37: 0 | O37: 0 | P37: 0 | Q37: 0 | R37: 0 | S37: 0 | T37: 0 | U37: 0 | V37: 0 | W37: 0 | X37: 0 | Y37: 0 | Z37: 0 | AA37: 0 | AB37: 0 | AC37: 0 | AD37: 0 | AE37: 0 | AF37: 0 | AG37: 0 | AH37: 0 | AI37: 0 | AJ37: 0 | AK37: 0 | AL37: 0 | AM37: 0 | AN37: =IF(VLOOKUP(A37,DR_ODBC_COALIST,16,FALSE),CONCATENATE("9999"," - ",SageDataCOAList!$L$2),SageData!$A37&" - "&SageData!$B37) -> 3510 - Bus Income | AO37: 1 | AP37: -1 | AQ37: 1 | AR37: 0 | AS37: 0 | AT37: 0 | AU37: 0 | AV37: 0 | AW37: 0 | AX37: 0 | AY37: 0 | AZ37: 0 | BA37: 2200 | BB37: 0 | BC37: 0 | BD37: 0 | BE37: 0 | BF37: 0 | BG37: 0 | BH37: 0 | BI37: 0 | BJ37: 0 | BK37: 0 | BL37: 0 | BM37: 0 | BN37: 0 | BO37: 0 | BP37: 0 | BQ37: 0 | BR37: 0 | BS37: 0 | BT37: 0 | BU37: 0 | BV37: 0 | BW37: 0 | BX37: 0 | BY37: 0 | BZ37: 0 | CA37: 0 | CB37: 0 | CC37: 0 | CD37: 0 | CE37: 0 | CF37: 0 | CG37: 0 | CH37: 0 | CI37: 0 | CJ37: 0 | CK37: 2200 | CL37: 0 | CM37: 0 | CN37: 0 | CO37: 0 | CP37: 0 | CQ37: 0 | CR37: 0 | CS37: 0 | CT37: 0 | CU37: 0 | CV37: 0 | CW37: 2200 | CX37: 0 | CY37: 0 | CZ37: 002 | DA37: 01 | DB37: Sales | DC37: School Generated Income | DD37: 01 - Sales | DE37: 002 - School Generated Income | DF37: =(AR37*SageDataCompany!$H$2)+(AS37*SageDataCompany!$H$3)+(AT37*SageDataCompany!$H$4)+(AU37*SageDataCompany!$H$5)+(AV37*SageDataCompany!$H$6)+(AW37*SageDataCompany!$H$7)+(AX37*SageDataCompany!$H$8)+(AY37*SageDataCompany!$H$9)+(AZ37*SageDataCompany!$H$10)+(BA37*SageDataCompany!$H$11)+(BB37*SageDataCompany!$H$12)+(BC37*SageDataCompany!$H$13) -> 2200 | DG37: =(BD37*SageDataCompany!$H$2)+(BE37*SageDataCompany!$H$3)+(BF37*SageDataCompany!$H$4)+(BG37*SageDataCompany!$H$5)+(BH37*SageDataCompany!$H$6)+(BI37*SageDataCompany!$H$7)+(BJ37*SageDataCompany!$H$8)+(BK37*SageDataCompany!$H$9)+(BL37*SageDataCompany!$H$10)+(BM37*SageDataCompany!$H$11)+(BN37*SageDataCompany!$H$12)+(BO37*SageDataCompany!$H$13) -> 0 | DH37: =(BP37*SageDataCompany!$H$2)+(BQ37*SageDataCompany!$H$3)+(BR37*SageDataCompany!$H$4)+(BS37*SageDataCompany!$H$5)+(BT37*SageDataCompany!$H$6)+(BU37*SageDataCompany!$H$7)+(BV37*SageDataCompany!$H$8)+(BW37*SageDataCompany!$H$9)+(BX37*SageDataCompany!$H$10)+(BY37*SageDataCompany!$H$11)+(BZ37*SageDataCompany!$H$12)+(CA37*SageDataCompany!$H$13) -> 0 | DI37: 2200 | DJ37: 2200 | DK37: =(AR37*SageDataCompany!$I$2)+(AS37*SageDataCompany!$I$3)+(AT37*SageDataCompany!$I$4)+(AU37*SageDataCompany!$I$5)+(AV37*SageDataCompany!$I$6)+(AW37*SageDataCompany!$I$7)+(AX37*SageDataCompany!$I$8)+(AY37*SageDataCompany!$I$9)+(AZ37*SageDataCompany!$I$10)+(BA37*SageDataCompany!$I$11)+(BB37*SageDataCompany!$I$12)+(BC37*SageDataCompany!$I$13) -> 2200 | DL37: =(BD37*SageDataCompany!$I$2)+(BE37*SageDataCompany!$I$3)+(BF37*SageDataCompany!$I$4)+(BG37*SageDataCompany!$I$5)+(BH37*SageDataCompany!$I$6)+(BI37*SageDataCompany!$I$7)+(BJ37*SageDataCompany!$I$8)+(BK37*SageDataCompany!$I$9)+(BL37*SageDataCompany!$I$10)+(BM37*SageDataCompany!$I$11)+(BN37*SageDataCompany!$I$12)+(BO37*SageDataCompany!$I$13) -> 0 | DM37: =(BP37*SageDataCompany!$I$2)+(BQ37*SageDataCompany!$I$3)+(BR37*SageDataCompany!$I$4)+(BS37*SageDataCompany!$I$5)+(BT37*SageDataCompany!$I$6)+(BU37*SageDataCompany!$I$7)+(BV37*SageDataCompany!$I$8)+(BW37*SageDataCompany!$I$9)+(BX37*SageDataCompany!$I$10)+(BY37*SageDataCompany!$I$11)+(BZ37*SageDataCompany!$I$12)+(CA37*SageDataCompany!$I$13) -> 0 | DN37: 2200 | DO37: 2200 | DP37: Yes | DS37: Yes | DT37: =Table_Query_from_SageLine50v17[[#This Row],[PY Mth1]]+Table_Query_from_SageLine50v17[[#This Row],[PY Mth2]]+Table_Query_from_SageLine50v17[[#This Row],[PY Mth3]]+Table_Query_from_SageLine50v17[[#This Row],[PY Mth4]]+Table_Query_from_SageLine50v17[[#This Row],[PY Mth5]]+Table_Query_from_SageLine50v17[[#This Row],[PY Mth6]]+Table_Query_from_SageLine50v17[[#This Row],[PY Mth7]]+Table_Query_from_SageLine50v17[[#This Row],[PY Mth8]]+Table_Query_from_SageLine50v17[[#This Row],[PY Mth9]]+Table_Query_from_SageLine50v17[[#This Row],[PY Mth10]]+Table_Query_from_SageLine50v17[[#This Row],[PY Mth11]]+Table_Query_from_SageLine50v17[[#This Row],[PY Mth12]] -> 0
A38: 3520 | B38: School Musical/Drama | C38: 0 | D38: 0 | E38: 0 | F38: 0 | G38: 0 | H38: 0 | I38: 0 | J38: 0 | K38: 0 | L38: 0 | M38: 0 | N38: 0 | O38: 0 | P38: 0 | Q38: 0 | R38: 0 | S38: 0 | T38: 0 | U38: 0 | V38: 0 | W38: 0 | X38: 0 | Y38: 0 | Z38: 0 | AA38: 0 | AB38: 0 | AC38: 0 | AD38: 0 | AE38: 0 | AF38: 0 | AG38: 0 | AH38: 0 | AI38: 0 | AJ38: 0 | AK38: 0 | AL38: 0 | AM38: 0 | AN38: =IF(VLOOKUP(A38,DR_ODBC_COALIST,16,FALSE),CONCATENATE("9999"," - ",SageDataCOAList!$L$2),SageData!$A38&" - "&SageData!$B38) -> 3520 - School Musical/Drama | AO38: 1 | AP38: -1 | AQ38: 1 | AR38: 0 | AS38: 0 | AT38: 0 | AU38: 0 | AV38: 0 | AW38: 0 | AX38: 0 | AY38: 0 | AZ38: 0 | BA38: 0 | BB38: 0 | BC38: 0 | BD38: 0 | BE38: 0 | BF38: 0 | BG38: 0 | BH38: 0 | BI38: 0 | BJ38: 0 | BK38: 0 | BL38: 0 | BM38: 0 | BN38: 0 | BO38: 0 | BP38: 0 | BQ38: 0 | BR38: 0 | BS38: 0 | BT38: 0 | BU38: 0 | BV38: 0 | BW38: 0 | BX38: 0 | BY38: 0 | BZ38: 0 | CA38: 0 | CB38: 0 | CC38: 0 | CD38: 0 | CE38: 0 | CF38: 0 | CG38: 0 | CH38: 0 | CI38: 0 | CJ38: 0 | CK38: 0 | CL38: 0 | CM38: 0 | CN38: 0 | CO38: 0 | CP38: 0 | CQ38: 0 | CR38: 0 | CS38: 0 | CT38: 0 | CU38: 0 | CV38: 0 | CW38: 0 | CX38: 0 | CY38: 0 | CZ38: 002 | DA38: 01 | DB38: Sales | DC38: School Generated Income | DD38: 01 - Sales | DE38: 002 - School Generated Income | DF38: =(AR38*SageDataCompany!$H$2)+(AS38*SageDataCompany!$H$3)+(AT38*SageDataCompany!$H$4)+(AU38*SageDataCompany!$H$5)+(AV38*SageDataCompany!$H$6)+(AW38*SageDataCompany!$H$7)+(AX38*SageDataCompany!$H$8)+(AY38*SageDataCompany!$H$9)+(AZ38*SageDataCompany!$H$10)+(BA38*SageDataCompany!$H$11)+(BB38*SageDataCompany!$H$12)+(BC38*SageDataCompany!$H$13) -> 0 | DG38: =(BD38*SageDataCompany!$H$2)+(BE38*SageDataCompany!$H$3)+(BF38*SageDataCompany!$H$4)+(BG38*SageDataCompany!$H$5)+(BH38*SageDataCompany!$H$6)+(BI38*SageDataCompany!$H$7)+(BJ38*SageDataCompany!$H$8)+(BK38*SageDataCompany!$H$9)+(BL38*SageDataCompany!$H$10)+(BM38*SageDataCompany!$H$11)+(BN38*SageDataCompany!$H$12)+(BO38*SageDataCompany!$H$13) -> 0 | DH38: =(BP38*SageDataCompany!$H$2)+(BQ38*SageDataCompany!$H$3)+(BR38*SageDataCompany!$H$4)+(BS38*SageDataCompany!$H$5)+(BT38*SageDataCompany!$H$6)+(BU38*SageDataCompany!$H$7)+(BV38*SageDataCompany!$H$8)+(BW38*SageDataCompany!$H$9)+(BX38*SageDataCompany!$H$10)+(BY38*SageDataCompany!$H$11)+(BZ38*SageDataCompany!$H$12)+(CA38*SageDataCompany!$H$13) -> 0 | DI38: 0 | DJ38: 0 | DK38: =(AR38*SageDataCompany!$I$2)+(AS38*SageDataCompany!$I$3)+(AT38*SageDataCompany!$I$4)+(AU38*SageDataCompany!$I$5)+(AV38*SageDataCompany!$I$6)+(AW38*SageDataCompany!$I$7)+(AX38*SageDataCompany!$I$8)+(AY38*SageDataCompany!$I$9)+(AZ38*SageDataCompany!$I$10)+(BA38*SageDataCompany!$I$11)+(BB38*SageDataCompany!$I$12)+(BC38*SageDataCompany!$I$13) -> 0 | DL38: =(BD38*SageDataCompany!$I$2)+(BE38*SageDataCompany!$I$3)+(BF38*SageDataCompany!$I$4)+(BG38*SageDataCompany!$I$5)+(BH38*SageDataCompany!$I$6)+(BI38*SageDataCompany!$I$7)+(BJ38*SageDataCompany!$I$8)+(BK38*SageDataCompany!$I$9)+(BL38*SageDataCompany!$I$10)+(BM38*SageDataCompany!$I$11)+(BN38*SageDataCompany!$I$12)+(BO38*SageDataCompany!$I$13) -> 0 | DM38: =(BP38*SageDataCompany!$I$2)+(BQ38*SageDataCompany!$I$3)+(BR38*SageDataCompany!$I$4)+(BS38*SageDataCompany!$I$5)+(BT38*SageDataCompany!$I$6)+(BU38*SageDataCompany!$I$7)+(BV38*SageDataCompany!$I$8)+(BW38*SageDataCompany!$I$9)+(BX38*SageDataCompany!$I$10)+(BY38*SageDataCompany!$I$11)+(BZ38*SageDataCompany!$I$12)+(CA38*SageDataCompany!$I$13) -> 0 | DN38: 0 | DO38: 0 | DT38: =Table_Query_from_SageLine50v17[[#This Row],[PY Mth1]]+Table_Query_from_SageLine50v17[[#This Row],[PY Mth2]]+Table_Query_from_SageLine50v17[[#This Row],[PY Mth3]]+Table_Query_from_SageLine50v17[[#This Row],[PY Mth4]]+Table_Query_from_SageLine50v17[[#This Row],[PY Mth5]]+Table_Query_from_SageLine50v17[[#This Row],[PY Mth6]]+Table_Query_from_SageLine50v17[[#This Row],[PY Mth7]]+Table_Query_from_SageLine50v17[[#This Row],[PY Mth8]]+Table_Query_from_SageLine50v17[[#This Row],[PY Mth9]]+Table_Query_from_SageLine50v17[[#This Row],[PY Mth10]]+Table_Query_from_SageLine50v17[[#This Row],[PY Mth11]]+Table_Query_from_SageLine50v17[[#This Row],[PY Mth12]] -> 0
A39: 3530 | B39: School Tours | C39: 0 | D39: 0 | E39: 0 | F39: 0 | G39: 0 | H39: 0 | I39: 0 | J39: 0 | K39: 0 | L39: 0 | M39: 0 | N39: 0 | O39: 0 | P39: 0 | Q39: 0 | R39: 0 | S39: 0 | T39: 0 | U39: 0 | V39: 0 | W39: 0 | X39: 0 | Y39: 0 | Z39: 0 | AA39: 0 | AB39: 0 | AC39: 0 | AD39: 0 | AE39: 0 | AF39: 0 | AG39: 0 | AH39: 0 | AI39: 0 | AJ39: 0 | AK39: 0 | AL39: 0 | AM39: 0 | AN39: =IF(VLOOKUP(A39,DR_ODBC_COALIST,16,FALSE),CONCATENATE("9999"," - ",SageDataCOAList!$L$2),SageData!$A39&" - "&SageData!$B39) -> 3530 - School Tours | AO39: 1 | AP39: -1 | AQ39: 1 | AR39: 0 | AS39: 0 | AT39: 0 | AU39: 0 | AV39: 0 | AW39: 0 | AX39: 0 | AY39: 0 | AZ39: 0 | BA39: 0 | BB39: 0 | BC39: 0 | BD39: 0 | BE39: 0 | BF39: 0 | BG39: 0 | BH39: 0 | BI39: 0 | BJ39: 0 | BK39: 0 | BL39: 0 | BM39: 0 | BN39: 0 | BO39: 0 | BP39: 0 | BQ39: 0 | BR39: 0 | BS39: 0 | BT39: 0 | BU39: 0 | BV39: 0 | BW39: 0 | BX39: 0 | BY39: 0 | BZ39: 0 | CA39: 0 | CB39: 0 | CC39: 0 | CD39: 0 | CE39: 0 | CF39: 0 | CG39: 0 | CH39: 0 | CI39: 0 | CJ39: 0 | CK39: 0 | CL39: 0 | CM39: 0 | CN39: 0 | CO39: 0 | CP39: 0 | CQ39: 0 | CR39: 0 | CS39: 0 | CT39: 0 | CU39: 0 | CV39: 0 | CW39: 0 | CX39: 0 | CY39: 0 | CZ39: 002 | DA39: 01 | DB39: Sales | DC39: School Generated Income | DD39: 01 - Sales | DE39: 002 - School Generated Income | DF39: =(AR39*SageDataCompany!$H$2)+(AS39*SageDataCompany!$H$3)+(AT39*SageDataCompany!$H$4)+(AU39*SageDataCompany!$H$5)+(AV39*SageDataCompany!$H$6)+(AW39*SageDataCompany!$H$7)+(AX39*SageDataCompany!$H$8)+(AY39*SageDataCompany!$H$9)+(AZ39*SageDataCompany!$H$10)+(BA39*SageDataCompany!$H$11)+(BB39*SageDataCompany!$H$12)+(BC39*SageDataCompany!$H$13) -> 0 | DG39: =(BD39*SageDataCompany!$H$2)+(BE39*SageDataCompany!$H$3)+(BF39*SageDataCompany!$H$4)+(BG39*SageDataCompany!$H$5)+(BH39*SageDataCompany!$H$6)+(BI39*SageDataCompany!$H$7)+(BJ39*SageDataCompany!$H$8)+(BK39*SageDataCompany!$H$9)+(BL39*SageDataCompany!$H$10)+(BM39*SageDataCompany!$H$11)+(BN39*SageDataCompany!$H$12)+(BO39*SageDataCompany!$H$13) -> 0 | DH39: =(BP39*SageDataCompany!$H$2)+(BQ39*SageDataCompany!$H$3)+(BR39*SageDataCompany!$H$4)+(BS39*SageDataCompany!$H$5)+(BT39*SageDataCompany!$H$6)+(BU39*SageDataCompany!$H$7)+(BV39*SageDataCompany!$H$8)+(BW39*SageDataCompany!$H$9)+(BX39*SageDataCompany!$H$10)+(BY39*SageDataCompany!$H$11)+(BZ39*SageDataCompany!$H$12)+(CA39*SageDataCompany!$H$13) -> 0 | DI39: 0 | DJ39: 0 | DK39: =(AR39*SageDataCompany!$I$2)+(AS39*SageDataCompany!$I$3)+(AT39*SageDataCompany!$I$4)+(AU39*SageDataCompany!$I$5)+(AV39*SageDataCompany!$I$6)+(AW39*SageDataCompany!$I$7)+(AX39*SageDataCompany!$I$8)+(AY39*SageDataCompany!$I$9)+(AZ39*SageDataCompany!$I$10)+(BA39*SageDataCompany!$I$11)+(BB39*SageDataCompany!$I$12)+(BC39*SageDataCompany!$I$13) -> 0 | DL39: =(BD39*SageDataCompany!$I$2)+(BE39*SageDataCompany!$I$3)+(BF39*SageDataCompany!$I$4)+(BG39*SageDataCompany!$I$5)+(BH39*SageDataCompany!$I$6)+(BI39*SageDataCompany!$I$7)+(BJ39*SageDataCompany!$I$8)+(BK39*SageDataCompany!$I$9)+(BL39*SageDataCompany!$I$10)+(BM39*SageDataCompany!$I$11)+(BN39*SageDataCompany!$I$12)+(BO39*SageDataCompany!$I$13) -> 0 | DM39: =(BP39*SageDataCompany!$I$2)+(BQ39*SageDataCompany!$I$3)+(BR39*SageDataCompany!$I$4)+(BS39*SageDataCompany!$I$5)+(BT39*SageDataCompany!$I$6)+(BU39*SageDataCompany!$I$7)+(BV39*SageDataCompany!$I$8)+(BW39*SageDataCompany!$I$9)+(BX39*SageDataCompany!$I$10)+(BY39*SageDataCompany!$I$11)+(BZ39*SageDataCompany!$I$12)+(CA39*SageDataCompany!$I$13) -> 0 | DN39: 0 | DO39: 0 | DT39: =Table_Query_from_SageLine50v17[[#This Row],[PY Mth1]]+Table_Query_from_SageLine50v17[[#This Row],[PY Mth2]]+Table_Query_from_SageLine50v17[[#This Row],[PY Mth3]]+Table_Query_from_SageLine50v17[[#This Row],[PY Mth4]]+Table_Query_from_SageLine50v17[[#This Row],[PY Mth5]]+Table_Query_from_SageLine50v17[[#This Row],[PY Mth6]]+Table_Query_from_SageLine50v17[[#This Row],[PY Mth7]]+Table_Query_from_SageLine50v17[[#This Row],[PY Mth8]]+Table_Query_from_SageLine50v17[[#This Row],[PY Mth9]]+Table_Query_from_SageLine50v17[[#This Row],[PY Mth10]]+Table_Query_from_SageLine50v17[[#This Row],[PY Mth11]]+Table_Query_from_SageLine50v17[[#This Row],[PY Mth12]] -> 0
A40: 3535 | B40: Student Insurance | C40: 0 | D40: 0 | E40: 0 | F40: 0 | G40: 0 | H40: 0 | I40: 0 | J40: 0 | K40: 0 | L40: -1000 | M40: 0 | N40: 0 | O40: 0 | P40: 0 | Q40: 0 | R40: 0 | S40: 0 | T40: 0 | U40: 0 | V40: 0 | W40: 0 | X40: 0 | Y40: 0 | Z40: 0 | AA40: 0 | AB40: 0 | AC40: 0 | AD40: 0 | AE40: 0 | AF40: 0 | AG40: 0 | AH40: 0 | AI40: 0 | AJ40: 0 | AK40: 0 | AL40: 0 | AM40: 0 | AN40: =IF(VLOOKUP(A40,DR_ODBC_COALIST,16,FALSE),CONCATENATE("9999"," - ",SageDataCOAList!$L$2),SageData!$A40&" - "&SageData!$B40) -> 3535 - Student Insurance | AO40: 1 | AP40: -1 | AQ40: 1 | AR40: 0 | AS40: 0 | AT40: 0 | AU40: 0 | AV40: 0 | AW40: 0 | AX40: 0 | AY40: 0 | AZ40: 0 | BA40: 1000 | BB40: 0 | BC40: 0 | BD40: 0 | BE40: 0 | BF40: 0 | BG40: 0 | BH40: 0 | BI40: 0 | BJ40: 0 | BK40: 0 | BL40: 0 | BM40: 0 | BN40: 0 | BO40: 0 | BP40: 0 | BQ40: 0 | BR40: 0 | BS40: 0 | BT40: 0 | BU40: 0 | BV40: 0 | BW40: 0 | BX40: 0 | BY40: 0 | BZ40: 0 | CA40: 0 | CB40: 0 | CC40: 0 | CD40: 0 | CE40: 0 | CF40: 0 | CG40: 0 | CH40: 0 | CI40: 0 | CJ40: 0 | CK40: 1000 | CL40: 0 | CM40: 0 | CN40: 0 | CO40: 0 | CP40: 0 | CQ40: 0 | CR40: 0 | CS40: 0 | CT40: 0 | CU40: 0 | CV40: 0 | CW40: 1000 | CX40: 0 | CY40: 0 | CZ40: 002 | DA40: 01 | DB40: Sales | DC40: School Generated Income | DD40: 01 - Sales | DE40: 002 - School Generated Income | DF40: =(AR40*SageDataCompany!$H$2)+(AS40*SageDataCompany!$H$3)+(AT40*SageDataCompany!$H$4)+(AU40*SageDataCompany!$H$5)+(AV40*SageDataCompany!$H$6)+(AW40*SageDataCompany!$H$7)+(AX40*SageDataCompany!$H$8)+(AY40*SageDataCompany!$H$9)+(AZ40*SageDataCompany!$H$10)+(BA40*SageDataCompany!$H$11)+(BB40*SageDataCompany!$H$12)+(BC40*SageDataCompany!$H$13) -> 1000 | DG40: =(BD40*SageDataCompany!$H$2)+(BE40*SageDataCompany!$H$3)+(BF40*SageDataCompany!$H$4)+(BG40*SageDataCompany!$H$5)+(BH40*SageDataCompany!$H$6)+(BI40*SageDataCompany!$H$7)+(BJ40*SageDataCompany!$H$8)+(BK40*SageDataCompany!$H$9)+(BL40*SageDataCompany!$H$10)+(BM40*SageDataCompany!$H$11)+(BN40*SageDataCompany!$H$12)+(BO40*SageDataCompany!$H$13) -> 0 | DH40: =(BP40*SageDataCompany!$H$2)+(BQ40*SageDataCompany!$H$3)+(BR40*SageDataCompany!$H$4)+(BS40*SageDataCompany!$H$5)+(BT40*SageDataCompany!$H$6)+(BU40*SageDataCompany!$H$7)+(BV40*SageDataCompany!$H$8)+(BW40*SageDataCompany!$H$9)+(BX40*SageDataCompany!$H$10)+(BY40*SageDataCompany!$H$11)+(BZ40*SageDataCompany!$H$12)+(CA40*SageDataCompany!$H$13) -> 0 | DI40: 1000 | DJ40: 1000 | DK40: =(AR40*SageDataCompany!$I$2)+(AS40*SageDataCompany!$I$3)+(AT40*SageDataCompany!$I$4)+(AU40*SageDataCompany!$I$5)+(AV40*SageDataCompany!$I$6)+(AW40*SageDataCompany!$I$7)+(AX40*SageDataCompany!$I$8)+(AY40*SageDataCompany!$I$9)+(AZ40*SageDataCompany!$I$10)+(BA40*SageDataCompany!$I$11)+(BB40*SageDataCompany!$I$12)+(BC40*SageDataCompany!$I$13) -> 1000 | DL40: =(BD40*SageDataCompany!$I$2)+(BE40*SageDataCompany!$I$3)+(BF40*SageDataCompany!$I$4)+(BG40*SageDataCompany!$I$5)+(BH40*SageDataCompany!$I$6)+(BI40*SageDataCompany!$I$7)+(BJ40*SageDataCompany!$I$8)+(BK40*SageDataCompany!$I$9)+(BL40*SageDataCompany!$I$10)+(BM40*SageDataCompany!$I$11)+(BN40*SageDataCompany!$I$12)+(BO40*SageDataCompany!$I$13) -> 0 | DM40: =(BP40*SageDataCompany!$I$2)+(BQ40*SageDataCompany!$I$3)+(BR40*SageDataCompany!$I$4)+(BS40*SageDataCompany!$I$5)+(BT40*SageDataCompany!$I$6)+(BU40*SageDataCompany!$I$7)+(BV40*SageDataCompany!$I$8)+(BW40*SageDataCompany!$I$9)+(BX40*SageDataCompany!$I$10)+(BY40*SageDataCompany!$I$11)+(BZ40*SageDataCompany!$I$12)+(CA40*SageDataCompany!$I$13) -> 0 | DN40: 1000 | DO40: 1000 | DP40: Yes | DS40: Yes | DT40: =Table_Query_from_SageLine50v17[[#This Row],[PY Mth1]]+Table_Query_from_SageLine50v17[[#This Row],[PY Mth2]]+Table_Query_from_SageLine50v17[[#This Row],[PY Mth3]]+Table_Query_from_SageLine50v17[[#This Row],[PY Mth4]]+Table_Query_from_SageLine50v17[[#This Row],[PY Mth5]]+Table_Query_from_SageLine50v17[[#This Row],[PY Mth6]]+Table_Query_from_SageLine50v17[[#This Row],[PY Mth7]]+Table_Query_from_SageLine50v17[[#This Row],[PY Mth8]]+Table_Query_from_SageLine50v17[[#This Row],[PY Mth9]]+Table_Query_from_SageLine50v17[[#This Row],[PY Mth10]]+Table_Query_from_SageLine50v17[[#This Row],[PY Mth11]]+Table_Query_from_SageLine50v17[[#This Row],[PY Mth12]] -> 0
A41: 3550 | B41: Reimbursable Income | C41: 0 | D41: 0 | E41: 0 | F41: 0 | G41: 0 | H41: 0 | I41: 0 | J41: 0 | K41: 0 | L41: -2000 | M41: 0 | N41: 0 | O41: 0 | P41: 0 | Q41: 0 | R41: 0 | S41: 0 | T41: 0 | U41: 0 | V41: 0 | W41: 0 | X41: 0 | Y41: 0 | Z41: 0 | AA41: 0 | AB41: 0 | AC41: 0 | AD41: 0 | AE41: 0 | AF41: 0 | AG41: 0 | AH41: 0 | AI41: 0 | AJ41: 0 | AK41: 0 | AL41: 0 | AM41: 0 | AN41: =IF(VLOOKUP(A41,DR_ODBC_COALIST,16,FALSE),CONCATENATE("9999"," - ",SageDataCOAList!$L$2),SageData!$A41&" - "&SageData!$B41) -> 3550 - Reimbursable Income | AO41: 1 | AP41: -1 | AQ41: 1 | AR41: 0 | AS41: 0 | AT41: 0 | AU41: 0 | AV41: 0 | AW41: 0 | AX41: 0 | AY41: 0 | AZ41: 0 | BA41: 2000 | BB41: 0 | BC41: 0 | BD41: 0 | BE41: 0 | BF41: 0 | BG41: 0 | BH41: 0 | BI41: 0 | BJ41: 0 | BK41: 0 | BL41: 0 | BM41: 0 | BN41: 0 | BO41: 0 | BP41: 0 | BQ41: 0 | BR41: 0 | BS41: 0 | BT41: 0 | BU41: 0 | BV41: 0 | BW41: 0 | BX41: 0 | BY41: 0 | BZ41: 0 | CA41: 0 | CB41: 0 | CC41: 0 | CD41: 0 | CE41: 0 | CF41: 0 | CG41: 0 | CH41: 0 | CI41: 0 | CJ41: 0 | CK41: 2000 | CL41: 0 | CM41: 0 | CN41: 0 | CO41: 0 | CP41: 0 | CQ41: 0 | CR41: 0 | CS41: 0 | CT41: 0 | CU41: 0 | CV41: 0 | CW41: 2000 | CX41: 0 | CY41: 0 | CZ41: 002 | DA41: 01 | DB41: Sales | DC41: School Generated Income | DD41: 01 - Sales | DE41: 002 - School Generated Income | DF41: =(AR41*SageDataCompany!$H$2)+(AS41*SageDataCompany!$H$3)+(AT41*SageDataCompany!$H$4)+(AU41*SageDataCompany!$H$5)+(AV41*SageDataCompany!$H$6)+(AW41*SageDataCompany!$H$7)+(AX41*SageDataCompany!$H$8)+(AY41*SageDataCompany!$H$9)+(AZ41*SageDataCompany!$H$10)+(BA41*SageDataCompany!$H$11)+(BB41*SageDataCompany!$H$12)+(BC41*SageDataCompany!$H$13) -> 2000 | DG41: =(BD41*SageDataCompany!$H$2)+(BE41*SageDataCompany!$H$3)+(BF41*SageDataCompany!$H$4)+(BG41*SageDataCompany!$H$5)+(BH41*SageDataCompany!$H$6)+(BI41*SageDataCompany!$H$7)+(BJ41*SageDataCompany!$H$8)+(BK41*SageDataCompany!$H$9)+(BL41*SageDataCompany!$H$10)+(BM41*SageDataCompany!$H$11)+(BN41*SageDataCompany!$H$12)+(BO41*SageDataCompany!$H$13) -> 0 | DH41: =(BP41*SageDataCompany!$H$2)+(BQ41*SageDataCompany!$H$3)+(BR41*SageDataCompany!$H$4)+(BS41*SageDataCompany!$H$5)+(BT41*SageDataCompany!$H$6)+(BU41*SageDataCompany!$H$7)+(BV41*SageDataCompany!$H$8)+(BW41*SageDataCompany!$H$9)+(BX41*SageDataCompany!$H$10)+(BY41*SageDataCompany!$H$11)+(BZ41*SageDataCompany!$H$12)+(CA41*SageDataCompany!$H$13) -> 0 | DI41: 2000 | DJ41: 2000 | DK41: =(AR41*SageDataCompany!$I$2)+(AS41*SageDataCompany!$I$3)+(AT41*SageDataCompany!$I$4)+(AU41*SageDataCompany!$I$5)+(AV41*SageDataCompany!$I$6)+(AW41*SageDataCompany!$I$7)+(AX41*SageDataCompany!$I$8)+(AY41*SageDataCompany!$I$9)+(AZ41*SageDataCompany!$I$10)+(BA41*SageDataCompany!$I$11)+(BB41*SageDataCompany!$I$12)+(BC41*SageDataCompany!$I$13) -> 2000 | DL41: =(BD41*SageDataCompany!$I$2)+(BE41*SageDataCompany!$I$3)+(BF41*SageDataCompany!$I$4)+(BG41*SageDataCompany!$I$5)+(BH41*SageDataCompany!$I$6)+(BI41*SageDataCompany!$I$7)+(BJ41*SageDataCompany!$I$8)+(BK41*SageDataCompany!$I$9)+(BL41*SageDataCompany!$I$10)+(BM41*SageDataCompany!$I$11)+(BN41*SageDataCompany!$I$12)+(BO41*SageDataCompany!$I$13) -> 0 | DM41: =(BP41*SageDataCompany!$I$2)+(BQ41*SageDataCompany!$I$3)+(BR41*SageDataCompany!$I$4)+(BS41*SageDataCompany!$I$5)+(BT41*SageDataCompany!$I$6)+(BU41*SageDataCompany!$I$7)+(BV41*SageDataCompany!$I$8)+(BW41*SageDataCompany!$I$9)+(BX41*SageDataCompany!$I$10)+(BY41*SageDataCompany!$I$11)+(BZ41*SageDataCompany!$I$12)+(CA41*SageDataCompany!$I$13) -> 0 | DN41: 2000 | DO41: 2000 | DP41: Yes | DS41: Yes | DT41: =Table_Query_from_SageLine50v17[[#This Row],[PY Mth1]]+Table_Query_from_SageLine50v17[[#This Row],[PY Mth2]]+Table_Query_from_SageLine50v17[[#This Row],[PY Mth3]]+Table_Query_from_SageLine50v17[[#This Row],[PY Mth4]]+Table_Query_from_SageLine50v17[[#This Row],[PY Mth5]]+Table_Query_from_SageLine50v17[[#This Row],[PY Mth6]]+Table_Query_from_SageLine50v17[[#This Row],[PY Mth7]]+Table_Query_from_SageLine50v17[[#This Row],[PY Mth8]]+Table_Query_from_SageLine50v17[[#This Row],[PY Mth9]]+Table_Query_from_SageLine50v17[[#This Row],[PY Mth10]]+Table_Query_from_SageLine50v17[[#This Row],[PY Mth11]]+Table_Query_from_SageLine50v17[[#This Row],[PY Mth12]] -> 0
A42: 3570 | B42: Other Income | C42: 0 | D42: 0 | E42: 0 | F42: 0 | G42: 0 | H42: 0 | I42: 0 | J42: 0 | K42: 0 | L42: -500 | M42: 0 | N42: 0 | O42: 0 | P42: 0 | Q42: 0 | R42: 0 | S42: 0 | T42: 0 | U42: 0 | V42: 0 | W42: 0 | X42: 0 | Y42: 0 | Z42: 0 | AA42: 0 | AB42: 0 | AC42: 0 | AD42: 0 | AE42: 0 | AF42: 0 | AG42: 0 | AH42: 0 | AI42: 0 | AJ42: 0 | AK42: 0 | AL42: 0 | AM42: 0 | AN42: =IF(VLOOKUP(A42,DR_ODBC_COALIST,16,FALSE),CONCATENATE("9999"," - ",SageDataCOAList!$L$2),SageData!$A42&" - "&SageData!$B42) -> 3570 - Other Income | AO42: 1 | AP42: -1 | AQ42: 1 | AR42: 0 | AS42: 0 | AT42: 0 | AU42: 0 | AV42: 0 | AW42: 0 | AX42: 0 | AY42: 0 | AZ42: 0 | BA42: 500 | BB42: 0 | BC42: 0 | BD42: 0 | BE42: 0 | BF42: 0 | BG42: 0 | BH42: 0 | BI42: 0 | BJ42: 0 | BK42: 0 | BL42: 0 | BM42: 0 | BN42: 0 | BO42: 0 | BP42: 0 | BQ42: 0 | BR42: 0 | BS42: 0 | BT42: 0 | BU42: 0 | BV42: 0 | BW42: 0 | BX42: 0 | BY42: 0 | BZ42: 0 | CA42: 0 | CB42: 0 | CC42: 0 | CD42: 0 | CE42: 0 | CF42: 0 | CG42: 0 | CH42: 0 | CI42: 0 | CJ42: 0 | CK42: 500 | CL42: 0 | CM42: 0 | CN42: 0 | CO42: 0 | CP42: 0 | CQ42: 0 | CR42: 0 | CS42: 0 | CT42: 0 | CU42: 0 | CV42: 0 | CW42: 500 | CX42: 0 | CY42: 0 | CZ42: 002 | DA42: 01 | DB42: Sales | DC42: School Generated Income | DD42: 01 - Sales | DE42: 002 - School Generated Income | DF42: =(AR42*SageDataCompany!$H$2)+(AS42*SageDataCompany!$H$3)+(AT42*SageDataCompany!$H$4)+(AU42*SageDataCompany!$H$5)+(AV42*SageDataCompany!$H$6)+(AW42*SageDataCompany!$H$7)+(AX42*SageDataCompany!$H$8)+(AY42*SageDataCompany!$H$9)+(AZ42*SageDataCompany!$H$10)+(BA42*SageDataCompany!$H$11)+(BB42*SageDataCompany!$H$12)+(BC42*SageDataCompany!$H$13) -> 500 | DG42: =(BD42*SageDataCompany!$H$2)+(BE42*SageDataCompany!$H$3)+(BF42*SageDataCompany!$H$4)+(BG42*SageDataCompany!$H$5)+(BH42*SageDataCompany!$H$6)+(BI42*SageDataCompany!$H$7)+(BJ42*SageDataCompany!$H$8)+(BK42*SageDataCompany!$H$9)+(BL42*SageDataCompany!$H$10)+(BM42*SageDataCompany!$H$11)+(BN42*SageDataCompany!$H$12)+(BO42*SageDataCompany!$H$13) -> 0 | DH42: =(BP42*SageDataCompany!$H$2)+(BQ42*SageDataCompany!$H$3)+(BR42*SageDataCompany!$H$4)+(BS42*SageDataCompany!$H$5)+(BT42*SageDataCompany!$H$6)+(BU42*SageDataCompany!$H$7)+(BV42*SageDataCompany!$H$8)+(BW42*SageDataCompany!$H$9)+(BX42*SageDataCompany!$H$10)+(BY42*SageDataCompany!$H$11)+(BZ42*SageDataCompany!$H$12)+(CA42*SageDataCompany!$H$13) -> 0 | DI42: 500 | DJ42: 500 | DK42: =(AR42*SageDataCompany!$I$2)+(AS42*SageDataCompany!$I$3)+(AT42*SageDataCompany!$I$4)+(AU42*SageDataCompany!$I$5)+(AV42*SageDataCompany!$I$6)+(AW42*SageDataCompany!$I$7)+(AX42*SageDataCompany!$I$8)+(AY42*SageDataCompany!$I$9)+(AZ42*SageDataCompany!$I$10)+(BA42*SageDataCompany!$I$11)+(BB42*SageDataCompany!$I$12)+(BC42*SageDataCompany!$I$13) -> 500 | DL42: =(BD42*SageDataCompany!$I$2)+(BE42*SageDataCompany!$I$3)+(BF42*SageDataCompany!$I$4)+(BG42*SageDataCompany!$I$5)+(BH42*SageDataCompany!$I$6)+(BI42*SageDataCompany!$I$7)+(BJ42*SageDataCompany!$I$8)+(BK42*SageDataCompany!$I$9)+(BL42*SageDataCompany!$I$10)+(BM42*SageDataCompany!$I$11)+(BN42*SageDataCompany!$I$12)+(BO42*SageDataCompany!$I$13) -> 0 | DM42: =(BP42*SageDataCompany!$I$2)+(BQ42*SageDataCompany!$I$3)+(BR42*SageDataCompany!$I$4)+(BS42*SageDataCompany!$I$5)+(BT42*SageDataCompany!$I$6)+(BU42*SageDataCompany!$I$7)+(BV42*SageDataCompany!$I$8)+(BW42*SageDataCompany!$I$9)+(BX42*SageDataCompany!$I$10)+(BY42*SageDataCompany!$I$11)+(BZ42*SageDataCompany!$I$12)+(CA42*SageDataCompany!$I$13) -> 0 | DN42: 500 | DO42: 500 | DP42: Yes | DS42: Yes | DT42: =Table_Query_from_SageLine50v17[[#This Row],[PY Mth1]]+Table_Query_from_SageLine50v17[[#This Row],[PY Mth2]]+Table_Query_from_SageLine50v17[[#This Row],[PY Mth3]]+Table_Query_from_SageLine50v17[[#This Row],[PY Mth4]]+Table_Query_from_SageLine50v17[[#This Row],[PY Mth5]]+Table_Query_from_SageLine50v17[[#This Row],[PY Mth6]]+Table_Query_from_SageLine50v17[[#This Row],[PY Mth7]]+Table_Query_from_SageLine50v17[[#This Row],[PY Mth8]]+Table_Query_from_SageLine50v17[[#This Row],[PY Mth9]]+Table_Query_from_SageLine50v17[[#This Row],[PY Mth10]]+Table_Query_from_SageLine50v17[[#This Row],[PY Mth11]]+Table_Query_from_SageLine50v17[[#This Row],[PY Mth12]] -> 0
A43: 3650 | B43: Voluntary Subscriptions | C43: 0 | D43: 0 | E43: 0 | F43: 0 | G43: 0 | H43: 0 | I43: 0 | J43: 0 | K43: 0 | L43: -4500 | M43: -4500 | N43: 0 | O43: 0 | P43: 0 | Q43: 0 | R43: 0 | S43: 0 | T43: 0 | U43: 0 | V43: 0 | W43: 0 | X43: 0 | Y43: 0 | Z43: 0 | AA43: 0 | AB43: 0 | AC43: 0 | AD43: 0 | AE43: 0 | AF43: 0 | AG43: 0 | AH43: 0 | AI43: 0 | AJ43: 0 | AK43: 0 | AL43: 0 | AM43: 0 | AN43: =IF(VLOOKUP(A43,DR_ODBC_COALIST,16,FALSE),CONCATENATE("9999"," - ",SageDataCOAList!$L$2),SageData!$A43&" - "&SageData!$B43) -> 3650 - Voluntary Subscriptions | AO43: 1 | AP43: -1 | AQ43: 1 | AR43: 0 | AS43: 0 | AT43: 0 | AU43: 0 | AV43: 0 | AW43: 0 | AX43: 0 | AY43: 0 | AZ43: 0 | BA43: 4500 | BB43: 4500 | BC43: 0 | BD43: 0 | BE43: 0 | BF43: 0 | BG43: 0 | BH43: 0 | BI43: 0 | BJ43: 0 | BK43: 0 | BL43: 0 | BM43: 0 | BN43: 0 | BO43: 0 | BP43: 0 | BQ43: 0 | BR43: 0 | BS43: 0 | BT43: 0 | BU43: 0 | BV43: 0 | BW43: 0 | BX43: 0 | BY43: 0 | BZ43: 0 | CA43: 0 | CB43: 0 | CC43: 0 | CD43: 0 | CE43: 0 | CF43: 0 | CG43: 0 | CH43: 0 | CI43: 0 | CJ43: 0 | CK43: 4500 | CL43: 4500 | CM43: 0 | CN43: 0 | CO43: 0 | CP43: 0 | CQ43: 0 | CR43: 0 | CS43: 0 | CT43: 0 | CU43: 0 | CV43: 0 | CW43: 4500 | CX43: 4500 | CY43: 0 | CZ43: 003 | DA43: 01 | DB43: Sales | DC43: Other Income | DD43: 01 - Sales | DE43: 003 - Other Income | DF43: =(AR43*SageDataCompany!$H$2)+(AS43*SageDataCompany!$H$3)+(AT43*SageDataCompany!$H$4)+(AU43*SageDataCompany!$H$5)+(AV43*SageDataCompany!$H$6)+(AW43*SageDataCompany!$H$7)+(AX43*SageDataCompany!$H$8)+(AY43*SageDataCompany!$H$9)+(AZ43*SageDataCompany!$H$10)+(BA43*SageDataCompany!$H$11)+(BB43*SageDataCompany!$H$12)+(BC43*SageDataCompany!$H$13) -> 9000 | DG43: =(BD43*SageDataCompany!$H$2)+(BE43*SageDataCompany!$H$3)+(BF43*SageDataCompany!$H$4)+(BG43*SageDataCompany!$H$5)+(BH43*SageDataCompany!$H$6)+(BI43*SageDataCompany!$H$7)+(BJ43*SageDataCompany!$H$8)+(BK43*SageDataCompany!$H$9)+(BL43*SageDataCompany!$H$10)+(BM43*SageDataCompany!$H$11)+(BN43*SageDataCompany!$H$12)+(BO43*SageDataCompany!$H$13) -> 0 | DH43: =(BP43*SageDataCompany!$H$2)+(BQ43*SageDataCompany!$H$3)+(BR43*SageDataCompany!$H$4)+(BS43*SageDataCompany!$H$5)+(BT43*SageDataCompany!$H$6)+(BU43*SageDataCompany!$H$7)+(BV43*SageDataCompany!$H$8)+(BW43*SageDataCompany!$H$9)+(BX43*SageDataCompany!$H$10)+(BY43*SageDataCompany!$H$11)+(BZ43*SageDataCompany!$H$12)+(CA43*SageDataCompany!$H$13) -> 0 | DI43: 9000 | DJ43: 9000 | DK43: =(AR43*SageDataCompany!$I$2)+(AS43*SageDataCompany!$I$3)+(AT43*SageDataCompany!$I$4)+(AU43*SageDataCompany!$I$5)+(AV43*SageDataCompany!$I$6)+(AW43*SageDataCompany!$I$7)+(AX43*SageDataCompany!$I$8)+(AY43*SageDataCompany!$I$9)+(AZ43*SageDataCompany!$I$10)+(BA43*SageDataCompany!$I$11)+(BB43*SageDataCompany!$I$12)+(BC43*SageDataCompany!$I$13) -> 9000 | DL43: =(BD43*SageDataCompany!$I$2)+(BE43*SageDataCompany!$I$3)+(BF43*SageDataCompany!$I$4)+(BG43*SageDataCompany!$I$5)+(BH43*SageDataCompany!$I$6)+(BI43*SageDataCompany!$I$7)+(BJ43*SageDataCompany!$I$8)+(BK43*SageDataCompany!$I$9)+(BL43*SageDataCompany!$I$10)+(BM43*SageDataCompany!$I$11)+(BN43*SageDataCompany!$I$12)+(BO43*SageDataCompany!$I$13) -> 0 | DM43: =(BP43*SageDataCompany!$I$2)+(BQ43*SageDataCompany!$I$3)+(BR43*SageDataCompany!$I$4)+(BS43*SageDataCompany!$I$5)+(BT43*SageDataCompany!$I$6)+(BU43*SageDataCompany!$I$7)+(BV43*SageDataCompany!$I$8)+(BW43*SageDataCompany!$I$9)+(BX43*SageDataCompany!$I$10)+(BY43*SageDataCompany!$I$11)+(BZ43*SageDataCompany!$I$12)+(CA43*SageDataCompany!$I$13) -> 0 | DN43: 9000 | DO43: 9000 | DP43: Yes | DS43: Yes | DT43: =Table_Query_from_SageLine50v17[[#This Row],[PY Mth1]]+Table_Query_from_SageLine50v17[[#This Row],[PY Mth2]]+Table_Query_from_SageLine50v17[[#This Row],[PY Mth3]]+Table_Query_from_SageLine50v17[[#This Row],[PY Mth4]]+Table_Query_from_SageLine50v17[[#This Row],[PY Mth5]]+Table_Query_from_SageLine50v17[[#This Row],[PY Mth6]]+Table_Query_from_SageLine50v17[[#This Row],[PY Mth7]]+Table_Query_from_SageLine50v17[[#This Row],[PY Mth8]]+Table_Query_from_SageLine50v17[[#This Row],[PY Mth9]]+Table_Query_from_SageLine50v17[[#This Row],[PY Mth10]]+Table_Query_from_SageLine50v17[[#This Row],[PY Mth11]]+Table_Query_from_SageLine50v17[[#This Row],[PY Mth12]] -> 0
A44: 3700 | B44: Parents Council | C44: 0 | D44: 0 | E44: 0 | F44: 0 | G44: 0 | H44: 0 | I44: 0 | J44: 0 | K44: 0 | L44: -200 | M44: 0 | N44: 0 | O44: 0 | P44: 0 | Q44: 0 | R44: 0 | S44: 0 | T44: 0 | U44: 0 | V44: 0 | W44: 0 | X44: 0 | Y44: 0 | Z44: 0 | AA44: 0 | AB44: 0 | AC44: 0 | AD44: 0 | AE44: 0 | AF44: 0 | AG44: 0 | AH44: 0 | AI44: 0 | AJ44: 0 | AK44: 0 | AL44: 0 | AM44: 0 | AN44: =IF(VLOOKUP(A44,DR_ODBC_COALIST,16,FALSE),CONCATENATE("9999"," - ",SageDataCOAList!$L$2),SageData!$A44&" - "&SageData!$B44) -> 3700 - Parents Council | AO44: 1 | AP44: -1 | AQ44: 1 | AR44: 0 | AS44: 0 | AT44: 0 | AU44: 0 | AV44: 0 | AW44: 0 | AX44: 0 | AY44: 0 | AZ44: 0 | BA44: 200 | BB44: 0 | BC44: 0 | BD44: 0 | BE44: 0 | BF44: 0 | BG44: 0 | BH44: 0 | BI44: 0 | BJ44: 0 | BK44: 0 | BL44: 0 | BM44: 0 | BN44: 0 | BO44: 0 | BP44: 0 | BQ44: 0 | BR44: 0 | BS44: 0 | BT44: 0 | BU44: 0 | BV44: 0 | BW44: 0 | BX44: 0 | BY44: 0 | BZ44: 0 | CA44: 0 | CB44: 0 | CC44: 0 | CD44: 0 | CE44: 0 | CF44: 0 | CG44: 0 | CH44: 0 | CI44: 0 | CJ44: 0 | CK44: 200 | CL44: 0 | CM44: 0 | CN44: 0 | CO44: 0 | CP44: 0 | CQ44: 0 | CR44: 0 | CS44: 0 | CT44: 0 | CU44: 0 | CV44: 0 | CW44: 200 | CX44: 0 | CY44: 0 | CZ44: 003 | DA44: 01 | DB44: Sales | DC44: Other Income | DD44: 01 - Sales | DE44: 003 - Other Income | DF44: =(AR44*SageDataCompany!$H$2)+(AS44*SageDataCompany!$H$3)+(AT44*SageDataCompany!$H$4)+(AU44*SageDataCompany!$H$5)+(AV44*SageDataCompany!$H$6)+(AW44*SageDataCompany!$H$7)+(AX44*SageDataCompany!$H$8)+(AY44*SageDataCompany!$H$9)+(AZ44*SageDataCompany!$H$10)+(BA44*SageDataCompany!$H$11)+(BB44*SageDataCompany!$H$12)+(BC44*SageDataCompany!$H$13) -> 200 | DG44: =(BD44*SageDataCompany!$H$2)+(BE44*SageDataCompany!$H$3)+(BF44*SageDataCompany!$H$4)+(BG44*SageDataCompany!$H$5)+(BH44*SageDataCompany!$H$6)+(BI44*SageDataCompany!$H$7)+(BJ44*SageDataCompany!$H$8)+(BK44*SageDataCompany!$H$9)+(BL44*SageDataCompany!$H$10)+(BM44*SageDataCompany!$H$11)+(BN44*SageDataCompany!$H$12)+(BO44*SageDataCompany!$H$13) -> 0 | DH44: =(BP44*SageDataCompany!$H$2)+(BQ44*SageDataCompany!$H$3)+(BR44*SageDataCompany!$H$4)+(BS44*SageDataCompany!$H$5)+(BT44*SageDataCompany!$H$6)+(BU44*SageDataCompany!$H$7)+(BV44*SageDataCompany!$H$8)+(BW44*SageDataCompany!$H$9)+(BX44*SageDataCompany!$H$10)+(BY44*SageDataCompany!$H$11)+(BZ44*SageDataCompany!$H$12)+(CA44*SageDataCompany!$H$13) -> 0 | DI44: 200 | DJ44: 200 | DK44: =(AR44*SageDataCompany!$I$2)+(AS44*SageDataCompany!$I$3)+(AT44*SageDataCompany!$I$4)+(AU44*SageDataCompany!$I$5)+(AV44*SageDataCompany!$I$6)+(AW44*SageDataCompany!$I$7)+(AX44*SageDataCompany!$I$8)+(AY44*SageDataCompany!$I$9)+(AZ44*SageDataCompany!$I$10)+(BA44*SageDataCompany!$I$11)+(BB44*SageDataCompany!$I$12)+(BC44*SageDataCompany!$I$13) -> 200 | DL44: =(BD44*SageDataCompany!$I$2)+(BE44*SageDataCompany!$I$3)+(BF44*SageDataCompany!$I$4)+(BG44*SageDataCompany!$I$5)+(BH44*SageDataCompany!$I$6)+(BI44*SageDataCompany!$I$7)+(BJ44*SageDataCompany!$I$8)+(BK44*SageDataCompany!$I$9)+(BL44*SageDataCompany!$I$10)+(BM44*SageDataCompany!$I$11)+(BN44*SageDataCompany!$I$12)+(BO44*SageDataCompany!$I$13) -> 0 | DM44: =(BP44*SageDataCompany!$I$2)+(BQ44*SageDataCompany!$I$3)+(BR44*SageDataCompany!$I$4)+(BS44*SageDataCompany!$I$5)+(BT44*SageDataCompany!$I$6)+(BU44*SageDataCompany!$I$7)+(BV44*SageDataCompany!$I$8)+(BW44*SageDataCompany!$I$9)+(BX44*SageDataCompany!$I$10)+(BY44*SageDataCompany!$I$11)+(BZ44*SageDataCompany!$I$12)+(CA44*SageDataCompany!$I$13) -> 0 | DN44: 200 | DO44: 200 | DP44: Yes | DS44: Yes | DT44: =Table_Query_from_SageLine50v17[[#This Row],[PY Mth1]]+Table_Query_from_SageLine50v17[[#This Row],[PY Mth2]]+Table_Query_from_SageLine50v17[[#This Row],[PY Mth3]]+Table_Query_from_SageLine50v17[[#This Row],[PY Mth4]]+Table_Query_from_SageLine50v17[[#This Row],[PY Mth5]]+Table_Query_from_SageLine50v17[[#This Row],[PY Mth6]]+Table_Query_from_SageLine50v17[[#This Row],[PY Mth7]]+Table_Query_from_SageLine50v17[[#This Row],[PY Mth8]]+Table_Query_from_SageLine50v17[[#This Row],[PY Mth9]]+Table_Query_from_SageLine50v17[[#This Row],[PY Mth10]]+Table_Query_from_SageLine50v17[[#This Row],[PY Mth11]]+Table_Query_from_SageLine50v17[[#This Row],[PY Mth12]] -> 0
A45: 3750 | B45: Fund Raising | C45: 0 | D45: 0 | E45: 0 | F45: 0 | G45: 0 | H45: 0 | I45: 0 | J45: 0 | K45: 0 | L45: -8000 | M45: 0 | N45: 0 | O45: 0 | P45: 0 | Q45: 0 | R45: 0 | S45: 0 | T45: 0 | U45: 0 | V45: 0 | W45: 0 | X45: 0 | Y45: 0 | Z45: 0 | AA45: 0 | AB45: 0 | AC45: 0 | AD45: 0 | AE45: 0 | AF45: 0 | AG45: 0 | AH45: 0 | AI45: 0 | AJ45: 0 | AK45: 0 | AL45: 0 | AM45: 0 | AN45: =IF(VLOOKUP(A45,DR_ODBC_COALIST,16,FALSE),CONCATENATE("9999"," - ",SageDataCOAList!$L$2),SageData!$A45&" - "&SageData!$B45) -> 3750 - Fund Raising | AO45: 1 | AP45: -1 | AQ45: 1 | AR45: 0 | AS45: 0 | AT45: 0 | AU45: 0 | AV45: 0 | AW45: 0 | AX45: 0 | AY45: 0 | AZ45: 0 | BA45: 8000 | BB45: 0 | BC45: 0 | BD45: 0 | BE45: 0 | BF45: 0 | BG45: 0 | BH45: 0 | BI45: 0 | BJ45: 0 | BK45: 0 | BL45: 0 | BM45: 0 | BN45: 0 | BO45: 0 | BP45: 0 | BQ45: 0 | BR45: 0 | BS45: 0 | BT45: 0 | BU45: 0 | BV45: 0 | BW45: 0 | BX45: 0 | BY45: 0 | BZ45: 0 | CA45: 0 | CB45: 0 | CC45: 0 | CD45: 0 | CE45: 0 | CF45: 0 | CG45: 0 | CH45: 0 | CI45: 0 | CJ45: 0 | CK45: 8000 | CL45: 0 | CM45: 0 | CN45: 0 | CO45: 0 | CP45: 0 | CQ45: 0 | CR45: 0 | CS45: 0 | CT45: 0 | CU45: 0 | CV45: 0 | CW45: 8000 | CX45: 0 | CY45: 0 | CZ45: 003 | DA45: 01 | DB45: Sales | DC45: Other Income | DD45: 01 - Sales | DE45: 003 - Other Income | DF45: =(AR45*SageDataCompany!$H$2)+(AS45*SageDataCompany!$H$3)+(AT45*SageDataCompany!$H$4)+(AU45*SageDataCompany!$H$5)+(AV45*SageDataCompany!$H$6)+(AW45*SageDataCompany!$H$7)+(AX45*SageDataCompany!$H$8)+(AY45*SageDataCompany!$H$9)+(AZ45*SageDataCompany!$H$10)+(BA45*SageDataCompany!$H$11)+(BB45*SageDataCompany!$H$12)+(BC45*SageDataCompany!$H$13) -> 8000 | DG45: =(BD45*SageDataCompany!$H$2)+(BE45*SageDataCompany!$H$3)+(BF45*SageDataCompany!$H$4)+(BG45*SageDataCompany!$H$5)+(BH45*SageDataCompany!$H$6)+(BI45*SageDataCompany!$H$7)+(BJ45*SageDataCompany!$H$8)+(BK45*SageDataCompany!$H$9)+(BL45*SageDataCompany!$H$10)+(BM45*SageDataCompany!$H$11)+(BN45*SageDataCompany!$H$12)+(BO45*SageDataCompany!$H$13) -> 0 | DH45: =(BP45*SageDataCompany!$H$2)+(BQ45*SageDataCompany!$H$3)+(BR45*SageDataCompany!$H$4)+(BS45*SageDataCompany!$H$5)+(BT45*SageDataCompany!$H$6)+(BU45*SageDataCompany!$H$7)+(BV45*SageDataCompany!$H$8)+(BW45*SageDataCompany!$H$9)+(BX45*SageDataCompany!$H$10)+(BY45*SageDataCompany!$H$11)+(BZ45*SageDataCompany!$H$12)+(CA45*SageDataCompany!$H$13) -> 0 | DI45: 8000 | DJ45: 8000 | DK45: =(AR45*SageDataCompany!$I$2)+(AS45*SageDataCompany!$I$3)+(AT45*SageDataCompany!$I$4)+(AU45*SageDataCompany!$I$5)+(AV45*SageDataCompany!$I$6)+(AW45*SageDataCompany!$I$7)+(AX45*SageDataCompany!$I$8)+(AY45*SageDataCompany!$I$9)+(AZ45*SageDataCompany!$I$10)+(BA45*SageDataCompany!$I$11)+(BB45*SageDataCompany!$I$12)+(BC45*SageDataCompany!$I$13) -> 8000 | DL45: =(BD45*SageDataCompany!$I$2)+(BE45*SageDataCompany!$I$3)+(BF45*SageDataCompany!$I$4)+(BG45*SageDataCompany!$I$5)+(BH45*SageDataCompany!$I$6)+(BI45*SageDataCompany!$I$7)+(BJ45*SageDataCompany!$I$8)+(BK45*SageDataCompany!$I$9)+(BL45*SageDataCompany!$I$10)+(BM45*SageDataCompany!$I$11)+(BN45*SageDataCompany!$I$12)+(BO45*SageDataCompany!$I$13) -> 0 | DM45: =(BP45*SageDataCompany!$I$2)+(BQ45*SageDataCompany!$I$3)+(BR45*SageDataCompany!$I$4)+(BS45*SageDataCompany!$I$5)+(BT45*SageDataCompany!$I$6)+(BU45*SageDataCompany!$I$7)+(BV45*SageDataCompany!$I$8)+(BW45*SageDataCompany!$I$9)+(BX45*SageDataCompany!$I$10)+(BY45*SageDataCompany!$I$11)+(BZ45*SageDataCompany!$I$12)+(CA45*SageDataCompany!$I$13) -> 0 | DN45: 8000 | DO45: 8000 | DP45: Yes | DS45: Yes | DT45: =Table_Query_from_SageLine50v17[[#This Row],[PY Mth1]]+Table_Query_from_SageLine50v17[[#This Row],[PY Mth2]]+Table_Query_from_SageLine50v17[[#This Row],[PY Mth3]]+Table_Query_from_SageLine50v17[[#This Row],[PY Mth4]]+Table_Query_from_SageLine50v17[[#This Row],[PY Mth5]]+Table_Query_from_SageLine50v17[[#This Row],[PY Mth6]]+Table_Query_from_SageLine50v17[[#This Row],[PY Mth7]]+Table_Query_from_SageLine50v17[[#This Row],[PY Mth8]]+Table_Query_from_SageLine50v17[[#This Row],[PY Mth9]]+Table_Query_from_SageLine50v17[[#This Row],[PY Mth10]]+Table_Query_from_SageLine50v17[[#This Row],[PY Mth11]]+Table_Query_from_SageLine50v17[[#This Row],[PY Mth12]] -> 0
A46: 3770 | B46: Insurance Claim Receipts | C46: 0 | D46: 0 | E46: 0 | F46: 0 | G46: 0 | H46: 0 | I46: 0 | J46: 0 | K46: 0 | L46: 0 | M46: 0 | N46: 0 | O46: 0 | P46: 0 | Q46: 0 | R46: 0 | S46: 0 | T46: 0 | U46: 0 | V46: 0 | W46: 0 | X46: 0 | Y46: 0 | Z46: 0 | AA46: 0 | AB46: 0 | AC46: 0 | AD46: 0 | AE46: 0 | AF46: 0 | AG46: 0 | AH46: 0 | AI46: 0 | AJ46: 0 | AK46: 0 | AL46: 0 | AM46: 0 | AN46: =IF(VLOOKUP(A46,DR_ODBC_COALIST,16,FALSE),CONCATENATE("9999"," - ",SageDataCOAList!$L$2),SageData!$A46&" - "&SageData!$B46) -> 3770 - Insurance Claim Receipts | AO46: 1 | AP46: -1 | AQ46: 1 | AR46: 0 | AS46: 0 | AT46: 0 | AU46: 0 | AV46: 0 | AW46: 0 | AX46: 0 | AY46: 0 | AZ46: 0 | BA46: 0 | BB46: 0 | BC46: 0 | BD46: 0 | BE46: 0 | BF46: 0 | BG46: 0 | BH46: 0 | BI46: 0 | BJ46: 0 | BK46: 0 | BL46: 0 | BM46: 0 | BN46: 0 | BO46: 0 | BP46: 0 | BQ46: 0 | BR46: 0 | BS46: 0 | BT46: 0 | BU46: 0 | BV46: 0 | BW46: 0 | BX46: 0 | BY46: 0 | BZ46: 0 | CA46: 0 | CB46: 0 | CC46: 0 | CD46: 0 | CE46: 0 | CF46: 0 | CG46: 0 | CH46: 0 | CI46: 0 | CJ46: 0 | CK46: 0 | CL46: 0 | CM46: 0 | CN46: 0 | CO46: 0 | CP46: 0 | CQ46: 0 | CR46: 0 | CS46: 0 | CT46: 0 | CU46: 0 | CV46: 0 | CW46: 0 | CX46: 0 | CY46: 0 | CZ46: 003 | DA46: 01 | DB46: Sales | DC46: Other Income | DD46: 01 - Sales | DE46: 003 - Other Income | DF46: =(AR46*SageDataCompany!$H$2)+(AS46*SageDataCompany!$H$3)+(AT46*SageDataCompany!$H$4)+(AU46*SageDataCompany!$H$5)+(AV46*SageDataCompany!$H$6)+(AW46*SageDataCompany!$H$7)+(AX46*SageDataCompany!$H$8)+(AY46*SageDataCompany!$H$9)+(AZ46*SageDataCompany!$H$10)+(BA46*SageDataCompany!$H$11)+(BB46*SageDataCompany!$H$12)+(BC46*SageDataCompany!$H$13) -> 0 | DG46: =(BD46*SageDataCompany!$H$2)+(BE46*SageDataCompany!$H$3)+(BF46*SageDataCompany!$H$4)+(BG46*SageDataCompany!$H$5)+(BH46*SageDataCompany!$H$6)+(BI46*SageDataCompany!$H$7)+(BJ46*SageDataCompany!$H$8)+(BK46*SageDataCompany!$H$9)+(BL46*SageDataCompany!$H$10)+(BM46*SageDataCompany!$H$11)+(BN46*SageDataCompany!$H$12)+(BO46*SageDataCompany!$H$13) -> 0 | DH46: =(BP46*SageDataCompany!$H$2)+(BQ46*SageDataCompany!$H$3)+(BR46*SageDataCompany!$H$4)+(BS46*SageDataCompany!$H$5)+(BT46*SageDataCompany!$H$6)+(BU46*SageDataCompany!$H$7)+(BV46*SageDataCompany!$H$8)+(BW46*SageDataCompany!$H$9)+(BX46*SageDataCompany!$H$10)+(BY46*SageDataCompany!$H$11)+(BZ46*SageDataCompany!$H$12)+(CA46*SageDataCompany!$H$13) -> 0 | DI46: 0 | DJ46: 0 | DK46: =(AR46*SageDataCompany!$I$2)+(AS46*SageDataCompany!$I$3)+(AT46*SageDataCompany!$I$4)+(AU46*SageDataCompany!$I$5)+(AV46*SageDataCompany!$I$6)+(AW46*SageDataCompany!$I$7)+(AX46*SageDataCompany!$I$8)+(AY46*SageDataCompany!$I$9)+(AZ46*SageDataCompany!$I$10)+(BA46*SageDataCompany!$I$11)+(BB46*SageDataCompany!$I$12)+(BC46*SageDataCompany!$I$13) -> 0 | DL46: =(BD46*SageDataCompany!$I$2)+(BE46*SageDataCompany!$I$3)+(BF46*SageDataCompany!$I$4)+(BG46*SageDataCompany!$I$5)+(BH46*SageDataCompany!$I$6)+(BI46*SageDataCompany!$I$7)+(BJ46*SageDataCompany!$I$8)+(BK46*SageDataCompany!$I$9)+(BL46*SageDataCompany!$I$10)+(BM46*SageDataCompany!$I$11)+(BN46*SageDataCompany!$I$12)+(BO46*SageDataCompany!$I$13) -> 0 | DM46: =(BP46*SageDataCompany!$I$2)+(BQ46*SageDataCompany!$I$3)+(BR46*SageDataCompany!$I$4)+(BS46*SageDataCompany!$I$5)+(BT46*SageDataCompany!$I$6)+(BU46*SageDataCompany!$I$7)+(BV46*SageDataCompany!$I$8)+(BW46*SageDataCompany!$I$9)+(BX46*SageDataCompany!$I$10)+(BY46*SageDataCompany!$I$11)+(BZ46*SageDataCompany!$I$12)+(CA46*SageDataCompany!$I$13) -> 0 | DN46: 0 | DO46: 0 | DT46: =Table_Query_from_SageLine50v17[[#This Row],[PY Mth1]]+Table_Query_from_SageLine50v17[[#This Row],[PY Mth2]]+Table_Query_from_SageLine50v17[[#This Row],[PY Mth3]]+Table_Query_from_SageLine50v17[[#This Row],[PY Mth4]]+Table_Query_from_SageLine50v17[[#This Row],[PY Mth5]]+Table_Query_from_SageLine50v17[[#This Row],[PY Mth6]]+Table_Query_from_SageLine50v17[[#This Row],[PY Mth7]]+Table_Query_from_SageLine50v17[[#This Row],[PY Mth8]]+Table_Query_from_SageLine50v17[[#This Row],[PY Mth9]]+Table_Query_from_SageLine50v17[[#This Row],[PY Mth10]]+Table_Query_from_SageLine50v17[[#This Row],[PY Mth11]]+Table_Query_from_SageLine50v17[[#This Row],[PY Mth12]] -> 0
A47: 3800 | B47: Bank Interest Received | C47: 0 | D47: 0 | E47: 0 | F47: 0 | G47: 0 | H47: 0 | I47: 0 | J47: 0 | K47: 0 | L47: -600 | M47: 0 | N47: 0 | O47: 0 | P47: 0 | Q47: 0 | R47: 0 | S47: 0 | T47: 0 | U47: 0 | V47: 0 | W47: 0 | X47: 0 | Y47: 0 | Z47: 0 | AA47: 0 | AB47: 0 | AC47: 0 | AD47: 0 | AE47: 0 | AF47: 0 | AG47: 0 | AH47: 0 | AI47: 0 | AJ47: 0 | AK47: 0 | AL47: 0 | AM47: 0 | AN47: =IF(VLOOKUP(A47,DR_ODBC_COALIST,16,FALSE),CONCATENATE("9999"," - ",SageDataCOAList!$L$2),SageData!$A47&" - "&SageData!$B47) -> 3800 - Bank Interest Received | AO47: 1 | AP47: -1 | AQ47: 1 | AR47: 0 | AS47: 0 | AT47: 0 | AU47: 0 | AV47: 0 | AW47: 0 | AX47: 0 | AY47: 0 | AZ47: 0 | BA47: 600 | BB47: 0 | BC47: 0 | BD47: 0 | BE47: 0 | BF47: 0 | BG47: 0 | BH47: 0 | BI47: 0 | BJ47: 0 | BK47: 0 | BL47: 0 | BM47: 0 | BN47: 0 | BO47: 0 | BP47: 0 | BQ47: 0 | BR47: 0 | BS47: 0 | BT47: 0 | BU47: 0 | BV47: 0 | BW47: 0 | BX47: 0 | BY47: 0 | BZ47: 0 | CA47: 0 | CB47: 0 | CC47: 0 | CD47: 0 | CE47: 0 | CF47: 0 | CG47: 0 | CH47: 0 | CI47: 0 | CJ47: 0 | CK47: 600 | CL47: 0 | CM47: 0 | CN47: 0 | CO47: 0 | CP47: 0 | CQ47: 0 | CR47: 0 | CS47: 0 | CT47: 0 | CU47: 0 | CV47: 0 | CW47: 600 | CX47: 0 | CY47: 0 | CZ47: 003 | DA47: 01 | DB47: Sales | DC47: Other Income | DD47: 01 - Sales | DE47: 003 - Other Income | DF47: =(AR47*SageDataCompany!$H$2)+(AS47*SageDataCompany!$H$3)+(AT47*SageDataCompany!$H$4)+(AU47*SageDataCompany!$H$5)+(AV47*SageDataCompany!$H$6)+(AW47*SageDataCompany!$H$7)+(AX47*SageDataCompany!$H$8)+(AY47*SageDataCompany!$H$9)+(AZ47*SageDataCompany!$H$10)+(BA47*SageDataCompany!$H$11)+(BB47*SageDataCompany!$H$12)+(BC47*SageDataCompany!$H$13) -> 600 | DG47: =(BD47*SageDataCompany!$H$2)+(BE47*SageDataCompany!$H$3)+(BF47*SageDataCompany!$H$4)+(BG47*SageDataCompany!$H$5)+(BH47*SageDataCompany!$H$6)+(BI47*SageDataCompany!$H$7)+(BJ47*SageDataCompany!$H$8)+(BK47*SageDataCompany!$H$9)+(BL47*SageDataCompany!$H$10)+(BM47*SageDataCompany!$H$11)+(BN47*SageDataCompany!$H$12)+(BO47*SageDataCompany!$H$13) -> 0 | DH47: =(BP47*SageDataCompany!$H$2)+(BQ47*SageDataCompany!$H$3)+(BR47*SageDataCompany!$H$4)+(BS47*SageDataCompany!$H$5)+(BT47*SageDataCompany!$H$6)+(BU47*SageDataCompany!$H$7)+(BV47*SageDataCompany!$H$8)+(BW47*SageDataCompany!$H$9)+(BX47*SageDataCompany!$H$10)+(BY47*SageDataCompany!$H$11)+(BZ47*SageDataCompany!$H$12)+(CA47*SageDataCompany!$H$13) -> 0 | DI47: 600 | DJ47: 600 | DK47: =(AR47*SageDataCompany!$I$2)+(AS47*SageDataCompany!$I$3)+(AT47*SageDataCompany!$I$4)+(AU47*SageDataCompany!$I$5)+(AV47*SageDataCompany!$I$6)+(AW47*SageDataCompany!$I$7)+(AX47*SageDataCompany!$I$8)+(AY47*SageDataCompany!$I$9)+(AZ47*SageDataCompany!$I$10)+(BA47*SageDataCompany!$I$11)+(BB47*SageDataCompany!$I$12)+(BC47*SageDataCompany!$I$13) -> 600 | DL47: =(BD47*SageDataCompany!$I$2)+(BE47*SageDataCompany!$I$3)+(BF47*SageDataCompany!$I$4)+(BG47*SageDataCompany!$I$5)+(BH47*SageDataCompany!$I$6)+(BI47*SageDataCompany!$I$7)+(BJ47*SageDataCompany!$I$8)+(BK47*SageDataCompany!$I$9)+(BL47*SageDataCompany!$I$10)+(BM47*SageDataCompany!$I$11)+(BN47*SageDataCompany!$I$12)+(BO47*SageDataCompany!$I$13) -> 0 | DM47: =(BP47*SageDataCompany!$I$2)+(BQ47*SageDataCompany!$I$3)+(BR47*SageDataCompany!$I$4)+(BS47*SageDataCompany!$I$5)+(BT47*SageDataCompany!$I$6)+(BU47*SageDataCompany!$I$7)+(BV47*SageDataCompany!$I$8)+(BW47*SageDataCompany!$I$9)+(BX47*SageDataCompany!$I$10)+(BY47*SageDataCompany!$I$11)+(BZ47*SageDataCompany!$I$12)+(CA47*SageDataCompany!$I$13) -> 0 | DN47: 600 | DO47: 600 | DP47: Yes | DS47: Yes | DT47: =Table_Query_from_SageLine50v17[[#This Row],[PY Mth1]]+Table_Query_from_SageLine50v17[[#This Row],[PY Mth2]]+Table_Query_from_SageLine50v17[[#This Row],[PY Mth3]]+Table_Query_from_SageLine50v17[[#This Row],[PY Mth4]]+Table_Query_from_SageLine50v17[[#This Row],[PY Mth5]]+Table_Query_from_SageLine50v17[[#This Row],[PY Mth6]]+Table_Query_from_SageLine50v17[[#This Row],[PY Mth7]]+Table_Query_from_SageLine50v17[[#This Row],[PY Mth8]]+Table_Query_from_SageLine50v17[[#This Row],[PY Mth9]]+Table_Query_from_SageLine50v17[[#This Row],[PY Mth10]]+Table_Query_from_SageLine50v17[[#This Row],[PY Mth11]]+Table_Query_from_SageLine50v17[[#This Row],[PY Mth12]] -> 0
A48: 3840 | B48: Amortisation of Grants | C48: 0 | D48: 0 | E48: 0 | F48: 0 | G48: 0 | H48: 0 | I48: 0 | J48: 0 | K48: 0 | L48: 0 | M48: 0 | N48: 0 | O48: 0 | P48: 0 | Q48: 0 | R48: 0 | S48: 0 | T48: 0 | U48: 0 | V48: 0 | W48: 0 | X48: 0 | Y48: 0 | Z48: 0 | AA48: 0 | AB48: 0 | AC48: 0 | AD48: 0 | AE48: 0 | AF48: 0 | AG48: 0 | AH48: 0 | AI48: 0 | AJ48: 0 | AK48: 0 | AL48: 0 | AM48: 0 | AN48: =IF(VLOOKUP(A48,DR_ODBC_COALIST,16,FALSE),CONCATENATE("9999"," - ",SageDataCOAList!$L$2),SageData!$A48&" - "&SageData!$B48) -> 3840 - Amortisation of Grants | AO48: 1 | AP48: -1 | AQ48: 1 | AR48: 0 | AS48: 0 | AT48: 0 | AU48: 0 | AV48: 0 | AW48: 0 | AX48: 0 | AY48: 0 | AZ48: 0 | BA48: 0 | BB48: 0 | BC48: 0 | BD48: 0 | BE48: 0 | BF48: 0 | BG48: 0 | BH48: 0 | BI48: 0 | BJ48: 0 | BK48: 0 | BL48: 0 | BM48: 0 | BN48: 0 | BO48: 0 | BP48: 0 | BQ48: 0 | BR48: 0 | BS48: 0 | BT48: 0 | BU48: 0 | BV48: 0 | BW48: 0 | BX48: 0 | BY48: 0 | BZ48: 0 | CA48: 0 | CB48: 0 | CC48: 0 | CD48: 0 | CE48: 0 | CF48: 0 | CG48: 0 | CH48: 0 | CI48: 0 | CJ48: 0 | CK48: 0 | CL48: 0 | CM48: 0 | CN48: 0 | CO48: 0 | CP48: 0 | CQ48: 0 | CR48: 0 | CS48: 0 | CT48: 0 | CU48: 0 | CV48: 0 | CW48: 0 | CX48: 0 | CY48: 0 | CZ48: 003 | DA48: 01 | DB48: Sales | DC48: Other Income | DD48: 01 - Sales | DE48: 003 - Other Income | DF48: =(AR48*SageDataCompany!$H$2)+(AS48*SageDataCompany!$H$3)+(AT48*SageDataCompany!$H$4)+(AU48*SageDataCompany!$H$5)+(AV48*SageDataCompany!$H$6)+(AW48*SageDataCompany!$H$7)+(AX48*SageDataCompany!$H$8)+(AY48*SageDataCompany!$H$9)+(AZ48*SageDataCompany!$H$10)+(BA48*SageDataCompany!$H$11)+(BB48*SageDataCompany!$H$12)+(BC48*SageDataCompany!$H$13) -> 0 | DG48: =(BD48*SageDataCompany!$H$2)+(BE48*SageDataCompany!$H$3)+(BF48*SageDataCompany!$H$4)+(BG48*SageDataCompany!$H$5)+(BH48*SageDataCompany!$H$6)+(BI48*SageDataCompany!$H$7)+(BJ48*SageDataCompany!$H$8)+(BK48*SageDataCompany!$H$9)+(BL48*SageDataCompany!$H$10)+(BM48*SageDataCompany!$H$11)+(BN48*SageDataCompany!$H$12)+(BO48*SageDataCompany!$H$13) -> 0 | DH48: =(BP48*SageDataCompany!$H$2)+(BQ48*SageDataCompany!$H$3)+(BR48*SageDataCompany!$H$4)+(BS48*SageDataCompany!$H$5)+(BT48*SageDataCompany!$H$6)+(BU48*SageDataCompany!$H$7)+(BV48*SageDataCompany!$H$8)+(BW48*SageDataCompany!$H$9)+(BX48*SageDataCompany!$H$10)+(BY48*SageDataCompany!$H$11)+(BZ48*SageDataCompany!$H$12)+(CA48*SageDataCompany!$H$13) -> 0 | DI48: 0 | DJ48: 0 | DK48: =(AR48*SageDataCompany!$I$2)+(AS48*SageDataCompany!$I$3)+(AT48*SageDataCompany!$I$4)+(AU48*SageDataCompany!$I$5)+(AV48*SageDataCompany!$I$6)+(AW48*SageDataCompany!$I$7)+(AX48*SageDataCompany!$I$8)+(AY48*SageDataCompany!$I$9)+(AZ48*SageDataCompany!$I$10)+(BA48*SageDataCompany!$I$11)+(BB48*SageDataCompany!$I$12)+(BC48*SageDataCompany!$I$13) -> 0 | DL48: =(BD48*SageDataCompany!$I$2)+(BE48*SageDataCompany!$I$3)+(BF48*SageDataCompany!$I$4)+(BG48*SageDataCompany!$I$5)+(BH48*SageDataCompany!$I$6)+(BI48*SageDataCompany!$I$7)+(BJ48*SageDataCompany!$I$8)+(BK48*SageDataCompany!$I$9)+(BL48*SageDataCompany!$I$10)+(BM48*SageDataCompany!$I$11)+(BN48*SageDataCompany!$I$12)+(BO48*SageDataCompany!$I$13) -> 0 | DM48: =(BP48*SageDataCompany!$I$2)+(BQ48*SageDataCompany!$I$3)+(BR48*SageDataCompany!$I$4)+(BS48*SageDataCompany!$I$5)+(BT48*SageDataCompany!$I$6)+(BU48*SageDataCompany!$I$7)+(BV48*SageDataCompany!$I$8)+(BW48*SageDataCompany!$I$9)+(BX48*SageDataCompany!$I$10)+(BY48*SageDataCompany!$I$11)+(BZ48*SageDataCompany!$I$12)+(CA48*SageDataCompany!$I$13) -> 0 | DN48: 0 | DO48: 0 | DT48: =Table_Query_from_SageLine50v17[[#This Row],[PY Mth1]]+Table_Query_from_SageLine50v17[[#This Row],[PY Mth2]]+Table_Query_from_SageLine50v17[[#This Row],[PY Mth3]]+Table_Query_from_SageLine50v17[[#This Row],[PY Mth4]]+Table_Query_from_SageLine50v17[[#This Row],[PY Mth5]]+Table_Query_from_SageLine50v17[[#This Row],[PY Mth6]]+Table_Query_from_SageLine50v17[[#This Row],[PY Mth7]]+Table_Query_from_SageLine50v17[[#This Row],[PY Mth8]]+Table_Query_from_SageLine50v17[[#This Row],[PY Mth9]]+Table_Query_from_SageLine50v17[[#This Row],[PY Mth10]]+Table_Query_from_SageLine50v17[[#This Row],[PY Mth11]]+Table_Query_from_SageLine50v17[[#This Row],[PY Mth12]] -> 0
A49: 3850 | B49: Other Income | C49: 0 | D49: 0 | E49: 0 | F49: 0 | G49: 0 | H49: 0 | I49: 0 | J49: 0 | K49: 0 | L49: 0 | M49: 0 | N49: 0 | O49: 0 | P49: 0 | Q49: 0 | R49: 0 | S49: 0 | T49: 0 | U49: 0 | V49: 0 | W49: 0 | X49: 0 | Y49: 0 | Z49: 0 | AA49: 0 | AB49: 0 | AC49: 0 | AD49: 0 | AE49: 0 | AF49: 0 | AG49: 0 | AH49: 0 | AI49: 0 | AJ49: 0 | AK49: 0 | AL49: 0 | AM49: 0 | AN49: =IF(VLOOKUP(A49,DR_ODBC_COALIST,16,FALSE),CONCATENATE("9999"," - ",SageDataCOAList!$L$2),SageData!$A49&" - "&SageData!$B49) -> 3850 - Other Income | AO49: 1 | AP49: -1 | AQ49: 1 | AR49: 0 | AS49: 0 | AT49: 0 | AU49: 0 | AV49: 0 | AW49: 0 | AX49: 0 | AY49: 0 | AZ49: 0 | BA49: 0 | BB49: 0 | BC49: 0 | BD49: 0 | BE49: 0 | BF49: 0 | BG49: 0 | BH49: 0 | BI49: 0 | BJ49: 0 | BK49: 0 | BL49: 0 | BM49: 0 | BN49: 0 | BO49: 0 | BP49: 0 | BQ49: 0 | BR49: 0 | BS49: 0 | BT49: 0 | BU49: 0 | BV49: 0 | BW49: 0 | BX49: 0 | BY49: 0 | BZ49: 0 | CA49: 0 | CB49: 0 | CC49: 0 | CD49: 0 | CE49: 0 | CF49: 0 | CG49: 0 | CH49: 0 | CI49: 0 | CJ49: 0 | CK49: 0 | CL49: 0 | CM49: 0 | CN49: 0 | CO49: 0 | CP49: 0 | CQ49: 0 | CR49: 0 | CS49: 0 | CT49: 0 | CU49: 0 | CV49: 0 | CW49: 0 | CX49: 0 | CY49: 0 | CZ49: 003 | DA49: 01 | DB49: Sales | DC49: Other Income | DD49: 01 - Sales | DE49: 003 - Other Income | DF49: =(AR49*SageDataCompany!$H$2)+(AS49*SageDataCompany!$H$3)+(AT49*SageDataCompany!$H$4)+(AU49*SageDataCompany!$H$5)+(AV49*SageDataCompany!$H$6)+(AW49*SageDataCompany!$H$7)+(AX49*SageDataCompany!$H$8)+(AY49*SageDataCompany!$H$9)+(AZ49*SageDataCompany!$H$10)+(BA49*SageDataCompany!$H$11)+(BB49*SageDataCompany!$H$12)+(BC49*SageDataCompany!$H$13) -> 0 | DG49: =(BD49*SageDataCompany!$H$2)+(BE49*SageDataCompany!$H$3)+(BF49*SageDataCompany!$H$4)+(BG49*SageDataCompany!$H$5)+(BH49*SageDataCompany!$H$6)+(BI49*SageDataCompany!$H$7)+(BJ49*SageDataCompany!$H$8)+(BK49*SageDataCompany!$H$9)+(BL49*SageDataCompany!$H$10)+(BM49*SageDataCompany!$H$11)+(BN49*SageDataCompany!$H$12)+(BO49*SageDataCompany!$H$13) -> 0 | DH49: =(BP49*SageDataCompany!$H$2)+(BQ49*SageDataCompany!$H$3)+(BR49*SageDataCompany!$H$4)+(BS49*SageDataCompany!$H$5)+(BT49*SageDataCompany!$H$6)+(BU49*SageDataCompany!$H$7)+(BV49*SageDataCompany!$H$8)+(BW49*SageDataCompany!$H$9)+(BX49*SageDataCompany!$H$10)+(BY49*SageDataCompany!$H$11)+(BZ49*SageDataCompany!$H$12)+(CA49*SageDataCompany!$H$13) -> 0 | DI49: 0 | DJ49: 0 | DK49: =(AR49*SageDataCompany!$I$2)+(AS49*SageDataCompany!$I$3)+(AT49*SageDataCompany!$I$4)+(AU49*SageDataCompany!$I$5)+(AV49*SageDataCompany!$I$6)+(AW49*SageDataCompany!$I$7)+(AX49*SageDataCompany!$I$8)+(AY49*SageDataCompany!$I$9)+(AZ49*SageDataCompany!$I$10)+(BA49*SageDataCompany!$I$11)+(BB49*SageDataCompany!$I$12)+(BC49*SageDataCompany!$I$13) -> 0 | DL49: =(BD49*SageDataCompany!$I$2)+(BE49*SageDataCompany!$I$3)+(BF49*SageDataCompany!$I$4)+(BG49*SageDataCompany!$I$5)+(BH49*SageDataCompany!$I$6)+(BI49*SageDataCompany!$I$7)+(BJ49*SageDataCompany!$I$8)+(BK49*SageDataCompany!$I$9)+(BL49*SageDataCompany!$I$10)+(BM49*SageDataCompany!$I$11)+(BN49*SageDataCompany!$I$12)+(BO49*SageDataCompany!$I$13) -> 0 | DM49: =(BP49*SageDataCompany!$I$2)+(BQ49*SageDataCompany!$I$3)+(BR49*SageDataCompany!$I$4)+(BS49*SageDataCompany!$I$5)+(BT49*SageDataCompany!$I$6)+(BU49*SageDataCompany!$I$7)+(BV49*SageDataCompany!$I$8)+(BW49*SageDataCompany!$I$9)+(BX49*SageDataCompany!$I$10)+(BY49*SageDataCompany!$I$11)+(BZ49*SageDataCompany!$I$12)+(CA49*SageDataCompany!$I$13) -> 0 | DN49: 0 | DO49: 0 | DT49: =Table_Query_from_SageLine50v17[[#This Row],[PY Mth1]]+Table_Query_from_SageLine50v17[[#This Row],[PY Mth2]]+Table_Query_from_SageLine50v17[[#This Row],[PY Mth3]]+Table_Query_from_SageLine50v17[[#This Row],[PY Mth4]]+Table_Query_from_SageLine50v17[[#This Row],[PY Mth5]]+Table_Query_from_SageLine50v17[[#This Row],[PY Mth6]]+Table_Query_from_SageLine50v17[[#This Row],[PY Mth7]]+Table_Query_from_SageLine50v17[[#This Row],[PY Mth8]]+Table_Query_from_SageLine50v17[[#This Row],[PY Mth9]]+Table_Query_from_SageLine50v17[[#This Row],[PY Mth10]]+Table_Query_from_SageLine50v17[[#This Row],[PY Mth11]]+Table_Query_from_SageLine50v17[[#This Row],[PY Mth12]] -> 0
A50: 3900 | B50: DES Building Grant | C50: 0 | D50: 0 | E50: 0 | F50: 0 | G50: 0 | H50: 0 | I50: 0 | J50: 0 | K50: 0 | L50: -55000 | M50: 0 | N50: 0 | O50: 0 | P50: 0 | Q50: 0 | R50: 0 | S50: 0 | T50: 0 | U50: 0 | V50: 0 | W50: 0 | X50: 0 | Y50: 0 | Z50: 0 | AA50: 0 | AB50: 0 | AC50: 0 | AD50: 0 | AE50: 0 | AF50: 0 | AG50: 0 | AH50: 0 | AI50: 0 | AJ50: 0 | AK50: 0 | AL50: 0 | AM50: 0 | AN50: =IF(VLOOKUP(A50,DR_ODBC_COALIST,16,FALSE),CONCATENATE("9999"," - ",SageDataCOAList!$L$2),SageData!$A50&" - "&SageData!$B50) ->  | AO50: 1 | AP50: 1 | AQ50: 1 | AR50: 0 | AS50: 0 | AT50: 0 | AU50: 0 | AV50: 0 | AW50: 0 | AX50: 0 | AY50: 0 | AZ50: 0 | BA50: -55000 | BB50: 0 | BC50: 0 | BD50: 0 | BE50: 0 | BF50: 0 | BG50: 0 | BH50: 0 | BI50: 0 | BJ50: 0 | BK50: 0 | BL50: 0 | BM50: 0 | BN50: 0 | BO50: 0 | BP50: 0 | BQ50: 0 | BR50: 0 | BS50: 0 | BT50: 0 | BU50: 0 | BV50: 0 | BW50: 0 | BX50: 0 | BY50: 0 | BZ50: 0 | CA50: 0 | CB50: 0 | CC50: 0 | CD50: 0 | CE50: 0 | CF50: 0 | CG50: 0 | CH50: 0 | CI50: 0 | CJ50: 0 | CK50: -55000 | CL50: 0 | CM50: 0 | CN50: 0 | CO50: 0 | CP50: 0 | CQ50: 0 | CR50: 0 | CS50: 0 | CT50: 0 | CU50: 0 | CV50: 0 | CW50: -55000 | CX50: 0 | CY50: 0 | CZ50: 999 | DA50: 99 | DB50: Not Found | DC50: Not Found | DD50: 99 - Not Found | DE50: 999 - Not Found | DF50: =(AR50*SageDataCompany!$H$2)+(AS50*SageDataCompany!$H$3)+(AT50*SageDataCompany!$H$4)+(AU50*SageDataCompany!$H$5)+(AV50*SageDataCompany!$H$6)+(AW50*SageDataCompany!$H$7)+(AX50*SageDataCompany!$H$8)+(AY50*SageDataCompany!$H$9)+(AZ50*SageDataCompany!$H$10)+(BA50*SageDataCompany!$H$11)+(BB50*SageDataCompany!$H$12)+(BC50*SageDataCompany!$H$13) -> -55000 | DG50: =(BD50*SageDataCompany!$H$2)+(BE50*SageDataCompany!$H$3)+(BF50*SageDataCompany!$H$4)+(BG50*SageDataCompany!$H$5)+(BH50*SageDataCompany!$H$6)+(BI50*SageDataCompany!$H$7)+(BJ50*SageDataCompany!$H$8)+(BK50*SageDataCompany!$H$9)+(BL50*SageDataCompany!$H$10)+(BM50*SageDataCompany!$H$11)+(BN50*SageDataCompany!$H$12)+(BO50*SageDataCompany!$H$13) -> 0 | DH50: =(BP50*SageDataCompany!$H$2)+(BQ50*SageDataCompany!$H$3)+(BR50*SageDataCompany!$H$4)+(BS50*SageDataCompany!$H$5)+(BT50*SageDataCompany!$H$6)+(BU50*SageDataCompany!$H$7)+(BV50*SageDataCompany!$H$8)+(BW50*SageDataCompany!$H$9)+(BX50*SageDataCompany!$H$10)+(BY50*SageDataCompany!$H$11)+(BZ50*SageDataCompany!$H$12)+(CA50*SageDataCompany!$H$13) -> 0 | DI50: -55000 | DJ50: -55000 | DK50: =(AR50*SageDataCompany!$I$2)+(AS50*SageDataCompany!$I$3)+(AT50*SageDataCompany!$I$4)+(AU50*SageDataCompany!$I$5)+(AV50*SageDataCompany!$I$6)+(AW50*SageDataCompany!$I$7)+(AX50*SageDataCompany!$I$8)+(AY50*SageDataCompany!$I$9)+(AZ50*SageDataCompany!$I$10)+(BA50*SageDataCompany!$I$11)+(BB50*SageDataCompany!$I$12)+(BC50*SageDataCompany!$I$13) -> -55000 | DL50: =(BD50*SageDataCompany!$I$2)+(BE50*SageDataCompany!$I$3)+(BF50*SageDataCompany!$I$4)+(BG50*SageDataCompany!$I$5)+(BH50*SageDataCompany!$I$6)+(BI50*SageDataCompany!$I$7)+(BJ50*SageDataCompany!$I$8)+(BK50*SageDataCompany!$I$9)+(BL50*SageDataCompany!$I$10)+(BM50*SageDataCompany!$I$11)+(BN50*SageDataCompany!$I$12)+(BO50*SageDataCompany!$I$13) -> 0 | DM50: =(BP50*SageDataCompany!$I$2)+(BQ50*SageDataCompany!$I$3)+(BR50*SageDataCompany!$I$4)+(BS50*SageDataCompany!$I$5)+(BT50*SageDataCompany!$I$6)+(BU50*SageDataCompany!$I$7)+(BV50*SageDataCompany!$I$8)+(BW50*SageDataCompany!$I$9)+(BX50*SageDataCompany!$I$10)+(BY50*SageDataCompany!$I$11)+(BZ50*SageDataCompany!$I$12)+(CA50*SageDataCompany!$I$13) -> 0 | DN50: -55000 | DO50: -55000 | DP50: Yes | DS50: Yes | DT50: =Table_Query_from_SageLine50v17[[#This Row],[PY Mth1]]+Table_Query_from_SageLine50v17[[#This Row],[PY Mth2]]+Table_Query_from_SageLine50v17[[#This Row],[PY Mth3]]+Table_Query_from_SageLine50v17[[#This Row],[PY Mth4]]+Table_Query_from_SageLine50v17[[#This Row],[PY Mth5]]+Table_Query_from_SageLine50v17[[#This Row],[PY Mth6]]+Table_Query_from_SageLine50v17[[#This Row],[PY Mth7]]+Table_Query_from_SageLine50v17[[#This Row],[PY Mth8]]+Table_Query_from_SageLine50v17[[#This Row],[PY Mth9]]+Table_Query_from_SageLine50v17[[#This Row],[PY Mth10]]+Table_Query_from_SageLine50v17[[#This Row],[PY Mth11]]+Table_Query_from_SageLine50v17[[#This Row],[PY Mth12]] -> 0
A51: 3905 | B51: Acc Amortisation Building Grant | C51: 0 | D51: 0 | E51: 0 | F51: 0 | G51: 0 | H51: 0 | I51: 0 | J51: 0 | K51: 0 | L51: 10000 | M51: 0 | N51: 0 | O51: 0 | P51: 0 | Q51: 0 | R51: 0 | S51: 0 | T51: 0 | U51: 0 | V51: 0 | W51: 0 | X51: 0 | Y51: 0 | Z51: 0 | AA51: 0 | AB51: 0 | AC51: 0 | AD51: 0 | AE51: 0 | AF51: 0 | AG51: 0 | AH51: 0 | AI51: 0 | AJ51: 0 | AK51: 0 | AL51: 0 | AM51: 0 | AN51: =IF(VLOOKUP(A51,DR_ODBC_COALIST,16,FALSE),CONCATENATE("9999"," - ",SageDataCOAList!$L$2),SageData!$A51&" - "&SageData!$B51) ->  | AO51: 1 | AP51: 1 | AQ51: 1 | AR51: 0 | AS51: 0 | AT51: 0 | AU51: 0 | AV51: 0 | AW51: 0 | AX51: 0 | AY51: 0 | AZ51: 0 | BA51: 10000 | BB51: 0 | BC51: 0 | BD51: 0 | BE51: 0 | BF51: 0 | BG51: 0 | BH51: 0 | BI51: 0 | BJ51: 0 | BK51: 0 | BL51: 0 | BM51: 0 | BN51: 0 | BO51: 0 | BP51: 0 | BQ51: 0 | BR51: 0 | BS51: 0 | BT51: 0 | BU51: 0 | BV51: 0 | BW51: 0 | BX51: 0 | BY51: 0 | BZ51: 0 | CA51: 0 | CB51: 0 | CC51: 0 | CD51: 0 | CE51: 0 | CF51: 0 | CG51: 0 | CH51: 0 | CI51: 0 | CJ51: 0 | CK51: 10000 | CL51: 0 | CM51: 0 | CN51: 0 | CO51: 0 | CP51: 0 | CQ51: 0 | CR51: 0 | CS51: 0 | CT51: 0 | CU51: 0 | CV51: 0 | CW51: 10000 | CX51: 0 | CY51: 0 | CZ51: 999 | DA51: 99 | DB51: Not Found | DC51: Not Found | DD51: 99 - Not Found | DE51: 999 - Not Found | DF51: =(AR51*SageDataCompany!$H$2)+(AS51*SageDataCompany!$H$3)+(AT51*SageDataCompany!$H$4)+(AU51*SageDataCompany!$H$5)+(AV51*SageDataCompany!$H$6)+(AW51*SageDataCompany!$H$7)+(AX51*SageDataCompany!$H$8)+(AY51*SageDataCompany!$H$9)+(AZ51*SageDataCompany!$H$10)+(BA51*SageDataCompany!$H$11)+(BB51*SageDataCompany!$H$12)+(BC51*SageDataCompany!$H$13) -> 10000 | DG51: =(BD51*SageDataCompany!$H$2)+(BE51*SageDataCompany!$H$3)+(BF51*SageDataCompany!$H$4)+(BG51*SageDataCompany!$H$5)+(BH51*SageDataCompany!$H$6)+(BI51*SageDataCompany!$H$7)+(BJ51*SageDataCompany!$H$8)+(BK51*SageDataCompany!$H$9)+(BL51*SageDataCompany!$H$10)+(BM51*SageDataCompany!$H$11)+(BN51*SageDataCompany!$H$12)+(BO51*SageDataCompany!$H$13) -> 0 | DH51: =(BP51*SageDataCompany!$H$2)+(BQ51*SageDataCompany!$H$3)+(BR51*SageDataCompany!$H$4)+(BS51*SageDataCompany!$H$5)+(BT51*SageDataCompany!$H$6)+(BU51*SageDataCompany!$H$7)+(BV51*SageDataCompany!$H$8)+(BW51*SageDataCompany!$H$9)+(BX51*SageDataCompany!$H$10)+(BY51*SageDataCompany!$H$11)+(BZ51*SageDataCompany!$H$12)+(CA51*SageDataCompany!$H$13) -> 0 | DI51: 10000 | DJ51: 10000 | DK51: =(AR51*SageDataCompany!$I$2)+(AS51*SageDataCompany!$I$3)+(AT51*SageDataCompany!$I$4)+(AU51*SageDataCompany!$I$5)+(AV51*SageDataCompany!$I$6)+(AW51*SageDataCompany!$I$7)+(AX51*SageDataCompany!$I$8)+(AY51*SageDataCompany!$I$9)+(AZ51*SageDataCompany!$I$10)+(BA51*SageDataCompany!$I$11)+(BB51*SageDataCompany!$I$12)+(BC51*SageDataCompany!$I$13) -> 10000 | DL51: =(BD51*SageDataCompany!$I$2)+(BE51*SageDataCompany!$I$3)+(BF51*SageDataCompany!$I$4)+(BG51*SageDataCompany!$I$5)+(BH51*SageDataCompany!$I$6)+(BI51*SageDataCompany!$I$7)+(BJ51*SageDataCompany!$I$8)+(BK51*SageDataCompany!$I$9)+(BL51*SageDataCompany!$I$10)+(BM51*SageDataCompany!$I$11)+(BN51*SageDataCompany!$I$12)+(BO51*SageDataCompany!$I$13) -> 0 | DM51: =(BP51*SageDataCompany!$I$2)+(BQ51*SageDataCompany!$I$3)+(BR51*SageDataCompany!$I$4)+(BS51*SageDataCompany!$I$5)+(BT51*SageDataCompany!$I$6)+(BU51*SageDataCompany!$I$7)+(BV51*SageDataCompany!$I$8)+(BW51*SageDataCompany!$I$9)+(BX51*SageDataCompany!$I$10)+(BY51*SageDataCompany!$I$11)+(BZ51*SageDataCompany!$I$12)+(CA51*SageDataCompany!$I$13) -> 0 | DN51: 10000 | DO51: 10000 | DP51: Yes | DS51: Yes | DT51: =Table_Query_from_SageLine50v17[[#This Row],[PY Mth1]]+Table_Query_from_SageLine50v17[[#This Row],[PY Mth2]]+Table_Query_from_SageLine50v17[[#This Row],[PY Mth3]]+Table_Query_from_SageLine50v17[[#This Row],[PY Mth4]]+Table_Query_from_SageLine50v17[[#This Row],[PY Mth5]]+Table_Query_from_SageLine50v17[[#This Row],[PY Mth6]]+Table_Query_from_SageLine50v17[[#This Row],[PY Mth7]]+Table_Query_from_SageLine50v17[[#This Row],[PY Mth8]]+Table_Query_from_SageLine50v17[[#This Row],[PY Mth9]]+Table_Query_from_SageLine50v17[[#This Row],[PY Mth10]]+Table_Query_from_SageLine50v17[[#This Row],[PY Mth11]]+Table_Query_from_SageLine50v17[[#This Row],[PY Mth12]] -> 0
A52: 3920 | B52: DES Equipment Grant | C52: 0 | D52: 0 | E52: 0 | F52: 0 | G52: 0 | H52: 0 | I52: 0 | J52: 0 | K52: 0 | L52: 0 | M52: 0 | N52: 0 | O52: 0 | P52: 0 | Q52: 0 | R52: 0 | S52: 0 | T52: 0 | U52: 0 | V52: 0 | W52: 0 | X52: 0 | Y52: 0 | Z52: 0 | AA52: 0 | AB52: 0 | AC52: 0 | AD52: 0 | AE52: 0 | AF52: 0 | AG52: 0 | AH52: 0 | AI52: 0 | AJ52: 0 | AK52: 0 | AL52: 0 | AM52: 0 | AN52: =IF(VLOOKUP(A52,DR_ODBC_COALIST,16,FALSE),CONCATENATE("9999"," - ",SageDataCOAList!$L$2),SageData!$A52&" - "&SageData!$B52) ->  | AO52: 1 | AP52: 1 | AQ52: 1 | AR52: 0 | AS52: 0 | AT52: 0 | AU52: 0 | AV52: 0 | AW52: 0 | AX52: 0 | AY52: 0 | AZ52: 0 | BA52: 0 | BB52: 0 | BC52: 0 | BD52: 0 | BE52: 0 | BF52: 0 | BG52: 0 | BH52: 0 | BI52: 0 | BJ52: 0 | BK52: 0 | BL52: 0 | BM52: 0 | BN52: 0 | BO52: 0 | BP52: 0 | BQ52: 0 | BR52: 0 | BS52: 0 | BT52: 0 | BU52: 0 | BV52: 0 | BW52: 0 | BX52: 0 | BY52: 0 | BZ52: 0 | CA52: 0 | CB52: 0 | CC52: 0 | CD52: 0 | CE52: 0 | CF52: 0 | CG52: 0 | CH52: 0 | CI52: 0 | CJ52: 0 | CK52: 0 | CL52: 0 | CM52: 0 | CN52: 0 | CO52: 0 | CP52: 0 | CQ52: 0 | CR52: 0 | CS52: 0 | CT52: 0 | CU52: 0 | CV52: 0 | CW52: 0 | CX52: 0 | CY52: 0 | CZ52: 999 | DA52: 99 | DB52: Not Found | DC52: Not Found | DD52: 99 - Not Found | DE52: 999 - Not Found | DF52: =(AR52*SageDataCompany!$H$2)+(AS52*SageDataCompany!$H$3)+(AT52*SageDataCompany!$H$4)+(AU52*SageDataCompany!$H$5)+(AV52*SageDataCompany!$H$6)+(AW52*SageDataCompany!$H$7)+(AX52*SageDataCompany!$H$8)+(AY52*SageDataCompany!$H$9)+(AZ52*SageDataCompany!$H$10)+(BA52*SageDataCompany!$H$11)+(BB52*SageDataCompany!$H$12)+(BC52*SageDataCompany!$H$13) -> 0 | DG52: =(BD52*SageDataCompany!$H$2)+(BE52*SageDataCompany!$H$3)+(BF52*SageDataCompany!$H$4)+(BG52*SageDataCompany!$H$5)+(BH52*SageDataCompany!$H$6)+(BI52*SageDataCompany!$H$7)+(BJ52*SageDataCompany!$H$8)+(BK52*SageDataCompany!$H$9)+(BL52*SageDataCompany!$H$10)+(BM52*SageDataCompany!$H$11)+(BN52*SageDataCompany!$H$12)+(BO52*SageDataCompany!$H$13) -> 0 | DH52: =(BP52*SageDataCompany!$H$2)+(BQ52*SageDataCompany!$H$3)+(BR52*SageDataCompany!$H$4)+(BS52*SageDataCompany!$H$5)+(BT52*SageDataCompany!$H$6)+(BU52*SageDataCompany!$H$7)+(BV52*SageDataCompany!$H$8)+(BW52*SageDataCompany!$H$9)+(BX52*SageDataCompany!$H$10)+(BY52*SageDataCompany!$H$11)+(BZ52*SageDataCompany!$H$12)+(CA52*SageDataCompany!$H$13) -> 0 | DI52: 0 | DJ52: 0 | DK52: =(AR52*SageDataCompany!$I$2)+(AS52*SageDataCompany!$I$3)+(AT52*SageDataCompany!$I$4)+(AU52*SageDataCompany!$I$5)+(AV52*SageDataCompany!$I$6)+(AW52*SageDataCompany!$I$7)+(AX52*SageDataCompany!$I$8)+(AY52*SageDataCompany!$I$9)+(AZ52*SageDataCompany!$I$10)+(BA52*SageDataCompany!$I$11)+(BB52*SageDataCompany!$I$12)+(BC52*SageDataCompany!$I$13) -> 0 | DL52: =(BD52*SageDataCompany!$I$2)+(BE52*SageDataCompany!$I$3)+(BF52*SageDataCompany!$I$4)+(BG52*SageDataCompany!$I$5)+(BH52*SageDataCompany!$I$6)+(BI52*SageDataCompany!$I$7)+(BJ52*SageDataCompany!$I$8)+(BK52*SageDataCompany!$I$9)+(BL52*SageDataCompany!$I$10)+(BM52*SageDataCompany!$I$11)+(BN52*SageDataCompany!$I$12)+(BO52*SageDataCompany!$I$13) -> 0 | DM52: =(BP52*SageDataCompany!$I$2)+(BQ52*SageDataCompany!$I$3)+(BR52*SageDataCompany!$I$4)+(BS52*SageDataCompany!$I$5)+(BT52*SageDataCompany!$I$6)+(BU52*SageDataCompany!$I$7)+(BV52*SageDataCompany!$I$8)+(BW52*SageDataCompany!$I$9)+(BX52*SageDataCompany!$I$10)+(BY52*SageDataCompany!$I$11)+(BZ52*SageDataCompany!$I$12)+(CA52*SageDataCompany!$I$13) -> 0 | DN52: 0 | DO52: 0 | DT52: =Table_Query_from_SageLine50v17[[#This Row],[PY Mth1]]+Table_Query_from_SageLine50v17[[#This Row],[PY Mth2]]+Table_Query_from_SageLine50v17[[#This Row],[PY Mth3]]+Table_Query_from_SageLine50v17[[#This Row],[PY Mth4]]+Table_Query_from_SageLine50v17[[#This Row],[PY Mth5]]+Table_Query_from_SageLine50v17[[#This Row],[PY Mth6]]+Table_Query_from_SageLine50v17[[#This Row],[PY Mth7]]+Table_Query_from_SageLine50v17[[#This Row],[PY Mth8]]+Table_Query_from_SageLine50v17[[#This Row],[PY Mth9]]+Table_Query_from_SageLine50v17[[#This Row],[PY Mth10]]+Table_Query_from_SageLine50v17[[#This Row],[PY Mth11]]+Table_Query_from_SageLine50v17[[#This Row],[PY Mth12]] -> 0
A53: 3925 | B53: Acc Amortisation Equipment Grant | C53: 0 | D53: 0 | E53: 0 | F53: 0 | G53: 0 | H53: 0 | I53: 0 | J53: 0 | K53: 0 | L53: 0 | M53: 0 | N53: 0 | O53: 0 | P53: 0 | Q53: 0 | R53: 0 | S53: 0 | T53: 0 | U53: 0 | V53: 0 | W53: 0 | X53: 0 | Y53: 0 | Z53: 0 | AA53: 0 | AB53: 0 | AC53: 0 | AD53: 0 | AE53: 0 | AF53: 0 | AG53: 0 | AH53: 0 | AI53: 0 | AJ53: 0 | AK53: 0 | AL53: 0 | AM53: 0 | AN53: =IF(VLOOKUP(A53,DR_ODBC_COALIST,16,FALSE),CONCATENATE("9999"," - ",SageDataCOAList!$L$2),SageData!$A53&" - "&SageData!$B53) ->  | AO53: 1 | AP53: 1 | AQ53: 1 | AR53: 0 | AS53: 0 | AT53: 0 | AU53: 0 | AV53: 0 | AW53: 0 | AX53: 0 | AY53: 0 | AZ53: 0 | BA53: 0 | BB53: 0 | BC53: 0 | BD53: 0 | BE53: 0 | BF53: 0 | BG53: 0 | BH53: 0 | BI53: 0 | BJ53: 0 | BK53: 0 | BL53: 0 | BM53: 0 | BN53: 0 | BO53: 0 | BP53: 0 | BQ53: 0 | BR53: 0 | BS53: 0 | BT53: 0 | BU53: 0 | BV53: 0 | BW53: 0 | BX53: 0 | BY53: 0 | BZ53: 0 | CA53: 0 | CB53: 0 | CC53: 0 | CD53: 0 | CE53: 0 | CF53: 0 | CG53: 0 | CH53: 0 | CI53: 0 | CJ53: 0 | CK53: 0 | CL53: 0 | CM53: 0 | CN53: 0 | CO53: 0 | CP53: 0 | CQ53: 0 | CR53: 0 | CS53: 0 | CT53: 0 | CU53: 0 | CV53: 0 | CW53: 0 | CX53: 0 | CY53: 0 | CZ53: 999 | DA53: 99 | DB53: Not Found | DC53: Not Found | DD53: 99 - Not Found | DE53: 999 - Not Found | DF53: =(AR53*SageDataCompany!$H$2)+(AS53*SageDataCompany!$H$3)+(AT53*SageDataCompany!$H$4)+(AU53*SageDataCompany!$H$5)+(AV53*SageDataCompany!$H$6)+(AW53*SageDataCompany!$H$7)+(AX53*SageDataCompany!$H$8)+(AY53*SageDataCompany!$H$9)+(AZ53*SageDataCompany!$H$10)+(BA53*SageDataCompany!$H$11)+(BB53*SageDataCompany!$H$12)+(BC53*SageDataCompany!$H$13) -> 0 | DG53: =(BD53*SageDataCompany!$H$2)+(BE53*SageDataCompany!$H$3)+(BF53*SageDataCompany!$H$4)+(BG53*SageDataCompany!$H$5)+(BH53*SageDataCompany!$H$6)+(BI53*SageDataCompany!$H$7)+(BJ53*SageDataCompany!$H$8)+(BK53*SageDataCompany!$H$9)+(BL53*SageDataCompany!$H$10)+(BM53*SageDataCompany!$H$11)+(BN53*SageDataCompany!$H$12)+(BO53*SageDataCompany!$H$13) -> 0 | DH53: =(BP53*SageDataCompany!$H$2)+(BQ53*SageDataCompany!$H$3)+(BR53*SageDataCompany!$H$4)+(BS53*SageDataCompany!$H$5)+(BT53*SageDataCompany!$H$6)+(BU53*SageDataCompany!$H$7)+(BV53*SageDataCompany!$H$8)+(BW53*SageDataCompany!$H$9)+(BX53*SageDataCompany!$H$10)+(BY53*SageDataCompany!$H$11)+(BZ53*SageDataCompany!$H$12)+(CA53*SageDataCompany!$H$13) -> 0 | DI53: 0 | DJ53: 0 | DK53: =(AR53*SageDataCompany!$I$2)+(AS53*SageDataCompany!$I$3)+(AT53*SageDataCompany!$I$4)+(AU53*SageDataCompany!$I$5)+(AV53*SageDataCompany!$I$6)+(AW53*SageDataCompany!$I$7)+(AX53*SageDataCompany!$I$8)+(AY53*SageDataCompany!$I$9)+(AZ53*SageDataCompany!$I$10)+(BA53*SageDataCompany!$I$11)+(BB53*SageDataCompany!$I$12)+(BC53*SageDataCompany!$I$13) -> 0 | DL53: =(BD53*SageDataCompany!$I$2)+(BE53*SageDataCompany!$I$3)+(BF53*SageDataCompany!$I$4)+(BG53*SageDataCompany!$I$5)+(BH53*SageDataCompany!$I$6)+(BI53*SageDataCompany!$I$7)+(BJ53*SageDataCompany!$I$8)+(BK53*SageDataCompany!$I$9)+(BL53*SageDataCompany!$I$10)+(BM53*SageDataCompany!$I$11)+(BN53*SageDataCompany!$I$12)+(BO53*SageDataCompany!$I$13) -> 0 | DM53: =(BP53*SageDataCompany!$I$2)+(BQ53*SageDataCompany!$I$3)+(BR53*SageDataCompany!$I$4)+(BS53*SageDataCompany!$I$5)+(BT53*SageDataCompany!$I$6)+(BU53*SageDataCompany!$I$7)+(BV53*SageDataCompany!$I$8)+(BW53*SageDataCompany!$I$9)+(BX53*SageDataCompany!$I$10)+(BY53*SageDataCompany!$I$11)+(BZ53*SageDataCompany!$I$12)+(CA53*SageDataCompany!$I$13) -> 0 | DN53: 0 | DO53: 0 | DT53: =Table_Query_from_SageLine50v17[[#This Row],[PY Mth1]]+Table_Query_from_SageLine50v17[[#This Row],[PY Mth2]]+Table_Query_from_SageLine50v17[[#This Row],[PY Mth3]]+Table_Query_from_SageLine50v17[[#This Row],[PY Mth4]]+Table_Query_from_SageLine50v17[[#This Row],[PY Mth5]]+Table_Query_from_SageLine50v17[[#This Row],[PY Mth6]]+Table_Query_from_SageLine50v17[[#This Row],[PY Mth7]]+Table_Query_from_SageLine50v17[[#This Row],[PY Mth8]]+Table_Query_from_SageLine50v17[[#This Row],[PY Mth9]]+Table_Query_from_SageLine50v17[[#This Row],[PY Mth10]]+Table_Query_from_SageLine50v17[[#This Row],[PY Mth11]]+Table_Query_from_SageLine50v17[[#This Row],[PY Mth12]] -> 0
A54: 3940 | B54: DES Building Fees | C54: 0 | D54: 0 | E54: 0 | F54: 0 | G54: 0 | H54: 0 | I54: 0 | J54: 0 | K54: 0 | L54: 0 | M54: 0 | N54: 0 | O54: 0 | P54: 0 | Q54: 0 | R54: 0 | S54: 0 | T54: 0 | U54: 0 | V54: 0 | W54: 0 | X54: 0 | Y54: 0 | Z54: 0 | AA54: 0 | AB54: 0 | AC54: 0 | AD54: 0 | AE54: 0 | AF54: 0 | AG54: 0 | AH54: 0 | AI54: 0 | AJ54: 0 | AK54: 0 | AL54: 0 | AM54: 0 | AN54: =IF(VLOOKUP(A54,DR_ODBC_COALIST,16,FALSE),CONCATENATE("9999"," - ",SageDataCOAList!$L$2),SageData!$A54&" - "&SageData!$B54) ->  | AO54: 1 | AP54: 1 | AQ54: 1 | AR54: 0 | AS54: 0 | AT54: 0 | AU54: 0 | AV54: 0 | AW54: 0 | AX54: 0 | AY54: 0 | AZ54: 0 | BA54: 0 | BB54: 0 | BC54: 0 | BD54: 0 | BE54: 0 | BF54: 0 | BG54: 0 | BH54: 0 | BI54: 0 | BJ54: 0 | BK54: 0 | BL54: 0 | BM54: 0 | BN54: 0 | BO54: 0 | BP54: 0 | BQ54: 0 | BR54: 0 | BS54: 0 | BT54: 0 | BU54: 0 | BV54: 0 | BW54: 0 | BX54: 0 | BY54: 0 | BZ54: 0 | CA54: 0 | CB54: 0 | CC54: 0 | CD54: 0 | CE54: 0 | CF54: 0 | CG54: 0 | CH54: 0 | CI54: 0 | CJ54: 0 | CK54: 0 | CL54: 0 | CM54: 0 | CN54: 0 | CO54: 0 | CP54: 0 | CQ54: 0 | CR54: 0 | CS54: 0 | CT54: 0 | CU54: 0 | CV54: 0 | CW54: 0 | CX54: 0 | CY54: 0 | CZ54: 999 | DA54: 99 | DB54: Not Found | DC54: Not Found | DD54: 99 - Not Found | DE54: 999 - Not Found | DF54: =(AR54*SageDataCompany!$H$2)+(AS54*SageDataCompany!$H$3)+(AT54*SageDataCompany!$H$4)+(AU54*SageDataCompany!$H$5)+(AV54*SageDataCompany!$H$6)+(AW54*SageDataCompany!$H$7)+(AX54*SageDataCompany!$H$8)+(AY54*SageDataCompany!$H$9)+(AZ54*SageDataCompany!$H$10)+(BA54*SageDataCompany!$H$11)+(BB54*SageDataCompany!$H$12)+(BC54*SageDataCompany!$H$13) -> 0 | DG54: =(BD54*SageDataCompany!$H$2)+(BE54*SageDataCompany!$H$3)+(BF54*SageDataCompany!$H$4)+(BG54*SageDataCompany!$H$5)+(BH54*SageDataCompany!$H$6)+(BI54*SageDataCompany!$H$7)+(BJ54*SageDataCompany!$H$8)+(BK54*SageDataCompany!$H$9)+(BL54*SageDataCompany!$H$10)+(BM54*SageDataCompany!$H$11)+(BN54*SageDataCompany!$H$12)+(BO54*SageDataCompany!$H$13) -> 0 | DH54: =(BP54*SageDataCompany!$H$2)+(BQ54*SageDataCompany!$H$3)+(BR54*SageDataCompany!$H$4)+(BS54*SageDataCompany!$H$5)+(BT54*SageDataCompany!$H$6)+(BU54*SageDataCompany!$H$7)+(BV54*SageDataCompany!$H$8)+(BW54*SageDataCompany!$H$9)+(BX54*SageDataCompany!$H$10)+(BY54*SageDataCompany!$H$11)+(BZ54*SageDataCompany!$H$12)+(CA54*SageDataCompany!$H$13) -> 0 | DI54: 0 | DJ54: 0 | DK54: =(AR54*SageDataCompany!$I$2)+(AS54*SageDataCompany!$I$3)+(AT54*SageDataCompany!$I$4)+(AU54*SageDataCompany!$I$5)+(AV54*SageDataCompany!$I$6)+(AW54*SageDataCompany!$I$7)+(AX54*SageDataCompany!$I$8)+(AY54*SageDataCompany!$I$9)+(AZ54*SageDataCompany!$I$10)+(BA54*SageDataCompany!$I$11)+(BB54*SageDataCompany!$I$12)+(BC54*SageDataCompany!$I$13) -> 0 | DL54: =(BD54*SageDataCompany!$I$2)+(BE54*SageDataCompany!$I$3)+(BF54*SageDataCompany!$I$4)+(BG54*SageDataCompany!$I$5)+(BH54*SageDataCompany!$I$6)+(BI54*SageDataCompany!$I$7)+(BJ54*SageDataCompany!$I$8)+(BK54*SageDataCompany!$I$9)+(BL54*SageDataCompany!$I$10)+(BM54*SageDataCompany!$I$11)+(BN54*SageDataCompany!$I$12)+(BO54*SageDataCompany!$I$13) -> 0 | DM54: =(BP54*SageDataCompany!$I$2)+(BQ54*SageDataCompany!$I$3)+(BR54*SageDataCompany!$I$4)+(BS54*SageDataCompany!$I$5)+(BT54*SageDataCompany!$I$6)+(BU54*SageDataCompany!$I$7)+(BV54*SageDataCompany!$I$8)+(BW54*SageDataCompany!$I$9)+(BX54*SageDataCompany!$I$10)+(BY54*SageDataCompany!$I$11)+(BZ54*SageDataCompany!$I$12)+(CA54*SageDataCompany!$I$13) -> 0 | DN54: 0 | DO54: 0 | DT54: =Table_Query_from_SageLine50v17[[#This Row],[PY Mth1]]+Table_Query_from_SageLine50v17[[#This Row],[PY Mth2]]+Table_Query_from_SageLine50v17[[#This Row],[PY Mth3]]+Table_Query_from_SageLine50v17[[#This Row],[PY Mth4]]+Table_Query_from_SageLine50v17[[#This Row],[PY Mth5]]+Table_Query_from_SageLine50v17[[#This Row],[PY Mth6]]+Table_Query_from_SageLine50v17[[#This Row],[PY Mth7]]+Table_Query_from_SageLine50v17[[#This Row],[PY Mth8]]+Table_Query_from_SageLine50v17[[#This Row],[PY Mth9]]+Table_Query_from_SageLine50v17[[#This Row],[PY Mth10]]+Table_Query_from_SageLine50v17[[#This Row],[PY Mth11]]+Table_Query_from_SageLine50v17[[#This Row],[PY Mth12]] -> 0
